Workbook

Sheet Cover

Sheet Model information and guide
A1: =RIGHT(CELL("filename", $A$1), LEN(CELL("filename", $A$1)) - SEARCH("]", CELL("filename", $A$1))) -> Model information and guide
B3: Model name: | C3: REC22 - September 2022 consultaiton: Working capital model
B4: Version number: | C4: 1
B5: Filename: | C5: =MID(CELL("filename"), FIND("[", CELL("filename"), 1) + 1, FIND("]", CELL("filename"), 1) - FIND("[", CELL("filename"), 1) - 1) -> REC22 September consultation - Working capital model.xlsm
B6: Date: | C6: 2022-09-01
B7: Author: | C7: Samuel Adams - Associate, Economist
B8: Author contact information: | C8: samuel.adams@ofwat.gov.uk
B11: Summary of model: | C11: The REC22 working capital model considers the cost to a Retailer of financing working capital requirements for a notional Group One customer. The modelled working capital (W.C.) requirements and associated cost is to be considered alongside the proposed allowed net margin of 2%. The spreadsheet model is set over 3 notional financial years (01 April to 31 March) – FY-1, FY, and FY+1. Please note that the spreadsheet model this is represented by the period 01/03/2023 to 30/06/2026, this is for illustrative purposes only and should not be viewed as a calculation of working capital costs during this period. The modelling period is set over three financial years to incorporate the opening and closing balance sheet position of the notional customer given the model assumes an opening outstanding balance of zero in period FY-1. Our assessment of working capital costs is determined in financial year FY as we view this as representative of a BAU payment schedule that would be expected from an established Group One customer that reflects outstanding balances due (assuming no changes to pricing and consumption in the period). Therefore, the financial years FY-1 and FY+1 should not to be considered as representative of our estimate of working capital costs. This model is used to consider a range of working capital costs that an efficient Retailer may incur in serving a Group One customer. Working capital is financed with respect to an assumed annual financing cost that is used to determine the monthly working capital cost using the relevant monthly compound interest rate. A range of output reflecting a varied annual financing cost is included in the accompanying consultation document. This model considers a single assumed financing cost for illustrative purposes only. Section A4.6.1 in appendix 1 of the REC22 September consultation document provides a range of modelled working capital costs, dependent on the assumed annual financing cost. The model incorporates assumptions about the notional Group One customer's billing arrangements and the timing of Retailer payment of wholesale charges. The model assumes the following: 1. The Group One customer is billed quarterly in arrears. 2. The Retailer pays wholesale charges one month in advance. To account for differing customer payment dates we have assumed 50% of the scheduled payment is paid on the 15th day of each month and 50% is paid on the last day of each month. The model incorporates an assumption of an outstanding debt profile for an efficient Retailer. As such, model assumes 84% of the payment due from the notional customer is received within 90 days of the billing being issued to the customer. The remaining 16% of revenue is excluded from our modelled working capital costs. Our model considers the value of debt up to 90 days only as we have assumed that an efficient Retailer would collect payment within 90 days. Details of our methodology, an example calculation, and a guide to the sheets in this Excel model are included in section A4.6 in appendix 1 of the REC22 September consultation document.
C13: Follow link >> | D13: https://www.ofwat.gov.uk/consultation/business-retail-market-2021-22-review-of-the-retail-exit-code-consultation-on-proposals
B16: Error check status | C16: =Check!C$8 -> 0
A19: END

Sheet FAST colour guide
A1: =RIGHT(CELL("filename", $A$1), LEN(CELL("filename", $A$1)) - SEARCH("]", CELL("filename", $A$1))) -> FAST colour guide
A3: Cell / Row / Column colour
B5: Font colour
E6: Ofwat second blue text (no shade) | G6: Imported from another sheet/section
E8: Ofwat red text (no shade) | G8: Exported to another sheet/section *
E10: Black text (no shade) | G10: Neither imported nor exported
E12: * Except from input sheets (sheets with 'Inp' prefix)
E14: Ofwat dark green (no shade) | G14: Documentation
B16: Font and shade combinations
E17: Black text + light yellow shade | G17: Inputs
E19: Black text + light grey shade on ENTIRE row | G19: Within-worksheet counter-flow
E21: Ofwat second blue text + light grey shade | G21: Between-worksheet counter-flow
E23: Light blue | G23: Stored/dead/hard coded outputs
E25: White text (Franklin Gothic Demi) + Ofwat purple shade | G25: Warning text
E27: 0 | G27: Conditional formatting for error checks*
E29: * returns green when value is zero. For all other values it returns red
B31: Other
E32: Empty cell with light grey shade | G32: Empty cells being referenced/used
E34: Entire row/column with blue text + Ofwat light blue shade | G34: Section separator
B36: Checks and administration
E38: Lemon shade | G38: Values or logic to be reviewed/discussed
B40: Worksheet tab colour coding
E42: Ofwat yellow – 50% | G42: Input sheets
E44: Ofwat grey – 33% | G44: Documentation and calculation cheets
E46: Second blue – 66% | G46: Cached results sheets
E48: Ofwat purple – 66% | G48: Quality control
E50: Ofwat yellow – 100% | G50: Temporary
E52: Ofwat green – 66% | G52: Outputs
A55: END

Sheet Inputs -->

Sheet Inputs
A1: =RIGHT(CELL("filename", $A$1), LEN(CELL("filename", $A$1)) - SEARCH("]", CELL("filename", $A$1))) -> Inputs
E2: =Time!E$24 -> Model Period BEG | K2: =Time!K$24 -> 2023-03-01 | L2: =Time!L$24 -> 2023-04-01 | M2: =Time!M$24 -> 2023-05-01 | N2: =Time!N$24 -> 2023-06-01 | O2: =Time!O$24 -> 2023-07-01 | P2: =Time!P$24 -> 2023-08-01 | Q2: =Time!Q$24 -> 2023-09-01 | R2: =Time!R$24 -> 2023-10-01 | S2: =Time!S$24 -> 2023-11-01 | T2: =Time!T$24 -> 2023-12-01 | U2: =Time!U$24 -> 2024-01-01 | V2: =Time!V$24 -> 2024-02-01 | W2: =Time!W$24 -> 2024-03-01 | X2: =Time!X$24 -> 2024-04-01 | Y2: =Time!Y$24 -> 2024-05-01 | Z2: =Time!Z$24 -> 2024-06-01 | AA2: =Time!AA$24 -> 2024-07-01 | AB2: =Time!AB$24 -> 2024-08-01 | AC2: =Time!AC$24 -> 2024-09-01 | AD2: =Time!AD$24 -> 2024-10-01 | AE2: =Time!AE$24 -> 2024-11-01 | AF2: =Time!AF$24 -> 2024-12-01 | AG2: =Time!AG$24 -> 2025-01-01 | AH2: =Time!AH$24 -> 2025-02-01 | AI2: =Time!AI$24 -> 2025-03-01 | AJ2: =Time!AJ$24 -> 2025-04-01 | AK2: =Time!AK$24 -> 2025-05-01 | AL2: =Time!AL$24 -> 2025-06-01 | AM2: =Time!AM$24 -> 2025-07-01 | AN2: =Time!AN$24 -> 2025-08-01 | AO2: =Time!AO$24 -> 2025-09-01 | AP2: =Time!AP$24 -> 2025-10-01 | AQ2: =Time!AQ$24 -> 2025-11-01 | AR2: =Time!AR$24 -> 2025-12-01 | AS2: =Time!AS$24 -> 2026-01-01 | AT2: =Time!AT$24 -> 2026-02-01 | AU2: =Time!AU$24 -> 2026-03-01 | AV2: =Time!AV$24 -> 2026-04-01 | AW2: =Time!AW$24 -> 2026-05-01 | AX2: =Time!AX$24 -> 2026-06-01
E3: =Time!E$27 -> Model Period END | F3: =Check!F$8 -> 0 | G3: Error chks | K3: =Time!K$27 -> 2023-03-31 | L3: =Time!L$27 -> 2023-04-30 | M3: =Time!M$27 -> 2023-05-31 | N3: =Time!N$27 -> 2023-06-30 | O3: =Time!O$27 -> 2023-07-31 | P3: =Time!P$27 -> 2023-08-31 | Q3: =Time!Q$27 -> 2023-09-30 | R3: =Time!R$27 -> 2023-10-31 | S3: =Time!S$27 -> 2023-11-30 | T3: =Time!T$27 -> 2023-12-31 | U3: =Time!U$27 -> 2024-01-31 | V3: =Time!V$27 -> 2024-02-29 | W3: =Time!W$27 -> 2024-03-31 | X3: =Time!X$27 -> 2024-04-30 | Y3: =Time!Y$27 -> 2024-05-31 | Z3: =Time!Z$27 -> 2024-06-30 | AA3: =Time!AA$27 -> 2024-07-31 | AB3: =Time!AB$27 -> 2024-08-31 | AC3: =Time!AC$27 -> 2024-09-30 | AD3: =Time!AD$27 -> 2024-10-31 | AE3: =Time!AE$27 -> 2024-11-30 | AF3: =Time!AF$27 -> 2024-12-31 | AG3: =Time!AG$27 -> 2025-01-31 | AH3: =Time!AH$27 -> 2025-02-28 | AI3: =Time!AI$27 -> 2025-03-31 | AJ3: =Time!AJ$27 -> 2025-04-30 | AK3: =Time!AK$27 -> 2025-05-31 | AL3: =Time!AL$27 -> 2025-06-30 | AM3: =Time!AM$27 -> 2025-07-31 | AN3: =Time!AN$27 -> 2025-08-31 | AO3: =Time!AO$27 -> 2025-09-30 | AP3: =Time!AP$27 -> 2025-10-31 | AQ3: =Time!AQ$27 -> 2025-11-30 | AR3: =Time!AR$27 -> 2025-12-31 | AS3: =Time!AS$27 -> 2026-01-31 | AT3: =Time!AT$27 -> 2026-02-28 | AU3: =Time!AU$27 -> 2026-03-31 | AV3: =Time!AV$27 -> 2026-04-30 | AW3: =Time!AW$27 -> 2026-05-31 | AX3: =Time!AX$27 -> 2026-06-30
E4: =Time!E$100 -> Period reference | K4: =Time!K$100 -> Pre model period | L4: =Time!L$100 -> Pre model period | M4: =Time!M$100 -> Pre model period | N4: =Time!N$100 -> Pre model period | O4: =Time!O$100 -> Pre model period | P4: =Time!P$100 -> Pre model period | Q4: =Time!Q$100 -> Pre model period | R4: =Time!R$100 -> Pre model period | S4: =Time!S$100 -> Pre model period | T4: =Time!T$100 -> Pre model period | U4: =Time!U$100 -> Pre model period | V4: =Time!V$100 -> Pre model period | W4: =Time!W$100 -> Pre model period | X4: =Time!X$100 -> W.C. model period | Y4: =Time!Y$100 -> W.C. model period | Z4: =Time!Z$100 -> W.C. model period | AA4: =Time!AA$100 -> W.C. model period | AB4: =Time!AB$100 -> W.C. model period | AC4: =Time!AC$100 -> W.C. model period | AD4: =Time!AD$100 -> W.C. model period | AE4: =Time!AE$100 -> W.C. model period | AF4: =Time!AF$100 -> W.C. model period | AG4: =Time!AG$100 -> W.C. model period | AH4: =Time!AH$100 -> W.C. model period | AI4: =Time!AI$100 -> W.C. model period | AJ4: =Time!AJ$100 -> Post model period | AK4: =Time!AK$100 -> Post model period | AL4: =Time!AL$100 -> Post model period | AM4: =Time!AM$100 -> Post model period | AN4: =Time!AN$100 -> Post model period | AO4: =Time!AO$100 -> Post model period | AP4: =Time!AP$100 -> Post model period | AQ4: =Time!AQ$100 -> Post model period | AR4: =Time!AR$100 -> Post model period | AS4: =Time!AS$100 -> Post model period | AT4: =Time!AT$100 -> Post model period | AU4: =Time!AU$100 -> Post model period | AV4: =Time!AV$100 -> Post model period | AW4: =Time!AW$100 -> Post model period | AX4: =Time!AX$100 -> Post model period
E5: =Time!E$91 -> Financial Year Reference | K5: =Time!K$91 -> FY-2 | L5: =Time!L$91 -> FY-1 | M5: =Time!M$91 -> FY-1 | N5: =Time!N$91 -> FY-1 | O5: =Time!O$91 -> FY-1 | P5: =Time!P$91 -> FY-1 | Q5: =Time!Q$91 -> FY-1 | R5: =Time!R$91 -> FY-1 | S5: =Time!S$91 -> FY-1 | T5: =Time!T$91 -> FY-1 | U5: =Time!U$91 -> FY-1 | V5: =Time!V$91 -> FY-1 | W5: =Time!W$91 -> FY-1 | X5: =Time!X$91 -> FY | Y5: =Time!Y$91 -> FY | Z5: =Time!Z$91 -> FY | AA5: =Time!AA$91 -> FY | AB5: =Time!AB$91 -> FY | AC5: =Time!AC$91 -> FY | AD5: =Time!AD$91 -> FY | AE5: =Time!AE$91 -> FY | AF5: =Time!AF$91 -> FY | AG5: =Time!AG$91 -> FY | AH5: =Time!AH$91 -> FY | AI5: =Time!AI$91 -> FY | AJ5: =Time!AJ$91 -> FY+1 | AK5: =Time!AK$91 -> FY+1 | AL5: =Time!AL$91 -> FY+1 | AM5: =Time!AM$91 -> FY+1 | AN5: =Time!AN$91 -> FY+1 | AO5: =Time!AO$91 -> FY+1 | AP5: =Time!AP$91 -> FY+1 | AQ5: =Time!AQ$91 -> FY+1 | AR5: =Time!AR$91 -> FY+1 | AS5: =Time!AS$91 -> FY+1 | AT5: =Time!AT$91 -> FY+1 | AU5: =Time!AU$91 -> FY+1 | AV5: =Time!AV$91 -> FY+2 | AW5: =Time!AW$91 -> FY+2 | AX5: =Time!AX$91 -> FY+2
E6: =Time!E$11 -> Model column counter | F6: Constant | G6: Unit | H6: Total | K6: =Time!K$11 -> 1 | L6: =Time!L$11 -> 2 | M6: =Time!M$11 -> 3 | N6: =Time!N$11 -> 4 | O6: =Time!O$11 -> 5 | P6: =Time!P$11 -> 6 | Q6: =Time!Q$11 -> 7 | R6: =Time!R$11 -> 8 | S6: =Time!S$11 -> 9 | T6: =Time!T$11 -> 10 | U6: =Time!U$11 -> 11 | V6: =Time!V$11 -> 12 | W6: =Time!W$11 -> 13 | X6: =Time!X$11 -> 14 | Y6: =Time!Y$11 -> 15 | Z6: =Time!Z$11 -> 16 | AA6: =Time!AA$11 -> 17 | AB6: =Time!AB$11 -> 18 | AC6: =Time!AC$11 -> 19 | AD6: =Time!AD$11 -> 20 | AE6: =Time!AE$11 -> 21 | AF6: =Time!AF$11 -> 22 | AG6: =Time!AG$11 -> 23 | AH6: =Time!AH$11 -> 24 | AI6: =Time!AI$11 -> 25 | AJ6: =Time!AJ$11 -> 26 | AK6: =Time!AK$11 -> 27 | AL6: =Time!AL$11 -> 28 | AM6: =Time!AM$11 -> 29 | AN6: =Time!AN$11 -> 30 | AO6: =Time!AO$11 -> 31 | AP6: =Time!AP$11 -> 32 | AQ6: =Time!AQ$11 -> 33 | AR6: =Time!AR$11 -> 34 | AS6: =Time!AS$11 -> 35 | AT6: =Time!AT$11 -> 36 | AU6: =Time!AU$11 -> 37 | AV6: =Time!AV$11 -> 38 | AW6: =Time!AW$11 -> 39 | AX6: =Time!AX$11 -> 40
A8: TIME
B10: Total Modelling Period
E11: First date of modelling period | F11: 2023-03-01 | G11: date
E12: Length of modelling period | F12: 39 | G12: months
E13: Last modelling period | F13: =DATE( YEAR(F11), MONTH( F11 ) + F12 + 1, DAY( F11 ) - 1 ) -> 2026-06-30 | G13: date
B15: Working Capital Modelling Period
E16: Working capital modelling period start date (FY) | F16: =DATE( YEAR( F11 ) + 1, MONTH( F11 ) + 1, DAY( F11 ) ) -> 2024-04-01 | G16: date
E17: Last working capital modelling period date (FY) | F17: =DATE( YEAR(F16) + 1, MONTH( F16 ), DAY( F16 ) - 1 ) -> 2025-03-31 | G17: date
B19: Pre Working Capital Modelling Period
E20: Financial year before the working capital modelling period (FY-1) | F20: =DATE( YEAR( F16 ), MONTH( F16 ) - 12, DAY( F16 ) ) -> 2023-04-01 | G20: date
E21: Last date of the modelling period (FY-1) | F21: =DATE( YEAR( F20 ) + 1, MONTH( F20 ), DAY( F20 ) -1) -> 2024-03-31 | G21: date
B23: Post Working Capital Modelling Period
E24: Financial year after the working capital modelling period (FY+1) | F24: =DATE( YEAR( F16 ) + 1, MONTH( F16 ), DAY( F16 ) ) -> 2025-04-01 | G24: date
A27: CUSTOMER PAYMENT INPUTS
B29: Customer Billing Inputs
E30: Annual bill | F30: 500 | G30: £
E31: Wholesale charge proportion | F31: 0.9 | G31: %
E32: Retail cost proportion | F32: 0.1 | G32: %
E34: Annual wholesale charge | F34: =- F$30 * F31 -> -450 | G34: £
E35: Annual retail cost | F35: =- F$30 * F32 -> -50 | G35: £
E37: Monthly wholesale charge | F37: =F34 / 12 -> -37.5 | G37: £
E38: Monthly retail cost | F38: =F35 / 12 -> -4.166666667 | G38: £
B40: Customer Billing Period
E41: 3 year payment period | F41: 36 | G41: months
A44: CUSTOMER PAYMENT TIMING INPUT
E46: Number of customer payments in a financial year | F46: 4 | G46: #
E48: Customer payment month 1 | F48: 6 | G48: month #
E49: Customer payment month 2 | F49: 9 | G49: month #
E50: Customer payment month 3 | F50: 12 | G50: month #
E51: Customer payment month 4 | F51: 3 | G51: month #
E53: Proportion of payment received on day 15 of the month | F53: 0.5 | G53: %
A56: OUTSTANDING DEBT PROFILE
E58: % revenue collected after 30 days | F58: 0.52 | G58: %
E59: % revenue collected after 60 days | F59: 0.68 | G59: %
E60: % revenue collected after 90 days | F60: 0.84 | G60: %
A63: FINANCING COST INPUT
E65: Annual financing cost | F65: 0.05 | G65: %
E66: Monthly interest rate (monthly compound interest rate) | F66: =( 1+ F65 ) ^ ( 1 / 12) - 1 -> 0.004074123784 | G66: %
A69: FINANCIAL YEAR PARAMETERS
E71: Financial Year End Month Number | F71: 3 | G71: month #
E73: Number of months in the financial year | F73: 12 | G73: months
A76: END

Sheet Calcs-->

Sheet Time
A1: =RIGHT(CELL("filename", $A$1), LEN(CELL("filename", $A$1)) - SEARCH("]", CELL("filename", $A$1))) -> Time
E2: =Time!E$24 -> Model Period BEG | K2: =Time!K$24 -> 2023-03-01 | L2: =Time!L$24 -> 2023-04-01 | M2: =Time!M$24 -> 2023-05-01 | N2: =Time!N$24 -> 2023-06-01 | O2: =Time!O$24 -> 2023-07-01 | P2: =Time!P$24 -> 2023-08-01 | Q2: =Time!Q$24 -> 2023-09-01 | R2: =Time!R$24 -> 2023-10-01 | S2: =Time!S$24 -> 2023-11-01 | T2: =Time!T$24 -> 2023-12-01 | U2: =Time!U$24 -> 2024-01-01 | V2: =Time!V$24 -> 2024-02-01 | W2: =Time!W$24 -> 2024-03-01 | X2: =Time!X$24 -> 2024-04-01 | Y2: =Time!Y$24 -> 2024-05-01 | Z2: =Time!Z$24 -> 2024-06-01 | AA2: =Time!AA$24 -> 2024-07-01 | AB2: =Time!AB$24 -> 2024-08-01 | AC2: =Time!AC$24 -> 2024-09-01 | AD2: =Time!AD$24 -> 2024-10-01 | AE2: =Time!AE$24 -> 2024-11-01 | AF2: =Time!AF$24 -> 2024-12-01 | AG2: =Time!AG$24 -> 2025-01-01 | AH2: =Time!AH$24 -> 2025-02-01 | AI2: =Time!AI$24 -> 2025-03-01 | AJ2: =Time!AJ$24 -> 2025-04-01 | AK2: =Time!AK$24 -> 2025-05-01 | AL2: =Time!AL$24 -> 2025-06-01 | AM2: =Time!AM$24 -> 2025-07-01 | AN2: =Time!AN$24 -> 2025-08-01 | AO2: =Time!AO$24 -> 2025-09-01 | AP2: =Time!AP$24 -> 2025-10-01 | AQ2: =Time!AQ$24 -> 2025-11-01 | AR2: =Time!AR$24 -> 2025-12-01 | AS2: =Time!AS$24 -> 2026-01-01 | AT2: =Time!AT$24 -> 2026-02-01 | AU2: =Time!AU$24 -> 2026-03-01 | AV2: =Time!AV$24 -> 2026-04-01 | AW2: =Time!AW$24 -> 2026-05-01 | AX2: =Time!AX$24 -> 2026-06-01
E3: =Time!E$27 -> Model Period END | F3: =Check!F$8 -> 0 | G3: Error chks | K3: =Time!K$27 -> 2023-03-31 | L3: =Time!L$27 -> 2023-04-30 | M3: =Time!M$27 -> 2023-05-31 | N3: =Time!N$27 -> 2023-06-30 | O3: =Time!O$27 -> 2023-07-31 | P3: =Time!P$27 -> 2023-08-31 | Q3: =Time!Q$27 -> 2023-09-30 | R3: =Time!R$27 -> 2023-10-31 | S3: =Time!S$27 -> 2023-11-30 | T3: =Time!T$27 -> 2023-12-31 | U3: =Time!U$27 -> 2024-01-31 | V3: =Time!V$27 -> 2024-02-29 | W3: =Time!W$27 -> 2024-03-31 | X3: =Time!X$27 -> 2024-04-30 | Y3: =Time!Y$27 -> 2024-05-31 | Z3: =Time!Z$27 -> 2024-06-30 | AA3: =Time!AA$27 -> 2024-07-31 | AB3: =Time!AB$27 -> 2024-08-31 | AC3: =Time!AC$27 -> 2024-09-30 | AD3: =Time!AD$27 -> 2024-10-31 | AE3: =Time!AE$27 -> 2024-11-30 | AF3: =Time!AF$27 -> 2024-12-31 | AG3: =Time!AG$27 -> 2025-01-31 | AH3: =Time!AH$27 -> 2025-02-28 | AI3: =Time!AI$27 -> 2025-03-31 | AJ3: =Time!AJ$27 -> 2025-04-30 | AK3: =Time!AK$27 -> 2025-05-31 | AL3: =Time!AL$27 -> 2025-06-30 | AM3: =Time!AM$27 -> 2025-07-31 | AN3: =Time!AN$27 -> 2025-08-31 | AO3: =Time!AO$27 -> 2025-09-30 | AP3: =Time!AP$27 -> 2025-10-31 | AQ3: =Time!AQ$27 -> 2025-11-30 | AR3: =Time!AR$27 -> 2025-12-31 | AS3: =Time!AS$27 -> 2026-01-31 | AT3: =Time!AT$27 -> 2026-02-28 | AU3: =Time!AU$27 -> 2026-03-31 | AV3: =Time!AV$27 -> 2026-04-30 | AW3: =Time!AW$27 -> 2026-05-31 | AX3: =Time!AX$27 -> 2026-06-30
E4: =Time!E$100 -> Period reference | K4: =Time!K$100 -> Pre model period | L4: =Time!L$100 -> Pre model period | M4: =Time!M$100 -> Pre model period | N4: =Time!N$100 -> Pre model period | O4: =Time!O$100 -> Pre model period | P4: =Time!P$100 -> Pre model period | Q4: =Time!Q$100 -> Pre model period | R4: =Time!R$100 -> Pre model period | S4: =Time!S$100 -> Pre model period | T4: =Time!T$100 -> Pre model period | U4: =Time!U$100 -> Pre model period | V4: =Time!V$100 -> Pre model period | W4: =Time!W$100 -> Pre model period | X4: =Time!X$100 -> W.C. model period | Y4: =Time!Y$100 -> W.C. model period | Z4: =Time!Z$100 -> W.C. model period | AA4: =Time!AA$100 -> W.C. model period | AB4: =Time!AB$100 -> W.C. model period | AC4: =Time!AC$100 -> W.C. model period | AD4: =Time!AD$100 -> W.C. model period | AE4: =Time!AE$100 -> W.C. model period | AF4: =Time!AF$100 -> W.C. model period | AG4: =Time!AG$100 -> W.C. model period | AH4: =Time!AH$100 -> W.C. model period | AI4: =Time!AI$100 -> W.C. model period | AJ4: =Time!AJ$100 -> Post model period | AK4: =Time!AK$100 -> Post model period | AL4: =Time!AL$100 -> Post model period | AM4: =Time!AM$100 -> Post model period | AN4: =Time!AN$100 -> Post model period | AO4: =Time!AO$100 -> Post model period | AP4: =Time!AP$100 -> Post model period | AQ4: =Time!AQ$100 -> Post model period | AR4: =Time!AR$100 -> Post model period | AS4: =Time!AS$100 -> Post model period | AT4: =Time!AT$100 -> Post model period | AU4: =Time!AU$100 -> Post model period | AV4: =Time!AV$100 -> Post model period | AW4: =Time!AW$100 -> Post model period | AX4: =Time!AX$100 -> Post model period
E5: =Time!E$91 -> Financial Year Reference | K5: =Time!K$91 -> FY-2 | L5: =Time!L$91 -> FY-1 | M5: =Time!M$91 -> FY-1 | N5: =Time!N$91 -> FY-1 | O5: =Time!O$91 -> FY-1 | P5: =Time!P$91 -> FY-1 | Q5: =Time!Q$91 -> FY-1 | R5: =Time!R$91 -> FY-1 | S5: =Time!S$91 -> FY-1 | T5: =Time!T$91 -> FY-1 | U5: =Time!U$91 -> FY-1 | V5: =Time!V$91 -> FY-1 | W5: =Time!W$91 -> FY-1 | X5: =Time!X$91 -> FY | Y5: =Time!Y$91 -> FY | Z5: =Time!Z$91 -> FY | AA5: =Time!AA$91 -> FY | AB5: =Time!AB$91 -> FY | AC5: =Time!AC$91 -> FY | AD5: =Time!AD$91 -> FY | AE5: =Time!AE$91 -> FY | AF5: =Time!AF$91 -> FY | AG5: =Time!AG$91 -> FY | AH5: =Time!AH$91 -> FY | AI5: =Time!AI$91 -> FY | AJ5: =Time!AJ$91 -> FY+1 | AK5: =Time!AK$91 -> FY+1 | AL5: =Time!AL$91 -> FY+1 | AM5: =Time!AM$91 -> FY+1 | AN5: =Time!AN$91 -> FY+1 | AO5: =Time!AO$91 -> FY+1 | AP5: =Time!AP$91 -> FY+1 | AQ5: =Time!AQ$91 -> FY+1 | AR5: =Time!AR$91 -> FY+1 | AS5: =Time!AS$91 -> FY+1 | AT5: =Time!AT$91 -> FY+1 | AU5: =Time!AU$91 -> FY+1 | AV5: =Time!AV$91 -> FY+2 | AW5: =Time!AW$91 -> FY+2 | AX5: =Time!AX$91 -> FY+2
E6: =Time!E$11 -> Model column counter | F6: Constant | G6: Unit | H6: Total | K6: =Time!K$11 -> 1 | L6: =Time!L$11 -> 2 | M6: =Time!M$11 -> 3 | N6: =Time!N$11 -> 4 | O6: =Time!O$11 -> 5 | P6: =Time!P$11 -> 6 | Q6: =Time!Q$11 -> 7 | R6: =Time!R$11 -> 8 | S6: =Time!S$11 -> 9 | T6: =Time!T$11 -> 10 | U6: =Time!U$11 -> 11 | V6: =Time!V$11 -> 12 | W6: =Time!W$11 -> 13 | X6: =Time!X$11 -> 14 | Y6: =Time!Y$11 -> 15 | Z6: =Time!Z$11 -> 16 | AA6: =Time!AA$11 -> 17 | AB6: =Time!AB$11 -> 18 | AC6: =Time!AC$11 -> 19 | AD6: =Time!AD$11 -> 20 | AE6: =Time!AE$11 -> 21 | AF6: =Time!AF$11 -> 22 | AG6: =Time!AG$11 -> 23 | AH6: =Time!AH$11 -> 24 | AI6: =Time!AI$11 -> 25 | AJ6: =Time!AJ$11 -> 26 | AK6: =Time!AK$11 -> 27 | AL6: =Time!AL$11 -> 28 | AM6: =Time!AM$11 -> 29 | AN6: =Time!AN$11 -> 30 | AO6: =Time!AO$11 -> 31 | AP6: =Time!AP$11 -> 32 | AQ6: =Time!AQ$11 -> 33 | AR6: =Time!AR$11 -> 34 | AS6: =Time!AS$11 -> 35 | AT6: =Time!AT$11 -> 36 | AU6: =Time!AU$11 -> 37 | AV6: =Time!AV$11 -> 38 | AW6: =Time!AW$11 -> 39 | AX6: =Time!AX$11 -> 40
A8: MODEL PERIOD
B10: Model Column Counter
E11: Model column counter | G11: counter | K11: =J11 + 1 -> 1 | L11: =K11 + 1 -> 2 | M11: 3 | N11: 4 | O11: 5 | P11: 6 | Q11: 7 | R11: 8 | S11: 9 | T11: 10 | U11: 11 | V11: 12 | W11: 13 | X11: 14 | Y11: 15 | Z11: 16 | AA11: 17 | AB11: 18 | AC11: 19 | AD11: 20 | AE11: 21 | AF11: 22 | AG11: 23 | AH11: 24 | AI11: 25 | AJ11: 26 | AK11: 27 | AL11: 28 | AM11: 29 | AN11: 30 | AO11: 31 | AP11: 32 | AQ11: 33 | AR11: =AQ11 + 1 -> 34 | AS11: 35 | AT11: 36 | AU11: 37 | AV11: 38 | AW11: 39 | AX11: =AW11 + 1 -> 40
E12: Model Column Total | F12: =MAX( K11:AX11 ) -> 40 | G12: columns
E14: =E$11 -> Model column counter | G14: counter | K14: =K$11 -> 1 | L14: =L$11 -> 2 | M14: 3 | N14: 4 | O14: 5 | P14: 6 | Q14: 7 | R14: 8 | S14: 9 | T14: 10 | U14: 11 | V14: 12 | W14: 13 | X14: 14 | Y14: 15 | Z14: 16 | AA14: 17 | AB14: 18 | AC14: 19 | AD14: 20 | AE14: 21 | AF14: 22 | AG14: 23 | AH14: 24 | AI14: 25 | AJ14: 26 | AK14: 27 | AL14: 28 | AM14: 29 | AN14: 30 | AO14: 31 | AP14: 32 | AQ14: 33 | AR14: 34 | AS14: 35 | AT14: 36 | AU14: 37 | AV14: 38 | AW14: 39 | AX14: 40
E15: First model column flag | G15: flag | H15: =SUM( K15:AX15 ) -> 1 | K15: =IF( K14 = 1, 1, 0 ) -> 1 | L15: =IF( L14 = 1, 1, 0 ) -> 0 | M15: 0 | N15: 0 | O15: 0 | P15: 0 | Q15: 0 | R15: 0 | S15: 0 | T15: 0 | U15: 0 | V15: 0 | W15: 0 | X15: 0 | Y15: 0 | Z15: 0 | AA15: 0 | AB15: 0 | AC15: 0 | AD15: 0 | AE15: 0 | AF15: 0 | AG15: 0 | AH15: 0 | AI15: 0 | AJ15: 0 | AK15: 0 | AL15: 0 | AM15: 0 | AN15: 0 | AO15: 0 | AP15: 0 | AQ15: 0 | AR15: 0 | AS15: 0 | AT15: 0 | AU15: 0 | AV15: 0 | AW15: 0 | AX15: 0
E16: First model column total | F16: =H15 -> 1 | G16: columns
B18: Modelling Period
E19: =Inputs!E$11 -> First date of modelling period | F19: =Inputs!F$11 -> 2023-03-01 | G19: =Inputs!G$11 -> date
E20: First model period BEG | F20: =DATE(YEAR(F19), MONTH(F19), 1) -> 2023-03-01 | G20: month
E22: =E$20 -> First model period BEG | F22: =F$20 -> 2023-03-01 | G22: =G$20 -> month
E23: =E$15 -> First model column flag | F23: 0 | G23: flag | H23: 1 | J23: 0 | K23: 1 | L23: 0 | M23: 0 | N23: 0 | O23: 0 | P23: 0 | Q23: 0 | R23: 0 | S23: 0 | T23: 0 | U23: 0 | V23: 0 | W23: 0 | X23: 0 | Y23: 0 | Z23: 0 | AA23: 0 | AB23: 0 | AC23: 0 | AD23: 0 | AE23: 0 | AF23: 0 | AG23: 0 | AH23: 0 | AI23: 0 | AJ23: 0 | AK23: 0 | AL23: 0 | AM23: 0 | AN23: 0 | AO23: 0 | AP23: 0 | AQ23: 0 | AR23: 0 | AS23: 0 | AT23: 0 | AU23: 0 | AV23: 0 | AW23: 0 | AX23: 0
E24: Model Period BEG | G24: date | K24: =IF( K23 = 1, $F22, J27 + 1) -> 2023-03-01 | L24: =IF( L23 = 1, $F22, K27 + 1) -> 2023-04-01 | M24: =IF( M23 = 1, $F22, L27 + 1) -> 2023-05-01 | N24: 2023-06-01 | O24: 2023-07-01 | P24: 2023-08-01 | Q24: 2023-09-01 | R24: 2023-10-01 | S24: 2023-11-01 | T24: 2023-12-01 | U24: 2024-01-01 | V24: 2024-02-01 | W24: 2024-03-01 | X24: 2024-04-01 | Y24: 2024-05-01 | Z24: 2024-06-01 | AA24: 2024-07-01 | AB24: 2024-08-01 | AC24: 2024-09-01 | AD24: 2024-10-01 | AE24: 2024-11-01 | AF24: 2024-12-01 | AG24: 2025-01-01 | AH24: 2025-02-01 | AI24: 2025-03-01 | AJ24: 2025-04-01 | AK24: 2025-05-01 | AL24: 2025-06-01 | AM24: 2025-07-01 | AN24: 2025-08-01 | AO24: 2025-09-01 | AP24: 2025-10-01 | AQ24: 2025-11-01 | AR24: 2025-12-01 | AS24: 2026-01-01 | AT24: 2026-02-01 | AU24: 2026-03-01 | AV24: 2026-04-01 | AW24: 2026-05-01 | AX24: 2026-06-01
E26: =E24 -> Model Period BEG | F26: =F24 -> 00:00:00 | G26: date | H26: 00:00:00 | K26: 2023-03-01 | L26: 2023-04-01 | M26: 2023-05-01 | N26: 2023-06-01 | O26: 2023-07-01 | P26: 2023-08-01 | Q26: 2023-09-01 | R26: 2023-10-01 | S26: 2023-11-01 | T26: 2023-12-01 | U26: 2024-01-01 | V26: 2024-02-01 | W26: 2024-03-01 | X26: 2024-04-01 | Y26: 2024-05-01 | Z26: 2024-06-01 | AA26: 2024-07-01 | AB26: 2024-08-01 | AC26: 2024-09-01 | AD26: 2024-10-01 | AE26: 2024-11-01 | AF26: 2024-12-01 | AG26: 2025-01-01 | AH26: 2025-02-01 | AI26: 2025-03-01 | AJ26: 2025-04-01 | AK26: 2025-05-01 | AL26: 2025-06-01 | AM26: 2025-07-01 | AN26: 2025-08-01 | AO26: 2025-09-01 | AP26: 2025-10-01 | AQ26: 2025-11-01 | AR26: 2025-12-01 | AS26: 2026-01-01 | AT26: 2026-02-01 | AU26: 2026-03-01 | AV26: 2026-04-01 | AW26: 2026-05-01 | AX26: 2026-06-01
E27: Model Period END | G27: date | K27: =DATE(YEAR(K26), MONTH(K26) + 1, DAY(1) - 1) -> 2023-03-31 | L27: =DATE(YEAR(L26), MONTH(L26) + 1, DAY(1) - 1) -> 2023-04-30 | M27: 2023-05-31 | N27: 2023-06-30 | O27: 2023-07-31 | P27: 2023-08-31 | Q27: 2023-09-30 | R27: 2023-10-31 | S27: 2023-11-30 | T27: 2023-12-31 | U27: 2024-01-31 | V27: 2024-02-29 | W27: 2024-03-31 | X27: 2024-04-30 | Y27: 2024-05-31 | Z27: 2024-06-30 | AA27: 2024-07-31 | AB27: 2024-08-31 | AC27: 2024-09-30 | AD27: 2024-10-31 | AE27: 2024-11-30 | AF27: 2024-12-31 | AG27: 2025-01-31 | AH27: 2025-02-28 | AI27: 2025-03-31 | AJ27: 2025-04-30 | AK27: 2025-05-31 | AL27: 2025-06-30 | AM27: 2025-07-31 | AN27: 2025-08-31 | AO27: 2025-09-30 | AP27: 2025-10-31 | AQ27: 2025-11-30 | AR27: 2025-12-31 | AS27: 2026-01-31 | AT27: 2026-02-28 | AU27: 2026-03-31 | AV27: 2026-04-30 | AW27: 2026-05-31 | AX27: 2026-06-30
A30: WORKING CAPITAL MODELLING PERIOD
E32: =Inputs!E16 -> Working capital modelling period start date (FY) | F32: =Inputs!F16 -> 2024-04-01 | G32: =Inputs!G16 -> date
E33: =Inputs!E17 -> Last working capital modelling period date (FY) | F33: =Inputs!F17 -> 2025-03-31 | G33: =Inputs!G17 -> date
E34: =E$27 -> Model Period END | F34: =F$27 -> 00:00:00 | G34: =G$27 -> date | H34: 00:00:00 | K34: 2023-03-31 | L34: 2023-04-30 | M34: 2023-05-31 | N34: 2023-06-30 | O34: =O$27 -> 2023-07-31 | P34: =P$27 -> 2023-08-31 | Q34: 2023-09-30 | R34: 2023-10-31 | S34: 2023-11-30 | T34: 2023-12-31 | U34: 2024-01-31 | V34: 2024-02-29 | W34: 2024-03-31 | X34: 2024-04-30 | Y34: 2024-05-31 | Z34: 2024-06-30 | AA34: 2024-07-31 | AB34: 2024-08-31 | AC34: 2024-09-30 | AD34: 2024-10-31 | AE34: 2024-11-30 | AF34: 2024-12-31 | AG34: 2025-01-31 | AH34: 2025-02-28 | AI34: 2025-03-31 | AJ34: 2025-04-30 | AK34: 2025-05-31 | AL34: 2025-06-30 | AM34: 2025-07-31 | AN34: 2025-08-31 | AO34: 2025-09-30 | AP34: 2025-10-31 | AQ34: 2025-11-30 | AR34: 2025-12-31 | AS34: 2026-01-31 | AT34: 2026-02-28 | AU34: 2026-03-31 | AV34: 2026-04-30 | AW34: 2026-05-31 | AX34: 2026-06-30
E35: Working capital modelling period flag | G35: flag | H35: =SUM( K35:AX35 ) -> 12 | K35: =IF( AND( $F32 < K34, $F33 >= K34 ), 1, 0 ) -> 0 | L35: =IF( AND( $F32 < L34, $F33 >= L34 ), 1, 0 ) -> 0 | M35: 0 | N35: 0 | O35: 0 | P35: 0 | Q35: 0 | R35: 0 | S35: 0 | T35: 0 | U35: 0 | V35: 0 | W35: 0 | X35: 1 | Y35: 1 | Z35: 1 | AA35: 1 | AB35: 1 | AC35: 1 | AD35: 1 | AE35: 1 | AF35: 1 | AG35: 1 | AH35: 1 | AI35: 1 | AJ35: 0 | AK35: 0 | AL35: 0 | AM35: 0 | AN35: 0 | AO35: 0 | AP35: 0 | AQ35: 0 | AR35: 0 | AS35: 0 | AT35: 0 | AU35: 0 | AV35: 0 | AW35: 0 | AX35: 0
E36: Working capital period total | F36: =SUM( K35:AX35 ) -> 12 | G36: columns
A39: PRE/POST MODEL PERIOD
B41: Pre model period
E42: =Inputs!E$20 -> Financial year before the working capital modelling period (FY-1) | F42: =Inputs!F$20 -> 2023-04-01 | G42: =Inputs!G$20 -> date | H42: =Inputs!H$20 -> 00:00:00
E43: =Inputs!E$21 -> Last date of the modelling period (FY-1) | F43: =Inputs!F$21 -> 2024-03-31 | G43: =Inputs!G$21 -> date
E44: =E$27 -> Model Period END | F44: =F$27 -> 00:00:00 | G44: date | H44: 00:00:00 | K44: =K$27 -> 2023-03-31 | L44: =L$27 -> 2023-04-30 | M44: 2023-05-31 | N44: 2023-06-30 | O44: 2023-07-31 | P44: 2023-08-31 | Q44: 2023-09-30 | R44: 2023-10-31 | S44: 2023-11-30 | T44: 2023-12-31 | U44: 2024-01-31 | V44: 2024-02-29 | W44: 2024-03-31 | X44: 2024-04-30 | Y44: 2024-05-31 | Z44: 2024-06-30 | AA44: 2024-07-31 | AB44: 2024-08-31 | AC44: 2024-09-30 | AD44: 2024-10-31 | AE44: 2024-11-30 | AF44: 2024-12-31 | AG44: 2025-01-31 | AH44: 2025-02-28 | AI44: 2025-03-31 | AJ44: 2025-04-30 | AK44: 2025-05-31 | AL44: 2025-06-30 | AM44: 2025-07-31 | AN44: 2025-08-31 | AO44: 2025-09-30 | AP44: 2025-10-31 | AQ44: 2025-11-30 | AR44: 2025-12-31 | AS44: 2026-01-31 | AT44: 2026-02-28 | AU44: 2026-03-31 | AV44: 2026-04-30 | AW44: 2026-05-31 | AX44: 2026-06-30
E45: Pre model period flag | G45: flag | H45: =SUM( K45:AX45 ) -> 12 | K45: =IF( AND( K44 > $F42, K44 <= $F43 ), 1, 0 ) -> 0 | L45: =IF( AND( L44 > $F42, L44 <= $F43 ), 1, 0 ) -> 1 | M45: 1 | N45: 1 | O45: 1 | P45: 1 | Q45: 1 | R45: 1 | S45: 1 | T45: 1 | U45: 1 | V45: 1 | W45: 1 | X45: 0 | Y45: 0 | Z45: 0 | AA45: 0 | AB45: 0 | AC45: 0 | AD45: 0 | AE45: 0 | AF45: 0 | AG45: 0 | AH45: 0 | AI45: 0 | AJ45: 0 | AK45: 0 | AL45: 0 | AM45: 0 | AN45: 0 | AO45: 0 | AP45: 0 | AQ45: 0 | AR45: 0 | AS45: 0 | AT45: 0 | AU45: 0 | AV45: 0 | AW45: 0 | AX45: 0
E46: Pre model period total | F46: =SUM( K45:AX45 ) -> 12 | G46: columns
B48: Post model period
E49: =Inputs!E$24 -> Financial year after the working capital modelling period (FY+1) | F49: =Inputs!F$24 -> 2025-04-01 | G49: =Inputs!G$24 -> date | H49: =Inputs!H$24 -> 00:00:00
E50: =E$27 -> Model Period END | F50: =F$27 -> 00:00:00 | G50: date | H50: 00:00:00 | K50: =K$27 -> 2023-03-31 | L50: =L$27 -> 2023-04-30 | M50: 2023-05-31 | N50: 2023-06-30 | O50: 2023-07-31 | P50: 2023-08-31 | Q50: 2023-09-30 | R50: 2023-10-31 | S50: 2023-11-30 | T50: 2023-12-31 | U50: 2024-01-31 | V50: 2024-02-29 | W50: 2024-03-31 | X50: 2024-04-30 | Y50: 2024-05-31 | Z50: 2024-06-30 | AA50: 2024-07-31 | AB50: 2024-08-31 | AC50: 2024-09-30 | AD50: 2024-10-31 | AE50: 2024-11-30 | AF50: 2024-12-31 | AG50: 2025-01-31 | AH50: 2025-02-28 | AI50: 2025-03-31 | AJ50: 2025-04-30 | AK50: 2025-05-31 | AL50: 2025-06-30 | AM50: 2025-07-31 | AN50: 2025-08-31 | AO50: 2025-09-30 | AP50: 2025-10-31 | AQ50: 2025-11-30 | AR50: 2025-12-31 | AS50: 2026-01-31 | AT50: 2026-02-28 | AU50: 2026-03-31 | AV50: 2026-04-30 | AW50: 2026-05-31 | AX50: 2026-06-30
E51: Post model period flag | G51: flag | H51: =SUM( K51:AX51 ) -> 15 | K51: =IF( AND( K50 > $F49 ), 1, 0 ) -> 0 | L51: =IF( AND( L50 > $F49 ), 1, 0 ) -> 0 | M51: 0 | N51: 0 | O51: 0 | P51: 0 | Q51: 0 | R51: 0 | S51: 0 | T51: 0 | U51: 0 | V51: 0 | W51: 0 | X51: 0 | Y51: 0 | Z51: 0 | AA51: 0 | AB51: 0 | AC51: 0 | AD51: 0 | AE51: 0 | AF51: 0 | AG51: 0 | AH51: 0 | AI51: 0 | AJ51: 1 | AK51: 1 | AL51: 1 | AM51: 1 | AN51: 1 | AO51: 1 | AP51: 1 | AQ51: 1 | AR51: 1 | AS51: 1 | AT51: 1 | AU51: 1 | AV51: 1 | AW51: 1 | AX51: 1
E52: Post model period total | F52: =SUM( K51:AX51 ) -> 15 | G52: columns
A55: CUSTOMER PAYMENT SCHEDULES
E57: =Inputs!E41 -> 3 year payment period | F57: =Inputs!F41 -> 36 | G57: =Inputs!G41 -> months | H57: =Inputs!H41 -> 0
E58: =E11 -> Model column counter | F58: =F11 -> 0 | G58: =G11 -> counter | H58: =H11 -> 0 | J58: =J11 -> 0 | K58: =K11 -> 1 | L58: 2 | M58: 3 | N58: 4 | O58: 5 | P58: 6 | Q58: 7 | R58: 8 | S58: 9 | T58: 10 | U58: 11 | V58: 12 | W58: 13 | X58: 14 | Y58: 15 | Z58: 16 | AA58: 17 | AB58: 18 | AC58: 19 | AD58: 20 | AE58: 21 | AF58: 22 | AG58: 23 | AH58: 24 | AI58: 25 | AJ58: 26 | AK58: 27 | AL58: 28 | AM58: 29 | AN58: 30 | AO58: 31 | AP58: 32 | AQ58: 33 | AR58: 34 | AS58: 35 | AT58: 36 | AU58: 37 | AV58: 38 | AW58: 39 | AX58: 40
E59: Customer bill payment period flag | F59: 0 | G59: flag | H59: =SUM( K59:AX59 ) -> 36 | K59: =IF( AND( J58 <= $F57, J58 > 0 ), 1, 0 ) -> 0 | L59: =IF( AND( K58 <= $F57, K58 > 0 ), 1, 0 ) -> 1 | M59: 1 | N59: 1 | O59: 1 | P59: 1 | Q59: 1 | R59: 1 | S59: 1 | T59: 1 | U59: 1 | V59: 1 | W59: 1 | X59: 1 | Y59: 1 | Z59: 1 | AA59: 1 | AB59: 1 | AC59: 1 | AD59: 1 | AE59: 1 | AF59: 1 | AG59: 1 | AH59: 1 | AI59: 1 | AJ59: 1 | AK59: 1 | AL59: 1 | AM59: 1 | AN59: 1 | AO59: 1 | AP59: 1 | AQ59: 1 | AR59: 1 | AS59: 1 | AT59: 1 | AU59: 1 | AV59: 0 | AW59: 0 | AX59: 0
E61: =E59 -> Customer bill payment period flag | F61: =F59 -> 0 | G61: flag | H61: 36 | J61: 0 | K61: =K59 -> 0 | L61: 1 | M61: 1 | N61: 1 | O61: 1 | P61: 1 | Q61: 1 | R61: 1 | S61: 1 | T61: 1 | U61: 1 | V61: 1 | W61: 1 | X61: 1 | Y61: 1 | Z61: 1 | AA61: 1 | AB61: 1 | AC61: 1 | AD61: 1 | AE61: 1 | AF61: 1 | AG61: 1 | AH61: 1 | AI61: 1 | AJ61: 1 | AK61: 1 | AL61: 1 | AM61: 1 | AN61: 1 | AO61: 1 | AP61: 1 | AQ61: 1 | AR61: 1 | AS61: 1 | AT61: 1 | AU61: 1 | AV61: 0 | AW61: 0 | AX61: 0
E62: =E27 -> Model Period END | F62: =F27 -> 00:00:00 | G62: =G27 -> date | H62: =H27 -> 00:00:00 | J62: =J27 -> 00:00:00 | K62: 2023-03-31 | L62: 2023-04-30 | M62: 2023-05-31 | N62: 2023-06-30 | O62: 2023-07-31 | P62: 2023-08-31 | Q62: 2023-09-30 | R62: 2023-10-31 | S62: 2023-11-30 | T62: 2023-12-31 | U62: 2024-01-31 | V62: 2024-02-29 | W62: 2024-03-31 | X62: 2024-04-30 | Y62: 2024-05-31 | Z62: 2024-06-30 | AA62: 2024-07-31 | AB62: 2024-08-31 | AC62: 2024-09-30 | AD62: 2024-10-31 | AE62: 2024-11-30 | AF62: 2024-12-31 | AG62: 2025-01-31 | AH62: 2025-02-28 | AI62: 2025-03-31 | AJ62: 2025-04-30 | AK62: 2025-05-31 | AL62: 2025-06-30 | AM62: 2025-07-31 | AN62: 2025-08-31 | AO62: 2025-09-30 | AP62: 2025-10-31 | AQ62: 2025-11-30 | AR62: 2025-12-31 | AS62: 2026-01-31 | AT62: 2026-02-28 | AU62: 2026-03-31 | AV62: 2026-04-30 | AW62: 2026-05-31 | AX62: 2026-06-30
E63: Month number | F63: 0 | G63: month | K63: =MONTH( K62 ) -> 3 | L63: =MONTH( L62 ) -> 4 | M63: 5 | N63: 6 | O63: 7 | P63: 8 | Q63: 9 | R63: 10 | S63: 11 | T63: 12 | U63: 1 | V63: 2 | W63: 3 | X63: 4 | Y63: 5 | Z63: 6 | AA63: 7 | AB63: 8 | AC63: 9 | AD63: 10 | AE63: 11 | AF63: 12 | AG63: 1 | AH63: 2 | AI63: 3 | AJ63: 4 | AK63: 5 | AL63: 6 | AM63: 7 | AN63: 8 | AO63: 9 | AP63: 10 | AQ63: 11 | AR63: 12 | AS63: 1 | AT63: 2 | AU63: 3 | AV63: 4 | AW63: 5 | AX63: 6
E65: =Inputs!E48 -> Customer payment month 1 | F65: =Inputs!F48 -> 6 | G65: =Inputs!G48 -> month #
E66: =Inputs!E49 -> Customer payment month 2 | F66: =Inputs!F49 -> 9 | G66: =Inputs!G49 -> month #
E67: =Inputs!E50 -> Customer payment month 3 | F67: =Inputs!F50 -> 12 | G67: =Inputs!G50 -> month #
E68: =Inputs!E51 -> Customer payment month 4 | F68: =Inputs!F51 -> 3 | G68: =Inputs!G51 -> month #
E70: Customer payment schedule flag | F70: 0 | G70: flag | H70: =SUM( K70:AX70 ) -> 12 | K70: =IF( ISNA( MATCH( K61 * K63, $F65:$F68, 0 ) ), 0, 1 ) -> 0 | L70: =IF( ISNA( MATCH( L61 * L63, $F65:$F68, 0 ) ), 0, 1 ) -> 0 | M70: 0 | N70: 1 | O70: 0 | P70: 0 | Q70: 1 | R70: 0 | S70: 0 | T70: 1 | U70: 0 | V70: 0 | W70: 1 | X70: 0 | Y70: 0 | Z70: 1 | AA70: 0 | AB70: 0 | AC70: 1 | AD70: 0 | AE70: 0 | AF70: 1 | AG70: 0 | AH70: 0 | AI70: 1 | AJ70: 0 | AK70: 0 | AL70: 1 | AM70: 0 | AN70: 0 | AO70: 1 | AP70: 0 | AQ70: 0 | AR70: 1 | AS70: 0 | AT70: 0 | AU70: 1 | AV70: 0 | AW70: 0 | AX70: 0
A73: WHOLESALER AND RETAIL PAYMENT PERIOD
B75: Wholesaler charge payment period
E76: =Inputs!E41 -> 3 year payment period | F76: =Inputs!F41 -> 36 | G76: =Inputs!G41 -> months | H76: =Inputs!H41 -> 0
E77: =E11 -> Model column counter | F77: =F11 -> 0 | G77: =G11 -> counter | H77: =H11 -> 0 | J77: =J11 -> 0 | K77: 1 | L77: 2 | M77: 3 | N77: 4 | O77: 5 | P77: 6 | Q77: 7 | R77: 8 | S77: 9 | T77: 10 | U77: 11 | V77: 12 | W77: 13 | X77: 14 | Y77: 15 | Z77: 16 | AA77: 17 | AB77: 18 | AC77: 19 | AD77: 20 | AE77: 21 | AF77: 22 | AG77: 23 | AH77: 24 | AI77: 25 | AJ77: 26 | AK77: 27 | AL77: 28 | AM77: 29 | AN77: 30 | AO77: 31 | AP77: 32 | AQ77: 33 | AR77: 34 | AS77: 35 | AT77: 36 | AU77: 37 | AV77: 38 | AW77: 39 | AX77: 40
E78: Wholesale charge payment flag | F78: 0 | G78: flag | H78: =SUM( K78:AX78 ) -> 37 | K78: =IF( J77 <= $F76, 1, 0 ) -> 1 | L78: =IF( K77 <= $F76, 1, 0 ) -> 1 | M78: 1 | N78: 1 | O78: 1 | P78: 1 | Q78: 1 | R78: 1 | S78: 1 | T78: 1 | U78: 1 | V78: 1 | W78: 1 | X78: 1 | Y78: 1 | Z78: 1 | AA78: 1 | AB78: 1 | AC78: 1 | AD78: 1 | AE78: 1 | AF78: 1 | AG78: 1 | AH78: 1 | AI78: 1 | AJ78: 1 | AK78: 1 | AL78: 1 | AM78: 1 | AN78: 1 | AO78: 1 | AP78: 1 | AQ78: 1 | AR78: 1 | AS78: 1 | AT78: 1 | AU78: 1 | AV78: 0 | AW78: 0 | AX78: 0
B80: Retail cost payment period
E81: =Inputs!E41 -> 3 year payment period | F81: =Inputs!F41 -> 36 | G81: =Inputs!G41 -> months | H81: =Inputs!H41 -> 0
E82: =E11 -> Model column counter | F82: =F11 -> 0 | G82: =G11 -> counter | H82: =H11 -> 0 | J82: =J11 -> 0 | K82: 1 | L82: 2 | M82: 3 | N82: 4 | O82: 5 | P82: 6 | Q82: 7 | R82: 8 | S82: 9 | T82: 10 | U82: 11 | V82: 12 | W82: 13 | X82: 14 | Y82: 15 | Z82: 16 | AA82: 17 | AB82: 18 | AC82: 19 | AD82: 20 | AE82: 21 | AF82: 22 | AG82: 23 | AH82: 24 | AI82: 25 | AJ82: 26 | AK82: 27 | AL82: 28 | AM82: 29 | AN82: 30 | AO82: 31 | AP82: 32 | AQ82: 33 | AR82: 34 | AS82: 35 | AT82: 36 | AU82: 37 | AV82: 38 | AW82: 39 | AX82: 40
E83: Retail cost payment flag | F83: 0 | G83: flag | H83: =SUM( K83:AX83 ) -> 36 | K83: =IF( AND( J82 <= $F81, J82 > 0 ), 1, 0 ) -> 0 | L83: =IF( AND( K82 <= $F81, K82 > 0 ), 1, 0 ) -> 1 | M83: 1 | N83: 1 | O83: 1 | P83: 1 | Q83: 1 | R83: 1 | S83: 1 | T83: 1 | U83: 1 | V83: 1 | W83: 1 | X83: 1 | Y83: 1 | Z83: 1 | AA83: 1 | AB83: 1 | AC83: 1 | AD83: 1 | AE83: 1 | AF83: 1 | AG83: 1 | AH83: 1 | AI83: 1 | AJ83: 1 | AK83: 1 | AL83: 1 | AM83: 1 | AN83: 1 | AO83: 1 | AP83: 1 | AQ83: 1 | AR83: 1 | AS83: 1 | AT83: 1 | AU83: 1 | AV83: 0 | AW83: 0 | AX83: 0
A86: FINANCIAL YEAR
E88: =Inputs!E71 -> Financial Year End Month Number | F88: =Inputs!F71 -> 3 | G88: =Inputs!G71 -> month #
E89: =E$27 -> Model Period END | F89: =F$27 -> 00:00:00 | G89: date | H89: 00:00:00 | J89: 00:00:00 | K89: 2023-03-31 | L89: 2023-04-30 | M89: 2023-05-31 | N89: 2023-06-30 | O89: 2023-07-31 | P89: 2023-08-31 | Q89: 2023-09-30 | R89: 2023-10-31 | S89: 2023-11-30 | T89: 2023-12-31 | U89: 2024-01-31 | V89: 2024-02-29 | W89: 2024-03-31 | X89: 2024-04-30 | Y89: 2024-05-31 | Z89: 2024-06-30 | AA89: 2024-07-31 | AB89: 2024-08-31 | AC89: 2024-09-30 | AD89: 2024-10-31 | AE89: 2024-11-30 | AF89: 2024-12-31 | AG89: 2025-01-31 | AH89: 2025-02-28 | AI89: 2025-03-31 | AJ89: 2025-04-30 | AK89: 2025-05-31 | AL89: 2025-06-30 | AM89: 2025-07-31 | AN89: 2025-08-31 | AO89: 2025-09-30 | AP89: 2025-10-31 | AQ89: 2025-11-30 | AR89: 2025-12-31 | AS89: 2026-01-31 | AT89: 2026-02-28 | AU89: 2026-03-31 | AV89: 2026-04-30 | AW89: 2026-05-31 | AX89: 2026-06-30
E90: Financial Year Ending | G90: year # | K90: =IF( MONTH( K89 ) <= $F88, YEAR( K89 ), YEAR( K89 ) + 1 ) -> 2023 | L90: =IF( MONTH( L89 ) <= $F88, YEAR( L89 ), YEAR( L89 ) + 1 ) -> 2024 | M90: 2024 | N90: 2024 | O90: 2024 | P90: 2024 | Q90: 2024 | R90: 2024 | S90: 2024 | T90: 2024 | U90: 2024 | V90: 2024 | W90: 2024 | X90: 2025 | Y90: 2025 | Z90: 2025 | AA90: 2025 | AB90: 2025 | AC90: 2025 | AD90: 2025 | AE90: 2025 | AF90: 2025 | AG90: 2025 | AH90: 2025 | AI90: 2025 | AJ90: 2026 | AK90: 2026 | AL90: 2026 | AM90: 2026 | AN90: 2026 | AO90: 2026 | AP90: 2026 | AQ90: 2026 | AR90: 2026 | AS90: 2026 | AT90: 2026 | AU90: 2026 | AV90: 2027 | AW90: 2027 | AX90: 2027
E91: Financial Year Reference | G91: label | K91: =_xlfn.IFS( K90 = 2023, "FY-2", K90 = 2024, "FY-1", K90 = 2025, "FY", K90 = 2026, "FY+1", K90 = 2027, "FY+2") -> FY-2 | L91: =_xlfn.IFS( L90 = 2023, "FY-2", L90 = 2024, "FY-1", L90 = 2025, "FY", L90 = 2026, "FY+1", L90 = 2027, "FY+2") -> FY-1 | M91: =_xlfn.IFS( M90 = 2023, "FY-2", M90 = 2024, "FY-1", M90 = 2025, "FY", M90 = 2026, "FY+1", M90 = 2027, "FY+2") -> FY-1 | N91: =_xlfn.IFS( N90 = 2023, "FY-2", N90 = 2024, "FY-1", N90 = 2025, "FY", N90 = 2026, "FY+1", N90 = 2027, "FY+2") -> FY-1 | O91: =_xlfn.IFS( O90 = 2023, "FY-2", O90 = 2024, "FY-1", O90 = 2025, "FY", O90 = 2026, "FY+1", O90 = 2027, "FY+2") -> FY-1 | P91: =_xlfn.IFS( P90 = 2023, "FY-2", P90 = 2024, "FY-1", P90 = 2025, "FY", P90 = 2026, "FY+1", P90 = 2027, "FY+2") -> FY-1 | Q91: =_xlfn.IFS( Q90 = 2023, "FY-2", Q90 = 2024, "FY-1", Q90 = 2025, "FY", Q90 = 2026, "FY+1", Q90 = 2027, "FY+2") -> FY-1 | R91: =_xlfn.IFS( R90 = 2023, "FY-2", R90 = 2024, "FY-1", R90 = 2025, "FY", R90 = 2026, "FY+1", R90 = 2027, "FY+2") -> FY-1 | S91: =_xlfn.IFS( S90 = 2023, "FY-2", S90 = 2024, "FY-1", S90 = 2025, "FY", S90 = 2026, "FY+1", S90 = 2027, "FY+2") -> FY-1 | T91: =_xlfn.IFS( T90 = 2023, "FY-2", T90 = 2024, "FY-1", T90 = 2025, "FY", T90 = 2026, "FY+1", T90 = 2027, "FY+2") -> FY-1 | U91: =_xlfn.IFS( U90 = 2023, "FY-2", U90 = 2024, "FY-1", U90 = 2025, "FY", U90 = 2026, "FY+1", U90 = 2027, "FY+2") -> FY-1 | V91: =_xlfn.IFS( V90 = 2023, "FY-2", V90 = 2024, "FY-1", V90 = 2025, "FY", V90 = 2026, "FY+1", V90 = 2027, "FY+2") -> FY-1 | W91: =_xlfn.IFS( W90 = 2023, "FY-2", W90 = 2024, "FY-1", W90 = 2025, "FY", W90 = 2026, "FY+1", W90 = 2027, "FY+2") -> FY-1 | X91: =_xlfn.IFS( X90 = 2023, "FY-2", X90 = 2024, "FY-1", X90 = 2025, "FY", X90 = 2026, "FY+1", X90 = 2027, "FY+2") -> FY | Y91: =_xlfn.IFS( Y90 = 2023, "FY-2", Y90 = 2024, "FY-1", Y90 = 2025, "FY", Y90 = 2026, "FY+1", Y90 = 2027, "FY+2") -> FY | Z91: =_xlfn.IFS( Z90 = 2023, "FY-2", Z90 = 2024, "FY-1", Z90 = 2025, "FY", Z90 = 2026, "FY+1", Z90 = 2027, "FY+2") -> FY | AA91: =_xlfn.IFS( AA90 = 2023, "FY-2", AA90 = 2024, "FY-1", AA90 = 2025, "FY", AA90 = 2026, "FY+1", AA90 = 2027, "FY+2") -> FY | AB91: =_xlfn.IFS( AB90 = 2023, "FY-2", AB90 = 2024, "FY-1", AB90 = 2025, "FY", AB90 = 2026, "FY+1", AB90 = 2027, "FY+2") -> FY | AC91: =_xlfn.IFS( AC90 = 2023, "FY-2", AC90 = 2024, "FY-1", AC90 = 2025, "FY", AC90 = 2026, "FY+1", AC90 = 2027, "FY+2") -> FY | AD91: =_xlfn.IFS( AD90 = 2023, "FY-2", AD90 = 2024, "FY-1", AD90 = 2025, "FY", AD90 = 2026, "FY+1", AD90 = 2027, "FY+2") -> FY | AE91: =_xlfn.IFS( AE90 = 2023, "FY-2", AE90 = 2024, "FY-1", AE90 = 2025, "FY", AE90 = 2026, "FY+1", AE90 = 2027, "FY+2") -> FY | AF91: =_xlfn.IFS( AF90 = 2023, "FY-2", AF90 = 2024, "FY-1", AF90 = 2025, "FY", AF90 = 2026, "FY+1", AF90 = 2027, "FY+2") -> FY | AG91: =_xlfn.IFS( AG90 = 2023, "FY-2", AG90 = 2024, "FY-1", AG90 = 2025, "FY", AG90 = 2026, "FY+1", AG90 = 2027, "FY+2") -> FY | AH91: =_xlfn.IFS( AH90 = 2023, "FY-2", AH90 = 2024, "FY-1", AH90 = 2025, "FY", AH90 = 2026, "FY+1", AH90 = 2027, "FY+2") -> FY | AI91: =_xlfn.IFS( AI90 = 2023, "FY-2", AI90 = 2024, "FY-1", AI90 = 2025, "FY", AI90 = 2026, "FY+1", AI90 = 2027, "FY+2") -> FY | AJ91: =_xlfn.IFS( AJ90 = 2023, "FY-2", AJ90 = 2024, "FY-1", AJ90 = 2025, "FY", AJ90 = 2026, "FY+1", AJ90 = 2027, "FY+2") -> FY+1 | AK91: =_xlfn.IFS( AK90 = 2023, "FY-2", AK90 = 2024, "FY-1", AK90 = 2025, "FY", AK90 = 2026, "FY+1", AK90 = 2027, "FY+2") -> FY+1 | AL91: =_xlfn.IFS( AL90 = 2023, "FY-2", AL90 = 2024, "FY-1", AL90 = 2025, "FY", AL90 = 2026, "FY+1", AL90 = 2027, "FY+2") -> FY+1 | AM91: =_xlfn.IFS( AM90 = 2023, "FY-2", AM90 = 2024, "FY-1", AM90 = 2025, "FY", AM90 = 2026, "FY+1", AM90 = 2027, "FY+2") -> FY+1 | AN91: =_xlfn.IFS( AN90 = 2023, "FY-2", AN90 = 2024, "FY-1", AN90 = 2025, "FY", AN90 = 2026, "FY+1", AN90 = 2027, "FY+2") -> FY+1 | AO91: =_xlfn.IFS( AO90 = 2023, "FY-2", AO90 = 2024, "FY-1", AO90 = 2025, "FY", AO90 = 2026, "FY+1", AO90 = 2027, "FY+2") -> FY+1 | AP91: =_xlfn.IFS( AP90 = 2023, "FY-2", AP90 = 2024, "FY-1", AP90 = 2025, "FY", AP90 = 2026, "FY+1", AP90 = 2027, "FY+2") -> FY+1 | AQ91: =_xlfn.IFS( AQ90 = 2023, "FY-2", AQ90 = 2024, "FY-1", AQ90 = 2025, "FY", AQ90 = 2026, "FY+1", AQ90 = 2027, "FY+2") -> FY+1 | AR91: =_xlfn.IFS( AR90 = 2023, "FY-2", AR90 = 2024, "FY-1", AR90 = 2025, "FY", AR90 = 2026, "FY+1", AR90 = 2027, "FY+2") -> FY+1 | AS91: =_xlfn.IFS( AS90 = 2023, "FY-2", AS90 = 2024, "FY-1", AS90 = 2025, "FY", AS90 = 2026, "FY+1", AS90 = 2027, "FY+2") -> FY+1 | AT91: =_xlfn.IFS( AT90 = 2023, "FY-2", AT90 = 2024, "FY-1", AT90 = 2025, "FY", AT90 = 2026, "FY+1", AT90 = 2027, "FY+2") -> FY+1 | AU91: =_xlfn.IFS( AU90 = 2023, "FY-2", AU90 = 2024, "FY-1", AU90 = 2025, "FY", AU90 = 2026, "FY+1", AU90 = 2027, "FY+2") -> FY+1 | AV91: =_xlfn.IFS( AV90 = 2023, "FY-2", AV90 = 2024, "FY-1", AV90 = 2025, "FY", AV90 = 2026, "FY+1", AV90 = 2027, "FY+2") -> FY+2 | AW91: =_xlfn.IFS( AW90 = 2023, "FY-2", AW90 = 2024, "FY-1", AW90 = 2025, "FY", AW90 = 2026, "FY+1", AW90 = 2027, "FY+2") -> FY+2 | AX91: =_xlfn.IFS( AX90 = 2023, "FY-2", AX90 = 2024, "FY-1", AX90 = 2025, "FY", AX90 = 2026, "FY+1", AX90 = 2027, "FY+2") -> FY+2
A93: LABELS
E95: =E15 -> First model column flag | F95: 0 | G95: flag | H95: 1 | I95: 0 | J95: 0 | K95: 1 | L95: 0 | M95: 0 | N95: 0 | O95: 0 | P95: 0 | Q95: 0 | R95: 0 | S95: 0 | T95: 0 | U95: 0 | V95: 0 | W95: 0 | X95: 0 | Y95: 0 | Z95: 0 | AA95: 0 | AB95: 0 | AC95: 0 | AD95: 0 | AE95: 0 | AF95: 0 | AG95: 0 | AH95: 0 | AI95: 0 | AJ95: 0 | AK95: 0 | AL95: 0 | AM95: 0 | AN95: 0 | AO95: 0 | AP95: 0 | AQ95: 0 | AR95: 0 | AS95: 0 | AT95: 0 | AU95: 0 | AV95: 0 | AW95: 0 | AX95: 0
E96: =E45 -> Pre model period flag | F96: 0 | G96: flag | H96: 12 | I96: 0 | J96: 0 | K96: 0 | L96: 1 | M96: 1 | N96: 1 | O96: 1 | P96: 1 | Q96: 1 | R96: 1 | S96: 1 | T96: 1 | U96: 1 | V96: 1 | W96: 1 | X96: 0 | Y96: 0 | Z96: 0 | AA96: 0 | AB96: 0 | AC96: 0 | AD96: 0 | AE96: 0 | AF96: 0 | AG96: 0 | AH96: 0 | AI96: 0 | AJ96: 0 | AK96: 0 | AL96: 0 | AM96: 0 | AN96: 0 | AO96: 0 | AP96: 0 | AQ96: 0 | AR96: 0 | AS96: 0 | AT96: 0 | AU96: 0 | AV96: 0 | AW96: 0 | AX96: 0
E97: =E35 -> Working capital modelling period flag | F97: =F35 -> 0 | G97: flag | H97: 12 | I97: 0 | J97: 0 | K97: 0 | L97: 0 | M97: 0 | N97: 0 | O97: 0 | P97: 0 | Q97: 0 | R97: 0 | S97: 0 | T97: 0 | U97: 0 | V97: 0 | W97: 0 | X97: 1 | Y97: 1 | Z97: 1 | AA97: 1 | AB97: 1 | AC97: 1 | AD97: 1 | AE97: 1 | AF97: 1 | AG97: 1 | AH97: 1 | AI97: 1 | AJ97: 0 | AK97: 0 | AL97: 0 | AM97: 0 | AN97: 0 | AO97: 0 | AP97: 0 | AQ97: 0 | AR97: 0 | AS97: 0 | AT97: 0 | AU97: 0 | AV97: 0 | AW97: 0 | AX97: 0
E98: =E51 -> Post model period flag | F98: =F51 -> 0 | G98: flag | H98: 15 | I98: 0 | J98: 0 | K98: 0 | L98: 0 | M98: 0 | N98: 0 | O98: 0 | P98: 0 | Q98: 0 | R98: 0 | S98: 0 | T98: 0 | U98: 0 | V98: 0 | W98: 0 | X98: 0 | Y98: 0 | Z98: 0 | AA98: 0 | AB98: 0 | AC98: 0 | AD98: 0 | AE98: 0 | AF98: 0 | AG98: 0 | AH98: 0 | AI98: 0 | AJ98: 1 | AK98: 1 | AL98: 1 | AM98: 1 | AN98: 1 | AO98: 1 | AP98: 1 | AQ98: 1 | AR98: 1 | AS98: 1 | AT98: 1 | AU98: 1 | AV98: 1 | AW98: 1 | AX98: 1
E100: Period reference | G100: label | K100: =_xlfn.IFS( OR( K95 = 1, K96 = 1 ), "Pre model period", K97 = 1, "W.C. model period", K98 = 1, "Post model period" ) -> Pre model period | L100: =_xlfn.IFS( OR( L95 = 1, L96 = 1 ), "Pre model period", L97 = 1, "W.C. model period", L98 = 1, "Post model period" ) -> Pre model period | M100: =_xlfn.IFS( OR( M95 = 1, M96 = 1 ), "Pre model period", M97 = 1, "W.C. model period", M98 = 1, "Post model period" ) -> Pre model period | N100: =_xlfn.IFS( OR( N95 = 1, N96 = 1 ), "Pre model period", N97 = 1, "W.C. model period", N98 = 1, "Post model period" ) -> Pre model period | O100: =_xlfn.IFS( OR( O95 = 1, O96 = 1 ), "Pre model period", O97 = 1, "W.C. model period", O98 = 1, "Post model period" ) -> Pre model period | P100: =_xlfn.IFS( OR( P95 = 1, P96 = 1 ), "Pre model period", P97 = 1, "W.C. model period", P98 = 1, "Post model period" ) -> Pre model period | Q100: =_xlfn.IFS( OR( Q95 = 1, Q96 = 1 ), "Pre model period", Q97 = 1, "W.C. model period", Q98 = 1, "Post model period" ) -> Pre model period | R100: =_xlfn.IFS( OR( R95 = 1, R96 = 1 ), "Pre model period", R97 = 1, "W.C. model period", R98 = 1, "Post model period" ) -> Pre model period | S100: =_xlfn.IFS( OR( S95 = 1, S96 = 1 ), "Pre model period", S97 = 1, "W.C. model period", S98 = 1, "Post model period" ) -> Pre model period | T100: =_xlfn.IFS( OR( T95 = 1, T96 = 1 ), "Pre model period", T97 = 1, "W.C. model period", T98 = 1, "Post model period" ) -> Pre model period | U100: =_xlfn.IFS( OR( U95 = 1, U96 = 1 ), "Pre model period", U97 = 1, "W.C. model period", U98 = 1, "Post model period" ) -> Pre model period | V100: =_xlfn.IFS( OR( V95 = 1, V96 = 1 ), "Pre model period", V97 = 1, "W.C. model period", V98 = 1, "Post model period" ) -> Pre model period | W100: =_xlfn.IFS( OR( W95 = 1, W96 = 1 ), "Pre model period", W97 = 1, "W.C. model period", W98 = 1, "Post model period" ) -> Pre model period | X100: =_xlfn.IFS( OR( X95 = 1, X96 = 1 ), "Pre model period", X97 = 1, "W.C. model period", X98 = 1, "Post model period" ) -> W.C. model period | Y100: =_xlfn.IFS( OR( Y95 = 1, Y96 = 1 ), "Pre model period", Y97 = 1, "W.C. model period", Y98 = 1, "Post model period" ) -> W.C. model period | Z100: =_xlfn.IFS( OR( Z95 = 1, Z96 = 1 ), "Pre model period", Z97 = 1, "W.C. model period", Z98 = 1, "Post model period" ) -> W.C. model period | AA100: =_xlfn.IFS( OR( AA95 = 1, AA96 = 1 ), "Pre model period", AA97 = 1, "W.C. model period", AA98 = 1, "Post model period" ) -> W.C. model period | AB100: =_xlfn.IFS( OR( AB95 = 1, AB96 = 1 ), "Pre model period", AB97 = 1, "W.C. model period", AB98 = 1, "Post model period" ) -> W.C. model period | AC100: =_xlfn.IFS( OR( AC95 = 1, AC96 = 1 ), "Pre model period", AC97 = 1, "W.C. model period", AC98 = 1, "Post model period" ) -> W.C. model period | AD100: =_xlfn.IFS( OR( AD95 = 1, AD96 = 1 ), "Pre model period", AD97 = 1, "W.C. model period", AD98 = 1, "Post model period" ) -> W.C. model period | AE100: =_xlfn.IFS( OR( AE95 = 1, AE96 = 1 ), "Pre model period", AE97 = 1, "W.C. model period", AE98 = 1, "Post model period" ) -> W.C. model period | AF100: =_xlfn.IFS( OR( AF95 = 1, AF96 = 1 ), "Pre model period", AF97 = 1, "W.C. model period", AF98 = 1, "Post model period" ) -> W.C. model period | AG100: =_xlfn.IFS( OR( AG95 = 1, AG96 = 1 ), "Pre model period", AG97 = 1, "W.C. model period", AG98 = 1, "Post model period" ) -> W.C. model period | AH100: =_xlfn.IFS( OR( AH95 = 1, AH96 = 1 ), "Pre model period", AH97 = 1, "W.C. model period", AH98 = 1, "Post model period" ) -> W.C. model period | AI100: =_xlfn.IFS( OR( AI95 = 1, AI96 = 1 ), "Pre model period", AI97 = 1, "W.C. model period", AI98 = 1, "Post model period" ) -> W.C. model period | AJ100: =_xlfn.IFS( OR( AJ95 = 1, AJ96 = 1 ), "Pre model period", AJ97 = 1, "W.C. model period", AJ98 = 1, "Post model period" ) -> Post model period | AK100: =_xlfn.IFS( OR( AK95 = 1, AK96 = 1 ), "Pre model period", AK97 = 1, "W.C. model period", AK98 = 1, "Post model period" ) -> Post model period | AL100: =_xlfn.IFS( OR( AL95 = 1, AL96 = 1 ), "Pre model period", AL97 = 1, "W.C. model period", AL98 = 1, "Post model period" ) -> Post model period | AM100: =_xlfn.IFS( OR( AM95 = 1, AM96 = 1 ), "Pre model period", AM97 = 1, "W.C. model period", AM98 = 1, "Post model period" ) -> Post model period | AN100: =_xlfn.IFS( OR( AN95 = 1, AN96 = 1 ), "Pre model period", AN97 = 1, "W.C. model period", AN98 = 1, "Post model period" ) -> Post model period | AO100: =_xlfn.IFS( OR( AO95 = 1, AO96 = 1 ), "Pre model period", AO97 = 1, "W.C. model period", AO98 = 1, "Post model period" ) -> Post model period | AP100: =_xlfn.IFS( OR( AP95 = 1, AP96 = 1 ), "Pre model period", AP97 = 1, "W.C. model period", AP98 = 1, "Post model period" ) -> Post model period | AQ100: =_xlfn.IFS( OR( AQ95 = 1, AQ96 = 1 ), "Pre model period", AQ97 = 1, "W.C. model period", AQ98 = 1, "Post model period" ) -> Post model period | AR100: =_xlfn.IFS( OR( AR95 = 1, AR96 = 1 ), "Pre model period", AR97 = 1, "W.C. model period", AR98 = 1, "Post model period" ) -> Post model period | AS100: =_xlfn.IFS( OR( AS95 = 1, AS96 = 1 ), "Pre model period", AS97 = 1, "W.C. model period", AS98 = 1, "Post model period" ) -> Post model period | AT100: =_xlfn.IFS( OR( AT95 = 1, AT96 = 1 ), "Pre model period", AT97 = 1, "W.C. model period", AT98 = 1, "Post model period" ) -> Post model period | AU100: =_xlfn.IFS( OR( AU95 = 1, AU96 = 1 ), "Pre model period", AU97 = 1, "W.C. model period", AU98 = 1, "Post model period" ) -> Post model period | AV100: =_xlfn.IFS( OR( AV95 = 1, AV96 = 1 ), "Pre model period", AV97 = 1, "W.C. model period", AV98 = 1, "Post model period" ) -> Post model period | AW100: =_xlfn.IFS( OR( AW95 = 1, AW96 = 1 ), "Pre model period", AW97 = 1, "W.C. model period", AW98 = 1, "Post model period" ) -> Post model period | AX100: =_xlfn.IFS( OR( AX95 = 1, AX96 = 1 ), "Pre model period", AX97 = 1, "W.C. model period", AX98 = 1, "Post model period" ) -> Post model period
A102: MODELLING PERIOD CHECK
E104: =E$12 -> Model Column Total | F104: =F$12 -> 40 | G104: =G$12 -> columns
D105: less | E105: =E$36 -> Working capital period total | F105: =F$36 -> 12 | G105: =G$36 -> columns
D106: less | E106: =E46 -> Pre model period total | F106: =F46 -> 12 | G106: =G46 -> columns
D107: less | E107: =E52 -> Post model period total | F107: =F52 -> 15 | G107: =G52 -> columns
D108: less | E108: =E16 -> First model column total | F108: =F16 -> 1 | G108: columns
E109: Modelling Period - Check | F109: =IF( F104 - SUM( F105:F108 ) <> 0, 1, 0 ) -> 0 | G109: check
A111: END

Sheet Calculations
A1: =RIGHT(CELL("filename", $A$1), LEN(CELL("filename", $A$1)) - SEARCH("]", CELL("filename", $A$1))) -> Calculations
E2: =Time!E$24 -> Model Period BEG | K2: =Time!K$24 -> 2023-03-01 | L2: =Time!L$24 -> 2023-04-01 | M2: =Time!M$24 -> 2023-05-01 | N2: =Time!N$24 -> 2023-06-01 | O2: =Time!O$24 -> 2023-07-01 | P2: =Time!P$24 -> 2023-08-01 | Q2: =Time!Q$24 -> 2023-09-01 | R2: =Time!R$24 -> 2023-10-01 | S2: =Time!S$24 -> 2023-11-01 | T2: =Time!T$24 -> 2023-12-01 | U2: =Time!U$24 -> 2024-01-01 | V2: =Time!V$24 -> 2024-02-01 | W2: =Time!W$24 -> 2024-03-01 | X2: =Time!X$24 -> 2024-04-01 | Y2: =Time!Y$24 -> 2024-05-01 | Z2: =Time!Z$24 -> 2024-06-01 | AA2: =Time!AA$24 -> 2024-07-01 | AB2: =Time!AB$24 -> 2024-08-01 | AC2: =Time!AC$24 -> 2024-09-01 | AD2: =Time!AD$24 -> 2024-10-01 | AE2: =Time!AE$24 -> 2024-11-01 | AF2: =Time!AF$24 -> 2024-12-01 | AG2: =Time!AG$24 -> 2025-01-01 | AH2: =Time!AH$24 -> 2025-02-01 | AI2: =Time!AI$24 -> 2025-03-01 | AJ2: =Time!AJ$24 -> 2025-04-01 | AK2: =Time!AK$24 -> 2025-05-01 | AL2: =Time!AL$24 -> 2025-06-01 | AM2: =Time!AM$24 -> 2025-07-01 | AN2: =Time!AN$24 -> 2025-08-01 | AO2: =Time!AO$24 -> 2025-09-01 | AP2: =Time!AP$24 -> 2025-10-01 | AQ2: =Time!AQ$24 -> 2025-11-01 | AR2: =Time!AR$24 -> 2025-12-01 | AS2: =Time!AS$24 -> 2026-01-01 | AT2: =Time!AT$24 -> 2026-02-01 | AU2: =Time!AU$24 -> 2026-03-01 | AV2: =Time!AV$24 -> 2026-04-01 | AW2: =Time!AW$24 -> 2026-05-01 | AX2: =Time!AX$24 -> 2026-06-01
E3: =Time!E$27 -> Model Period END | F3: =Check!F$8 -> 0 | G3: Error chks | K3: =Time!K$27 -> 2023-03-31 | L3: =Time!L$27 -> 2023-04-30 | M3: =Time!M$27 -> 2023-05-31 | N3: =Time!N$27 -> 2023-06-30 | O3: =Time!O$27 -> 2023-07-31 | P3: =Time!P$27 -> 2023-08-31 | Q3: =Time!Q$27 -> 2023-09-30 | R3: =Time!R$27 -> 2023-10-31 | S3: =Time!S$27 -> 2023-11-30 | T3: =Time!T$27 -> 2023-12-31 | U3: =Time!U$27 -> 2024-01-31 | V3: =Time!V$27 -> 2024-02-29 | W3: =Time!W$27 -> 2024-03-31 | X3: =Time!X$27 -> 2024-04-30 | Y3: =Time!Y$27 -> 2024-05-31 | Z3: =Time!Z$27 -> 2024-06-30 | AA3: =Time!AA$27 -> 2024-07-31 | AB3: =Time!AB$27 -> 2024-08-31 | AC3: =Time!AC$27 -> 2024-09-30 | AD3: =Time!AD$27 -> 2024-10-31 | AE3: =Time!AE$27 -> 2024-11-30 | AF3: =Time!AF$27 -> 2024-12-31 | AG3: =Time!AG$27 -> 2025-01-31 | AH3: =Time!AH$27 -> 2025-02-28 | AI3: =Time!AI$27 -> 2025-03-31 | AJ3: =Time!AJ$27 -> 2025-04-30 | AK3: =Time!AK$27 -> 2025-05-31 | AL3: =Time!AL$27 -> 2025-06-30 | AM3: =Time!AM$27 -> 2025-07-31 | AN3: =Time!AN$27 -> 2025-08-31 | AO3: =Time!AO$27 -> 2025-09-30 | AP3: =Time!AP$27 -> 2025-10-31 | AQ3: =Time!AQ$27 -> 2025-11-30 | AR3: =Time!AR$27 -> 2025-12-31 | AS3: =Time!AS$27 -> 2026-01-31 | AT3: =Time!AT$27 -> 2026-02-28 | AU3: =Time!AU$27 -> 2026-03-31 | AV3: =Time!AV$27 -> 2026-04-30 | AW3: =Time!AW$27 -> 2026-05-31 | AX3: =Time!AX$27 -> 2026-06-30
E4: =Time!E$100 -> Period reference | K4: =Time!K$100 -> Pre model period | L4: =Time!L$100 -> Pre model period | M4: =Time!M$100 -> Pre model period | N4: =Time!N$100 -> Pre model period | O4: =Time!O$100 -> Pre model period | P4: =Time!P$100 -> Pre model period | Q4: =Time!Q$100 -> Pre model period | R4: =Time!R$100 -> Pre model period | S4: =Time!S$100 -> Pre model period | T4: =Time!T$100 -> Pre model period | U4: =Time!U$100 -> Pre model period | V4: =Time!V$100 -> Pre model period | W4: =Time!W$100 -> Pre model period | X4: =Time!X$100 -> W.C. model period | Y4: =Time!Y$100 -> W.C. model period | Z4: =Time!Z$100 -> W.C. model period | AA4: =Time!AA$100 -> W.C. model period | AB4: =Time!AB$100 -> W.C. model period | AC4: =Time!AC$100 -> W.C. model period | AD4: =Time!AD$100 -> W.C. model period | AE4: =Time!AE$100 -> W.C. model period | AF4: =Time!AF$100 -> W.C. model period | AG4: =Time!AG$100 -> W.C. model period | AH4: =Time!AH$100 -> W.C. model period | AI4: =Time!AI$100 -> W.C. model period | AJ4: =Time!AJ$100 -> Post model period | AK4: =Time!AK$100 -> Post model period | AL4: =Time!AL$100 -> Post model period | AM4: =Time!AM$100 -> Post model period | AN4: =Time!AN$100 -> Post model period | AO4: =Time!AO$100 -> Post model period | AP4: =Time!AP$100 -> Post model period | AQ4: =Time!AQ$100 -> Post model period | AR4: =Time!AR$100 -> Post model period | AS4: =Time!AS$100 -> Post model period | AT4: =Time!AT$100 -> Post model period | AU4: =Time!AU$100 -> Post model period | AV4: =Time!AV$100 -> Post model period | AW4: =Time!AW$100 -> Post model period | AX4: =Time!AX$100 -> Post model period
E5: =Time!E$91 -> Financial Year Reference | K5: =Time!K$91 -> FY-2 | L5: =Time!L$91 -> FY-1 | M5: =Time!M$91 -> FY-1 | N5: =Time!N$91 -> FY-1 | O5: =Time!O$91 -> FY-1 | P5: =Time!P$91 -> FY-1 | Q5: =Time!Q$91 -> FY-1 | R5: =Time!R$91 -> FY-1 | S5: =Time!S$91 -> FY-1 | T5: =Time!T$91 -> FY-1 | U5: =Time!U$91 -> FY-1 | V5: =Time!V$91 -> FY-1 | W5: =Time!W$91 -> FY-1 | X5: =Time!X$91 -> FY | Y5: =Time!Y$91 -> FY | Z5: =Time!Z$91 -> FY | AA5: =Time!AA$91 -> FY | AB5: =Time!AB$91 -> FY | AC5: =Time!AC$91 -> FY | AD5: =Time!AD$91 -> FY | AE5: =Time!AE$91 -> FY | AF5: =Time!AF$91 -> FY | AG5: =Time!AG$91 -> FY | AH5: =Time!AH$91 -> FY | AI5: =Time!AI$91 -> FY | AJ5: =Time!AJ$91 -> FY+1 | AK5: =Time!AK$91 -> FY+1 | AL5: =Time!AL$91 -> FY+1 | AM5: =Time!AM$91 -> FY+1 | AN5: =Time!AN$91 -> FY+1 | AO5: =Time!AO$91 -> FY+1 | AP5: =Time!AP$91 -> FY+1 | AQ5: =Time!AQ$91 -> FY+1 | AR5: =Time!AR$91 -> FY+1 | AS5: =Time!AS$91 -> FY+1 | AT5: =Time!AT$91 -> FY+1 | AU5: =Time!AU$91 -> FY+1 | AV5: =Time!AV$91 -> FY+2 | AW5: =Time!AW$91 -> FY+2 | AX5: =Time!AX$91 -> FY+2
E6: =Time!E$11 -> Model column counter | F6: Constant | G6: Unit | H6: Total | K6: =Time!K$11 -> 1 | L6: =Time!L$11 -> 2 | M6: =Time!M$11 -> 3 | N6: =Time!N$11 -> 4 | O6: =Time!O$11 -> 5 | P6: =Time!P$11 -> 6 | Q6: =Time!Q$11 -> 7 | R6: =Time!R$11 -> 8 | S6: =Time!S$11 -> 9 | T6: =Time!T$11 -> 10 | U6: =Time!U$11 -> 11 | V6: =Time!V$11 -> 12 | W6: =Time!W$11 -> 13 | X6: =Time!X$11 -> 14 | Y6: =Time!Y$11 -> 15 | Z6: =Time!Z$11 -> 16 | AA6: =Time!AA$11 -> 17 | AB6: =Time!AB$11 -> 18 | AC6: =Time!AC$11 -> 19 | AD6: =Time!AD$11 -> 20 | AE6: =Time!AE$11 -> 21 | AF6: =Time!AF$11 -> 22 | AG6: =Time!AG$11 -> 23 | AH6: =Time!AH$11 -> 24 | AI6: =Time!AI$11 -> 25 | AJ6: =Time!AJ$11 -> 26 | AK6: =Time!AK$11 -> 27 | AL6: =Time!AL$11 -> 28 | AM6: =Time!AM$11 -> 29 | AN6: =Time!AN$11 -> 30 | AO6: =Time!AO$11 -> 31 | AP6: =Time!AP$11 -> 32 | AQ6: =Time!AQ$11 -> 33 | AR6: =Time!AR$11 -> 34 | AS6: =Time!AS$11 -> 35 | AT6: =Time!AT$11 -> 36 | AU6: =Time!AU$11 -> 37 | AV6: =Time!AV$11 -> 38 | AW6: =Time!AW$11 -> 39 | AX6: =Time!AX$11 -> 40
A8: WORKING CAPITAL COST FOR A NOTIONAL REC GROUP ONE CUSTOMER
B10: Total Retailer Outflow
E11: =Inputs!E37 -> Monthly wholesale charge | F11: =Inputs!F37 -> -37.5 | G11: =Inputs!G37 -> £ | H11: =Inputs!H37 -> 0
E12: =Time!E78 -> Wholesale charge payment flag | F12: =Time!F78 -> 0 | G12: =Time!G78 -> flag | H12: =Time!H78 -> 37 | K12: =Time!K78 -> 1 | L12: =Time!L78 -> 1 | M12: =Time!M78 -> 1 | N12: =Time!N78 -> 1 | O12: =Time!O78 -> 1 | P12: =Time!P78 -> 1 | Q12: =Time!Q78 -> 1 | R12: =Time!R78 -> 1 | S12: =Time!S78 -> 1 | T12: =Time!T78 -> 1 | U12: =Time!U78 -> 1 | V12: =Time!V78 -> 1 | W12: =Time!W78 -> 1 | X12: =Time!X78 -> 1 | Y12: =Time!Y78 -> 1 | Z12: =Time!Z78 -> 1 | AA12: =Time!AA78 -> 1 | AB12: =Time!AB78 -> 1 | AC12: =Time!AC78 -> 1 | AD12: =Time!AD78 -> 1 | AE12: =Time!AE78 -> 1 | AF12: =Time!AF78 -> 1 | AG12: =Time!AG78 -> 1 | AH12: =Time!AH78 -> 1 | AI12: =Time!AI78 -> 1 | AJ12: =Time!AJ78 -> 1 | AK12: =Time!AK78 -> 1 | AL12: =Time!AL78 -> 1 | AM12: =Time!AM78 -> 1 | AN12: =Time!AN78 -> 1 | AO12: =Time!AO78 -> 1 | AP12: =Time!AP78 -> 1 | AQ12: =Time!AQ78 -> 1 | AR12: =Time!AR78 -> 1 | AS12: =Time!AS78 -> 1 | AT12: =Time!AT78 -> 1 | AU12: =Time!AU78 -> 1 | AV12: =Time!AV78 -> 0 | AW12: =Time!AW78 -> 0 | AX12: =Time!AX78 -> 0
E13: Wholesale charge | F13: 0 | G13: £ | H13: =SUM( K13:AX13 ) -> -1387.5 | K13: =K12 * $F11 -> -37.5 | L13: =L12 * $F11 -> -37.5 | M13: -37.5 | N13: -37.5 | O13: -37.5 | P13: -37.5 | Q13: -37.5 | R13: -37.5 | S13: -37.5 | T13: -37.5 | U13: -37.5 | V13: -37.5 | W13: -37.5 | X13: -37.5 | Y13: -37.5 | Z13: -37.5 | AA13: -37.5 | AB13: -37.5 | AC13: -37.5 | AD13: -37.5 | AE13: -37.5 | AF13: -37.5 | AG13: -37.5 | AH13: -37.5 | AI13: -37.5 | AJ13: -37.5 | AK13: -37.5 | AL13: -37.5 | AM13: -37.5 | AN13: -37.5 | AO13: -37.5 | AP13: -37.5 | AQ13: -37.5 | AR13: -37.5 | AS13: -37.5 | AT13: -37.5 | AU13: -37.5 | AV13: 0 | AW13: 0 | AX13: 0
E15: =Inputs!E38 -> Monthly retail cost | F15: =Inputs!F38 -> -4.166666667 | G15: =Inputs!G38 -> £ | H15: =Inputs!H38 -> 0
E16: =Time!E83 -> Retail cost payment flag | G16: =Time!G83 -> flag | H16: =Time!H83 -> 36 | K16: =Time!K83 -> 0 | L16: =Time!L83 -> 1 | M16: =Time!M83 -> 1 | N16: =Time!N83 -> 1 | O16: =Time!O83 -> 1 | P16: =Time!P83 -> 1 | Q16: =Time!Q83 -> 1 | R16: =Time!R83 -> 1 | S16: =Time!S83 -> 1 | T16: =Time!T83 -> 1 | U16: =Time!U83 -> 1 | V16: =Time!V83 -> 1 | W16: =Time!W83 -> 1 | X16: =Time!X83 -> 1 | Y16: =Time!Y83 -> 1 | Z16: =Time!Z83 -> 1 | AA16: =Time!AA83 -> 1 | AB16: =Time!AB83 -> 1 | AC16: =Time!AC83 -> 1 | AD16: =Time!AD83 -> 1 | AE16: =Time!AE83 -> 1 | AF16: =Time!AF83 -> 1 | AG16: =Time!AG83 -> 1 | AH16: =Time!AH83 -> 1 | AI16: =Time!AI83 -> 1 | AJ16: =Time!AJ83 -> 1 | AK16: =Time!AK83 -> 1 | AL16: =Time!AL83 -> 1 | AM16: =Time!AM83 -> 1 | AN16: =Time!AN83 -> 1 | AO16: =Time!AO83 -> 1 | AP16: =Time!AP83 -> 1 | AQ16: =Time!AQ83 -> 1 | AR16: =Time!AR83 -> 1 | AS16: =Time!AS83 -> 1 | AT16: =Time!AT83 -> 1 | AU16: =Time!AU83 -> 1 | AV16: =Time!AV83 -> 0 | AW16: =Time!AW83 -> 0 | AX16: =Time!AX83 -> 0
E17: Retail cost | F17: 0 | G17: £ | H17: =SUM( K17:AX17 ) -> -150 | K17: =K16 * $F15 -> 0 | L17: =L16 * $F15 -> -4.166666667 | M17: =M16 * $F15 -> -4.166666667 | N17: =N16 * $F15 -> -4.166666667 | O17: =O16 * $F15 -> -4.166666667 | P17: =P16 * $F15 -> -4.166666667 | Q17: =Q16 * $F15 -> -4.166666667 | R17: =R16 * $F15 -> -4.166666667 | S17: =S16 * $F15 -> -4.166666667 | T17: =T16 * $F15 -> -4.166666667 | U17: =U16 * $F15 -> -4.166666667 | V17: =V16 * $F15 -> -4.166666667 | W17: =W16 * $F15 -> -4.166666667 | X17: =X16 * $F15 -> -4.166666667 | Y17: =Y16 * $F15 -> -4.166666667 | Z17: =Z16 * $F15 -> -4.166666667 | AA17: =AA16 * $F15 -> -4.166666667 | AB17: =AB16 * $F15 -> -4.166666667 | AC17: =AC16 * $F15 -> -4.166666667 | AD17: =AD16 * $F15 -> -4.166666667 | AE17: =AE16 * $F15 -> -4.166666667 | AF17: =AF16 * $F15 -> -4.166666667 | AG17: =AG16 * $F15 -> -4.166666667 | AH17: =AH16 * $F15 -> -4.166666667 | AI17: =AI16 * $F15 -> -4.166666667 | AJ17: =AJ16 * $F15 -> -4.166666667 | AK17: =AK16 * $F15 -> -4.166666667 | AL17: =AL16 * $F15 -> -4.166666667 | AM17: =AM16 * $F15 -> -4.166666667 | AN17: =AN16 * $F15 -> -4.166666667 | AO17: =AO16 * $F15 -> -4.166666667 | AP17: =AP16 * $F15 -> -4.166666667 | AQ17: =AQ16 * $F15 -> -4.166666667 | AR17: =AR16 * $F15 -> -4.166666667 | AS17: =AS16 * $F15 -> -4.166666667 | AT17: =AT16 * $F15 -> -4.166666667 | AU17: =AU16 * $F15 -> -4.166666667 | AV17: =AV16 * $F15 -> 0 | AW17: =AW16 * $F15 -> 0 | AX17: =AX16 * $F15 -> 0
E19: =E13 -> Wholesale charge | F19: =F13 -> 0 | G19: £ | H19: -1387.5 | K19: -37.5 | L19: -37.5 | M19: -37.5 | N19: -37.5 | O19: -37.5 | P19: -37.5 | Q19: -37.5 | R19: -37.5 | S19: -37.5 | T19: -37.5 | U19: -37.5 | V19: -37.5 | W19: -37.5 | X19: -37.5 | Y19: -37.5 | Z19: -37.5 | AA19: -37.5 | AB19: -37.5 | AC19: -37.5 | AD19: -37.5 | AE19: -37.5 | AF19: -37.5 | AG19: -37.5 | AH19: -37.5 | AI19: -37.5 | AJ19: -37.5 | AK19: -37.5 | AL19: -37.5 | AM19: -37.5 | AN19: -37.5 | AO19: -37.5 | AP19: -37.5 | AQ19: -37.5 | AR19: -37.5 | AS19: -37.5 | AT19: -37.5 | AU19: -37.5 | AV19: 0 | AW19: 0 | AX19: 0
E20: =E17 -> Retail cost | F20: =F17 -> 0 | G20: £ | H20: -150 | K20: 0 | L20: -4.166666667 | M20: -4.166666667 | N20: -4.166666667 | O20: -4.166666667 | P20: -4.166666667 | Q20: -4.166666667 | R20: -4.166666667 | S20: -4.166666667 | T20: -4.166666667 | U20: -4.166666667 | V20: -4.166666667 | W20: -4.166666667 | X20: -4.166666667 | Y20: -4.166666667 | Z20: -4.166666667 | AA20: -4.166666667 | AB20: -4.166666667 | AC20: -4.166666667 | AD20: -4.166666667 | AE20: -4.166666667 | AF20: -4.166666667 | AG20: -4.166666667 | AH20: -4.166666667 | AI20: -4.166666667 | AJ20: -4.166666667 | AK20: -4.166666667 | AL20: -4.166666667 | AM20: -4.166666667 | AN20: -4.166666667 | AO20: -4.166666667 | AP20: -4.166666667 | AQ20: -4.166666667 | AR20: -4.166666667 | AS20: -4.166666667 | AT20: -4.166666667 | AU20: -4.166666667 | AV20: 0 | AW20: 0 | AX20: 0
E21: Total Retailer outflow - CALC | F21: 0 | G21: £ | H21: =SUM( K21:AX21 ) -> -1537.5 | K21: =K19 + K20 -> -37.5 | L21: =L19 + L20 -> -41.66666667 | M21: -41.66666667 | N21: -41.66666667 | O21: -41.66666667 | P21: -41.66666667 | Q21: -41.66666667 | R21: -41.66666667 | S21: -41.66666667 | T21: -41.66666667 | U21: -41.66666667 | V21: -41.66666667 | W21: -41.66666667 | X21: -41.66666667 | Y21: -41.66666667 | Z21: -41.66666667 | AA21: -41.66666667 | AB21: -41.66666667 | AC21: -41.66666667 | AD21: -41.66666667 | AE21: -41.66666667 | AF21: -41.66666667 | AG21: -41.66666667 | AH21: -41.66666667 | AI21: -41.66666667 | AJ21: -41.66666667 | AK21: -41.66666667 | AL21: -41.66666667 | AM21: -41.66666667 | AN21: -41.66666667 | AO21: -41.66666667 | AP21: -41.66666667 | AQ21: -41.66666667 | AR21: -41.66666667 | AS21: -41.66666667 | AT21: -41.66666667 | AU21: -41.66666667 | AV21: 0 | AW21: 0 | AX21: 0
B23: Bill issued
E24: =Inputs!E30 -> Annual bill | F24: =Inputs!F30 -> 500 | G24: =Inputs!G30 -> £
E25: =Inputs!E46 -> Number of customer payments in a financial year | F25: =Inputs!F46 -> 4 | G25: =Inputs!G46 -> #
E26: Bill issued to customer - CALC | F26: =F24 / F25 -> 125 | G26: £
E28: =E26 -> Bill issued to customer - CALC | F28: =F26 -> 125 | G28: £ | H28: 0
E29: =Time!E70 -> Customer payment schedule flag | G29: =Time!G70 -> flag | H29: =Time!H70 -> 12 | K29: =Time!K70 -> 0 | L29: =Time!L70 -> 0 | M29: =Time!M70 -> 0 | N29: =Time!N70 -> 1 | O29: =Time!O70 -> 0 | P29: =Time!P70 -> 0 | Q29: =Time!Q70 -> 1 | R29: =Time!R70 -> 0 | S29: =Time!S70 -> 0 | T29: =Time!T70 -> 1 | U29: =Time!U70 -> 0 | V29: =Time!V70 -> 0 | W29: =Time!W70 -> 1 | X29: =Time!X70 -> 0 | Y29: =Time!Y70 -> 0 | Z29: =Time!Z70 -> 1 | AA29: =Time!AA70 -> 0 | AB29: =Time!AB70 -> 0 | AC29: =Time!AC70 -> 1 | AD29: =Time!AD70 -> 0 | AE29: =Time!AE70 -> 0 | AF29: =Time!AF70 -> 1 | AG29: =Time!AG70 -> 0 | AH29: =Time!AH70 -> 0 | AI29: =Time!AI70 -> 1 | AJ29: =Time!AJ70 -> 0 | AK29: =Time!AK70 -> 0 | AL29: =Time!AL70 -> 1 | AM29: =Time!AM70 -> 0 | AN29: =Time!AN70 -> 0 | AO29: =Time!AO70 -> 1 | AP29: =Time!AP70 -> 0 | AQ29: =Time!AQ70 -> 0 | AR29: =Time!AR70 -> 1 | AS29: =Time!AS70 -> 0 | AT29: =Time!AT70 -> 0 | AU29: =Time!AU70 -> 1 | AV29: =Time!AV70 -> 0 | AW29: =Time!AW70 -> 0 | AX29: =Time!AX70 -> 0
E30: Value of customer bills issued | G30: £ | H30: =SUM( K30:AX30 ) -> 1500 | K30: =K29 * $F28 -> 0 | L30: =L29 * $F28 -> 0 | M30: 0 | N30: 125 | O30: 0 | P30: 0 | Q30: 125 | R30: 0 | S30: 0 | T30: 125 | U30: 0 | V30: 0 | W30: 125 | X30: 0 | Y30: 0 | Z30: 125 | AA30: 0 | AB30: 0 | AC30: 125 | AD30: 0 | AE30: 0 | AF30: 125 | AG30: 0 | AH30: 0 | AI30: 125 | AJ30: 0 | AK30: 0 | AL30: 125 | AM30: 0 | AN30: 0 | AO30: 125 | AP30: 0 | AQ30: 0 | AR30: 125 | AS30: 0 | AT30: 0 | AU30: 125 | AV30: 0 | AW30: 0 | AX30: 0
E31: Value of customer bills issued - TOTAL | F31: =H30 -> 1500 | G31: £
B33: Total Retailer Inflow
E34: =E30 -> Value of customer bills issued | F34: =F30 -> 0 | G34: £ | H34: 1500 | J34: 0 | K34: 0 | L34: 0 | M34: 0 | N34: 125 | O34: 0 | P34: 0 | Q34: 125 | R34: 0 | S34: 0 | T34: 125 | U34: 0 | V34: 0 | W34: 125 | X34: 0 | Y34: 0 | Z34: 125 | AA34: 0 | AB34: 0 | AC34: 125 | AD34: 0 | AE34: 0 | AF34: 125 | AG34: 0 | AH34: 0 | AI34: 125 | AJ34: 0 | AK34: 0 | AL34: 125 | AM34: 0 | AN34: 0 | AO34: 125 | AP34: 0 | AQ34: 0 | AR34: 125 | AS34: 0 | AT34: 0 | AU34: 125 | AV34: 0 | AW34: 0 | AX34: 0
E35: =Inputs!E53 -> Proportion of payment received on day 15 of the month | F35: =Inputs!F53 -> 0.5 | G35: =Inputs!G53 -> %
E37: =Inputs!E58 -> % revenue collected after 30 days | F37: =Inputs!F58 -> 0.52 | G37: =Inputs!G58 -> %
E38: =Inputs!E59 -> % revenue collected after 60 days | F38: =Inputs!F59 -> 0.68 | G38: =Inputs!G59 -> %
E39: =Inputs!E60 -> % revenue collected after 90 days | F39: =Inputs!F60 -> 0.84 | G39: =Inputs!G60 -> %
E41: Payment received 15 days after the bill is issued to the customer | G41: £ | H41: =SUM( K41:AX41 ) -> 390 | K41: =K34 * $F35 * $F37 -> 0 | L41: =L34 * $F35 * $F37 -> 0 | M41: 0 | N41: 32.5 | O41: 0 | P41: 0 | Q41: 32.5 | R41: 0 | S41: 0 | T41: 32.5 | U41: 0 | V41: 0 | W41: 32.5 | X41: 0 | Y41: 0 | Z41: 32.5 | AA41: 0 | AB41: 0 | AC41: 32.5 | AD41: 0 | AE41: 0 | AF41: 32.5 | AG41: 0 | AH41: 0 | AI41: 32.5 | AJ41: 0 | AK41: 0 | AL41: 32.5 | AM41: 0 | AN41: 0 | AO41: 32.5 | AP41: 0 | AQ41: 0 | AR41: 32.5 | AS41: 0 | AT41: 0 | AU41: 32.5 | AV41: 0 | AW41: 0 | AX41: 0
E42: Payment received 30 days after the bill is issued to the customer | G42: £ | H42: =SUM( K42:AX42 ) -> 390 | K42: =K34 * ( 1- $F35 ) * $F37 -> 0 | L42: =L34 * ( 1- $F35 ) * $F37 -> 0 | M42: 0 | N42: 32.5 | O42: 0 | P42: 0 | Q42: 32.5 | R42: 0 | S42: 0 | T42: 32.5 | U42: 0 | V42: 0 | W42: 32.5 | X42: 0 | Y42: 0 | Z42: 32.5 | AA42: 0 | AB42: 0 | AC42: 32.5 | AD42: 0 | AE42: 0 | AF42: 32.5 | AG42: 0 | AH42: 0 | AI42: 32.5 | AJ42: 0 | AK42: 0 | AL42: 32.5 | AM42: 0 | AN42: 0 | AO42: 32.5 | AP42: 0 | AQ42: 0 | AR42: 32.5 | AS42: 0 | AT42: 0 | AU42: 32.5 | AV42: 0 | AW42: 0 | AX42: 0
E43: Payment received 45 days after the bill is issued to the customer | G43: £ | H43: =SUM( K43:AX43 ) -> 120 | K43: =J34 * $F35 * ( $F38 - $F37 ) -> 0 | L43: =K34 * $F35 * ( $F38 - $F37 ) -> 0 | M43: 0 | N43: 0 | O43: 10 | P43: 0 | Q43: 0 | R43: 10 | S43: 0 | T43: 0 | U43: 10 | V43: 0 | W43: 0 | X43: 10 | Y43: 0 | Z43: 0 | AA43: 10 | AB43: 0 | AC43: 0 | AD43: 10 | AE43: 0 | AF43: 0 | AG43: 10 | AH43: 0 | AI43: 0 | AJ43: 10 | AK43: 0 | AL43: 0 | AM43: 10 | AN43: 0 | AO43: 0 | AP43: 10 | AQ43: 0 | AR43: 0 | AS43: 10 | AT43: 0 | AU43: 0 | AV43: 10 | AW43: 0 | AX43: 0
E44: Payment received 60 days after the bill is issued to the customer | G44: £ | H44: =SUM( K44:AX44 ) -> 120 | K44: =J34 * ( 1 - $F35 ) * ( $F38 - $F37 ) -> 0 | L44: =K34 * ( 1 - $F35 ) * ( $F38 - $F37 ) -> 0 | M44: 0 | N44: 0 | O44: 10 | P44: 0 | Q44: 0 | R44: 10 | S44: 0 | T44: 0 | U44: 10 | V44: 0 | W44: 0 | X44: 10 | Y44: 0 | Z44: 0 | AA44: 10 | AB44: 0 | AC44: 0 | AD44: 10 | AE44: 0 | AF44: 0 | AG44: 10 | AH44: 0 | AI44: 0 | AJ44: 10 | AK44: 0 | AL44: 0 | AM44: 10 | AN44: 0 | AO44: 0 | AP44: 10 | AQ44: 0 | AR44: 0 | AS44: 10 | AT44: 0 | AU44: 0 | AV44: 10 | AW44: 0 | AX44: 0
E45: Payment received 75 days after the bill is issued to the customer | G45: £ | H45: =SUM( K45:AX45 ) -> 120 | K45: =I34 * $F35 * ( $F39 - $F38 ) -> 0 | L45: =J34 * $F35 * ( $F39 - $F38 ) -> 0 | M45: 0 | N45: 0 | O45: 0 | P45: 10 | Q45: 0 | R45: 0 | S45: 10 | T45: 0 | U45: 0 | V45: 10 | W45: 0 | X45: 0 | Y45: 10 | Z45: 0 | AA45: 0 | AB45: 10 | AC45: 0 | AD45: 0 | AE45: 10 | AF45: 0 | AG45: 0 | AH45: 10 | AI45: 0 | AJ45: 0 | AK45: 10 | AL45: 0 | AM45: 0 | AN45: 10 | AO45: 0 | AP45: 0 | AQ45: 10 | AR45: 0 | AS45: 0 | AT45: 10 | AU45: 0 | AV45: 0 | AW45: 10 | AX45: 0
E46: Payment received 90 days after the bill is issued to the customer | G46: £ | H46: 120 | K46: =I34 * ( 1 - $F35 ) * ( $F39 - $F38 ) -> 0 | L46: =J34 * ( 1 - $F35 ) * ( $F39 - $F38 ) -> 0 | M46: 0 | N46: 0 | O46: 0 | P46: 10 | Q46: 0 | R46: 0 | S46: 10 | T46: 0 | U46: 0 | V46: 10 | W46: 0 | X46: 0 | Y46: 10 | Z46: 0 | AA46: 0 | AB46: 10 | AC46: 0 | AD46: 0 | AE46: 10 | AF46: 0 | AG46: 0 | AH46: 10 | AI46: 0 | AJ46: 0 | AK46: 10 | AL46: 0 | AM46: 0 | AN46: 10 | AO46: 0 | AP46: 0 | AQ46: 10 | AR46: 0 | AS46: 0 | AT46: 10 | AU46: 0 | AV46: 0 | AW46: 10 | AX46: 0
E47: Total Retailer inflow - CALC | G47: £ | H47: =SUM( K47:AX47) -> 1260 | K47: =SUM( K41:K46 ) -> 0 | L47: =SUM( L41:L46 ) -> 0 | M47: 0 | N47: 65 | O47: 20 | P47: 20 | Q47: 65 | R47: 20 | S47: 20 | T47: 65 | U47: 20 | V47: 20 | W47: 65 | X47: 20 | Y47: 20 | Z47: 65 | AA47: 20 | AB47: 20 | AC47: 65 | AD47: 20 | AE47: 20 | AF47: 65 | AG47: 20 | AH47: 20 | AI47: 65 | AJ47: 20 | AK47: 20 | AL47: 65 | AM47: 20 | AN47: 20 | AO47: 65 | AP47: 20 | AQ47: 20 | AR47: 65 | AS47: 20 | AT47: 20 | AU47: 65 | AV47: 20 | AW47: 20 | AX47: 0
E48: Total Retailer inflow - TOTAL | F48: =H47 -> 1260 | G48: £
B50: Balance at the end of the month accounting for unrecovered revenue
E51: =Inputs!E60 -> % revenue collected after 90 days | F51: =Inputs!F60 -> 0.84 | G51: =Inputs!G60 -> %
E52: % of revenue outstanding after 90 days | F52: =1 - F51 -> 0.16 | G52: %
E54: =E21 -> Total Retailer outflow - CALC | F54: 0 | G54: £ | H54: -1537.5 | I54: 0 | J54: 0 | K54: -37.5 | L54: -41.66666667 | M54: -41.66666667 | N54: -41.66666667 | O54: -41.66666667 | P54: -41.66666667 | Q54: -41.66666667 | R54: -41.66666667 | S54: -41.66666667 | T54: -41.66666667 | U54: -41.66666667 | V54: -41.66666667 | W54: -41.66666667 | X54: -41.66666667 | Y54: -41.66666667 | Z54: -41.66666667 | AA54: -41.66666667 | AB54: -41.66666667 | AC54: -41.66666667 | AD54: -41.66666667 | AE54: -41.66666667 | AF54: -41.66666667 | AG54: -41.66666667 | AH54: -41.66666667 | AI54: -41.66666667 | AJ54: -41.66666667 | AK54: -41.66666667 | AL54: -41.66666667 | AM54: -41.66666667 | AN54: -41.66666667 | AO54: -41.66666667 | AP54: -41.66666667 | AQ54: -41.66666667 | AR54: -41.66666667 | AS54: -41.66666667 | AT54: -41.66666667 | AU54: -41.66666667 | AV54: 0 | AW54: 0 | AX54: 0
E55: =E52 -> % of revenue outstanding after 90 days | F55: =F52 -> 0.16 | G55: %
E56: Value of revenue outstanding after 90 days | G56: £ | H56: =SUM( K56:AX56 ) -> -246 | K56: =K54 * $F52 -> -6 | L56: -6.666666667 | M56: -6.666666667 | N56: -6.666666667 | O56: -6.666666667 | P56: -6.666666667 | Q56: -6.666666667 | R56: -6.666666667 | S56: -6.666666667 | T56: -6.666666667 | U56: -6.666666667 | V56: -6.666666667 | W56: -6.666666667 | X56: -6.666666667 | Y56: -6.666666667 | Z56: -6.666666667 | AA56: -6.666666667 | AB56: -6.666666667 | AC56: -6.666666667 | AD56: -6.666666667 | AE56: -6.666666667 | AF56: -6.666666667 | AG56: -6.666666667 | AH56: -6.666666667 | AI56: -6.666666667 | AJ56: -6.666666667 | AK56: -6.666666667 | AL56: -6.666666667 | AM56: -6.666666667 | AN56: -6.666666667 | AO56: -6.666666667 | AP56: -6.666666667 | AQ56: -6.666666667 | AR56: -6.666666667 | AS56: -6.666666667 | AT56: -6.666666667 | AU56: -6.666666667 | AV56: 0 | AW56: 0 | AX56: 0
E58: =E21 -> Total Retailer outflow - CALC | F58: 0 | G58: £ | H58: -1537.5 | I58: 0 | J58: 0 | K58: -37.5 | L58: -41.66666667 | M58: -41.66666667 | N58: -41.66666667 | O58: -41.66666667 | P58: -41.66666667 | Q58: -41.66666667 | R58: -41.66666667 | S58: -41.66666667 | T58: -41.66666667 | U58: -41.66666667 | V58: -41.66666667 | W58: -41.66666667 | X58: -41.66666667 | Y58: -41.66666667 | Z58: -41.66666667 | AA58: -41.66666667 | AB58: -41.66666667 | AC58: -41.66666667 | AD58: -41.66666667 | AE58: -41.66666667 | AF58: -41.66666667 | AG58: -41.66666667 | AH58: -41.66666667 | AI58: -41.66666667 | AJ58: -41.66666667 | AK58: -41.66666667 | AL58: -41.66666667 | AM58: -41.66666667 | AN58: -41.66666667 | AO58: -41.66666667 | AP58: -41.66666667 | AQ58: -41.66666667 | AR58: -41.66666667 | AS58: -41.66666667 | AT58: -41.66666667 | AU58: -41.66666667 | AV58: 0 | AW58: 0 | AX58: 0
E59: =E56 -> Value of revenue outstanding after 90 days | F59: =F56 -> 0 | G59: £ | H59: =H56 -> -246 | I59: 0 | J59: 0 | K59: -6 | L59: -6.666666667 | M59: -6.666666667 | N59: -6.666666667 | O59: -6.666666667 | P59: -6.666666667 | Q59: -6.666666667 | R59: -6.666666667 | S59: -6.666666667 | T59: -6.666666667 | U59: -6.666666667 | V59: -6.666666667 | W59: -6.666666667 | X59: -6.666666667 | Y59: -6.666666667 | Z59: -6.666666667 | AA59: -6.666666667 | AB59: -6.666666667 | AC59: -6.666666667 | AD59: -6.666666667 | AE59: -6.666666667 | AF59: -6.666666667 | AG59: -6.666666667 | AH59: -6.666666667 | AI59: -6.666666667 | AJ59: -6.666666667 | AK59: -6.666666667 | AL59: -6.666666667 | AM59: -6.666666667 | AN59: -6.666666667 | AO59: -6.666666667 | AP59: -6.666666667 | AQ59: -6.666666667 | AR59: -6.666666667 | AS59: -6.666666667 | AT59: -6.666666667 | AU59: -6.666666667 | AV59: 0 | AW59: 0 | AX59: 0
E60: =E47 -> Total Retailer inflow - CALC | F60: 0 | G60: £ | H60: 1260 | I60: 0 | J60: 0 | K60: 0 | L60: 0 | M60: 0 | N60: 65 | O60: 20 | P60: 20 | Q60: 65 | R60: 20 | S60: 20 | T60: 65 | U60: 20 | V60: 20 | W60: 65 | X60: 20 | Y60: 20 | Z60: 65 | AA60: 20 | AB60: 20 | AC60: 65 | AD60: 20 | AE60: 20 | AF60: 65 | AG60: 20 | AH60: 20 | AI60: 65 | AJ60: 20 | AK60: 20 | AL60: 65 | AM60: 20 | AN60: 20 | AO60: 65 | AP60: 20 | AQ60: 20 | AR60: 65 | AS60: 20 | AT60: 20 | AU60: 65 | AV60: 20 | AW60: 20 | AX60: 0
E61: Balance at the end of the period accounting for revenue collected within 90 days | G61: £ | K61: =K58 - K59 + K60 + J61 -> -31.5 | L61: -66.5 | M61: -101.5 | N61: -71.5 | O61: -86.5 | P61: -101.5 | Q61: -71.5 | R61: -86.5 | S61: -101.5 | T61: -71.5 | U61: -86.5 | V61: -101.5 | W61: -71.5 | X61: -86.5 | Y61: -101.5 | Z61: -71.5 | AA61: -86.5 | AB61: -101.5 | AC61: -71.5 | AD61: -86.5 | AE61: -101.5 | AF61: -71.5 | AG61: -86.5 | AH61: -101.5 | AI61: -71.5 | AJ61: -86.5 | AK61: -101.5 | AL61: -71.5 | AM61: -86.5 | AN61: -101.5 | AO61: -71.5 | AP61: -86.5 | AQ61: -101.5 | AR61: -71.5 | AS61: -86.5 | AT61: -101.5 | AU61: -71.5 | AV61: -51.5 | AW61: -31.5 | AX61: -31.5
B63: Balance at the start of the month accounting for unrecovered revenue
E64: =E61 -> Balance at the end of the period accounting for revenue collected within 90 days | F64: =F61 -> 0 | G64: £ | H64: 0 | I64: 0 | J64: 0 | K64: =K61 -> -31.5 | L64: -66.5 | M64: -101.5 | N64: -71.5 | O64: -86.5 | P64: -101.5 | Q64: -71.5 | R64: -86.5 | S64: -101.5 | T64: -71.5 | U64: -86.5 | V64: -101.5 | W64: -71.5 | X64: -86.5 | Y64: -101.5 | Z64: -71.5 | AA64: -86.5 | AB64: -101.5 | AC64: -71.5 | AD64: -86.5 | AE64: -101.5 | AF64: -71.5 | AG64: -86.5 | AH64: -101.5 | AI64: -71.5 | AJ64: -86.5 | AK64: -101.5 | AL64: -71.5 | AM64: -86.5 | AN64: -101.5 | AO64: -71.5 | AP64: -86.5 | AQ64: -101.5 | AR64: -71.5 | AS64: -86.5 | AT64: -101.5 | AU64: -71.5 | AV64: -51.5 | AW64: -31.5 | AX64: -31.5
E65: Balance at the start of the period accounting for revenue collected within 90 days | G65: £ | K65: =J64 -> 0 | L65: =K64 -> -31.5 | M65: -66.5 | N65: -101.5 | O65: -71.5 | P65: -86.5 | Q65: -101.5 | R65: -71.5 | S65: -86.5 | T65: -101.5 | U65: -71.5 | V65: -86.5 | W65: -101.5 | X65: -71.5 | Y65: -86.5 | Z65: -101.5 | AA65: -71.5 | AB65: -86.5 | AC65: -101.5 | AD65: -71.5 | AE65: -86.5 | AF65: -101.5 | AG65: -71.5 | AH65: -86.5 | AI65: -101.5 | AJ65: -71.5 | AK65: -86.5 | AL65: -101.5 | AM65: -71.5 | AN65: -86.5 | AO65: -101.5 | AP65: -71.5 | AQ65: -86.5 | AR65: -101.5 | AS65: -71.5 | AT65: -86.5 | AU65: -101.5 | AV65: -71.5 | AW65: -51.5 | AX65: -31.5
B67: Working capital requirement
E68: =E65 -> Balance at the start of the period accounting for revenue collected within 90 days | F68: =F65 -> 0 | G68: £ | H68: 0 | I68: 0 | J68: 0 | K68: 0 | L68: -31.5 | M68: -66.5 | N68: -101.5 | O68: -71.5 | P68: -86.5 | Q68: -101.5 | R68: -71.5 | S68: -86.5 | T68: -101.5 | U68: -71.5 | V68: -86.5 | W68: -101.5 | X68: -71.5 | Y68: -86.5 | Z68: -101.5 | AA68: -71.5 | AB68: -86.5 | AC68: -101.5 | AD68: -71.5 | AE68: -86.5 | AF68: -101.5 | AG68: -71.5 | AH68: -86.5 | AI68: -101.5 | AJ68: -71.5 | AK68: -86.5 | AL68: -101.5 | AM68: -71.5 | AN68: -86.5 | AO68: -101.5 | AP68: -71.5 | AQ68: -86.5 | AR68: -101.5 | AS68: -71.5 | AT68: -86.5 | AU68: -101.5 | AV68: -71.5 | AW68: -51.5 | AX68: -31.5
E69: =E21 -> Total Retailer outflow - CALC | F69: 0 | G69: £ | H69: -1537.5 | I69: 0 | J69: 0 | K69: -37.5 | L69: -41.66666667 | M69: -41.66666667 | N69: -41.66666667 | O69: -41.66666667 | P69: -41.66666667 | Q69: -41.66666667 | R69: -41.66666667 | S69: -41.66666667 | T69: -41.66666667 | U69: -41.66666667 | V69: -41.66666667 | W69: -41.66666667 | X69: -41.66666667 | Y69: -41.66666667 | Z69: -41.66666667 | AA69: -41.66666667 | AB69: -41.66666667 | AC69: -41.66666667 | AD69: -41.66666667 | AE69: -41.66666667 | AF69: -41.66666667 | AG69: -41.66666667 | AH69: -41.66666667 | AI69: -41.66666667 | AJ69: -41.66666667 | AK69: -41.66666667 | AL69: -41.66666667 | AM69: -41.66666667 | AN69: -41.66666667 | AO69: -41.66666667 | AP69: -41.66666667 | AQ69: -41.66666667 | AR69: -41.66666667 | AS69: -41.66666667 | AT69: -41.66666667 | AU69: -41.66666667 | AV69: 0 | AW69: 0 | AX69: 0
E70: =E56 -> Value of revenue outstanding after 90 days | F70: =F56 -> 0 | G70: =G56 -> £ | H70: =- H56 -> 246 | I70: 0 | J70: 0 | K70: 6 | L70: 6.666666667 | M70: 6.666666667 | N70: 6.666666667 | O70: 6.666666667 | P70: 6.666666667 | Q70: 6.666666667 | R70: 6.666666667 | S70: 6.666666667 | T70: 6.666666667 | U70: 6.666666667 | V70: 6.666666667 | W70: 6.666666667 | X70: 6.666666667 | Y70: 6.666666667 | Z70: 6.666666667 | AA70: 6.666666667 | AB70: 6.666666667 | AC70: 6.666666667 | AD70: 6.666666667 | AE70: 6.666666667 | AF70: 6.666666667 | AG70: 6.666666667 | AH70: 6.666666667 | AI70: 6.666666667 | AJ70: 6.666666667 | AK70: 6.666666667 | AL70: 6.666666667 | AM70: 6.666666667 | AN70: 6.666666667 | AO70: 6.666666667 | AP70: 6.666666667 | AQ70: 6.666666667 | AR70: 6.666666667 | AS70: 6.666666667 | AT70: 6.666666667 | AU70: 6.666666667 | AV70: 0 | AW70: 0 | AX70: 0
E71: =E41 -> Payment received 15 days after the bill is issued to the customer | F71: 0 | G71: £ | H71: 390 | I71: 0 | J71: 0 | K71: 0 | L71: 0 | M71: 0 | N71: 32.5 | O71: 0 | P71: 0 | Q71: 32.5 | R71: 0 | S71: 0 | T71: 32.5 | U71: 0 | V71: 0 | W71: 32.5 | X71: 0 | Y71: 0 | Z71: 32.5 | AA71: 0 | AB71: 0 | AC71: 32.5 | AD71: 0 | AE71: 0 | AF71: 32.5 | AG71: 0 | AH71: 0 | AI71: 32.5 | AJ71: 0 | AK71: 0 | AL71: 32.5 | AM71: 0 | AN71: 0 | AO71: 32.5 | AP71: 0 | AQ71: 0 | AR71: 32.5 | AS71: 0 | AT71: 0 | AU71: 32.5 | AV71: 0 | AW71: 0 | AX71: 0
E72: =E43 -> Payment received 45 days after the bill is issued to the customer | F72: 0 | G72: £ | H72: 120 | I72: 0 | J72: 0 | K72: 0 | L72: 0 | M72: 0 | N72: 0 | O72: 10 | P72: 0 | Q72: 0 | R72: 10 | S72: 0 | T72: 0 | U72: 10 | V72: 0 | W72: 0 | X72: 10 | Y72: 0 | Z72: 0 | AA72: 10 | AB72: 0 | AC72: 0 | AD72: 10 | AE72: 0 | AF72: 0 | AG72: 10 | AH72: 0 | AI72: 0 | AJ72: 10 | AK72: 0 | AL72: 0 | AM72: 10 | AN72: 0 | AO72: 0 | AP72: 10 | AQ72: 0 | AR72: 0 | AS72: 10 | AT72: 0 | AU72: 0 | AV72: 10 | AW72: 0 | AX72: 0
E73: =E45 -> Payment received 75 days after the bill is issued to the customer | F73: 0 | G73: £ | H73: 120 | I73: 0 | J73: 0 | K73: 0 | L73: 0 | M73: 0 | N73: 0 | O73: 0 | P73: 10 | Q73: 0 | R73: 0 | S73: 10 | T73: 0 | U73: 0 | V73: 10 | W73: 0 | X73: 0 | Y73: 10 | Z73: 0 | AA73: 0 | AB73: 10 | AC73: 0 | AD73: 0 | AE73: 10 | AF73: 0 | AG73: 0 | AH73: 10 | AI73: 0 | AJ73: 0 | AK73: 10 | AL73: 0 | AM73: 0 | AN73: 10 | AO73: 0 | AP73: 0 | AQ73: 10 | AR73: 0 | AS73: 0 | AT73: 10 | AU73: 0 | AV73: 0 | AW73: 10 | AX73: 0
E74: Monthly working capital requirement - CALC | G74: £ | K74: =K68 + K69 + K70 + (K71 + K72 + K73) * 0.5 -> -31.5 | L74: =L68 + L69 + L70 + (L71 + L72 + L73) * 0.5 -> -66.5 | M74: -101.5 | N74: -120.25 | O74: -101.5 | P74: -116.5 | Q74: -120.25 | R74: -101.5 | S74: -116.5 | T74: -120.25 | U74: -101.5 | V74: -116.5 | W74: -120.25 | X74: -101.5 | Y74: -116.5 | Z74: -120.25 | AA74: -101.5 | AB74: -116.5 | AC74: -120.25 | AD74: -101.5 | AE74: -116.5 | AF74: -120.25 | AG74: -101.5 | AH74: -116.5 | AI74: -120.25 | AJ74: -101.5 | AK74: -116.5 | AL74: -120.25 | AM74: -101.5 | AN74: -116.5 | AO74: -120.25 | AP74: -101.5 | AQ74: -116.5 | AR74: -120.25 | AS74: -101.5 | AT74: -116.5 | AU74: -120.25 | AV74: -66.5 | AW74: -46.5 | AX74: -31.5 | AY74: 0 | AZ74: 0 | BA74: 0 | BB74: 0 | BC74: 0 | BD74: 0 | BE74: 0 | BF74: 0 | BG74: 0 | BH74: 0 | BI74: 0 | BJ74: 0 | BK74: 0 | BL74: 0 | BM74: 0 | BN74: 0 | BO74: 0 | BP74: 0 | BQ74: 0 | BR74: 0 | BS74: 0 | BT74: 0 | BU74: 0 | BV74: 0 | BW74: 0 | BX74: =BX68 + BX69 + BX70 + (BX71 + BX72 + BX73) * 0.5 -> 0 | BY74: 0 | BZ74: 0 | CA74: 0 | CB74: 0 | CC74: 0 | CD74: 0 | CE74: 0 | CF74: 0 | CG74: 0 | CH74: 0 | CI74: 0 | CJ74: 0 | CK74: 0 | CL74: 0 | CM74: 0 | CN74: 0 | CO74: 0 | CP74: 0 | CQ74: 0 | CR74: 0 | CS74: 0 | CT74: 0 | CU74: 0 | CV74: 0 | CW74: 0 | CX74: 0 | CY74: 0 | CZ74: 0 | DA74: 0 | DB74: 0 | DC74: 0 | DD74: 0 | DE74: 0 | DF74: 0 | DG74: 0 | DH74: 0 | DI74: 0 | DJ74: 0 | DK74: 0 | DL74: 0 | DM74: 0 | DN74: 0 | DO74: 0 | DP74: 0 | DQ74: 0 | DR74: 0 | DS74: 0 | DT74: 0 | DU74: 0 | DV74: 0 | DW74: 0 | DX74: 0 | DY74: 0 | DZ74: 0 | EA74: 0 | EB74: 0 | EC74: 0 | ED74: 0 | EE74: 0 | EF74: 0 | EG74: 0 | EH74: 0 | EI74: 0 | EJ74: =EJ68 + EJ69 + EJ70 + (EJ71 + EJ72 + EJ73) * 0.5 -> 0 | EK74: 0 | EL74: 0 | EM74: 0 | EN74: 0 | EO74: 0 | EP74: 0 | EQ74: 0 | ER74: 0 | ES74: 0 | ET74: 0 | EU74: 0 | EV74: 0 | EW74: 0 | EX74: 0 | EY74: 0 | EZ74: 0 | FA74: 0 | FB74: 0 | FC74: 0 | FD74: 0 | FE74: 0 | FF74: 0 | FG74: 0 | FH74: 0 | FI74: 0 | FJ74: 0 | FK74: 0 | FL74: 0 | FM74: 0 | FN74: 0 | FO74: 0 | FP74: 0 | FQ74: 0 | FR74: 0 | FS74: 0 | FT74: 0 | FU74: 0 | FV74: 0 | FW74: 0 | FX74: 0 | FY74: 0 | FZ74: 0 | GA74: 0 | GB74: 0 | GC74: 0 | GD74: 0 | GE74: 0 | GF74: 0 | GG74: 0 | GH74: 0 | GI74: 0 | GJ74: 0 | GK74: 0 | GL74: 0 | GM74: 0 | GN74: 0 | GO74: 0 | GP74: 0 | GQ74: 0 | GR74: 0 | GS74: 0 | GT74: 0 | GU74: 0 | GV74: =GV68 + GV69 + GV70 + (GV71 + GV72 + GV73) * 0.5 -> 0 | GW74: 0 | GX74: 0 | GY74: 0 | GZ74: 0 | HA74: 0 | HB74: 0 | HC74: 0 | HD74: 0 | HE74: 0 | HF74: 0 | HG74: 0 | HH74: 0 | HI74: 0 | HJ74: 0 | HK74: 0 | HL74: 0 | HM74: 0 | HN74: 0 | HO74: 0 | HP74: 0 | HQ74: 0 | HR74: 0 | HS74: 0 | HT74: 0 | HU74: 0 | HV74: 0 | HW74: 0 | HX74: 0 | HY74: 0 | HZ74: 0 | IA74: 0 | IB74: 0 | IC74: 0 | ID74: 0 | IE74: 0 | IF74: 0 | IG74: 0 | IH74: 0 | II74: 0 | IJ74: 0 | IK74: 0 | IL74: 0 | IM74: 0 | IN74: 0 | IO74: 0 | IP74: 0 | IQ74: 0 | IR74: 0 | IS74: 0 | IT74: 0 | IU74: 0 | IV74: 0 | IW74: 0 | IX74: 0 | IY74: 0 | IZ74: 0 | JA74: 0 | JB74: 0 | JC74: 0 | JD74: 0 | JE74: 0 | JF74: 0 | JG74: 0 | JH74: =JH68 + JH69 + JH70 + (JH71 + JH72 + JH73) * 0.5 -> 0 | JI74: 0 | JJ74: 0 | JK74: 0 | JL74: 0 | JM74: 0 | JN74: 0 | JO74: 0 | JP74: 0 | JQ74: 0 | JR74: 0 | JS74: 0 | JT74: 0 | JU74: 0 | JV74: 0 | JW74: 0 | JX74: 0 | JY74: 0 | JZ74: 0 | KA74: 0 | KB74: 0 | KC74: 0 | KD74: 0 | KE74: 0 | KF74: 0 | KG74: 0 | KH74: 0 | KI74: 0 | KJ74: 0 | KK74: 0 | KL74: 0 | KM74: 0 | KN74: 0 | KO74: 0 | KP74: 0 | KQ74: 0 | KR74: 0 | KS74: 0 | KT74: 0 | KU74: 0 | KV74: 0 | KW74: 0 | KX74: 0 | KY74: 0 | KZ74: 0 | LA74: 0 | LB74: 0 | LC74: 0 | LD74: 0 | LE74: 0 | LF74: 0 | LG74: 0 | LH74: 0 | LI74: 0 | LJ74: 0 | LK74: 0 | LL74: 0 | LM74: 0 | LN74: 0 | LO74: 0 | LP74: 0 | LQ74: 0 | LR74: 0 | LS74: 0 | LT74: =LT68 + LT69 + LT70 + (LT71 + LT72 + LT73) * 0.5 -> 0 | LU74: 0 | LV74: 0 | LW74: 0 | LX74: 0 | LY74: 0 | LZ74: 0 | MA74: 0 | MB74: 0 | MC74: 0 | MD74: 0 | ME74: 0 | MF74: 0 | MG74: 0 | MH74: 0 | MI74: 0 | MJ74: 0 | MK74: 0 | ML74: 0 | MM74: 0 | MN74: 0 | MO74: 0 | MP74: 0 | MQ74: 0 | MR74: 0 | MS74: 0 | MT74: 0 | MU74: 0 | MV74: 0 | MW74: 0 | MX74: 0 | MY74: 0 | MZ74: 0 | NA74: 0 | NB74: 0 | NC74: 0 | ND74: 0 | NE74: 0 | NF74: 0 | NG74: 0 | NH74: 0 | NI74: 0 | NJ74: 0 | NK74: 0 | NL74: 0 | NM74: 0 | NN74: 0 | NO74: 0 | NP74: 0 | NQ74: 0 | NR74: 0 | NS74: 0 | NT74: 0 | NU74: 0 | NV74: 0 | NW74: 0 | NX74: 0 | NY74: 0 | NZ74: 0 | OA74: 0 | OB74: 0 | OC74: 0 | OD74: 0 | OE74: 0 | OF74: =OF68 + OF69 + OF70 + (OF71 + OF72 + OF73) * 0.5 -> 0 | OG74: 0 | OH74: 0 | OI74: 0 | OJ74: 0 | OK74: 0 | OL74: 0 | OM74: 0 | ON74: 0 | OO74: 0 | OP74: 0 | OQ74: 0 | OR74: 0 | OS74: 0 | OT74: 0 | OU74: 0 | OV74: 0 | OW74: 0 | OX74: 0 | OY74: 0 | OZ74: 0 | PA74: 0 | PB74: 0 | PC74: 0 | PD74: 0 | PE74: 0 | PF74: 0 | PG74: 0 | PH74: 0 | PI74: 0 | PJ74: 0 | PK74: 0 | PL74: 0 | PM74: 0 | PN74: 0 | PO74: 0 | PP74: 0 | PQ74: 0 | PR74: 0 | PS74: 0 | PT74: 0 | PU74: 0 | PV74: 0 | PW74: 0 | PX74: 0 | PY74: 0 | PZ74: 0 | QA74: 0 | QB74: 0 | QC74: 0 | QD74: 0 | QE74: 0 | QF74: 0 | QG74: 0 | QH74: 0 | QI74: 0 | QJ74: 0 | QK74: 0 | QL74: 0 | QM74: 0 | QN74: 0 | QO74: 0 | QP74: 0 | QQ74: 0 | QR74: =QR68 + QR69 + QR70 + (QR71 + QR72 + QR73) * 0.5 -> 0 | QS74: 0 | QT74: 0 | QU74: 0 | QV74: 0 | QW74: 0 | QX74: 0 | QY74: 0 | QZ74: 0 | RA74: 0 | RB74: 0 | RC74: 0 | RD74: 0 | RE74: 0 | RF74: 0 | RG74: 0 | RH74: 0 | RI74: 0 | RJ74: 0 | RK74: 0 | RL74: 0 | RM74: 0 | RN74: 0 | RO74: 0 | RP74: 0 | RQ74: 0 | RR74: 0 | RS74: 0 | RT74: 0 | RU74: 0 | RV74: 0 | RW74: 0 | RX74: 0 | RY74: 0 | RZ74: 0 | SA74: 0 | SB74: 0 | SC74: 0 | SD74: 0 | SE74: 0 | SF74: 0 | SG74: 0 | SH74: 0 | SI74: 0 | SJ74: 0 | SK74: 0 | SL74: 0 | SM74: 0 | SN74: 0 | SO74: 0 | SP74: 0 | SQ74: 0 | SR74: 0 | SS74: 0 | ST74: 0 | SU74: 0 | SV74: 0 | SW74: 0 | SX74: 0 | SY74: 0 | SZ74: 0 | TA74: 0 | TB74: 0 | TC74: 0 | TD74: =TD68 + TD69 + TD70 + (TD71 + TD72 + TD73) * 0.5 -> 0 | TE74: 0 | TF74: 0 | TG74: 0 | TH74: 0 | TI74: 0 | TJ74: 0 | TK74: 0 | TL74: 0 | TM74: 0 | TN74: 0 | TO74: 0 | TP74: 0 | TQ74: 0 | TR74: 0 | TS74: 0 | TT74: 0 | TU74: 0 | TV74: 0 | TW74: 0 | TX74: 0 | TY74: 0 | TZ74: 0 | UA74: 0 | UB74: 0 | UC74: 0 | UD74: 0 | UE74: 0 | UF74: 0 | UG74: 0 | UH74: 0 | UI74: 0 | UJ74: 0 | UK74: 0 | UL74: 0 | UM74: 0 | UN74: 0 | UO74: 0 | UP74: 0 | UQ74: 0 | UR74: 0 | US74: 0 | UT74: 0 | UU74: 0 | UV74: 0 | UW74: 0 | UX74: 0 | UY74: 0 | UZ74: 0 | VA74: 0 | VB74: 0 | VC74: 0 | VD74: 0 | VE74: 0 | VF74: 0 | VG74: 0 | VH74: 0 | VI74: 0 | VJ74: 0 | VK74: 0 | VL74: 0 | VM74: 0 | VN74: 0 | VO74: 0 | VP74: =VP68 + VP69 + VP70 + (VP71 + VP72 + VP73) * 0.5 -> 0 | VQ74: 0 | VR74: 0 | VS74: 0 | VT74: 0 | VU74: 0 | VV74: 0 | VW74: 0 | VX74: 0 | VY74: 0 | VZ74: 0 | WA74: 0 | WB74: 0 | WC74: 0 | WD74: 0 | WE74: 0 | WF74: 0 | WG74: 0 | WH74: 0 | WI74: 0 | WJ74: 0 | WK74: 0 | WL74: 0 | WM74: 0 | WN74: 0 | WO74: 0 | WP74: 0 | WQ74: 0 | WR74: 0 | WS74: 0 | WT74: 0 | WU74: 0 | WV74: 0 | WW74: 0 | WX74: 0 | WY74: 0 | WZ74: 0 | XA74: 0 | XB74: 0 | XC74: 0 | XD74: 0 | XE74: 0 | XF74: 0 | XG74: 0 | XH74: 0 | XI74: 0 | XJ74: 0 | XK74: 0 | XL74: 0 | XM74: 0 | XN74: 0 | XO74: 0 | XP74: 0 | XQ74: 0 | XR74: 0 | XS74: 0 | XT74: 0 | XU74: 0 | XV74: 0 | XW74: 0 | XX74: 0 | XY74: 0 | XZ74: 0 | YA74: 0 | YB74: =YB68 + YB69 + YB70 + (YB71 + YB72 + YB73) * 0.5 -> 0 | YC74: 0 | YD74: 0 | YE74: 0 | YF74: 0 | YG74: 0 | YH74: 0 | YI74: 0 | YJ74: 0 | YK74: 0 | YL74: 0 | YM74: 0 | YN74: 0 | YO74: 0 | YP74: 0 | YQ74: 0 | YR74: 0 | YS74: 0 | YT74: 0 | YU74: 0 | YV74: 0 | YW74: 0 | YX74: 0 | YY74: 0 | YZ74: 0 | ZA74: 0 | ZB74: 0 | ZC74: 0 | ZD74: 0 | ZE74: 0 | ZF74: 0 | ZG74: 0 | ZH74: 0 | ZI74: 0 | ZJ74: 0 | ZK74: 0 | ZL74: 0 | ZM74: 0 | ZN74: 0 | ZO74: 0 | ZP74: 0 | ZQ74: 0 | ZR74: 0 | ZS74: 0 | ZT74: 0 | ZU74: 0 | ZV74: 0 | ZW74: 0 | ZX74: 0 | ZY74: 0 | ZZ74: 0 | AAA74: 0 | AAB74: 0 | AAC74: 0 | AAD74: 0 | AAE74: 0 | AAF74: 0 | AAG74: 0 | AAH74: 0 | AAI74: 0 | AAJ74: 0 | AAK74: 0 | AAL74: 0 | AAM74: 0 | AAN74: =AAN68 + AAN69 + AAN70 + (AAN71 + AAN72 + AAN73) * 0.5 -> 0 | AAO74: 0 | AAP74: 0 | AAQ74: 0 | AAR74: 0 | AAS74: 0 | AAT74: 0 | AAU74: 0 | AAV74: 0 | AAW74: 0 | AAX74: 0 | AAY74: 0 | AAZ74: 0 | ABA74: 0 | ABB74: 0 | ABC74: 0 | ABD74: 0 | ABE74: 0 | ABF74: 0 | ABG74: 0 | ABH74: 0 | ABI74: 0 | ABJ74: 0 | ABK74: 0 | ABL74: 0 | ABM74: 0 | ABN74: 0 | ABO74: 0 | ABP74: 0 | ABQ74: 0 | ABR74: 0 | ABS74: 0 | ABT74: 0 | ABU74: 0 | ABV74: 0 | ABW74: 0 | ABX74: 0 | ABY74: 0 | ABZ74: 0 | ACA74: 0 | ACB74: 0 | ACC74: 0 | ACD74: 0 | ACE74: 0 | ACF74: 0 | ACG74: 0 | ACH74: 0 | ACI74: 0 | ACJ74: 0 | ACK74: 0 | ACL74: 0 | ACM74: 0 | ACN74: 0 | ACO74: 0 | ACP74: 0 | ACQ74: 0 | ACR74: 0 | ACS74: 0 | ACT74: 0 | ACU74: 0 | ACV74: 0 | ACW74: 0 | ACX74: 0 | ACY74: 0 | ACZ74: =ACZ68 + ACZ69 + ACZ70 + (ACZ71 + ACZ72 + ACZ73) * 0.5 -> 0 | ADA74: 0 | ADB74: 0 | ADC74: 0 | ADD74: 0 | ADE74: 0 | ADF74: 0 | ADG74: 0 | ADH74: 0 | ADI74: 0 | ADJ74: 0 | ADK74: 0 | ADL74: 0 | ADM74: 0 | ADN74: 0 | ADO74: 0 | ADP74: 0 | ADQ74: 0 | ADR74: 0 | ADS74: 0 | ADT74: 0 | ADU74: 0 | ADV74: 0 | ADW74: 0 | ADX74: 0 | ADY74: 0 | ADZ74: 0 | AEA74: 0 | AEB74: 0 | AEC74: 0 | AED74: 0 | AEE74: 0 | AEF74: 0 | AEG74: 0 | AEH74: 0 | AEI74: 0 | AEJ74: 0 | AEK74: 0 | AEL74: 0 | AEM74: 0 | AEN74: 0 | AEO74: 0 | AEP74: 0 | AEQ74: 0 | AER74: 0 | AES74: 0 | AET74: 0 | AEU74: 0 | AEV74: 0 | AEW74: 0 | AEX74: 0 | AEY74: 0 | AEZ74: 0 | AFA74: 0 | AFB74: 0 | AFC74: 0 | AFD74: 0 | AFE74: 0 | AFF74: 0 | AFG74: 0 | AFH74: 0 | AFI74: 0 | AFJ74: 0 | AFK74: 0 | AFL74: =AFL68 + AFL69 + AFL70 + (AFL71 + AFL72 + AFL73) * 0.5 -> 0 | AFM74: 0 | AFN74: 0 | AFO74: 0 | AFP74: 0 | AFQ74: 0 | AFR74: 0 | AFS74: 0 | AFT74: 0 | AFU74: 0 | AFV74: 0 | AFW74: 0 | AFX74: 0 | AFY74: 0 | AFZ74: 0 | AGA74: 0 | AGB74: 0 | AGC74: 0 | AGD74: 0 | AGE74: 0 | AGF74: 0 | AGG74: 0 | AGH74: 0 | AGI74: 0 | AGJ74: 0 | AGK74: 0 | AGL74: 0 | AGM74: 0 | AGN74: 0 | AGO74: 0 | AGP74: 0 | AGQ74: 0 | AGR74: 0 | AGS74: 0 | AGT74: 0 | AGU74: 0 | AGV74: 0 | AGW74: 0 | AGX74: 0 | AGY74: 0 | AGZ74: 0 | AHA74: 0 | AHB74: 0 | AHC74: 0 | AHD74: 0 | AHE74: 0 | AHF74: 0 | AHG74: 0 | AHH74: 0 | AHI74: 0 | AHJ74: 0 | AHK74: 0 | AHL74: 0 | AHM74: 0 | AHN74: 0 | AHO74: 0 | AHP74: 0 | AHQ74: 0 | AHR74: 0 | AHS74: 0 | AHT74: 0 | AHU74: 0 | AHV74: 0 | AHW74: 0 | AHX74: =AHX68 + AHX69 + AHX70 + (AHX71 + AHX72 + AHX73) * 0.5 -> 0 | AHY74: 0 | AHZ74: 0 | AIA74: 0 | AIB74: 0 | AIC74: 0 | AID74: 0 | AIE74: 0 | AIF74: 0 | AIG74: 0 | AIH74: 0 | AII74: 0 | AIJ74: 0 | AIK74: 0 | AIL74: 0 | AIM74: 0 | AIN74: 0 | AIO74: 0 | AIP74: 0 | AIQ74: 0 | AIR74: 0 | AIS74: 0 | AIT74: 0 | AIU74: 0 | AIV74: 0 | AIW74: 0 | AIX74: 0 | AIY74: 0 | AIZ74: 0 | AJA74: 0 | AJB74: 0 | AJC74: 0 | AJD74: 0 | AJE74: 0 | AJF74: 0 | AJG74: 0 | AJH74: 0 | AJI74: 0 | AJJ74: 0 | AJK74: 0 | AJL74: 0 | AJM74: 0 | AJN74: 0 | AJO74: 0 | AJP74: 0 | AJQ74: 0 | AJR74: 0 | AJS74: 0 | AJT74: 0 | AJU74: 0 | AJV74: 0 | AJW74: 0 | AJX74: 0 | AJY74: 0 | AJZ74: 0 | AKA74: 0 | AKB74: 0 | AKC74: 0 | AKD74: 0 | AKE74: 0 | AKF74: 0 | AKG74: 0 | AKH74: 0 | AKI74: 0 | AKJ74: =AKJ68 + AKJ69 + AKJ70 + (AKJ71 + AKJ72 + AKJ73) * 0.5 -> 0 | AKK74: 0 | AKL74: 0 | AKM74: 0 | AKN74: 0 | AKO74: 0 | AKP74: 0 | AKQ74: 0 | AKR74: 0 | AKS74: 0 | AKT74: 0 | AKU74: 0 | AKV74: 0 | AKW74: 0 | AKX74: 0 | AKY74: 0 | AKZ74: 0 | ALA74: 0 | ALB74: 0 | ALC74: 0 | ALD74: 0 | ALE74: 0 | ALF74: 0 | ALG74: 0 | ALH74: 0 | ALI74: 0 | ALJ74: 0 | ALK74: 0 | ALL74: 0 | ALM74: 0 | ALN74: 0 | ALO74: 0 | ALP74: 0 | ALQ74: 0 | ALR74: 0 | ALS74: 0 | ALT74: 0 | ALU74: 0 | ALV74: 0 | ALW74: 0 | ALX74: 0 | ALY74: 0 | ALZ74: 0 | AMA74: 0 | AMB74: 0 | AMC74: 0 | AMD74: 0 | AME74: 0 | AMF74: 0 | AMG74: 0 | AMH74: 0 | AMI74: 0 | AMJ74: 0 | AMK74: 0 | AML74: 0 | AMM74: 0 | AMN74: 0 | AMO74: 0 | AMP74: 0 | AMQ74: 0 | AMR74: 0 | AMS74: 0 | AMT74: 0 | AMU74: 0 | AMV74: =AMV68 + AMV69 + AMV70 + (AMV71 + AMV72 + AMV73) * 0.5 -> 0 | AMW74: 0 | AMX74: 0 | AMY74: 0 | AMZ74: 0 | ANA74: 0 | ANB74: 0 | ANC74: 0 | AND74: 0 | ANE74: 0 | ANF74: 0 | ANG74: 0 | ANH74: 0 | ANI74: 0 | ANJ74: 0 | ANK74: 0 | ANL74: 0 | ANM74: 0 | ANN74: 0 | ANO74: 0 | ANP74: 0 | ANQ74: 0 | ANR74: 0 | ANS74: 0 | ANT74: 0 | ANU74: 0 | ANV74: 0 | ANW74: 0 | ANX74: 0 | ANY74: 0 | ANZ74: 0 | AOA74: 0 | AOB74: 0 | AOC74: 0 | AOD74: 0 | AOE74: 0 | AOF74: 0 | AOG74: 0 | AOH74: 0 | AOI74: 0 | AOJ74: 0 | AOK74: 0 | AOL74: 0 | AOM74: 0 | AON74: 0 | AOO74: 0 | AOP74: 0 | AOQ74: 0 | AOR74: 0 | AOS74: 0 | AOT74: 0 | AOU74: 0 | AOV74: 0 | AOW74: 0 | AOX74: 0 | AOY74: 0 | AOZ74: 0 | APA74: 0 | APB74: 0 | APC74: 0 | APD74: 0 | APE74: 0 | APF74: 0 | APG74: 0 | APH74: =APH68 + APH69 + APH70 + (APH71 + APH72 + APH73) * 0.5 -> 0 | API74: 0 | APJ74: 0 | APK74: 0 | APL74: 0 | APM74: 0 | APN74: 0 | APO74: 0 | APP74: 0 | APQ74: 0 | APR74: 0 | APS74: 0 | APT74: 0 | APU74: 0 | APV74: 0 | APW74: 0 | APX74: 0 | APY74: 0 | APZ74: 0 | AQA74: 0 | AQB74: 0 | AQC74: 0 | AQD74: 0 | AQE74: 0 | AQF74: 0 | AQG74: 0 | AQH74: 0 | AQI74: 0 | AQJ74: 0 | AQK74: 0 | AQL74: 0 | AQM74: 0 | AQN74: 0 | AQO74: 0 | AQP74: 0 | AQQ74: 0 | AQR74: 0 | AQS74: 0 | AQT74: 0 | AQU74: 0 | AQV74: 0 | AQW74: 0 | AQX74: 0 | AQY74: 0 | AQZ74: 0 | ARA74: 0 | ARB74: 0 | ARC74: 0 | ARD74: 0 | ARE74: 0 | ARF74: 0 | ARG74: 0 | ARH74: 0 | ARI74: 0 | ARJ74: 0 | ARK74: 0 | ARL74: 0 | ARM74: 0 | ARN74: 0 | ARO74: 0 | ARP74: 0 | ARQ74: 0 | ARR74: 0 | ARS74: 0 | ART74: =ART68 + ART69 + ART70 + (ART71 + ART72 + ART73) * 0.5 -> 0 | ARU74: 0 | ARV74: 0 | ARW74: 0 | ARX74: 0 | ARY74: 0 | ARZ74: 0 | ASA74: 0 | ASB74: 0 | ASC74: 0 | ASD74: 0 | ASE74: 0 | ASF74: 0 | ASG74: 0 | ASH74: 0 | ASI74: 0 | ASJ74: 0 | ASK74: 0 | ASL74: 0 | ASM74: 0 | ASN74: 0 | ASO74: 0 | ASP74: 0 | ASQ74: 0 | ASR74: 0 | ASS74: 0 | AST74: 0 | ASU74: 0 | ASV74: 0 | ASW74: 0 | ASX74: 0 | ASY74: 0 | ASZ74: 0 | ATA74: 0 | ATB74: 0 | ATC74: 0 | ATD74: 0 | ATE74: 0 | ATF74: 0 | ATG74: 0 | ATH74: 0 | ATI74: 0 | ATJ74: 0 | ATK74: 0 | ATL74: 0 | ATM74: 0 | ATN74: 0 | ATO74: 0 | ATP74: 0 | ATQ74: 0 | ATR74: 0 | ATS74: 0 | ATT74: 0 | ATU74: 0 | ATV74: 0 | ATW74: 0 | ATX74: 0 | ATY74: 0 | ATZ74: 0 | AUA74: 0 | AUB74: 0 | AUC74: 0 | AUD74: 0 | AUE74: 0 | AUF74: =AUF68 + AUF69 + AUF70 + (AUF71 + AUF72 + AUF73) * 0.5 -> 0 | AUG74: 0 | AUH74: 0 | AUI74: 0 | AUJ74: 0 | AUK74: 0 | AUL74: 0 | AUM74: 0 | AUN74: 0 | AUO74: 0 | AUP74: 0 | AUQ74: 0 | AUR74: 0 | AUS74: 0 | AUT74: 0 | AUU74: 0 | AUV74: 0 | AUW74: 0 | AUX74: 0 | AUY74: 0 | AUZ74: 0 | AVA74: 0 | AVB74: 0 | AVC74: 0 | AVD74: 0 | AVE74: 0 | AVF74: 0 | AVG74: 0 | AVH74: 0 | AVI74: 0 | AVJ74: 0 | AVK74: 0 | AVL74: 0 | AVM74: 0 | AVN74: 0 | AVO74: 0 | AVP74: 0 | AVQ74: 0 | AVR74: 0 | AVS74: 0 | AVT74: 0 | AVU74: 0 | AVV74: 0 | AVW74: 0 | AVX74: 0 | AVY74: 0 | AVZ74: 0 | AWA74: 0 | AWB74: 0 | AWC74: 0 | AWD74: 0 | AWE74: 0 | AWF74: 0 | AWG74: 0 | AWH74: 0 | AWI74: 0 | AWJ74: 0 | AWK74: 0 | AWL74: 0 | AWM74: 0 | AWN74: 0 | AWO74: 0 | AWP74: 0 | AWQ74: 0 | AWR74: =AWR68 + AWR69 + AWR70 + (AWR71 + AWR72 + AWR73) * 0.5 -> 0 | AWS74: 0 | AWT74: 0 | AWU74: 0 | AWV74: 0 | AWW74: 0 | AWX74: 0 | AWY74: 0 | AWZ74: 0 | AXA74: 0 | AXB74: 0 | AXC74: 0 | AXD74: 0 | AXE74: 0 | AXF74: 0 | AXG74: 0 | AXH74: 0 | AXI74: 0 | AXJ74: 0 | AXK74: 0 | AXL74: 0 | AXM74: 0 | AXN74: 0 | AXO74: 0 | AXP74: 0 | AXQ74: 0 | AXR74: 0 | AXS74: 0 | AXT74: 0 | AXU74: 0 | AXV74: 0 | AXW74: 0 | AXX74: 0 | AXY74: 0 | AXZ74: 0 | AYA74: 0 | AYB74: 0 | AYC74: 0 | AYD74: 0 | AYE74: 0 | AYF74: 0 | AYG74: 0 | AYH74: 0 | AYI74: 0 | AYJ74: 0 | AYK74: 0 | AYL74: 0 | AYM74: 0 | AYN74: 0 | AYO74: 0 | AYP74: 0 | AYQ74: 0 | AYR74: 0 | AYS74: 0 | AYT74: 0 | AYU74: 0 | AYV74: 0 | AYW74: 0 | AYX74: 0 | AYY74: 0 | AYZ74: 0 | AZA74: 0 | AZB74: 0 | AZC74: 0 | AZD74: =AZD68 + AZD69 + AZD70 + (AZD71 + AZD72 + AZD73) * 0.5 -> 0 | AZE74: 0 | AZF74: 0 | AZG74: 0 | AZH74: 0 | AZI74: 0 | AZJ74: 0 | AZK74: 0 | AZL74: 0 | AZM74: 0 | AZN74: 0 | AZO74: 0 | AZP74: 0 | AZQ74: 0 | AZR74: 0 | AZS74: 0 | AZT74: 0 | AZU74: 0 | AZV74: 0 | AZW74: 0 | AZX74: 0 | AZY74: 0 | AZZ74: 0 | BAA74: 0 | BAB74: 0 | BAC74: 0 | BAD74: 0 | BAE74: 0 | BAF74: 0 | BAG74: 0 | BAH74: 0 | BAI74: 0 | BAJ74: 0 | BAK74: 0 | BAL74: 0 | BAM74: 0 | BAN74: 0 | BAO74: 0 | BAP74: 0 | BAQ74: 0 | BAR74: 0 | BAS74: 0 | BAT74: 0 | BAU74: 0 | BAV74: 0 | BAW74: 0 | BAX74: 0 | BAY74: 0 | BAZ74: 0 | BBA74: 0 | BBB74: 0 | BBC74: 0 | BBD74: 0 | BBE74: 0 | BBF74: 0 | BBG74: 0 | BBH74: 0 | BBI74: 0 | BBJ74: 0 | BBK74: 0 | BBL74: 0 | BBM74: 0 | BBN74: 0 | BBO74: 0 | BBP74: =BBP68 + BBP69 + BBP70 + (BBP71 + BBP72 + BBP73) * 0.5 -> 0 | BBQ74: 0 | BBR74: 0 | BBS74: 0 | BBT74: 0 | BBU74: 0 | BBV74: 0 | BBW74: 0 | BBX74: 0 | BBY74: 0 | BBZ74: 0 | BCA74: 0 | BCB74: 0 | BCC74: 0 | BCD74: 0 | BCE74: 0 | BCF74: 0 | BCG74: 0 | BCH74: 0 | BCI74: 0 | BCJ74: 0 | BCK74: 0 | BCL74: 0 | BCM74: 0 | BCN74: 0 | BCO74: 0 | BCP74: 0 | BCQ74: 0 | BCR74: 0 | BCS74: 0 | BCT74: 0 | BCU74: 0 | BCV74: 0 | BCW74: 0 | BCX74: 0 | BCY74: 0 | BCZ74: 0 | BDA74: 0 | BDB74: 0 | BDC74: 0 | BDD74: 0 | BDE74: 0 | BDF74: 0 | BDG74: 0 | BDH74: 0 | BDI74: 0 | BDJ74: 0 | BDK74: 0 | BDL74: 0 | BDM74: 0 | BDN74: 0 | BDO74: 0 | BDP74: 0 | BDQ74: 0 | BDR74: 0 | BDS74: 0 | BDT74: 0 | BDU74: 0 | BDV74: 0 | BDW74: 0 | BDX74: 0 | BDY74: 0 | BDZ74: 0 | BEA74: 0 | BEB74: =BEB68 + BEB69 + BEB70 + (BEB71 + BEB72 + BEB73) * 0.5 -> 0 | BEC74: 0 | BED74: 0 | BEE74: 0 | BEF74: 0 | BEG74: 0 | BEH74: 0 | BEI74: 0 | BEJ74: 0 | BEK74: 0 | BEL74: 0 | BEM74: 0 | BEN74: 0 | BEO74: 0 | BEP74: 0 | BEQ74: 0 | BER74: 0 | BES74: 0 | BET74: 0 | BEU74: 0 | BEV74: 0 | BEW74: 0 | BEX74: 0 | BEY74: 0 | BEZ74: 0 | BFA74: 0 | BFB74: 0 | BFC74: 0 | BFD74: 0 | BFE74: 0 | BFF74: 0 | BFG74: 0 | BFH74: 0 | BFI74: 0 | BFJ74: 0 | BFK74: 0 | BFL74: 0 | BFM74: 0 | BFN74: 0 | BFO74: 0 | BFP74: 0 | BFQ74: 0 | BFR74: 0 | BFS74: 0 | BFT74: 0 | BFU74: 0 | BFV74: 0 | BFW74: 0 | BFX74: 0 | BFY74: 0 | BFZ74: 0 | BGA74: 0 | BGB74: 0 | BGC74: 0 | BGD74: 0 | BGE74: 0 | BGF74: 0 | BGG74: 0 | BGH74: 0 | BGI74: 0 | BGJ74: 0 | BGK74: 0 | BGL74: 0 | BGM74: 0 | BGN74: =BGN68 + BGN69 + BGN70 + (BGN71 + BGN72 + BGN73) * 0.5 -> 0 | BGO74: 0 | BGP74: 0 | BGQ74: 0 | BGR74: 0 | BGS74: 0 | BGT74: 0 | BGU74: 0 | BGV74: 0 | BGW74: 0 | BGX74: 0 | BGY74: 0 | BGZ74: 0 | BHA74: 0 | BHB74: 0 | BHC74: 0 | BHD74: 0 | BHE74: 0 | BHF74: 0 | BHG74: 0 | BHH74: 0 | BHI74: 0 | BHJ74: 0 | BHK74: 0 | BHL74: 0 | BHM74: 0 | BHN74: 0 | BHO74: 0 | BHP74: 0 | BHQ74: 0 | BHR74: 0 | BHS74: 0 | BHT74: 0 | BHU74: 0 | BHV74: 0 | BHW74: 0 | BHX74: 0 | BHY74: 0 | BHZ74: 0 | BIA74: 0 | BIB74: 0 | BIC74: 0 | BID74: 0 | BIE74: 0 | BIF74: 0 | BIG74: 0 | BIH74: 0 | BII74: 0 | BIJ74: 0 | BIK74: 0 | BIL74: 0 | BIM74: 0 | BIN74: 0 | BIO74: 0 | BIP74: 0 | BIQ74: 0 | BIR74: 0 | BIS74: 0 | BIT74: 0 | BIU74: 0 | BIV74: 0 | BIW74: 0 | BIX74: 0 | BIY74: 0 | BIZ74: =BIZ68 + BIZ69 + BIZ70 + (BIZ71 + BIZ72 + BIZ73) * 0.5 -> 0 | BJA74: 0 | BJB74: 0 | BJC74: 0 | BJD74: 0 | BJE74: 0 | BJF74: 0 | BJG74: 0 | BJH74: 0 | BJI74: 0 | BJJ74: 0 | BJK74: 0 | BJL74: 0 | BJM74: 0 | BJN74: 0 | BJO74: 0 | BJP74: 0 | BJQ74: 0 | BJR74: 0 | BJS74: 0 | BJT74: 0 | BJU74: 0 | BJV74: 0 | BJW74: 0 | BJX74: 0 | BJY74: 0 | BJZ74: 0 | BKA74: 0 | BKB74: 0 | BKC74: 0 | BKD74: 0 | BKE74: 0 | BKF74: 0 | BKG74: 0 | BKH74: 0 | BKI74: 0 | BKJ74: 0 | BKK74: 0 | BKL74: 0 | BKM74: 0 | BKN74: 0 | BKO74: 0 | BKP74: 0 | BKQ74: 0 | BKR74: 0 | BKS74: 0 | BKT74: 0 | BKU74: 0 | BKV74: 0 | BKW74: 0 | BKX74: 0 | BKY74: 0 | BKZ74: 0 | BLA74: 0 | BLB74: 0 | BLC74: 0 | BLD74: 0 | BLE74: 0 | BLF74: 0 | BLG74: 0 | BLH74: 0 | BLI74: 0 | BLJ74: 0 | BLK74: 0 | BLL74: =BLL68 + BLL69 + BLL70 + (BLL71 + BLL72 + BLL73) * 0.5 -> 0 | BLM74: 0 | BLN74: 0 | BLO74: 0 | BLP74: 0 | BLQ74: 0 | BLR74: 0 | BLS74: 0 | BLT74: 0 | BLU74: 0 | BLV74: 0 | BLW74: 0 | BLX74: 0 | BLY74: 0 | BLZ74: 0 | BMA74: 0 | BMB74: 0 | BMC74: 0 | BMD74: 0 | BME74: 0 | BMF74: 0 | BMG74: 0 | BMH74: 0 | BMI74: 0 | BMJ74: 0 | BMK74: 0 | BML74: 0 | BMM74: 0 | BMN74: 0 | BMO74: 0 | BMP74: 0 | BMQ74: 0 | BMR74: 0 | BMS74: 0 | BMT74: 0 | BMU74: 0 | BMV74: 0 | BMW74: 0 | BMX74: 0 | BMY74: 0 | BMZ74: 0 | BNA74: 0 | BNB74: 0 | BNC74: 0 | BND74: 0 | BNE74: 0 | BNF74: 0 | BNG74: 0 | BNH74: 0 | BNI74: 0 | BNJ74: 0 | BNK74: 0 | BNL74: 0 | BNM74: 0 | BNN74: 0 | BNO74: 0 | BNP74: 0 | BNQ74: 0 | BNR74: 0 | BNS74: 0 | BNT74: 0 | BNU74: 0 | BNV74: 0 | BNW74: 0 | BNX74: =BNX68 + BNX69 + BNX70 + (BNX71 + BNX72 + BNX73) * 0.5 -> 0 | BNY74: 0 | BNZ74: 0 | BOA74: 0 | BOB74: 0 | BOC74: 0 | BOD74: 0 | BOE74: 0 | BOF74: 0 | BOG74: 0 | BOH74: 0 | BOI74: 0 | BOJ74: 0 | BOK74: 0 | BOL74: 0 | BOM74: 0 | BON74: 0 | BOO74: 0 | BOP74: 0 | BOQ74: 0 | BOR74: 0 | BOS74: 0 | BOT74: 0 | BOU74: 0 | BOV74: 0 | BOW74: 0 | BOX74: 0 | BOY74: 0 | BOZ74: 0 | BPA74: 0 | BPB74: 0 | BPC74: 0 | BPD74: 0 | BPE74: 0 | BPF74: 0 | BPG74: 0 | BPH74: 0 | BPI74: 0 | BPJ74: 0 | BPK74: 0 | BPL74: 0 | BPM74: 0 | BPN74: 0 | BPO74: 0 | BPP74: 0 | BPQ74: 0 | BPR74: 0 | BPS74: 0 | BPT74: 0 | BPU74: 0 | BPV74: 0 | BPW74: 0 | BPX74: 0 | BPY74: 0 | BPZ74: 0 | BQA74: 0 | BQB74: 0 | BQC74: 0 | BQD74: 0 | BQE74: 0 | BQF74: 0 | BQG74: 0 | BQH74: 0 | BQI74: 0 | BQJ74: =BQJ68 + BQJ69 + BQJ70 + (BQJ71 + BQJ72 + BQJ73) * 0.5 -> 0 | BQK74: 0 | BQL74: 0 | BQM74: 0 | BQN74: 0 | BQO74: 0 | BQP74: 0 | BQQ74: 0 | BQR74: 0 | BQS74: 0 | BQT74: 0 | BQU74: 0 | BQV74: 0 | BQW74: 0 | BQX74: 0 | BQY74: 0 | BQZ74: 0 | BRA74: 0 | BRB74: 0 | BRC74: 0 | BRD74: 0 | BRE74: 0 | BRF74: 0 | BRG74: 0 | BRH74: 0 | BRI74: 0 | BRJ74: 0 | BRK74: 0 | BRL74: 0 | BRM74: 0 | BRN74: 0 | BRO74: 0 | BRP74: 0 | BRQ74: 0 | BRR74: 0 | BRS74: 0 | BRT74: 0 | BRU74: 0 | BRV74: 0 | BRW74: 0 | BRX74: 0 | BRY74: 0 | BRZ74: 0 | BSA74: 0 | BSB74: 0 | BSC74: 0 | BSD74: 0 | BSE74: 0 | BSF74: 0 | BSG74: 0 | BSH74: 0 | BSI74: 0 | BSJ74: 0 | BSK74: 0 | BSL74: 0 | BSM74: 0 | BSN74: 0 | BSO74: 0 | BSP74: 0 | BSQ74: 0 | BSR74: 0 | BSS74: 0 | BST74: 0 | BSU74: 0 | BSV74: =BSV68 + BSV69 + BSV70 + (BSV71 + BSV72 + BSV73) * 0.5 -> 0 | BSW74: 0 | BSX74: 0 | BSY74: 0 | BSZ74: 0 | BTA74: 0 | BTB74: 0 | BTC74: 0 | BTD74: 0 | BTE74: 0 | BTF74: 0 | BTG74: 0 | BTH74: 0 | BTI74: 0 | BTJ74: 0 | BTK74: 0 | BTL74: 0 | BTM74: 0 | BTN74: 0 | BTO74: 0 | BTP74: 0 | BTQ74: 0 | BTR74: 0 | BTS74: 0 | BTT74: 0 | BTU74: 0 | BTV74: 0 | BTW74: 0 | BTX74: 0 | BTY74: 0 | BTZ74: 0 | BUA74: 0 | BUB74: 0 | BUC74: 0 | BUD74: 0 | BUE74: 0 | BUF74: 0 | BUG74: 0 | BUH74: 0 | BUI74: 0 | BUJ74: 0 | BUK74: 0 | BUL74: 0 | BUM74: 0 | BUN74: 0 | BUO74: 0 | BUP74: 0 | BUQ74: 0 | BUR74: 0 | BUS74: 0 | BUT74: 0 | BUU74: 0 | BUV74: 0 | BUW74: 0 | BUX74: 0 | BUY74: 0 | BUZ74: 0 | BVA74: 0 | BVB74: 0 | BVC74: 0 | BVD74: 0 | BVE74: 0 | BVF74: 0 | BVG74: 0 | BVH74: =BVH68 + BVH69 + BVH70 + (BVH71 + BVH72 + BVH73) * 0.5 -> 0 | BVI74: 0 | BVJ74: 0 | BVK74: 0 | BVL74: 0 | BVM74: 0 | BVN74: 0 | BVO74: 0 | BVP74: 0 | BVQ74: 0 | BVR74: 0 | BVS74: 0 | BVT74: 0 | BVU74: 0 | BVV74: 0 | BVW74: 0 | BVX74: 0 | BVY74: 0 | BVZ74: 0 | BWA74: 0 | BWB74: 0 | BWC74: 0 | BWD74: 0 | BWE74: 0 | BWF74: 0 | BWG74: 0 | BWH74: 0 | BWI74: 0 | BWJ74: 0 | BWK74: 0 | BWL74: 0 | BWM74: 0 | BWN74: 0 | BWO74: 0 | BWP74: 0 | BWQ74: 0 | BWR74: 0 | BWS74: 0 | BWT74: 0 | BWU74: 0 | BWV74: 0 | BWW74: 0 | BWX74: 0 | BWY74: 0 | BWZ74: 0 | BXA74: 0 | BXB74: 0 | BXC74: 0 | BXD74: 0 | BXE74: 0 | BXF74: 0 | BXG74: 0 | BXH74: 0 | BXI74: 0 | BXJ74: 0 | BXK74: 0 | BXL74: 0 | BXM74: 0 | BXN74: 0 | BXO74: 0 | BXP74: 0 | BXQ74: 0 | BXR74: 0 | BXS74: 0 | BXT74: =BXT68 + BXT69 + BXT70 + (BXT71 + BXT72 + BXT73) * 0.5 -> 0 | BXU74: 0 | BXV74: 0 | BXW74: 0 | BXX74: 0 | BXY74: 0 | BXZ74: 0 | BYA74: 0 | BYB74: 0 | BYC74: 0 | BYD74: 0 | BYE74: 0 | BYF74: 0 | BYG74: 0 | BYH74: 0 | BYI74: 0 | BYJ74: 0 | BYK74: 0 | BYL74: 0 | BYM74: 0 | BYN74: 0 | BYO74: 0 | BYP74: 0 | BYQ74: 0 | BYR74: 0 | BYS74: 0 | BYT74: 0 | BYU74: 0 | BYV74: 0 | BYW74: 0 | BYX74: 0 | BYY74: 0 | BYZ74: 0 | BZA74: 0 | BZB74: 0 | BZC74: 0 | BZD74: 0 | BZE74: 0 | BZF74: 0 | BZG74: 0 | BZH74: 0 | BZI74: 0 | BZJ74: 0 | BZK74: 0 | BZL74: 0 | BZM74: 0 | BZN74: 0 | BZO74: 0 | BZP74: 0 | BZQ74: 0 | BZR74: 0 | BZS74: 0 | BZT74: 0 | BZU74: 0 | BZV74: 0 | BZW74: 0 | BZX74: 0 | BZY74: 0 | BZZ74: 0 | CAA74: 0 | CAB74: 0 | CAC74: 0 | CAD74: 0 | CAE74: 0 | CAF74: =CAF68 + CAF69 + CAF70 + (CAF71 + CAF72 + CAF73) * 0.5 -> 0 | CAG74: 0 | CAH74: 0 | CAI74: 0 | CAJ74: 0 | CAK74: 0 | CAL74: 0 | CAM74: 0 | CAN74: 0 | CAO74: 0 | CAP74: 0 | CAQ74: 0 | CAR74: 0 | CAS74: 0 | CAT74: 0 | CAU74: 0 | CAV74: 0 | CAW74: 0 | CAX74: 0 | CAY74: 0 | CAZ74: 0 | CBA74: 0 | CBB74: 0 | CBC74: 0 | CBD74: 0 | CBE74: 0 | CBF74: 0 | CBG74: 0 | CBH74: 0 | CBI74: 0 | CBJ74: 0 | CBK74: 0 | CBL74: 0 | CBM74: 0 | CBN74: 0 | CBO74: 0 | CBP74: 0 | CBQ74: 0 | CBR74: 0 | CBS74: 0 | CBT74: 0 | CBU74: 0 | CBV74: 0 | CBW74: 0 | CBX74: 0 | CBY74: 0 | CBZ74: 0 | CCA74: 0 | CCB74: 0 | CCC74: 0 | CCD74: 0 | CCE74: 0 | CCF74: 0 | CCG74: 0 | CCH74: 0 | CCI74: 0 | CCJ74: 0 | CCK74: 0 | CCL74: 0 | CCM74: 0 | CCN74: 0 | CCO74: 0 | CCP74: 0 | CCQ74: 0 | CCR74: =CCR68 + CCR69 + CCR70 + (CCR71 + CCR72 + CCR73) * 0.5 -> 0 | CCS74: 0 | CCT74: 0 | CCU74: 0 | CCV74: 0 | CCW74: 0 | CCX74: 0 | CCY74: 0 | CCZ74: 0 | CDA74: 0 | CDB74: 0 | CDC74: 0 | CDD74: 0 | CDE74: 0 | CDF74: 0 | CDG74: 0 | CDH74: 0 | CDI74: 0 | CDJ74: 0 | CDK74: 0 | CDL74: 0 | CDM74: 0 | CDN74: 0 | CDO74: 0 | CDP74: 0 | CDQ74: 0 | CDR74: 0 | CDS74: 0 | CDT74: 0 | CDU74: 0 | CDV74: 0 | CDW74: 0 | CDX74: 0 | CDY74: 0 | CDZ74: 0 | CEA74: 0 | CEB74: 0 | CEC74: 0 | CED74: 0 | CEE74: 0 | CEF74: 0 | CEG74: 0 | CEH74: 0 | CEI74: 0 | CEJ74: 0 | CEK74: 0 | CEL74: 0 | CEM74: 0 | CEN74: 0 | CEO74: 0 | CEP74: 0 | CEQ74: 0 | CER74: 0 | CES74: 0 | CET74: 0 | CEU74: 0 | CEV74: 0 | CEW74: 0 | CEX74: 0 | CEY74: 0 | CEZ74: 0 | CFA74: 0 | CFB74: 0 | CFC74: 0 | CFD74: =CFD68 + CFD69 + CFD70 + (CFD71 + CFD72 + CFD73) * 0.5 -> 0 | CFE74: 0 | CFF74: 0 | CFG74: 0 | CFH74: 0 | CFI74: 0 | CFJ74: 0 | CFK74: 0 | CFL74: 0 | CFM74: 0 | CFN74: 0 | CFO74: 0 | CFP74: 0 | CFQ74: 0 | CFR74: 0 | CFS74: 0 | CFT74: 0 | CFU74: 0 | CFV74: 0 | CFW74: 0 | CFX74: 0 | CFY74: 0 | CFZ74: 0 | CGA74: 0 | CGB74: 0 | CGC74: 0 | CGD74: 0 | CGE74: 0 | CGF74: 0 | CGG74: 0 | CGH74: 0 | CGI74: 0 | CGJ74: 0 | CGK74: 0 | CGL74: 0 | CGM74: 0 | CGN74: 0 | CGO74: 0 | CGP74: 0 | CGQ74: 0 | CGR74: 0 | CGS74: 0 | CGT74: 0 | CGU74: 0 | CGV74: 0 | CGW74: 0 | CGX74: 0 | CGY74: 0 | CGZ74: 0 | CHA74: 0 | CHB74: 0 | CHC74: 0 | CHD74: 0 | CHE74: 0 | CHF74: 0 | CHG74: 0 | CHH74: 0 | CHI74: 0 | CHJ74: 0 | CHK74: 0 | CHL74: 0 | CHM74: 0 | CHN74: 0 | CHO74: 0 | CHP74: =CHP68 + CHP69 + CHP70 + (CHP71 + CHP72 + CHP73) * 0.5 -> 0 | CHQ74: 0 | CHR74: 0 | CHS74: 0 | CHT74: 0 | CHU74: 0 | CHV74: 0 | CHW74: 0 | CHX74: 0 | CHY74: 0 | CHZ74: 0 | CIA74: 0 | CIB74: 0 | CIC74: 0 | CID74: 0 | CIE74: 0 | CIF74: 0 | CIG74: 0 | CIH74: 0 | CII74: 0 | CIJ74: 0 | CIK74: 0 | CIL74: 0 | CIM74: 0 | CIN74: 0 | CIO74: 0 | CIP74: 0 | CIQ74: 0 | CIR74: 0 | CIS74: 0 | CIT74: 0 | CIU74: 0 | CIV74: 0 | CIW74: 0 | CIX74: 0 | CIY74: 0 | CIZ74: 0 | CJA74: 0 | CJB74: 0 | CJC74: 0 | CJD74: 0 | CJE74: 0 | CJF74: 0 | CJG74: 0 | CJH74: 0 | CJI74: 0 | CJJ74: 0 | CJK74: 0 | CJL74: 0 | CJM74: 0 | CJN74: 0 | CJO74: 0 | CJP74: 0 | CJQ74: 0 | CJR74: 0 | CJS74: 0 | CJT74: 0 | CJU74: 0 | CJV74: 0 | CJW74: 0 | CJX74: 0 | CJY74: 0 | CJZ74: 0 | CKA74: 0 | CKB74: =CKB68 + CKB69 + CKB70 + (CKB71 + CKB72 + CKB73) * 0.5 -> 0 | CKC74: 0 | CKD74: 0 | CKE74: 0 | CKF74: 0 | CKG74: 0 | CKH74: 0 | CKI74: 0 | CKJ74: 0 | CKK74: 0 | CKL74: 0 | CKM74: 0 | CKN74: 0 | CKO74: 0 | CKP74: 0 | CKQ74: 0 | CKR74: 0 | CKS74: 0 | CKT74: 0 | CKU74: 0 | CKV74: 0 | CKW74: 0 | CKX74: 0 | CKY74: 0 | CKZ74: 0 | CLA74: 0 | CLB74: 0 | CLC74: 0 | CLD74: 0 | CLE74: 0 | CLF74: 0 | CLG74: 0 | CLH74: 0 | CLI74: 0 | CLJ74: 0 | CLK74: 0 | CLL74: 0 | CLM74: 0 | CLN74: 0 | CLO74: 0 | CLP74: 0 | CLQ74: 0 | CLR74: 0 | CLS74: 0 | CLT74: 0 | CLU74: 0 | CLV74: 0 | CLW74: 0 | CLX74: 0 | CLY74: 0 | CLZ74: 0 | CMA74: 0 | CMB74: 0 | CMC74: 0 | CMD74: 0 | CME74: 0 | CMF74: 0 | CMG74: 0 | CMH74: 0 | CMI74: 0 | CMJ74: 0 | CMK74: 0 | CML74: 0 | CMM74: 0 | CMN74: =CMN68 + CMN69 + CMN70 + (CMN71 + CMN72 + CMN73) * 0.5 -> 0 | CMO74: 0 | CMP74: 0 | CMQ74: 0 | CMR74: 0 | CMS74: 0 | CMT74: 0 | CMU74: 0 | CMV74: 0 | CMW74: 0 | CMX74: 0 | CMY74: 0 | CMZ74: 0 | CNA74: 0 | CNB74: 0 | CNC74: 0 | CND74: 0 | CNE74: 0 | CNF74: 0 | CNG74: 0 | CNH74: 0 | CNI74: 0 | CNJ74: 0 | CNK74: 0 | CNL74: 0 | CNM74: 0 | CNN74: 0 | CNO74: 0 | CNP74: 0 | CNQ74: 0 | CNR74: 0 | CNS74: 0 | CNT74: 0 | CNU74: 0 | CNV74: 0 | CNW74: 0 | CNX74: 0 | CNY74: 0 | CNZ74: 0 | COA74: 0 | COB74: 0 | COC74: 0 | COD74: 0 | COE74: 0 | COF74: 0 | COG74: 0 | COH74: 0 | COI74: 0 | COJ74: 0 | COK74: 0 | COL74: 0 | COM74: 0 | CON74: 0 | COO74: 0 | COP74: 0 | COQ74: 0 | COR74: 0 | COS74: 0 | COT74: 0 | COU74: 0 | COV74: 0 | COW74: 0 | COX74: 0 | COY74: 0 | COZ74: =COZ68 + COZ69 + COZ70 + (COZ71 + COZ72 + COZ73) * 0.5 -> 0 | CPA74: 0 | CPB74: 0 | CPC74: 0 | CPD74: 0 | CPE74: 0 | CPF74: 0 | CPG74: 0 | CPH74: 0 | CPI74: 0 | CPJ74: 0 | CPK74: 0 | CPL74: 0 | CPM74: 0 | CPN74: 0 | CPO74: 0 | CPP74: 0 | CPQ74: 0 | CPR74: 0 | CPS74: 0 | CPT74: 0 | CPU74: 0 | CPV74: 0 | CPW74: 0 | CPX74: 0 | CPY74: 0 | CPZ74: 0 | CQA74: 0 | CQB74: 0 | CQC74: 0 | CQD74: 0 | CQE74: 0 | CQF74: 0 | CQG74: 0 | CQH74: 0 | CQI74: 0 | CQJ74: 0 | CQK74: 0 | CQL74: 0 | CQM74: 0 | CQN74: 0 | CQO74: 0 | CQP74: 0 | CQQ74: 0 | CQR74: 0 | CQS74: 0 | CQT74: 0 | CQU74: 0 | CQV74: 0 | CQW74: 0 | CQX74: 0 | CQY74: 0 | CQZ74: 0 | CRA74: 0 | CRB74: 0 | CRC74: 0 | CRD74: 0 | CRE74: 0 | CRF74: 0 | CRG74: 0 | CRH74: 0 | CRI74: 0 | CRJ74: 0 | CRK74: 0 | CRL74: =CRL68 + CRL69 + CRL70 + (CRL71 + CRL72 + CRL73) * 0.5 -> 0 | CRM74: 0 | CRN74: 0 | CRO74: 0 | CRP74: 0 | CRQ74: 0 | CRR74: 0 | CRS74: 0 | CRT74: 0 | CRU74: 0 | CRV74: 0 | CRW74: 0 | CRX74: 0 | CRY74: 0 | CRZ74: 0 | CSA74: 0 | CSB74: 0 | CSC74: 0 | CSD74: 0 | CSE74: 0 | CSF74: 0 | CSG74: 0 | CSH74: 0 | CSI74: 0 | CSJ74: 0 | CSK74: 0 | CSL74: 0 | CSM74: 0 | CSN74: 0 | CSO74: 0 | CSP74: 0 | CSQ74: 0 | CSR74: 0 | CSS74: 0 | CST74: 0 | CSU74: 0 | CSV74: 0 | CSW74: 0 | CSX74: 0 | CSY74: 0 | CSZ74: 0 | CTA74: 0 | CTB74: 0 | CTC74: 0 | CTD74: 0 | CTE74: 0 | CTF74: 0 | CTG74: 0 | CTH74: 0 | CTI74: 0 | CTJ74: 0 | CTK74: 0 | CTL74: 0 | CTM74: 0 | CTN74: 0 | CTO74: 0 | CTP74: 0 | CTQ74: 0 | CTR74: 0 | CTS74: 0 | CTT74: 0 | CTU74: 0 | CTV74: 0 | CTW74: 0 | CTX74: =CTX68 + CTX69 + CTX70 + (CTX71 + CTX72 + CTX73) * 0.5 -> 0 | CTY74: 0 | CTZ74: 0 | CUA74: 0 | CUB74: 0 | CUC74: 0 | CUD74: 0 | CUE74: 0 | CUF74: 0 | CUG74: 0 | CUH74: 0 | CUI74: 0 | CUJ74: 0 | CUK74: 0 | CUL74: 0 | CUM74: 0 | CUN74: 0 | CUO74: 0 | CUP74: 0 | CUQ74: 0 | CUR74: 0 | CUS74: 0 | CUT74: 0 | CUU74: 0 | CUV74: 0 | CUW74: 0 | CUX74: 0 | CUY74: 0 | CUZ74: 0 | CVA74: 0 | CVB74: 0 | CVC74: 0 | CVD74: 0 | CVE74: 0 | CVF74: 0 | CVG74: 0 | CVH74: 0 | CVI74: 0 | CVJ74: 0 | CVK74: 0 | CVL74: 0 | CVM74: 0 | CVN74: 0 | CVO74: 0 | CVP74: 0 | CVQ74: 0 | CVR74: 0 | CVS74: 0 | CVT74: 0 | CVU74: 0 | CVV74: 0 | CVW74: 0 | CVX74: 0 | CVY74: 0 | CVZ74: 0 | CWA74: 0 | CWB74: 0 | CWC74: 0 | CWD74: 0 | CWE74: 0 | CWF74: 0 | CWG74: 0 | CWH74: 0 | CWI74: 0 | CWJ74: =CWJ68 + CWJ69 + CWJ70 + (CWJ71 + CWJ72 + CWJ73) * 0.5 -> 0 | CWK74: 0 | CWL74: 0 | CWM74: 0 | CWN74: 0 | CWO74: 0 | CWP74: 0 | CWQ74: 0 | CWR74: 0 | CWS74: 0 | CWT74: 0 | CWU74: 0 | CWV74: 0 | CWW74: 0 | CWX74: 0 | CWY74: 0 | CWZ74: 0 | CXA74: 0 | CXB74: 0 | CXC74: 0 | CXD74: 0 | CXE74: 0 | CXF74: 0 | CXG74: 0 | CXH74: 0 | CXI74: 0 | CXJ74: 0 | CXK74: 0 | CXL74: 0 | CXM74: 0 | CXN74: 0 | CXO74: 0 | CXP74: 0 | CXQ74: 0 | CXR74: 0 | CXS74: 0 | CXT74: 0 | CXU74: 0 | CXV74: 0 | CXW74: 0 | CXX74: 0 | CXY74: 0 | CXZ74: 0 | CYA74: 0 | CYB74: 0 | CYC74: 0 | CYD74: 0 | CYE74: 0 | CYF74: 0 | CYG74: 0 | CYH74: 0 | CYI74: 0 | CYJ74: 0 | CYK74: 0 | CYL74: 0 | CYM74: 0 | CYN74: 0 | CYO74: 0 | CYP74: 0 | CYQ74: 0 | CYR74: 0 | CYS74: 0 | CYT74: 0 | CYU74: 0 | CYV74: =CYV68 + CYV69 + CYV70 + (CYV71 + CYV72 + CYV73) * 0.5 -> 0 | CYW74: 0 | CYX74: 0 | CYY74: 0 | CYZ74: 0 | CZA74: 0 | CZB74: 0 | CZC74: 0 | CZD74: 0 | CZE74: 0 | CZF74: 0 | CZG74: 0 | CZH74: 0 | CZI74: 0 | CZJ74: 0 | CZK74: 0 | CZL74: 0 | CZM74: 0 | CZN74: 0 | CZO74: 0 | CZP74: 0 | CZQ74: 0 | CZR74: 0 | CZS74: 0 | CZT74: 0 | CZU74: 0 | CZV74: 0 | CZW74: 0 | CZX74: 0 | CZY74: 0 | CZZ74: 0 | DAA74: 0 | DAB74: 0 | DAC74: 0 | DAD74: 0 | DAE74: 0 | DAF74: 0 | DAG74: 0 | DAH74: 0 | DAI74: 0 | DAJ74: 0 | DAK74: 0 | DAL74: 0 | DAM74: 0 | DAN74: 0 | DAO74: 0 | DAP74: 0 | DAQ74: 0 | DAR74: 0 | DAS74: 0 | DAT74: 0 | DAU74: 0 | DAV74: 0 | DAW74: 0 | DAX74: 0 | DAY74: 0 | DAZ74: 0 | DBA74: 0 | DBB74: 0 | DBC74: 0 | DBD74: 0 | DBE74: 0 | DBF74: 0 | DBG74: 0 | DBH74: =DBH68 + DBH69 + DBH70 + (DBH71 + DBH72 + DBH73) * 0.5 -> 0 | DBI74: 0 | DBJ74: 0 | DBK74: 0 | DBL74: 0 | DBM74: 0 | DBN74: 0 | DBO74: 0 | DBP74: 0 | DBQ74: 0 | DBR74: 0 | DBS74: 0 | DBT74: 0 | DBU74: 0 | DBV74: 0 | DBW74: 0 | DBX74: 0 | DBY74: 0 | DBZ74: 0 | DCA74: 0 | DCB74: 0 | DCC74: 0 | DCD74: 0 | DCE74: 0 | DCF74: 0 | DCG74: 0 | DCH74: 0 | DCI74: 0 | DCJ74: 0 | DCK74: 0 | DCL74: 0 | DCM74: 0 | DCN74: 0 | DCO74: 0 | DCP74: 0 | DCQ74: 0 | DCR74: 0 | DCS74: 0 | DCT74: 0 | DCU74: 0 | DCV74: 0 | DCW74: 0 | DCX74: 0 | DCY74: 0 | DCZ74: 0 | DDA74: 0 | DDB74: 0 | DDC74: 0 | DDD74: 0 | DDE74: 0 | DDF74: 0 | DDG74: 0 | DDH74: 0 | DDI74: 0 | DDJ74: 0 | DDK74: 0 | DDL74: 0 | DDM74: 0 | DDN74: 0 | DDO74: 0 | DDP74: 0 | DDQ74: 0 | DDR74: 0 | DDS74: 0 | DDT74: =DDT68 + DDT69 + DDT70 + (DDT71 + DDT72 + DDT73) * 0.5 -> 0 | DDU74: 0 | DDV74: 0 | DDW74: 0 | DDX74: 0 | DDY74: 0 | DDZ74: 0 | DEA74: 0 | DEB74: 0 | DEC74: 0 | DED74: 0 | DEE74: 0 | DEF74: 0 | DEG74: 0 | DEH74: 0 | DEI74: 0 | DEJ74: 0 | DEK74: 0 | DEL74: 0 | DEM74: 0 | DEN74: 0 | DEO74: 0 | DEP74: 0 | DEQ74: 0 | DER74: 0 | DES74: 0 | DET74: 0 | DEU74: 0 | DEV74: 0 | DEW74: 0 | DEX74: 0 | DEY74: 0 | DEZ74: 0 | DFA74: 0 | DFB74: 0 | DFC74: 0 | DFD74: 0 | DFE74: 0 | DFF74: 0 | DFG74: 0 | DFH74: 0 | DFI74: 0 | DFJ74: 0 | DFK74: 0 | DFL74: 0 | DFM74: 0 | DFN74: 0 | DFO74: 0 | DFP74: 0 | DFQ74: 0 | DFR74: 0 | DFS74: 0 | DFT74: 0 | DFU74: 0 | DFV74: 0 | DFW74: 0 | DFX74: 0 | DFY74: 0 | DFZ74: 0 | DGA74: 0 | DGB74: 0 | DGC74: 0 | DGD74: 0 | DGE74: 0 | DGF74: =DGF68 + DGF69 + DGF70 + (DGF71 + DGF72 + DGF73) * 0.5 -> 0 | DGG74: 0 | DGH74: 0 | DGI74: 0 | DGJ74: 0 | DGK74: 0 | DGL74: 0 | DGM74: 0 | DGN74: 0 | DGO74: 0 | DGP74: 0 | DGQ74: 0 | DGR74: 0 | DGS74: 0 | DGT74: 0 | DGU74: 0 | DGV74: 0 | DGW74: 0 | DGX74: 0 | DGY74: 0 | DGZ74: 0 | DHA74: 0 | DHB74: 0 | DHC74: 0 | DHD74: 0 | DHE74: 0 | DHF74: 0 | DHG74: 0 | DHH74: 0 | DHI74: 0 | DHJ74: 0 | DHK74: 0 | DHL74: 0 | DHM74: 0 | DHN74: 0 | DHO74: 0 | DHP74: 0 | DHQ74: 0 | DHR74: 0 | DHS74: 0 | DHT74: 0 | DHU74: 0 | DHV74: 0 | DHW74: 0 | DHX74: 0 | DHY74: 0 | DHZ74: 0 | DIA74: 0 | DIB74: 0 | DIC74: 0 | DID74: 0 | DIE74: 0 | DIF74: 0 | DIG74: 0 | DIH74: 0 | DII74: 0 | DIJ74: 0 | DIK74: 0 | DIL74: 0 | DIM74: 0 | DIN74: 0 | DIO74: 0 | DIP74: 0 | DIQ74: 0 | DIR74: =DIR68 + DIR69 + DIR70 + (DIR71 + DIR72 + DIR73) * 0.5 -> 0 | DIS74: 0 | DIT74: 0 | DIU74: 0 | DIV74: 0 | DIW74: 0 | DIX74: 0 | DIY74: 0 | DIZ74: 0 | DJA74: 0 | DJB74: 0 | DJC74: 0 | DJD74: 0 | DJE74: 0 | DJF74: 0 | DJG74: 0 | DJH74: 0 | DJI74: 0 | DJJ74: 0 | DJK74: 0 | DJL74: 0 | DJM74: 0 | DJN74: 0 | DJO74: 0 | DJP74: 0 | DJQ74: 0 | DJR74: 0 | DJS74: 0 | DJT74: 0 | DJU74: 0 | DJV74: 0 | DJW74: 0 | DJX74: 0 | DJY74: 0 | DJZ74: 0 | DKA74: 0 | DKB74: 0 | DKC74: 0 | DKD74: 0 | DKE74: 0 | DKF74: 0 | DKG74: 0 | DKH74: 0 | DKI74: 0 | DKJ74: 0 | DKK74: 0 | DKL74: 0 | DKM74: 0 | DKN74: 0 | DKO74: 0 | DKP74: 0 | DKQ74: 0 | DKR74: 0 | DKS74: 0 | DKT74: 0 | DKU74: 0 | DKV74: 0 | DKW74: 0 | DKX74: 0 | DKY74: 0 | DKZ74: 0 | DLA74: 0 | DLB74: 0 | DLC74: 0 | DLD74: =DLD68 + DLD69 + DLD70 + (DLD71 + DLD72 + DLD73) * 0.5 -> 0 | DLE74: 0 | DLF74: 0 | DLG74: 0 | DLH74: 0 | DLI74: 0 | DLJ74: 0 | DLK74: 0 | DLL74: 0 | DLM74: 0 | DLN74: 0 | DLO74: 0 | DLP74: 0 | DLQ74: 0 | DLR74: 0 | DLS74: 0 | DLT74: 0 | DLU74: 0 | DLV74: 0 | DLW74: 0 | DLX74: 0 | DLY74: 0 | DLZ74: 0 | DMA74: 0 | DMB74: 0 | DMC74: 0 | DMD74: 0 | DME74: 0 | DMF74: 0 | DMG74: 0 | DMH74: 0 | DMI74: 0 | DMJ74: 0 | DMK74: 0 | DML74: 0 | DMM74: 0 | DMN74: 0 | DMO74: 0 | DMP74: 0 | DMQ74: 0 | DMR74: 0 | DMS74: 0 | DMT74: 0 | DMU74: 0 | DMV74: 0 | DMW74: 0 | DMX74: 0 | DMY74: 0 | DMZ74: 0 | DNA74: 0 | DNB74: 0 | DNC74: 0 | DND74: 0 | DNE74: 0 | DNF74: 0 | DNG74: 0 | DNH74: 0 | DNI74: 0 | DNJ74: 0 | DNK74: 0 | DNL74: 0 | DNM74: 0 | DNN74: 0 | DNO74: 0 | DNP74: =DNP68 + DNP69 + DNP70 + (DNP71 + DNP72 + DNP73) * 0.5 -> 0 | DNQ74: 0 | DNR74: 0 | DNS74: 0 | DNT74: 0 | DNU74: 0 | DNV74: 0 | DNW74: 0 | DNX74: 0 | DNY74: 0 | DNZ74: 0 | DOA74: 0 | DOB74: 0 | DOC74: 0 | DOD74: 0 | DOE74: 0 | DOF74: 0 | DOG74: 0 | DOH74: 0 | DOI74: 0 | DOJ74: 0 | DOK74: 0 | DOL74: 0 | DOM74: 0 | DON74: 0 | DOO74: 0 | DOP74: 0 | DOQ74: 0 | DOR74: 0 | DOS74: 0 | DOT74: 0 | DOU74: 0 | DOV74: 0 | DOW74: 0 | DOX74: 0 | DOY74: 0 | DOZ74: 0 | DPA74: 0 | DPB74: 0 | DPC74: 0 | DPD74: 0 | DPE74: 0 | DPF74: 0 | DPG74: 0 | DPH74: 0 | DPI74: 0 | DPJ74: 0 | DPK74: 0 | DPL74: 0 | DPM74: 0 | DPN74: 0 | DPO74: 0 | DPP74: 0 | DPQ74: 0 | DPR74: 0 | DPS74: 0 | DPT74: 0 | DPU74: 0 | DPV74: 0 | DPW74: 0 | DPX74: 0 | DPY74: 0 | DPZ74: 0 | DQA74: 0 | DQB74: =DQB68 + DQB69 + DQB70 + (DQB71 + DQB72 + DQB73) * 0.5 -> 0 | DQC74: 0 | DQD74: 0 | DQE74: 0 | DQF74: 0 | DQG74: 0 | DQH74: 0 | DQI74: 0 | DQJ74: 0 | DQK74: 0 | DQL74: 0 | DQM74: 0 | DQN74: 0 | DQO74: 0 | DQP74: 0 | DQQ74: 0 | DQR74: 0 | DQS74: 0 | DQT74: 0 | DQU74: 0 | DQV74: 0 | DQW74: 0 | DQX74: 0 | DQY74: 0 | DQZ74: 0 | DRA74: 0 | DRB74: 0 | DRC74: 0 | DRD74: 0 | DRE74: 0 | DRF74: 0 | DRG74: 0 | DRH74: 0 | DRI74: 0 | DRJ74: 0 | DRK74: 0 | DRL74: 0 | DRM74: 0 | DRN74: 0 | DRO74: 0 | DRP74: 0 | DRQ74: 0 | DRR74: 0 | DRS74: 0 | DRT74: 0 | DRU74: 0 | DRV74: 0 | DRW74: 0 | DRX74: 0 | DRY74: 0 | DRZ74: 0 | DSA74: 0 | DSB74: 0 | DSC74: 0 | DSD74: 0 | DSE74: 0 | DSF74: 0 | DSG74: 0 | DSH74: 0 | DSI74: 0 | DSJ74: 0 | DSK74: 0 | DSL74: 0 | DSM74: 0 | DSN74: =DSN68 + DSN69 + DSN70 + (DSN71 + DSN72 + DSN73) * 0.5 -> 0 | DSO74: 0 | DSP74: 0 | DSQ74: 0 | DSR74: 0 | DSS74: 0 | DST74: 0 | DSU74: 0 | DSV74: 0 | DSW74: 0 | DSX74: 0 | DSY74: 0 | DSZ74: 0 | DTA74: 0 | DTB74: 0 | DTC74: 0 | DTD74: 0 | DTE74: 0 | DTF74: 0 | DTG74: 0 | DTH74: 0 | DTI74: 0 | DTJ74: 0 | DTK74: 0 | DTL74: 0 | DTM74: 0 | DTN74: 0 | DTO74: 0 | DTP74: 0 | DTQ74: 0 | DTR74: 0 | DTS74: 0 | DTT74: 0 | DTU74: 0 | DTV74: 0 | DTW74: 0 | DTX74: 0 | DTY74: 0 | DTZ74: 0 | DUA74: 0 | DUB74: 0 | DUC74: 0 | DUD74: 0 | DUE74: 0 | DUF74: 0 | DUG74: 0 | DUH74: 0 | DUI74: 0 | DUJ74: 0 | DUK74: 0 | DUL74: 0 | DUM74: 0 | DUN74: 0 | DUO74: 0 | DUP74: 0 | DUQ74: 0 | DUR74: 0 | DUS74: 0 | DUT74: 0 | DUU74: 0 | DUV74: 0 | DUW74: 0 | DUX74: 0 | DUY74: 0 | DUZ74: =DUZ68 + DUZ69 + DUZ70 + (DUZ71 + DUZ72 + DUZ73) * 0.5 -> 0 | DVA74: 0 | DVB74: 0 | DVC74: 0 | DVD74: 0 | DVE74: 0 | DVF74: 0 | DVG74: 0 | DVH74: 0 | DVI74: 0 | DVJ74: 0 | DVK74: 0 | DVL74: 0 | DVM74: 0 | DVN74: 0 | DVO74: 0 | DVP74: 0 | DVQ74: 0 | DVR74: 0 | DVS74: 0 | DVT74: 0 | DVU74: 0 | DVV74: 0 | DVW74: 0 | DVX74: 0 | DVY74: 0 | DVZ74: 0 | DWA74: 0 | DWB74: 0 | DWC74: 0 | DWD74: 0 | DWE74: 0 | DWF74: 0 | DWG74: 0 | DWH74: 0 | DWI74: 0 | DWJ74: 0 | DWK74: 0 | DWL74: 0 | DWM74: 0 | DWN74: 0 | DWO74: 0 | DWP74: 0 | DWQ74: 0 | DWR74: 0 | DWS74: 0 | DWT74: 0 | DWU74: 0 | DWV74: 0 | DWW74: 0 | DWX74: 0 | DWY74: 0 | DWZ74: 0 | DXA74: 0 | DXB74: 0 | DXC74: 0 | DXD74: 0 | DXE74: 0 | DXF74: 0 | DXG74: 0 | DXH74: 0 | DXI74: 0 | DXJ74: 0 | DXK74: 0 | DXL74: =DXL68 + DXL69 + DXL70 + (DXL71 + DXL72 + DXL73) * 0.5 -> 0 | DXM74: 0 | DXN74: 0 | DXO74: 0 | DXP74: 0 | DXQ74: 0 | DXR74: 0 | DXS74: 0 | DXT74: 0 | DXU74: 0 | DXV74: 0 | DXW74: 0 | DXX74: 0 | DXY74: 0 | DXZ74: 0 | DYA74: 0 | DYB74: 0 | DYC74: 0 | DYD74: 0 | DYE74: 0 | DYF74: 0 | DYG74: 0 | DYH74: 0 | DYI74: 0 | DYJ74: 0 | DYK74: 0 | DYL74: 0 | DYM74: 0 | DYN74: 0 | DYO74: 0 | DYP74: 0 | DYQ74: 0 | DYR74: 0 | DYS74: 0 | DYT74: 0 | DYU74: 0 | DYV74: 0 | DYW74: 0 | DYX74: 0 | DYY74: 0 | DYZ74: 0 | DZA74: 0 | DZB74: 0 | DZC74: 0 | DZD74: 0 | DZE74: 0 | DZF74: 0 | DZG74: 0 | DZH74: 0 | DZI74: 0 | DZJ74: 0 | DZK74: 0 | DZL74: 0 | DZM74: 0 | DZN74: 0 | DZO74: 0 | DZP74: 0 | DZQ74: 0 | DZR74: 0 | DZS74: 0 | DZT74: 0 | DZU74: 0 | DZV74: 0 | DZW74: 0 | DZX74: =DZX68 + DZX69 + DZX70 + (DZX71 + DZX72 + DZX73) * 0.5 -> 0 | DZY74: 0 | DZZ74: 0 | EAA74: 0 | EAB74: 0 | EAC74: 0 | EAD74: 0 | EAE74: 0 | EAF74: 0 | EAG74: 0 | EAH74: 0 | EAI74: 0 | EAJ74: 0 | EAK74: 0 | EAL74: 0 | EAM74: 0 | EAN74: 0 | EAO74: 0 | EAP74: 0 | EAQ74: 0 | EAR74: 0 | EAS74: 0 | EAT74: 0 | EAU74: 0 | EAV74: 0 | EAW74: 0 | EAX74: 0 | EAY74: 0 | EAZ74: 0 | EBA74: 0 | EBB74: 0 | EBC74: 0 | EBD74: 0 | EBE74: 0 | EBF74: 0 | EBG74: 0 | EBH74: 0 | EBI74: 0 | EBJ74: 0 | EBK74: 0 | EBL74: 0 | EBM74: 0 | EBN74: 0 | EBO74: 0 | EBP74: 0 | EBQ74: 0 | EBR74: 0 | EBS74: 0 | EBT74: 0 | EBU74: 0 | EBV74: 0 | EBW74: 0 | EBX74: 0 | EBY74: 0 | EBZ74: 0 | ECA74: 0 | ECB74: 0 | ECC74: 0 | ECD74: 0 | ECE74: 0 | ECF74: 0 | ECG74: 0 | ECH74: 0 | ECI74: 0 | ECJ74: =ECJ68 + ECJ69 + ECJ70 + (ECJ71 + ECJ72 + ECJ73) * 0.5 -> 0 | ECK74: 0 | ECL74: 0 | ECM74: 0 | ECN74: 0 | ECO74: 0 | ECP74: 0 | ECQ74: 0 | ECR74: 0 | ECS74: 0 | ECT74: 0 | ECU74: 0 | ECV74: 0 | ECW74: 0 | ECX74: 0 | ECY74: 0 | ECZ74: 0 | EDA74: 0 | EDB74: 0 | EDC74: 0 | EDD74: 0 | EDE74: 0 | EDF74: 0 | EDG74: 0 | EDH74: 0 | EDI74: 0 | EDJ74: 0 | EDK74: 0 | EDL74: 0 | EDM74: 0 | EDN74: 0 | EDO74: 0 | EDP74: 0 | EDQ74: 0 | EDR74: 0 | EDS74: 0 | EDT74: 0 | EDU74: 0 | EDV74: 0 | EDW74: 0 | EDX74: 0 | EDY74: 0 | EDZ74: 0 | EEA74: 0 | EEB74: 0 | EEC74: 0 | EED74: 0 | EEE74: 0 | EEF74: 0 | EEG74: 0 | EEH74: 0 | EEI74: 0 | EEJ74: 0 | EEK74: 0 | EEL74: 0 | EEM74: 0 | EEN74: 0 | EEO74: 0 | EEP74: 0 | EEQ74: 0 | EER74: 0 | EES74: 0 | EET74: 0 | EEU74: 0 | EEV74: =EEV68 + EEV69 + EEV70 + (EEV71 + EEV72 + EEV73) * 0.5 -> 0 | EEW74: 0 | EEX74: 0 | EEY74: 0 | EEZ74: 0 | EFA74: 0 | EFB74: 0 | EFC74: 0 | EFD74: 0 | EFE74: 0 | EFF74: 0 | EFG74: 0 | EFH74: 0 | EFI74: 0 | EFJ74: 0 | EFK74: 0 | EFL74: 0 | EFM74: 0 | EFN74: 0 | EFO74: 0 | EFP74: 0 | EFQ74: 0 | EFR74: 0 | EFS74: 0 | EFT74: 0 | EFU74: 0 | EFV74: 0 | EFW74: 0 | EFX74: 0 | EFY74: 0 | EFZ74: 0 | EGA74: 0 | EGB74: 0 | EGC74: 0 | EGD74: 0 | EGE74: 0 | EGF74: 0 | EGG74: 0 | EGH74: 0 | EGI74: 0 | EGJ74: 0 | EGK74: 0 | EGL74: 0 | EGM74: 0 | EGN74: 0 | EGO74: 0 | EGP74: 0 | EGQ74: 0 | EGR74: 0 | EGS74: 0 | EGT74: 0 | EGU74: 0 | EGV74: 0 | EGW74: 0 | EGX74: 0 | EGY74: 0 | EGZ74: 0 | EHA74: 0 | EHB74: 0 | EHC74: 0 | EHD74: 0 | EHE74: 0 | EHF74: 0 | EHG74: 0 | EHH74: =EHH68 + EHH69 + EHH70 + (EHH71 + EHH72 + EHH73) * 0.5 -> 0 | EHI74: 0 | EHJ74: 0 | EHK74: 0 | EHL74: 0 | EHM74: 0 | EHN74: 0 | EHO74: 0 | EHP74: 0 | EHQ74: 0 | EHR74: 0 | EHS74: 0 | EHT74: 0 | EHU74: 0 | EHV74: 0 | EHW74: 0 | EHX74: 0 | EHY74: 0 | EHZ74: 0 | EIA74: 0 | EIB74: 0 | EIC74: 0 | EID74: 0 | EIE74: 0 | EIF74: 0 | EIG74: 0 | EIH74: 0 | EII74: 0 | EIJ74: 0 | EIK74: 0 | EIL74: 0 | EIM74: 0 | EIN74: 0 | EIO74: 0 | EIP74: 0 | EIQ74: 0 | EIR74: 0 | EIS74: 0 | EIT74: 0 | EIU74: 0 | EIV74: 0 | EIW74: 0 | EIX74: 0 | EIY74: 0 | EIZ74: 0 | EJA74: 0 | EJB74: 0 | EJC74: 0 | EJD74: 0 | EJE74: 0 | EJF74: 0 | EJG74: 0 | EJH74: 0 | EJI74: 0 | EJJ74: 0 | EJK74: 0 | EJL74: 0 | EJM74: 0 | EJN74: 0 | EJO74: 0 | EJP74: 0 | EJQ74: 0 | EJR74: 0 | EJS74: 0 | EJT74: =EJT68 + EJT69 + EJT70 + (EJT71 + EJT72 + EJT73) * 0.5 -> 0 | EJU74: 0 | EJV74: 0 | EJW74: 0 | EJX74: 0 | EJY74: 0 | EJZ74: 0 | EKA74: 0 | EKB74: 0 | EKC74: 0 | EKD74: 0 | EKE74: 0 | EKF74: 0 | EKG74: 0 | EKH74: 0 | EKI74: 0 | EKJ74: 0 | EKK74: 0 | EKL74: 0 | EKM74: 0 | EKN74: 0 | EKO74: 0 | EKP74: 0 | EKQ74: 0 | EKR74: 0 | EKS74: 0 | EKT74: 0 | EKU74: 0 | EKV74: 0 | EKW74: 0 | EKX74: 0 | EKY74: 0 | EKZ74: 0 | ELA74: 0 | ELB74: 0 | ELC74: 0 | ELD74: 0 | ELE74: 0 | ELF74: 0 | ELG74: 0 | ELH74: 0 | ELI74: 0 | ELJ74: 0 | ELK74: 0 | ELL74: 0 | ELM74: 0 | ELN74: 0 | ELO74: 0 | ELP74: 0 | ELQ74: 0 | ELR74: 0 | ELS74: 0 | ELT74: 0 | ELU74: 0 | ELV74: 0 | ELW74: 0 | ELX74: 0 | ELY74: 0 | ELZ74: 0 | EMA74: 0 | EMB74: 0 | EMC74: 0 | EMD74: 0 | EME74: 0 | EMF74: =EMF68 + EMF69 + EMF70 + (EMF71 + EMF72 + EMF73) * 0.5 -> 0 | EMG74: 0 | EMH74: 0 | EMI74: 0 | EMJ74: 0 | EMK74: 0 | EML74: 0 | EMM74: 0 | EMN74: 0 | EMO74: 0 | EMP74: 0 | EMQ74: 0 | EMR74: 0 | EMS74: 0 | EMT74: 0 | EMU74: 0 | EMV74: 0 | EMW74: 0 | EMX74: 0 | EMY74: 0 | EMZ74: 0 | ENA74: 0 | ENB74: 0 | ENC74: 0 | END74: 0 | ENE74: 0 | ENF74: 0 | ENG74: 0 | ENH74: 0 | ENI74: 0 | ENJ74: 0 | ENK74: 0 | ENL74: 0 | ENM74: 0 | ENN74: 0 | ENO74: 0 | ENP74: 0 | ENQ74: 0 | ENR74: 0 | ENS74: 0 | ENT74: 0 | ENU74: 0 | ENV74: 0 | ENW74: 0 | ENX74: 0 | ENY74: 0 | ENZ74: 0 | EOA74: 0 | EOB74: 0 | EOC74: 0 | EOD74: 0 | EOE74: 0 | EOF74: 0 | EOG74: 0 | EOH74: 0 | EOI74: 0 | EOJ74: 0 | EOK74: 0 | EOL74: 0 | EOM74: 0 | EON74: 0 | EOO74: 0 | EOP74: 0 | EOQ74: 0 | EOR74: =EOR68 + EOR69 + EOR70 + (EOR71 + EOR72 + EOR73) * 0.5 -> 0 | EOS74: 0 | EOT74: 0 | EOU74: 0 | EOV74: 0 | EOW74: 0 | EOX74: 0 | EOY74: 0 | EOZ74: 0 | EPA74: 0 | EPB74: 0 | EPC74: 0 | EPD74: 0 | EPE74: 0 | EPF74: 0 | EPG74: 0 | EPH74: 0 | EPI74: 0 | EPJ74: 0 | EPK74: 0 | EPL74: 0 | EPM74: 0 | EPN74: 0 | EPO74: 0 | EPP74: 0 | EPQ74: 0 | EPR74: 0 | EPS74: 0 | EPT74: 0 | EPU74: 0 | EPV74: 0 | EPW74: 0 | EPX74: 0 | EPY74: 0 | EPZ74: 0 | EQA74: 0 | EQB74: 0 | EQC74: 0 | EQD74: 0 | EQE74: 0 | EQF74: 0 | EQG74: 0 | EQH74: 0 | EQI74: 0 | EQJ74: 0 | EQK74: 0 | EQL74: 0 | EQM74: 0 | EQN74: 0 | EQO74: 0 | EQP74: 0 | EQQ74: 0 | EQR74: 0 | EQS74: 0 | EQT74: 0 | EQU74: 0 | EQV74: 0 | EQW74: 0 | EQX74: 0 | EQY74: 0 | EQZ74: 0 | ERA74: 0 | ERB74: 0 | ERC74: 0 | ERD74: =ERD68 + ERD69 + ERD70 + (ERD71 + ERD72 + ERD73) * 0.5 -> 0 | ERE74: 0 | ERF74: 0 | ERG74: 0 | ERH74: 0 | ERI74: 0 | ERJ74: 0 | ERK74: 0 | ERL74: 0 | ERM74: 0 | ERN74: 0 | ERO74: 0 | ERP74: 0 | ERQ74: 0 | ERR74: 0 | ERS74: 0 | ERT74: 0 | ERU74: 0 | ERV74: 0 | ERW74: 0 | ERX74: 0 | ERY74: 0 | ERZ74: 0 | ESA74: 0 | ESB74: 0 | ESC74: 0 | ESD74: 0 | ESE74: 0 | ESF74: 0 | ESG74: 0 | ESH74: 0 | ESI74: 0 | ESJ74: 0 | ESK74: 0 | ESL74: 0 | ESM74: 0 | ESN74: 0 | ESO74: 0 | ESP74: 0 | ESQ74: 0 | ESR74: 0 | ESS74: 0 | EST74: 0 | ESU74: 0 | ESV74: 0 | ESW74: 0 | ESX74: 0 | ESY74: 0 | ESZ74: 0 | ETA74: 0 | ETB74: 0 | ETC74: 0 | ETD74: 0 | ETE74: 0 | ETF74: 0 | ETG74: 0 | ETH74: 0 | ETI74: 0 | ETJ74: 0 | ETK74: 0 | ETL74: 0 | ETM74: 0 | ETN74: 0 | ETO74: 0 | ETP74: =ETP68 + ETP69 + ETP70 + (ETP71 + ETP72 + ETP73) * 0.5 -> 0 | ETQ74: 0 | ETR74: 0 | ETS74: 0 | ETT74: 0 | ETU74: 0 | ETV74: 0 | ETW74: 0 | ETX74: 0 | ETY74: 0 | ETZ74: 0 | EUA74: 0 | EUB74: 0 | EUC74: 0 | EUD74: 0 | EUE74: 0 | EUF74: 0 | EUG74: 0 | EUH74: 0 | EUI74: 0 | EUJ74: 0 | EUK74: 0 | EUL74: 0 | EUM74: 0 | EUN74: 0 | EUO74: 0 | EUP74: 0 | EUQ74: 0 | EUR74: 0 | EUS74: 0 | EUT74: 0 | EUU74: 0 | EUV74: 0 | EUW74: 0 | EUX74: 0 | EUY74: 0 | EUZ74: 0 | EVA74: 0 | EVB74: 0 | EVC74: 0 | EVD74: 0 | EVE74: 0 | EVF74: 0 | EVG74: 0 | EVH74: 0 | EVI74: 0 | EVJ74: 0 | EVK74: 0 | EVL74: 0 | EVM74: 0 | EVN74: 0 | EVO74: 0 | EVP74: 0 | EVQ74: 0 | EVR74: 0 | EVS74: 0 | EVT74: 0 | EVU74: 0 | EVV74: 0 | EVW74: 0 | EVX74: 0 | EVY74: 0 | EVZ74: 0 | EWA74: 0 | EWB74: =EWB68 + EWB69 + EWB70 + (EWB71 + EWB72 + EWB73) * 0.5 -> 0 | EWC74: 0 | EWD74: 0 | EWE74: 0 | EWF74: 0 | EWG74: 0 | EWH74: 0 | EWI74: 0 | EWJ74: 0 | EWK74: 0 | EWL74: 0 | EWM74: 0 | EWN74: 0 | EWO74: 0 | EWP74: 0 | EWQ74: 0 | EWR74: 0 | EWS74: 0 | EWT74: 0 | EWU74: 0 | EWV74: 0 | EWW74: 0 | EWX74: 0 | EWY74: 0 | EWZ74: 0 | EXA74: 0 | EXB74: 0 | EXC74: 0 | EXD74: 0 | EXE74: 0 | EXF74: 0 | EXG74: 0 | EXH74: 0 | EXI74: 0 | EXJ74: 0 | EXK74: 0 | EXL74: 0 | EXM74: 0 | EXN74: 0 | EXO74: 0 | EXP74: 0 | EXQ74: 0 | EXR74: 0 | EXS74: 0 | EXT74: 0 | EXU74: 0 | EXV74: 0 | EXW74: 0 | EXX74: 0 | EXY74: 0 | EXZ74: 0 | EYA74: 0 | EYB74: 0 | EYC74: 0 | EYD74: 0 | EYE74: 0 | EYF74: 0 | EYG74: 0 | EYH74: 0 | EYI74: 0 | EYJ74: 0 | EYK74: 0 | EYL74: 0 | EYM74: 0 | EYN74: =EYN68 + EYN69 + EYN70 + (EYN71 + EYN72 + EYN73) * 0.5 -> 0 | EYO74: 0 | EYP74: 0 | EYQ74: 0 | EYR74: 0 | EYS74: 0 | EYT74: 0 | EYU74: 0 | EYV74: 0 | EYW74: 0 | EYX74: 0 | EYY74: 0 | EYZ74: 0 | EZA74: 0 | EZB74: 0 | EZC74: 0 | EZD74: 0 | EZE74: 0 | EZF74: 0 | EZG74: 0 | EZH74: 0 | EZI74: 0 | EZJ74: 0 | EZK74: 0 | EZL74: 0 | EZM74: 0 | EZN74: 0 | EZO74: 0 | EZP74: 0 | EZQ74: 0 | EZR74: 0 | EZS74: 0 | EZT74: 0 | EZU74: 0 | EZV74: 0 | EZW74: 0 | EZX74: 0 | EZY74: 0 | EZZ74: 0 | FAA74: 0 | FAB74: 0 | FAC74: 0 | FAD74: 0 | FAE74: 0 | FAF74: 0 | FAG74: 0 | FAH74: 0 | FAI74: 0 | FAJ74: 0 | FAK74: 0 | FAL74: 0 | FAM74: 0 | FAN74: 0 | FAO74: 0 | FAP74: 0 | FAQ74: 0 | FAR74: 0 | FAS74: 0 | FAT74: 0 | FAU74: 0 | FAV74: 0 | FAW74: 0 | FAX74: 0 | FAY74: 0 | FAZ74: =FAZ68 + FAZ69 + FAZ70 + (FAZ71 + FAZ72 + FAZ73) * 0.5 -> 0 | FBA74: 0 | FBB74: 0 | FBC74: 0 | FBD74: 0 | FBE74: 0 | FBF74: 0 | FBG74: 0 | FBH74: 0 | FBI74: 0 | FBJ74: 0 | FBK74: 0 | FBL74: 0 | FBM74: 0 | FBN74: 0 | FBO74: 0 | FBP74: 0 | FBQ74: 0 | FBR74: 0 | FBS74: 0 | FBT74: 0 | FBU74: 0 | FBV74: 0 | FBW74: 0 | FBX74: 0 | FBY74: 0 | FBZ74: 0 | FCA74: 0 | FCB74: 0 | FCC74: 0 | FCD74: 0 | FCE74: 0 | FCF74: 0 | FCG74: 0 | FCH74: 0 | FCI74: 0 | FCJ74: 0 | FCK74: 0 | FCL74: 0 | FCM74: 0 | FCN74: 0 | FCO74: 0 | FCP74: 0 | FCQ74: 0 | FCR74: 0 | FCS74: 0 | FCT74: 0 | FCU74: 0 | FCV74: 0 | FCW74: 0 | FCX74: 0 | FCY74: 0 | FCZ74: 0 | FDA74: 0 | FDB74: 0 | FDC74: 0 | FDD74: 0 | FDE74: 0 | FDF74: 0 | FDG74: 0 | FDH74: 0 | FDI74: 0 | FDJ74: 0 | FDK74: 0 | FDL74: =FDL68 + FDL69 + FDL70 + (FDL71 + FDL72 + FDL73) * 0.5 -> 0 | FDM74: 0 | FDN74: 0 | FDO74: 0 | FDP74: 0 | FDQ74: 0 | FDR74: 0 | FDS74: 0 | FDT74: 0 | FDU74: 0 | FDV74: 0 | FDW74: 0 | FDX74: 0 | FDY74: 0 | FDZ74: 0 | FEA74: 0 | FEB74: 0 | FEC74: 0 | FED74: 0 | FEE74: 0 | FEF74: 0 | FEG74: 0 | FEH74: 0 | FEI74: 0 | FEJ74: 0 | FEK74: 0 | FEL74: 0 | FEM74: 0 | FEN74: 0 | FEO74: 0 | FEP74: 0 | FEQ74: 0 | FER74: 0 | FES74: 0 | FET74: 0 | FEU74: 0 | FEV74: 0 | FEW74: 0 | FEX74: 0 | FEY74: 0 | FEZ74: 0 | FFA74: 0 | FFB74: 0 | FFC74: 0 | FFD74: 0 | FFE74: 0 | FFF74: 0 | FFG74: 0 | FFH74: 0 | FFI74: 0 | FFJ74: 0 | FFK74: 0 | FFL74: 0 | FFM74: 0 | FFN74: 0 | FFO74: 0 | FFP74: 0 | FFQ74: 0 | FFR74: 0 | FFS74: 0 | FFT74: 0 | FFU74: 0 | FFV74: 0 | FFW74: 0 | FFX74: =FFX68 + FFX69 + FFX70 + (FFX71 + FFX72 + FFX73) * 0.5 -> 0 | FFY74: 0 | FFZ74: 0 | FGA74: 0 | FGB74: 0 | FGC74: 0 | FGD74: 0 | FGE74: 0 | FGF74: 0 | FGG74: 0 | FGH74: 0 | FGI74: 0 | FGJ74: 0 | FGK74: 0 | FGL74: 0 | FGM74: 0 | FGN74: 0 | FGO74: 0 | FGP74: 0 | FGQ74: 0 | FGR74: 0 | FGS74: 0 | FGT74: 0 | FGU74: 0 | FGV74: 0 | FGW74: 0 | FGX74: 0 | FGY74: 0 | FGZ74: 0 | FHA74: 0 | FHB74: 0 | FHC74: 0 | FHD74: 0 | FHE74: 0 | FHF74: 0 | FHG74: 0 | FHH74: 0 | FHI74: 0 | FHJ74: 0 | FHK74: 0 | FHL74: 0 | FHM74: 0 | FHN74: 0 | FHO74: 0 | FHP74: 0 | FHQ74: 0 | FHR74: 0 | FHS74: 0 | FHT74: 0 | FHU74: 0 | FHV74: 0 | FHW74: 0 | FHX74: 0 | FHY74: 0 | FHZ74: 0 | FIA74: 0 | FIB74: 0 | FIC74: 0 | FID74: 0 | FIE74: 0 | FIF74: 0 | FIG74: 0 | FIH74: 0 | FII74: 0 | FIJ74: =FIJ68 + FIJ69 + FIJ70 + (FIJ71 + FIJ72 + FIJ73) * 0.5 -> 0 | FIK74: 0 | FIL74: 0 | FIM74: 0 | FIN74: 0 | FIO74: 0 | FIP74: 0 | FIQ74: 0 | FIR74: 0 | FIS74: 0 | FIT74: 0 | FIU74: 0 | FIV74: 0 | FIW74: 0 | FIX74: 0 | FIY74: 0 | FIZ74: 0 | FJA74: 0 | FJB74: 0 | FJC74: 0 | FJD74: 0 | FJE74: 0 | FJF74: 0 | FJG74: 0 | FJH74: 0 | FJI74: 0 | FJJ74: 0 | FJK74: 0 | FJL74: 0 | FJM74: 0 | FJN74: 0 | FJO74: 0 | FJP74: 0 | FJQ74: 0 | FJR74: 0 | FJS74: 0 | FJT74: 0 | FJU74: 0 | FJV74: 0 | FJW74: 0 | FJX74: 0 | FJY74: 0 | FJZ74: 0 | FKA74: 0 | FKB74: 0 | FKC74: 0 | FKD74: 0 | FKE74: 0 | FKF74: 0 | FKG74: 0 | FKH74: 0 | FKI74: 0 | FKJ74: 0 | FKK74: 0 | FKL74: 0 | FKM74: 0 | FKN74: 0 | FKO74: 0 | FKP74: 0 | FKQ74: 0 | FKR74: 0 | FKS74: 0 | FKT74: 0 | FKU74: 0 | FKV74: =FKV68 + FKV69 + FKV70 + (FKV71 + FKV72 + FKV73) * 0.5 -> 0 | FKW74: 0 | FKX74: 0 | FKY74: 0 | FKZ74: 0 | FLA74: 0 | FLB74: 0 | FLC74: 0 | FLD74: 0 | FLE74: 0 | FLF74: 0 | FLG74: 0 | FLH74: 0 | FLI74: 0 | FLJ74: 0 | FLK74: 0 | FLL74: 0 | FLM74: 0 | FLN74: 0 | FLO74: 0 | FLP74: 0 | FLQ74: 0 | FLR74: 0 | FLS74: 0 | FLT74: 0 | FLU74: 0 | FLV74: 0 | FLW74: 0 | FLX74: 0 | FLY74: 0 | FLZ74: 0 | FMA74: 0 | FMB74: 0 | FMC74: 0 | FMD74: 0 | FME74: 0 | FMF74: 0 | FMG74: 0 | FMH74: 0 | FMI74: 0 | FMJ74: 0 | FMK74: 0 | FML74: 0 | FMM74: 0 | FMN74: 0 | FMO74: 0 | FMP74: 0 | FMQ74: 0 | FMR74: 0 | FMS74: 0 | FMT74: 0 | FMU74: 0 | FMV74: 0 | FMW74: 0 | FMX74: 0 | FMY74: 0 | FMZ74: 0 | FNA74: 0 | FNB74: 0 | FNC74: 0 | FND74: 0 | FNE74: 0 | FNF74: 0 | FNG74: 0 | FNH74: =FNH68 + FNH69 + FNH70 + (FNH71 + FNH72 + FNH73) * 0.5 -> 0 | FNI74: 0 | FNJ74: 0 | FNK74: 0 | FNL74: 0 | FNM74: 0 | FNN74: 0 | FNO74: 0 | FNP74: 0 | FNQ74: 0 | FNR74: 0 | FNS74: 0 | FNT74: 0 | FNU74: 0 | FNV74: 0 | FNW74: 0 | FNX74: 0 | FNY74: 0 | FNZ74: 0 | FOA74: 0 | FOB74: 0 | FOC74: 0 | FOD74: 0 | FOE74: 0 | FOF74: 0 | FOG74: 0 | FOH74: 0 | FOI74: 0 | FOJ74: 0 | FOK74: 0 | FOL74: 0 | FOM74: 0 | FON74: 0 | FOO74: 0 | FOP74: 0 | FOQ74: 0 | FOR74: 0 | FOS74: 0 | FOT74: 0 | FOU74: 0 | FOV74: 0 | FOW74: 0 | FOX74: 0 | FOY74: 0 | FOZ74: 0 | FPA74: 0 | FPB74: 0 | FPC74: 0 | FPD74: 0 | FPE74: 0 | FPF74: 0 | FPG74: 0 | FPH74: 0 | FPI74: 0 | FPJ74: 0 | FPK74: 0 | FPL74: 0 | FPM74: 0 | FPN74: 0 | FPO74: 0 | FPP74: 0 | FPQ74: 0 | FPR74: 0 | FPS74: 0 | FPT74: =FPT68 + FPT69 + FPT70 + (FPT71 + FPT72 + FPT73) * 0.5 -> 0 | FPU74: 0 | FPV74: 0 | FPW74: 0 | FPX74: 0 | FPY74: 0 | FPZ74: 0 | FQA74: 0 | FQB74: 0 | FQC74: 0 | FQD74: 0 | FQE74: 0 | FQF74: 0 | FQG74: 0 | FQH74: 0 | FQI74: 0 | FQJ74: 0 | FQK74: 0 | FQL74: 0 | FQM74: 0 | FQN74: 0 | FQO74: 0 | FQP74: 0 | FQQ74: 0 | FQR74: 0 | FQS74: 0 | FQT74: 0 | FQU74: 0 | FQV74: 0 | FQW74: 0 | FQX74: 0 | FQY74: 0 | FQZ74: 0 | FRA74: 0 | FRB74: 0 | FRC74: 0 | FRD74: 0 | FRE74: 0 | FRF74: 0 | FRG74: 0 | FRH74: 0 | FRI74: 0 | FRJ74: 0 | FRK74: 0 | FRL74: 0 | FRM74: 0 | FRN74: 0 | FRO74: 0 | FRP74: 0 | FRQ74: 0 | FRR74: 0 | FRS74: 0 | FRT74: 0 | FRU74: 0 | FRV74: 0 | FRW74: 0 | FRX74: 0 | FRY74: 0 | FRZ74: 0 | FSA74: 0 | FSB74: 0 | FSC74: 0 | FSD74: 0 | FSE74: 0 | FSF74: =FSF68 + FSF69 + FSF70 + (FSF71 + FSF72 + FSF73) * 0.5 -> 0 | FSG74: 0 | FSH74: 0 | FSI74: 0 | FSJ74: 0 | FSK74: 0 | FSL74: 0 | FSM74: 0 | FSN74: 0 | FSO74: 0 | FSP74: 0 | FSQ74: 0 | FSR74: 0 | FSS74: 0 | FST74: 0 | FSU74: 0 | FSV74: 0 | FSW74: 0 | FSX74: 0 | FSY74: 0 | FSZ74: 0 | FTA74: 0 | FTB74: 0 | FTC74: 0 | FTD74: 0 | FTE74: 0 | FTF74: 0 | FTG74: 0 | FTH74: 0 | FTI74: 0 | FTJ74: 0 | FTK74: 0 | FTL74: 0 | FTM74: 0 | FTN74: 0 | FTO74: 0 | FTP74: 0 | FTQ74: 0 | FTR74: 0 | FTS74: 0 | FTT74: 0 | FTU74: 0 | FTV74: 0 | FTW74: 0 | FTX74: 0 | FTY74: 0 | FTZ74: 0 | FUA74: 0 | FUB74: 0 | FUC74: 0 | FUD74: 0 | FUE74: 0 | FUF74: 0 | FUG74: 0 | FUH74: 0 | FUI74: 0 | FUJ74: 0 | FUK74: 0 | FUL74: 0 | FUM74: 0 | FUN74: 0 | FUO74: 0 | FUP74: 0 | FUQ74: 0 | FUR74: =FUR68 + FUR69 + FUR70 + (FUR71 + FUR72 + FUR73) * 0.5 -> 0 | FUS74: 0 | FUT74: 0 | FUU74: 0 | FUV74: 0 | FUW74: 0 | FUX74: 0 | FUY74: 0 | FUZ74: 0 | FVA74: 0 | FVB74: 0 | FVC74: 0 | FVD74: 0 | FVE74: 0 | FVF74: 0 | FVG74: 0 | FVH74: 0 | FVI74: 0 | FVJ74: 0 | FVK74: 0 | FVL74: 0 | FVM74: 0 | FVN74: 0 | FVO74: 0 | FVP74: 0 | FVQ74: 0 | FVR74: 0 | FVS74: 0 | FVT74: 0 | FVU74: 0 | FVV74: 0 | FVW74: 0 | FVX74: 0 | FVY74: 0 | FVZ74: 0 | FWA74: 0 | FWB74: 0 | FWC74: 0 | FWD74: 0 | FWE74: 0 | FWF74: 0 | FWG74: 0 | FWH74: 0 | FWI74: 0 | FWJ74: 0 | FWK74: 0 | FWL74: 0 | FWM74: 0 | FWN74: 0 | FWO74: 0 | FWP74: 0 | FWQ74: 0 | FWR74: 0 | FWS74: 0 | FWT74: 0 | FWU74: 0 | FWV74: 0 | FWW74: 0 | FWX74: 0 | FWY74: 0 | FWZ74: 0 | FXA74: 0 | FXB74: 0 | FXC74: 0 | FXD74: =FXD68 + FXD69 + FXD70 + (FXD71 + FXD72 + FXD73) * 0.5 -> 0 | FXE74: 0 | FXF74: 0 | FXG74: 0 | FXH74: 0 | FXI74: 0 | FXJ74: 0 | FXK74: 0 | FXL74: 0 | FXM74: 0 | FXN74: 0 | FXO74: 0 | FXP74: 0 | FXQ74: 0 | FXR74: 0 | FXS74: 0 | FXT74: 0 | FXU74: 0 | FXV74: 0 | FXW74: 0 | FXX74: 0 | FXY74: 0 | FXZ74: 0 | FYA74: 0 | FYB74: 0 | FYC74: 0 | FYD74: 0 | FYE74: 0 | FYF74: 0 | FYG74: 0 | FYH74: 0 | FYI74: 0 | FYJ74: 0 | FYK74: 0 | FYL74: 0 | FYM74: 0 | FYN74: 0 | FYO74: 0 | FYP74: 0 | FYQ74: 0 | FYR74: 0 | FYS74: 0 | FYT74: 0 | FYU74: 0 | FYV74: 0 | FYW74: 0 | FYX74: 0 | FYY74: 0 | FYZ74: 0 | FZA74: 0 | FZB74: 0 | FZC74: 0 | FZD74: 0 | FZE74: 0 | FZF74: 0 | FZG74: 0 | FZH74: 0 | FZI74: 0 | FZJ74: 0 | FZK74: 0 | FZL74: 0 | FZM74: 0 | FZN74: 0 | FZO74: 0 | FZP74: =FZP68 + FZP69 + FZP70 + (FZP71 + FZP72 + FZP73) * 0.5 -> 0 | FZQ74: 0 | FZR74: 0 | FZS74: 0 | FZT74: 0 | FZU74: 0 | FZV74: 0 | FZW74: 0 | FZX74: 0 | FZY74: 0 | FZZ74: 0 | GAA74: 0 | GAB74: 0 | GAC74: 0 | GAD74: 0 | GAE74: 0 | GAF74: 0 | GAG74: 0 | GAH74: 0 | GAI74: 0 | GAJ74: 0 | GAK74: 0 | GAL74: 0 | GAM74: 0 | GAN74: 0 | GAO74: 0 | GAP74: 0 | GAQ74: 0 | GAR74: 0 | GAS74: 0 | GAT74: 0 | GAU74: 0 | GAV74: 0 | GAW74: 0 | GAX74: 0 | GAY74: 0 | GAZ74: 0 | GBA74: 0 | GBB74: 0 | GBC74: 0 | GBD74: 0 | GBE74: 0 | GBF74: 0 | GBG74: 0 | GBH74: 0 | GBI74: 0 | GBJ74: 0 | GBK74: 0 | GBL74: 0 | GBM74: 0 | GBN74: 0 | GBO74: 0 | GBP74: 0 | GBQ74: 0 | GBR74: 0 | GBS74: 0 | GBT74: 0 | GBU74: 0 | GBV74: 0 | GBW74: 0 | GBX74: 0 | GBY74: 0 | GBZ74: 0 | GCA74: 0 | GCB74: =GCB68 + GCB69 + GCB70 + (GCB71 + GCB72 + GCB73) * 0.5 -> 0 | GCC74: 0 | GCD74: 0 | GCE74: 0 | GCF74: 0 | GCG74: 0 | GCH74: 0 | GCI74: 0 | GCJ74: 0 | GCK74: 0 | GCL74: 0 | GCM74: 0 | GCN74: 0 | GCO74: 0 | GCP74: 0 | GCQ74: 0 | GCR74: 0 | GCS74: 0 | GCT74: 0 | GCU74: 0 | GCV74: 0 | GCW74: 0 | GCX74: 0 | GCY74: 0 | GCZ74: 0 | GDA74: 0 | GDB74: 0 | GDC74: 0 | GDD74: 0 | GDE74: 0 | GDF74: 0 | GDG74: 0 | GDH74: 0 | GDI74: 0 | GDJ74: 0 | GDK74: 0 | GDL74: 0 | GDM74: 0 | GDN74: 0 | GDO74: 0 | GDP74: 0 | GDQ74: 0 | GDR74: 0 | GDS74: 0 | GDT74: 0 | GDU74: 0 | GDV74: 0 | GDW74: 0 | GDX74: 0 | GDY74: 0 | GDZ74: 0 | GEA74: 0 | GEB74: 0 | GEC74: 0 | GED74: 0 | GEE74: 0 | GEF74: 0 | GEG74: 0 | GEH74: 0 | GEI74: 0 | GEJ74: 0 | GEK74: 0 | GEL74: 0 | GEM74: 0 | GEN74: =GEN68 + GEN69 + GEN70 + (GEN71 + GEN72 + GEN73) * 0.5 -> 0 | GEO74: 0 | GEP74: 0 | GEQ74: 0 | GER74: 0 | GES74: 0 | GET74: 0 | GEU74: 0 | GEV74: 0 | GEW74: 0 | GEX74: 0 | GEY74: 0 | GEZ74: 0 | GFA74: 0 | GFB74: 0 | GFC74: 0 | GFD74: 0 | GFE74: 0 | GFF74: 0 | GFG74: 0 | GFH74: 0 | GFI74: 0 | GFJ74: 0 | GFK74: 0 | GFL74: 0 | GFM74: 0 | GFN74: 0 | GFO74: 0 | GFP74: 0 | GFQ74: 0 | GFR74: 0 | GFS74: 0 | GFT74: 0 | GFU74: 0 | GFV74: 0 | GFW74: 0 | GFX74: 0 | GFY74: 0 | GFZ74: 0 | GGA74: 0 | GGB74: 0 | GGC74: 0 | GGD74: 0 | GGE74: 0 | GGF74: 0 | GGG74: 0 | GGH74: 0 | GGI74: 0 | GGJ74: 0 | GGK74: 0 | GGL74: 0 | GGM74: 0 | GGN74: 0 | GGO74: 0 | GGP74: 0 | GGQ74: 0 | GGR74: 0 | GGS74: 0 | GGT74: 0 | GGU74: 0 | GGV74: 0 | GGW74: 0 | GGX74: 0 | GGY74: 0 | GGZ74: =GGZ68 + GGZ69 + GGZ70 + (GGZ71 + GGZ72 + GGZ73) * 0.5 -> 0 | GHA74: 0 | GHB74: 0 | GHC74: 0 | GHD74: 0 | GHE74: 0 | GHF74: 0 | GHG74: 0 | GHH74: 0 | GHI74: 0 | GHJ74: 0 | GHK74: 0 | GHL74: 0 | GHM74: 0 | GHN74: 0 | GHO74: 0 | GHP74: 0 | GHQ74: 0 | GHR74: 0 | GHS74: 0 | GHT74: 0 | GHU74: 0 | GHV74: 0 | GHW74: 0 | GHX74: 0 | GHY74: 0 | GHZ74: 0 | GIA74: 0 | GIB74: 0 | GIC74: 0 | GID74: 0 | GIE74: 0 | GIF74: 0 | GIG74: 0 | GIH74: 0 | GII74: 0 | GIJ74: 0 | GIK74: 0 | GIL74: 0 | GIM74: 0 | GIN74: 0 | GIO74: 0 | GIP74: 0 | GIQ74: 0 | GIR74: 0 | GIS74: 0 | GIT74: 0 | GIU74: 0 | GIV74: 0 | GIW74: 0 | GIX74: 0 | GIY74: 0 | GIZ74: 0 | GJA74: 0 | GJB74: 0 | GJC74: 0 | GJD74: 0 | GJE74: 0 | GJF74: 0 | GJG74: 0 | GJH74: 0 | GJI74: 0 | GJJ74: 0 | GJK74: 0 | GJL74: =GJL68 + GJL69 + GJL70 + (GJL71 + GJL72 + GJL73) * 0.5 -> 0 | GJM74: 0 | GJN74: 0 | GJO74: 0 | GJP74: 0 | GJQ74: 0 | GJR74: 0 | GJS74: 0 | GJT74: 0 | GJU74: 0 | GJV74: 0 | GJW74: 0 | GJX74: 0 | GJY74: 0 | GJZ74: 0 | GKA74: 0 | GKB74: 0 | GKC74: 0 | GKD74: 0 | GKE74: 0 | GKF74: 0 | GKG74: 0 | GKH74: 0 | GKI74: 0 | GKJ74: 0 | GKK74: 0 | GKL74: 0 | GKM74: 0 | GKN74: 0 | GKO74: 0 | GKP74: 0 | GKQ74: 0 | GKR74: 0 | GKS74: 0 | GKT74: 0 | GKU74: 0 | GKV74: 0 | GKW74: 0 | GKX74: 0 | GKY74: 0 | GKZ74: 0 | GLA74: 0 | GLB74: 0 | GLC74: 0 | GLD74: 0 | GLE74: 0 | GLF74: 0 | GLG74: 0 | GLH74: 0 | GLI74: 0 | GLJ74: 0 | GLK74: 0 | GLL74: 0 | GLM74: 0 | GLN74: 0 | GLO74: 0 | GLP74: 0 | GLQ74: 0 | GLR74: 0 | GLS74: 0 | GLT74: 0 | GLU74: 0 | GLV74: 0 | GLW74: 0 | GLX74: =GLX68 + GLX69 + GLX70 + (GLX71 + GLX72 + GLX73) * 0.5 -> 0 | GLY74: 0 | GLZ74: 0 | GMA74: 0 | GMB74: 0 | GMC74: 0 | GMD74: 0 | GME74: 0 | GMF74: 0 | GMG74: 0 | GMH74: 0 | GMI74: 0 | GMJ74: 0 | GMK74: 0 | GML74: 0 | GMM74: 0 | GMN74: 0 | GMO74: 0 | GMP74: 0 | GMQ74: 0 | GMR74: 0 | GMS74: 0 | GMT74: 0 | GMU74: 0 | GMV74: 0 | GMW74: 0 | GMX74: 0 | GMY74: 0 | GMZ74: 0 | GNA74: 0 | GNB74: 0 | GNC74: 0 | GND74: 0 | GNE74: 0 | GNF74: 0 | GNG74: 0 | GNH74: 0 | GNI74: 0 | GNJ74: 0 | GNK74: 0 | GNL74: 0 | GNM74: 0 | GNN74: 0 | GNO74: 0 | GNP74: 0 | GNQ74: 0 | GNR74: 0 | GNS74: 0 | GNT74: 0 | GNU74: 0 | GNV74: 0 | GNW74: 0 | GNX74: 0 | GNY74: 0 | GNZ74: 0 | GOA74: 0 | GOB74: 0 | GOC74: 0 | GOD74: 0 | GOE74: 0 | GOF74: 0 | GOG74: 0 | GOH74: 0 | GOI74: 0 | GOJ74: =GOJ68 + GOJ69 + GOJ70 + (GOJ71 + GOJ72 + GOJ73) * 0.5 -> 0 | GOK74: 0 | GOL74: 0 | GOM74: 0 | GON74: 0 | GOO74: 0 | GOP74: 0 | GOQ74: 0 | GOR74: 0 | GOS74: 0 | GOT74: 0 | GOU74: 0 | GOV74: 0 | GOW74: 0 | GOX74: 0 | GOY74: 0 | GOZ74: 0 | GPA74: 0 | GPB74: 0 | GPC74: 0 | GPD74: 0 | GPE74: 0 | GPF74: 0 | GPG74: 0 | GPH74: 0 | GPI74: 0 | GPJ74: 0 | GPK74: 0 | GPL74: 0 | GPM74: 0 | GPN74: 0 | GPO74: 0 | GPP74: 0 | GPQ74: 0 | GPR74: 0 | GPS74: 0 | GPT74: 0 | GPU74: 0 | GPV74: 0 | GPW74: 0 | GPX74: 0 | GPY74: 0 | GPZ74: 0 | GQA74: 0 | GQB74: 0 | GQC74: 0 | GQD74: 0 | GQE74: 0 | GQF74: 0 | GQG74: 0 | GQH74: 0 | GQI74: 0 | GQJ74: 0 | GQK74: 0 | GQL74: 0 | GQM74: 0 | GQN74: 0 | GQO74: 0 | GQP74: 0 | GQQ74: 0 | GQR74: 0 | GQS74: 0 | GQT74: 0 | GQU74: 0 | GQV74: =GQV68 + GQV69 + GQV70 + (GQV71 + GQV72 + GQV73) * 0.5 -> 0 | GQW74: 0 | GQX74: 0 | GQY74: 0 | GQZ74: 0 | GRA74: 0 | GRB74: 0 | GRC74: 0 | GRD74: 0 | GRE74: 0 | GRF74: 0 | GRG74: 0 | GRH74: 0 | GRI74: 0 | GRJ74: 0 | GRK74: 0 | GRL74: 0 | GRM74: 0 | GRN74: 0 | GRO74: 0 | GRP74: 0 | GRQ74: 0 | GRR74: 0 | GRS74: 0 | GRT74: 0 | GRU74: 0 | GRV74: 0 | GRW74: 0 | GRX74: 0 | GRY74: 0 | GRZ74: 0 | GSA74: 0 | GSB74: 0 | GSC74: 0 | GSD74: 0 | GSE74: 0 | GSF74: 0 | GSG74: 0 | GSH74: 0 | GSI74: 0 | GSJ74: 0 | GSK74: 0 | GSL74: 0 | GSM74: 0 | GSN74: 0 | GSO74: 0 | GSP74: 0 | GSQ74: 0 | GSR74: 0 | GSS74: 0 | GST74: 0 | GSU74: 0 | GSV74: 0 | GSW74: 0 | GSX74: 0 | GSY74: 0 | GSZ74: 0 | GTA74: 0 | GTB74: 0 | GTC74: 0 | GTD74: 0 | GTE74: 0 | GTF74: 0 | GTG74: 0 | GTH74: =GTH68 + GTH69 + GTH70 + (GTH71 + GTH72 + GTH73) * 0.5 -> 0 | GTI74: 0 | GTJ74: 0 | GTK74: 0 | GTL74: 0 | GTM74: 0 | GTN74: 0 | GTO74: 0 | GTP74: 0 | GTQ74: 0 | GTR74: 0 | GTS74: 0 | GTT74: 0 | GTU74: 0 | GTV74: 0 | GTW74: 0 | GTX74: 0 | GTY74: 0 | GTZ74: 0 | GUA74: 0 | GUB74: 0 | GUC74: 0 | GUD74: 0 | GUE74: 0 | GUF74: 0 | GUG74: 0 | GUH74: 0 | GUI74: 0 | GUJ74: 0 | GUK74: 0 | GUL74: 0 | GUM74: 0 | GUN74: 0 | GUO74: 0 | GUP74: 0 | GUQ74: 0 | GUR74: 0 | GUS74: 0 | GUT74: 0 | GUU74: 0 | GUV74: 0 | GUW74: 0 | GUX74: 0 | GUY74: 0 | GUZ74: 0 | GVA74: 0 | GVB74: 0 | GVC74: 0 | GVD74: 0 | GVE74: 0 | GVF74: 0 | GVG74: 0 | GVH74: 0 | GVI74: 0 | GVJ74: 0 | GVK74: 0 | GVL74: 0 | GVM74: 0 | GVN74: 0 | GVO74: 0 | GVP74: 0 | GVQ74: 0 | GVR74: 0 | GVS74: 0 | GVT74: =GVT68 + GVT69 + GVT70 + (GVT71 + GVT72 + GVT73) * 0.5 -> 0 | GVU74: 0 | GVV74: 0 | GVW74: 0 | GVX74: 0 | GVY74: 0 | GVZ74: 0 | GWA74: 0 | GWB74: 0 | GWC74: 0 | GWD74: 0 | GWE74: 0 | GWF74: 0 | GWG74: 0 | GWH74: 0 | GWI74: 0 | GWJ74: 0 | GWK74: 0 | GWL74: 0 | GWM74: 0 | GWN74: 0 | GWO74: 0 | GWP74: 0 | GWQ74: 0 | GWR74: 0 | GWS74: 0 | GWT74: 0 | GWU74: 0 | GWV74: 0 | GWW74: 0 | GWX74: 0 | GWY74: 0 | GWZ74: 0 | GXA74: 0 | GXB74: 0 | GXC74: 0 | GXD74: 0 | GXE74: 0 | GXF74: 0 | GXG74: 0 | GXH74: 0 | GXI74: 0 | GXJ74: 0 | GXK74: 0 | GXL74: 0 | GXM74: 0 | GXN74: 0 | GXO74: 0 | GXP74: 0 | GXQ74: 0 | GXR74: 0 | GXS74: 0 | GXT74: 0 | GXU74: 0 | GXV74: 0 | GXW74: 0 | GXX74: 0 | GXY74: 0 | GXZ74: 0 | GYA74: 0 | GYB74: 0 | GYC74: 0 | GYD74: 0 | GYE74: 0 | GYF74: =GYF68 + GYF69 + GYF70 + (GYF71 + GYF72 + GYF73) * 0.5 -> 0 | GYG74: 0 | GYH74: 0 | GYI74: 0 | GYJ74: 0 | GYK74: 0 | GYL74: 0 | GYM74: 0 | GYN74: 0 | GYO74: 0 | GYP74: 0 | GYQ74: 0 | GYR74: 0 | GYS74: 0 | GYT74: 0 | GYU74: 0 | GYV74: 0 | GYW74: 0 | GYX74: 0 | GYY74: 0 | GYZ74: 0 | GZA74: 0 | GZB74: 0 | GZC74: 0 | GZD74: 0 | GZE74: 0 | GZF74: 0 | GZG74: 0 | GZH74: 0 | GZI74: 0 | GZJ74: 0 | GZK74: 0 | GZL74: 0 | GZM74: 0 | GZN74: 0 | GZO74: 0 | GZP74: 0 | GZQ74: 0 | GZR74: 0 | GZS74: 0 | GZT74: 0 | GZU74: 0 | GZV74: 0 | GZW74: 0 | GZX74: 0 | GZY74: 0 | GZZ74: 0 | HAA74: 0 | HAB74: 0 | HAC74: 0 | HAD74: 0 | HAE74: 0 | HAF74: 0 | HAG74: 0 | HAH74: 0 | HAI74: 0 | HAJ74: 0 | HAK74: 0 | HAL74: 0 | HAM74: 0 | HAN74: 0 | HAO74: 0 | HAP74: 0 | HAQ74: 0 | HAR74: =HAR68 + HAR69 + HAR70 + (HAR71 + HAR72 + HAR73) * 0.5 -> 0 | HAS74: 0 | HAT74: 0 | HAU74: 0 | HAV74: 0 | HAW74: 0 | HAX74: 0 | HAY74: 0 | HAZ74: 0 | HBA74: 0 | HBB74: 0 | HBC74: 0 | HBD74: 0 | HBE74: 0 | HBF74: 0 | HBG74: 0 | HBH74: 0 | HBI74: 0 | HBJ74: 0 | HBK74: 0 | HBL74: 0 | HBM74: 0 | HBN74: 0 | HBO74: 0 | HBP74: 0 | HBQ74: 0 | HBR74: 0 | HBS74: 0 | HBT74: 0 | HBU74: 0 | HBV74: 0 | HBW74: 0 | HBX74: 0 | HBY74: 0 | HBZ74: 0 | HCA74: 0 | HCB74: 0 | HCC74: 0 | HCD74: 0 | HCE74: 0 | HCF74: 0 | HCG74: 0 | HCH74: 0 | HCI74: 0 | HCJ74: 0 | HCK74: 0 | HCL74: 0 | HCM74: 0 | HCN74: 0 | HCO74: 0 | HCP74: 0 | HCQ74: 0 | HCR74: 0 | HCS74: 0 | HCT74: 0 | HCU74: 0 | HCV74: 0 | HCW74: 0 | HCX74: 0 | HCY74: 0 | HCZ74: 0 | HDA74: 0 | HDB74: 0 | HDC74: 0 | HDD74: =HDD68 + HDD69 + HDD70 + (HDD71 + HDD72 + HDD73) * 0.5 -> 0 | HDE74: 0 | HDF74: 0 | HDG74: 0 | HDH74: 0 | HDI74: 0 | HDJ74: 0 | HDK74: 0 | HDL74: 0 | HDM74: 0 | HDN74: 0 | HDO74: 0 | HDP74: 0 | HDQ74: 0 | HDR74: 0 | HDS74: 0 | HDT74: 0 | HDU74: 0 | HDV74: 0 | HDW74: 0 | HDX74: 0 | HDY74: 0 | HDZ74: 0 | HEA74: 0 | HEB74: 0 | HEC74: 0 | HED74: 0 | HEE74: 0 | HEF74: 0 | HEG74: 0 | HEH74: 0 | HEI74: 0 | HEJ74: 0 | HEK74: 0 | HEL74: 0 | HEM74: 0 | HEN74: 0 | HEO74: 0 | HEP74: 0 | HEQ74: 0 | HER74: 0 | HES74: 0 | HET74: 0 | HEU74: 0 | HEV74: 0 | HEW74: 0 | HEX74: 0 | HEY74: 0 | HEZ74: 0 | HFA74: 0 | HFB74: 0 | HFC74: 0 | HFD74: 0 | HFE74: 0 | HFF74: 0 | HFG74: 0 | HFH74: 0 | HFI74: 0 | HFJ74: 0 | HFK74: 0 | HFL74: 0 | HFM74: 0 | HFN74: 0 | HFO74: 0 | HFP74: =HFP68 + HFP69 + HFP70 + (HFP71 + HFP72 + HFP73) * 0.5 -> 0 | HFQ74: 0 | HFR74: 0 | HFS74: 0 | HFT74: 0 | HFU74: 0 | HFV74: 0 | HFW74: 0 | HFX74: 0 | HFY74: 0 | HFZ74: 0 | HGA74: 0 | HGB74: 0 | HGC74: 0 | HGD74: 0 | HGE74: 0 | HGF74: 0 | HGG74: 0 | HGH74: 0 | HGI74: 0 | HGJ74: 0 | HGK74: 0 | HGL74: 0 | HGM74: 0 | HGN74: 0 | HGO74: 0 | HGP74: 0 | HGQ74: 0 | HGR74: 0 | HGS74: 0 | HGT74: 0 | HGU74: 0 | HGV74: 0 | HGW74: 0 | HGX74: 0 | HGY74: 0 | HGZ74: 0 | HHA74: 0 | HHB74: 0 | HHC74: 0 | HHD74: 0 | HHE74: 0 | HHF74: 0 | HHG74: 0 | HHH74: 0 | HHI74: 0 | HHJ74: 0 | HHK74: 0 | HHL74: 0 | HHM74: 0 | HHN74: 0 | HHO74: 0 | HHP74: 0 | HHQ74: 0 | HHR74: 0 | HHS74: 0 | HHT74: 0 | HHU74: 0 | HHV74: 0 | HHW74: 0 | HHX74: 0 | HHY74: 0 | HHZ74: 0 | HIA74: 0 | HIB74: =HIB68 + HIB69 + HIB70 + (HIB71 + HIB72 + HIB73) * 0.5 -> 0 | HIC74: 0 | HID74: 0 | HIE74: 0 | HIF74: 0 | HIG74: 0 | HIH74: 0 | HII74: 0 | HIJ74: 0 | HIK74: 0 | HIL74: 0 | HIM74: 0 | HIN74: 0 | HIO74: 0 | HIP74: 0 | HIQ74: 0 | HIR74: 0 | HIS74: 0 | HIT74: 0 | HIU74: 0 | HIV74: 0 | HIW74: 0 | HIX74: 0 | HIY74: 0 | HIZ74: 0 | HJA74: 0 | HJB74: 0 | HJC74: 0 | HJD74: 0 | HJE74: 0 | HJF74: 0 | HJG74: 0 | HJH74: 0 | HJI74: 0 | HJJ74: 0 | HJK74: 0 | HJL74: 0 | HJM74: 0 | HJN74: 0 | HJO74: 0 | HJP74: 0 | HJQ74: 0 | HJR74: 0 | HJS74: 0 | HJT74: 0 | HJU74: 0 | HJV74: 0 | HJW74: 0 | HJX74: 0 | HJY74: 0 | HJZ74: 0 | HKA74: 0 | HKB74: 0 | HKC74: 0 | HKD74: 0 | HKE74: 0 | HKF74: 0 | HKG74: 0 | HKH74: 0 | HKI74: 0 | HKJ74: 0 | HKK74: 0 | HKL74: 0 | HKM74: 0 | HKN74: =HKN68 + HKN69 + HKN70 + (HKN71 + HKN72 + HKN73) * 0.5 -> 0 | HKO74: 0 | HKP74: 0 | HKQ74: 0 | HKR74: 0 | HKS74: 0 | HKT74: 0 | HKU74: 0 | HKV74: 0 | HKW74: 0 | HKX74: 0 | HKY74: 0 | HKZ74: 0 | HLA74: 0 | HLB74: 0 | HLC74: 0 | HLD74: 0 | HLE74: 0 | HLF74: 0 | HLG74: 0 | HLH74: 0 | HLI74: 0 | HLJ74: 0 | HLK74: 0 | HLL74: 0 | HLM74: 0 | HLN74: 0 | HLO74: 0 | HLP74: 0 | HLQ74: 0 | HLR74: 0 | HLS74: 0 | HLT74: 0 | HLU74: 0 | HLV74: 0 | HLW74: 0 | HLX74: 0 | HLY74: 0 | HLZ74: 0 | HMA74: 0 | HMB74: 0 | HMC74: 0 | HMD74: 0 | HME74: 0 | HMF74: 0 | HMG74: 0 | HMH74: 0 | HMI74: 0 | HMJ74: 0 | HMK74: 0 | HML74: 0 | HMM74: 0 | HMN74: 0 | HMO74: 0 | HMP74: 0 | HMQ74: 0 | HMR74: 0 | HMS74: 0 | HMT74: 0 | HMU74: 0 | HMV74: 0 | HMW74: 0 | HMX74: 0 | HMY74: 0 | HMZ74: =HMZ68 + HMZ69 + HMZ70 + (HMZ71 + HMZ72 + HMZ73) * 0.5 -> 0 | HNA74: 0 | HNB74: 0 | HNC74: 0 | HND74: 0 | HNE74: 0 | HNF74: 0 | HNG74: 0 | HNH74: 0 | HNI74: 0 | HNJ74: 0 | HNK74: 0 | HNL74: 0 | HNM74: 0 | HNN74: 0 | HNO74: 0 | HNP74: 0 | HNQ74: 0 | HNR74: 0 | HNS74: 0 | HNT74: 0 | HNU74: 0 | HNV74: 0 | HNW74: 0 | HNX74: 0 | HNY74: 0 | HNZ74: 0 | HOA74: 0 | HOB74: 0 | HOC74: 0 | HOD74: 0 | HOE74: 0 | HOF74: 0 | HOG74: 0 | HOH74: 0 | HOI74: 0 | HOJ74: 0 | HOK74: 0 | HOL74: 0 | HOM74: 0 | HON74: 0 | HOO74: 0 | HOP74: 0 | HOQ74: 0 | HOR74: 0 | HOS74: 0 | HOT74: 0 | HOU74: 0 | HOV74: 0 | HOW74: 0 | HOX74: 0 | HOY74: 0 | HOZ74: 0 | HPA74: 0 | HPB74: 0 | HPC74: 0 | HPD74: 0 | HPE74: 0 | HPF74: 0 | HPG74: 0 | HPH74: 0 | HPI74: 0 | HPJ74: 0 | HPK74: 0 | HPL74: =HPL68 + HPL69 + HPL70 + (HPL71 + HPL72 + HPL73) * 0.5 -> 0 | HPM74: 0 | HPN74: 0 | HPO74: 0 | HPP74: 0 | HPQ74: 0 | HPR74: 0 | HPS74: 0 | HPT74: 0 | HPU74: 0 | HPV74: 0 | HPW74: 0 | HPX74: 0 | HPY74: 0 | HPZ74: 0 | HQA74: 0 | HQB74: 0 | HQC74: 0 | HQD74: 0 | HQE74: 0 | HQF74: 0 | HQG74: 0 | HQH74: 0 | HQI74: 0 | HQJ74: 0 | HQK74: 0 | HQL74: 0 | HQM74: 0 | HQN74: 0 | HQO74: 0 | HQP74: 0 | HQQ74: 0 | HQR74: 0 | HQS74: 0 | HQT74: 0 | HQU74: 0 | HQV74: 0 | HQW74: 0 | HQX74: 0 | HQY74: 0 | HQZ74: 0 | HRA74: 0 | HRB74: 0 | HRC74: 0 | HRD74: 0 | HRE74: 0 | HRF74: 0 | HRG74: 0 | HRH74: 0 | HRI74: 0 | HRJ74: 0 | HRK74: 0 | HRL74: 0 | HRM74: 0 | HRN74: 0 | HRO74: 0 | HRP74: 0 | HRQ74: 0 | HRR74: 0 | HRS74: 0 | HRT74: 0 | HRU74: 0 | HRV74: 0 | HRW74: 0 | HRX74: =HRX68 + HRX69 + HRX70 + (HRX71 + HRX72 + HRX73) * 0.5 -> 0 | HRY74: 0 | HRZ74: 0 | HSA74: 0 | HSB74: 0 | HSC74: 0 | HSD74: 0 | HSE74: 0 | HSF74: 0 | HSG74: 0 | HSH74: 0 | HSI74: 0 | HSJ74: 0 | HSK74: 0 | HSL74: 0 | HSM74: 0 | HSN74: 0 | HSO74: 0 | HSP74: 0 | HSQ74: 0 | HSR74: 0 | HSS74: 0 | HST74: 0 | HSU74: 0 | HSV74: 0 | HSW74: 0 | HSX74: 0 | HSY74: 0 | HSZ74: 0 | HTA74: 0 | HTB74: 0 | HTC74: 0 | HTD74: 0 | HTE74: 0 | HTF74: 0 | HTG74: 0 | HTH74: 0 | HTI74: 0 | HTJ74: 0 | HTK74: 0 | HTL74: 0 | HTM74: 0 | HTN74: 0 | HTO74: 0 | HTP74: 0 | HTQ74: 0 | HTR74: 0 | HTS74: 0 | HTT74: 0 | HTU74: 0 | HTV74: 0 | HTW74: 0 | HTX74: 0 | HTY74: 0 | HTZ74: 0 | HUA74: 0 | HUB74: 0 | HUC74: 0 | HUD74: 0 | HUE74: 0 | HUF74: 0 | HUG74: 0 | HUH74: 0 | HUI74: 0 | HUJ74: =HUJ68 + HUJ69 + HUJ70 + (HUJ71 + HUJ72 + HUJ73) * 0.5 -> 0 | HUK74: 0 | HUL74: 0 | HUM74: 0 | HUN74: 0 | HUO74: 0 | HUP74: 0 | HUQ74: 0 | HUR74: 0 | HUS74: 0 | HUT74: 0 | HUU74: 0 | HUV74: 0 | HUW74: 0 | HUX74: 0 | HUY74: 0 | HUZ74: 0 | HVA74: 0 | HVB74: 0 | HVC74: 0 | HVD74: 0 | HVE74: 0 | HVF74: 0 | HVG74: 0 | HVH74: 0 | HVI74: 0 | HVJ74: 0 | HVK74: 0 | HVL74: 0 | HVM74: 0 | HVN74: 0 | HVO74: 0 | HVP74: 0 | HVQ74: 0 | HVR74: 0 | HVS74: 0 | HVT74: 0 | HVU74: 0 | HVV74: 0 | HVW74: 0 | HVX74: 0 | HVY74: 0 | HVZ74: 0 | HWA74: 0 | HWB74: 0 | HWC74: 0 | HWD74: 0 | HWE74: 0 | HWF74: 0 | HWG74: 0 | HWH74: 0 | HWI74: 0 | HWJ74: 0 | HWK74: 0 | HWL74: 0 | HWM74: 0 | HWN74: 0 | HWO74: 0 | HWP74: 0 | HWQ74: 0 | HWR74: 0 | HWS74: 0 | HWT74: 0 | HWU74: 0 | HWV74: =HWV68 + HWV69 + HWV70 + (HWV71 + HWV72 + HWV73) * 0.5 -> 0 | HWW74: 0 | HWX74: 0 | HWY74: 0 | HWZ74: 0 | HXA74: 0 | HXB74: 0 | HXC74: 0 | HXD74: 0 | HXE74: 0 | HXF74: 0 | HXG74: 0 | HXH74: 0 | HXI74: 0 | HXJ74: 0 | HXK74: 0 | HXL74: 0 | HXM74: 0 | HXN74: 0 | HXO74: 0 | HXP74: 0 | HXQ74: 0 | HXR74: 0 | HXS74: 0 | HXT74: 0 | HXU74: 0 | HXV74: 0 | HXW74: 0 | HXX74: 0 | HXY74: 0 | HXZ74: 0 | HYA74: 0 | HYB74: 0 | HYC74: 0 | HYD74: 0 | HYE74: 0 | HYF74: 0 | HYG74: 0 | HYH74: 0 | HYI74: 0 | HYJ74: 0 | HYK74: 0 | HYL74: 0 | HYM74: 0 | HYN74: 0 | HYO74: 0 | HYP74: 0 | HYQ74: 0 | HYR74: 0 | HYS74: 0 | HYT74: 0 | HYU74: 0 | HYV74: 0 | HYW74: 0 | HYX74: 0 | HYY74: 0 | HYZ74: 0 | HZA74: 0 | HZB74: 0 | HZC74: 0 | HZD74: 0 | HZE74: 0 | HZF74: 0 | HZG74: 0 | HZH74: =HZH68 + HZH69 + HZH70 + (HZH71 + HZH72 + HZH73) * 0.5 -> 0 | HZI74: 0 | HZJ74: 0 | HZK74: 0 | HZL74: 0 | HZM74: 0 | HZN74: 0 | HZO74: 0 | HZP74: 0 | HZQ74: 0 | HZR74: 0 | HZS74: 0 | HZT74: 0 | HZU74: 0 | HZV74: 0 | HZW74: 0 | HZX74: 0 | HZY74: 0 | HZZ74: 0 | IAA74: 0 | IAB74: 0 | IAC74: 0 | IAD74: 0 | IAE74: 0 | IAF74: 0 | IAG74: 0 | IAH74: 0 | IAI74: 0 | IAJ74: 0 | IAK74: 0 | IAL74: 0 | IAM74: 0 | IAN74: 0 | IAO74: 0 | IAP74: 0 | IAQ74: 0 | IAR74: 0 | IAS74: 0 | IAT74: 0 | IAU74: 0 | IAV74: 0 | IAW74: 0 | IAX74: 0 | IAY74: 0 | IAZ74: 0 | IBA74: 0 | IBB74: 0 | IBC74: 0 | IBD74: 0 | IBE74: 0 | IBF74: 0 | IBG74: 0 | IBH74: 0 | IBI74: 0 | IBJ74: 0 | IBK74: 0 | IBL74: 0 | IBM74: 0 | IBN74: 0 | IBO74: 0 | IBP74: 0 | IBQ74: 0 | IBR74: 0 | IBS74: 0 | IBT74: =IBT68 + IBT69 + IBT70 + (IBT71 + IBT72 + IBT73) * 0.5 -> 0 | IBU74: 0 | IBV74: 0 | IBW74: 0 | IBX74: 0 | IBY74: 0 | IBZ74: 0 | ICA74: 0 | ICB74: 0 | ICC74: 0 | ICD74: 0 | ICE74: 0 | ICF74: 0 | ICG74: 0 | ICH74: 0 | ICI74: 0 | ICJ74: 0 | ICK74: 0 | ICL74: 0 | ICM74: 0 | ICN74: 0 | ICO74: 0 | ICP74: 0 | ICQ74: 0 | ICR74: 0 | ICS74: 0 | ICT74: 0 | ICU74: 0 | ICV74: 0 | ICW74: 0 | ICX74: 0 | ICY74: 0 | ICZ74: 0 | IDA74: 0 | IDB74: 0 | IDC74: 0 | IDD74: 0 | IDE74: 0 | IDF74: 0 | IDG74: 0 | IDH74: 0 | IDI74: 0 | IDJ74: 0 | IDK74: 0 | IDL74: 0 | IDM74: 0 | IDN74: 0 | IDO74: 0 | IDP74: 0 | IDQ74: 0 | IDR74: 0 | IDS74: 0 | IDT74: 0 | IDU74: 0 | IDV74: 0 | IDW74: 0 | IDX74: 0 | IDY74: 0 | IDZ74: 0 | IEA74: 0 | IEB74: 0 | IEC74: 0 | IED74: 0 | IEE74: 0 | IEF74: =IEF68 + IEF69 + IEF70 + (IEF71 + IEF72 + IEF73) * 0.5 -> 0 | IEG74: 0 | IEH74: 0 | IEI74: 0 | IEJ74: 0 | IEK74: 0 | IEL74: 0 | IEM74: 0 | IEN74: 0 | IEO74: 0 | IEP74: 0 | IEQ74: 0 | IER74: 0 | IES74: 0 | IET74: 0 | IEU74: 0 | IEV74: 0 | IEW74: 0 | IEX74: 0 | IEY74: 0 | IEZ74: 0 | IFA74: 0 | IFB74: 0 | IFC74: 0 | IFD74: 0 | IFE74: 0 | IFF74: 0 | IFG74: 0 | IFH74: 0 | IFI74: 0 | IFJ74: 0 | IFK74: 0 | IFL74: 0 | IFM74: 0 | IFN74: 0 | IFO74: 0 | IFP74: 0 | IFQ74: 0 | IFR74: 0 | IFS74: 0 | IFT74: 0 | IFU74: 0 | IFV74: 0 | IFW74: 0 | IFX74: 0 | IFY74: 0 | IFZ74: 0 | IGA74: 0 | IGB74: 0 | IGC74: 0 | IGD74: 0 | IGE74: 0 | IGF74: 0 | IGG74: 0 | IGH74: 0 | IGI74: 0 | IGJ74: 0 | IGK74: 0 | IGL74: 0 | IGM74: 0 | IGN74: 0 | IGO74: 0 | IGP74: 0 | IGQ74: 0 | IGR74: =IGR68 + IGR69 + IGR70 + (IGR71 + IGR72 + IGR73) * 0.5 -> 0 | IGS74: 0 | IGT74: 0 | IGU74: 0 | IGV74: 0 | IGW74: 0 | IGX74: 0 | IGY74: 0 | IGZ74: 0 | IHA74: 0 | IHB74: 0 | IHC74: 0 | IHD74: 0 | IHE74: 0 | IHF74: 0 | IHG74: 0 | IHH74: 0 | IHI74: 0 | IHJ74: 0 | IHK74: 0 | IHL74: 0 | IHM74: 0 | IHN74: 0 | IHO74: 0 | IHP74: 0 | IHQ74: 0 | IHR74: 0 | IHS74: 0 | IHT74: 0 | IHU74: 0 | IHV74: 0 | IHW74: 0 | IHX74: 0 | IHY74: 0 | IHZ74: 0 | IIA74: 0 | IIB74: 0 | IIC74: 0 | IID74: 0 | IIE74: 0 | IIF74: 0 | IIG74: 0 | IIH74: 0 | III74: 0 | IIJ74: 0 | IIK74: 0 | IIL74: 0 | IIM74: 0 | IIN74: 0 | IIO74: 0 | IIP74: 0 | IIQ74: 0 | IIR74: 0 | IIS74: 0 | IIT74: 0 | IIU74: 0 | IIV74: 0 | IIW74: 0 | IIX74: 0 | IIY74: 0 | IIZ74: 0 | IJA74: 0 | IJB74: 0 | IJC74: 0 | IJD74: =IJD68 + IJD69 + IJD70 + (IJD71 + IJD72 + IJD73) * 0.5 -> 0 | IJE74: 0 | IJF74: 0 | IJG74: 0 | IJH74: 0 | IJI74: 0 | IJJ74: 0 | IJK74: 0 | IJL74: 0 | IJM74: 0 | IJN74: 0 | IJO74: 0 | IJP74: 0 | IJQ74: 0 | IJR74: 0 | IJS74: 0 | IJT74: 0 | IJU74: 0 | IJV74: 0 | IJW74: 0 | IJX74: 0 | IJY74: 0 | IJZ74: 0 | IKA74: 0 | IKB74: 0 | IKC74: 0 | IKD74: 0 | IKE74: 0 | IKF74: 0 | IKG74: 0 | IKH74: 0 | IKI74: 0 | IKJ74: 0 | IKK74: 0 | IKL74: 0 | IKM74: 0 | IKN74: 0 | IKO74: 0 | IKP74: 0 | IKQ74: 0 | IKR74: 0 | IKS74: 0 | IKT74: 0 | IKU74: 0 | IKV74: 0 | IKW74: 0 | IKX74: 0 | IKY74: 0 | IKZ74: 0 | ILA74: 0 | ILB74: 0 | ILC74: 0 | ILD74: 0 | ILE74: 0 | ILF74: 0 | ILG74: 0 | ILH74: 0 | ILI74: 0 | ILJ74: 0 | ILK74: 0 | ILL74: 0 | ILM74: 0 | ILN74: 0 | ILO74: 0 | ILP74: =ILP68 + ILP69 + ILP70 + (ILP71 + ILP72 + ILP73) * 0.5 -> 0 | ILQ74: 0 | ILR74: 0 | ILS74: 0 | ILT74: 0 | ILU74: 0 | ILV74: 0 | ILW74: 0 | ILX74: 0 | ILY74: 0 | ILZ74: 0 | IMA74: 0 | IMB74: 0 | IMC74: 0 | IMD74: 0 | IME74: 0 | IMF74: 0 | IMG74: 0 | IMH74: 0 | IMI74: 0 | IMJ74: 0 | IMK74: 0 | IML74: 0 | IMM74: 0 | IMN74: 0 | IMO74: 0 | IMP74: 0 | IMQ74: 0 | IMR74: 0 | IMS74: 0 | IMT74: 0 | IMU74: 0 | IMV74: 0 | IMW74: 0 | IMX74: 0 | IMY74: 0 | IMZ74: 0 | INA74: 0 | INB74: 0 | INC74: 0 | IND74: 0 | INE74: 0 | INF74: 0 | ING74: 0 | INH74: 0 | INI74: 0 | INJ74: 0 | INK74: 0 | INL74: 0 | INM74: 0 | INN74: 0 | INO74: 0 | INP74: 0 | INQ74: 0 | INR74: 0 | INS74: 0 | INT74: 0 | INU74: 0 | INV74: 0 | INW74: 0 | INX74: 0 | INY74: 0 | INZ74: 0 | IOA74: 0 | IOB74: =IOB68 + IOB69 + IOB70 + (IOB71 + IOB72 + IOB73) * 0.5 -> 0 | IOC74: 0 | IOD74: 0 | IOE74: 0 | IOF74: 0 | IOG74: 0 | IOH74: 0 | IOI74: 0 | IOJ74: 0 | IOK74: 0 | IOL74: 0 | IOM74: 0 | ION74: 0 | IOO74: 0 | IOP74: 0 | IOQ74: 0 | IOR74: 0 | IOS74: 0 | IOT74: 0 | IOU74: 0 | IOV74: 0 | IOW74: 0 | IOX74: 0 | IOY74: 0 | IOZ74: 0 | IPA74: 0 | IPB74: 0 | IPC74: 0 | IPD74: 0 | IPE74: 0 | IPF74: 0 | IPG74: 0 | IPH74: 0 | IPI74: 0 | IPJ74: 0 | IPK74: 0 | IPL74: 0 | IPM74: 0 | IPN74: 0 | IPO74: 0 | IPP74: 0 | IPQ74: 0 | IPR74: 0 | IPS74: 0 | IPT74: 0 | IPU74: 0 | IPV74: 0 | IPW74: 0 | IPX74: 0 | IPY74: 0 | IPZ74: 0 | IQA74: 0 | IQB74: 0 | IQC74: 0 | IQD74: 0 | IQE74: 0 | IQF74: 0 | IQG74: 0 | IQH74: 0 | IQI74: 0 | IQJ74: 0 | IQK74: 0 | IQL74: 0 | IQM74: 0 | IQN74: =IQN68 + IQN69 + IQN70 + (IQN71 + IQN72 + IQN73) * 0.5 -> 0 | IQO74: 0 | IQP74: 0 | IQQ74: 0 | IQR74: 0 | IQS74: 0 | IQT74: 0 | IQU74: 0 | IQV74: 0 | IQW74: 0 | IQX74: 0 | IQY74: 0 | IQZ74: 0 | IRA74: 0 | IRB74: 0 | IRC74: 0 | IRD74: 0 | IRE74: 0 | IRF74: 0 | IRG74: 0 | IRH74: 0 | IRI74: 0 | IRJ74: 0 | IRK74: 0 | IRL74: 0 | IRM74: 0 | IRN74: 0 | IRO74: 0 | IRP74: 0 | IRQ74: 0 | IRR74: 0 | IRS74: 0 | IRT74: 0 | IRU74: 0 | IRV74: 0 | IRW74: 0 | IRX74: 0 | IRY74: 0 | IRZ74: 0 | ISA74: 0 | ISB74: 0 | ISC74: 0 | ISD74: 0 | ISE74: 0 | ISF74: 0 | ISG74: 0 | ISH74: 0 | ISI74: 0 | ISJ74: 0 | ISK74: 0 | ISL74: 0 | ISM74: 0 | ISN74: 0 | ISO74: 0 | ISP74: 0 | ISQ74: 0 | ISR74: 0 | ISS74: 0 | IST74: 0 | ISU74: 0 | ISV74: 0 | ISW74: 0 | ISX74: 0 | ISY74: 0 | ISZ74: =ISZ68 + ISZ69 + ISZ70 + (ISZ71 + ISZ72 + ISZ73) * 0.5 -> 0 | ITA74: 0 | ITB74: 0 | ITC74: 0 | ITD74: 0 | ITE74: 0 | ITF74: 0 | ITG74: 0 | ITH74: 0 | ITI74: 0 | ITJ74: 0 | ITK74: 0 | ITL74: 0 | ITM74: 0 | ITN74: 0 | ITO74: 0 | ITP74: 0 | ITQ74: 0 | ITR74: 0 | ITS74: 0 | ITT74: 0 | ITU74: 0 | ITV74: 0 | ITW74: 0 | ITX74: 0 | ITY74: 0 | ITZ74: 0 | IUA74: 0 | IUB74: 0 | IUC74: 0 | IUD74: 0 | IUE74: 0 | IUF74: 0 | IUG74: 0 | IUH74: 0 | IUI74: 0 | IUJ74: 0 | IUK74: 0 | IUL74: 0 | IUM74: 0 | IUN74: 0 | IUO74: 0 | IUP74: 0 | IUQ74: 0 | IUR74: 0 | IUS74: 0 | IUT74: 0 | IUU74: 0 | IUV74: 0 | IUW74: 0 | IUX74: 0 | IUY74: 0 | IUZ74: 0 | IVA74: 0 | IVB74: 0 | IVC74: 0 | IVD74: 0 | IVE74: 0 | IVF74: 0 | IVG74: 0 | IVH74: 0 | IVI74: 0 | IVJ74: 0 | IVK74: 0 | IVL74: =IVL68 + IVL69 + IVL70 + (IVL71 + IVL72 + IVL73) * 0.5 -> 0 | IVM74: 0 | IVN74: 0 | IVO74: 0 | IVP74: 0 | IVQ74: 0 | IVR74: 0 | IVS74: 0 | IVT74: 0 | IVU74: 0 | IVV74: 0 | IVW74: 0 | IVX74: 0 | IVY74: 0 | IVZ74: 0 | IWA74: 0 | IWB74: 0 | IWC74: 0 | IWD74: 0 | IWE74: 0 | IWF74: 0 | IWG74: 0 | IWH74: 0 | IWI74: 0 | IWJ74: 0 | IWK74: 0 | IWL74: 0 | IWM74: 0 | IWN74: 0 | IWO74: 0 | IWP74: 0 | IWQ74: 0 | IWR74: 0 | IWS74: 0 | IWT74: 0 | IWU74: 0 | IWV74: 0 | IWW74: 0 | IWX74: 0 | IWY74: 0 | IWZ74: 0 | IXA74: 0 | IXB74: 0 | IXC74: 0 | IXD74: 0 | IXE74: 0 | IXF74: 0 | IXG74: 0 | IXH74: 0 | IXI74: 0 | IXJ74: 0 | IXK74: 0 | IXL74: 0 | IXM74: 0 | IXN74: 0 | IXO74: 0 | IXP74: 0 | IXQ74: 0 | IXR74: 0 | IXS74: 0 | IXT74: 0 | IXU74: 0 | IXV74: 0 | IXW74: 0 | IXX74: =IXX68 + IXX69 + IXX70 + (IXX71 + IXX72 + IXX73) * 0.5 -> 0 | IXY74: 0 | IXZ74: 0 | IYA74: 0 | IYB74: 0 | IYC74: 0 | IYD74: 0 | IYE74: 0 | IYF74: 0 | IYG74: 0 | IYH74: 0 | IYI74: 0 | IYJ74: 0 | IYK74: 0 | IYL74: 0 | IYM74: 0 | IYN74: 0 | IYO74: 0 | IYP74: 0 | IYQ74: 0 | IYR74: 0 | IYS74: 0 | IYT74: 0 | IYU74: 0 | IYV74: 0 | IYW74: 0 | IYX74: 0 | IYY74: 0 | IYZ74: 0 | IZA74: 0 | IZB74: 0 | IZC74: 0 | IZD74: 0 | IZE74: 0 | IZF74: 0 | IZG74: 0 | IZH74: 0 | IZI74: 0 | IZJ74: 0 | IZK74: 0 | IZL74: 0 | IZM74: 0 | IZN74: 0 | IZO74: 0 | IZP74: 0 | IZQ74: 0 | IZR74: 0 | IZS74: 0 | IZT74: 0 | IZU74: 0 | IZV74: 0 | IZW74: 0 | IZX74: 0 | IZY74: 0 | IZZ74: 0 | JAA74: 0 | JAB74: 0 | JAC74: 0 | JAD74: 0 | JAE74: 0 | JAF74: 0 | JAG74: 0 | JAH74: 0 | JAI74: 0 | JAJ74: =JAJ68 + JAJ69 + JAJ70 + (JAJ71 + JAJ72 + JAJ73) * 0.5 -> 0 | JAK74: 0 | JAL74: 0 | JAM74: 0 | JAN74: 0 | JAO74: 0 | JAP74: 0 | JAQ74: 0 | JAR74: 0 | JAS74: 0 | JAT74: 0 | JAU74: 0 | JAV74: 0 | JAW74: 0 | JAX74: 0 | JAY74: 0 | JAZ74: 0 | JBA74: 0 | JBB74: 0 | JBC74: 0 | JBD74: 0 | JBE74: 0 | JBF74: 0 | JBG74: 0 | JBH74: 0 | JBI74: 0 | JBJ74: 0 | JBK74: 0 | JBL74: 0 | JBM74: 0 | JBN74: 0 | JBO74: 0 | JBP74: 0 | JBQ74: 0 | JBR74: 0 | JBS74: 0 | JBT74: 0 | JBU74: 0 | JBV74: 0 | JBW74: 0 | JBX74: 0 | JBY74: 0 | JBZ74: 0 | JCA74: 0 | JCB74: 0 | JCC74: 0 | JCD74: 0 | JCE74: 0 | JCF74: 0 | JCG74: 0 | JCH74: 0 | JCI74: 0 | JCJ74: 0 | JCK74: 0 | JCL74: 0 | JCM74: 0 | JCN74: 0 | JCO74: 0 | JCP74: 0 | JCQ74: 0 | JCR74: 0 | JCS74: 0 | JCT74: 0 | JCU74: 0 | JCV74: =JCV68 + JCV69 + JCV70 + (JCV71 + JCV72 + JCV73) * 0.5 -> 0 | JCW74: 0 | JCX74: 0 | JCY74: 0 | JCZ74: 0 | JDA74: 0 | JDB74: 0 | JDC74: 0 | JDD74: 0 | JDE74: 0 | JDF74: 0 | JDG74: 0 | JDH74: 0 | JDI74: 0 | JDJ74: 0 | JDK74: 0 | JDL74: 0 | JDM74: 0 | JDN74: 0 | JDO74: 0 | JDP74: 0 | JDQ74: 0 | JDR74: 0 | JDS74: 0 | JDT74: 0 | JDU74: 0 | JDV74: 0 | JDW74: 0 | JDX74: 0 | JDY74: 0 | JDZ74: 0 | JEA74: 0 | JEB74: 0 | JEC74: 0 | JED74: 0 | JEE74: 0 | JEF74: 0 | JEG74: 0 | JEH74: 0 | JEI74: 0 | JEJ74: 0 | JEK74: 0 | JEL74: 0 | JEM74: 0 | JEN74: 0 | JEO74: 0 | JEP74: 0 | JEQ74: 0 | JER74: 0 | JES74: 0 | JET74: 0 | JEU74: 0 | JEV74: 0 | JEW74: 0 | JEX74: 0 | JEY74: 0 | JEZ74: 0 | JFA74: 0 | JFB74: 0 | JFC74: 0 | JFD74: 0 | JFE74: 0 | JFF74: 0 | JFG74: 0 | JFH74: =JFH68 + JFH69 + JFH70 + (JFH71 + JFH72 + JFH73) * 0.5 -> 0 | JFI74: 0 | JFJ74: 0 | JFK74: 0 | JFL74: 0 | JFM74: 0 | JFN74: 0 | JFO74: 0 | JFP74: 0 | JFQ74: 0 | JFR74: 0 | JFS74: 0 | JFT74: 0 | JFU74: 0 | JFV74: 0 | JFW74: 0 | JFX74: 0 | JFY74: 0 | JFZ74: 0 | JGA74: 0 | JGB74: 0 | JGC74: 0 | JGD74: 0 | JGE74: 0 | JGF74: 0 | JGG74: 0 | JGH74: 0 | JGI74: 0 | JGJ74: 0 | JGK74: 0 | JGL74: 0 | JGM74: 0 | JGN74: 0 | JGO74: 0 | JGP74: 0 | JGQ74: 0 | JGR74: 0 | JGS74: 0 | JGT74: 0 | JGU74: 0 | JGV74: 0 | JGW74: 0 | JGX74: 0 | JGY74: 0 | JGZ74: 0 | JHA74: 0 | JHB74: 0 | JHC74: 0 | JHD74: 0 | JHE74: 0 | JHF74: 0 | JHG74: 0 | JHH74: 0 | JHI74: 0 | JHJ74: 0 | JHK74: 0 | JHL74: 0 | JHM74: 0 | JHN74: 0 | JHO74: 0 | JHP74: 0 | JHQ74: 0 | JHR74: 0 | JHS74: 0 | JHT74: =JHT68 + JHT69 + JHT70 + (JHT71 + JHT72 + JHT73) * 0.5 -> 0 | JHU74: 0 | JHV74: 0 | JHW74: 0 | JHX74: 0 | JHY74: 0 | JHZ74: 0 | JIA74: 0 | JIB74: 0 | JIC74: 0 | JID74: 0 | JIE74: 0 | JIF74: 0 | JIG74: 0 | JIH74: 0 | JII74: 0 | JIJ74: 0 | JIK74: 0 | JIL74: 0 | JIM74: 0 | JIN74: 0 | JIO74: 0 | JIP74: 0 | JIQ74: 0 | JIR74: 0 | JIS74: 0 | JIT74: 0 | JIU74: 0 | JIV74: 0 | JIW74: 0 | JIX74: 0 | JIY74: 0 | JIZ74: 0 | JJA74: 0 | JJB74: 0 | JJC74: 0 | JJD74: 0 | JJE74: 0 | JJF74: 0 | JJG74: 0 | JJH74: 0 | JJI74: 0 | JJJ74: 0 | JJK74: 0 | JJL74: 0 | JJM74: 0 | JJN74: 0 | JJO74: 0 | JJP74: 0 | JJQ74: 0 | JJR74: 0 | JJS74: 0 | JJT74: 0 | JJU74: 0 | JJV74: 0 | JJW74: 0 | JJX74: 0 | JJY74: 0 | JJZ74: 0 | JKA74: 0 | JKB74: 0 | JKC74: 0 | JKD74: 0 | JKE74: 0 | JKF74: =JKF68 + JKF69 + JKF70 + (JKF71 + JKF72 + JKF73) * 0.5 -> 0 | JKG74: 0 | JKH74: 0 | JKI74: 0 | JKJ74: 0 | JKK74: 0 | JKL74: 0 | JKM74: 0 | JKN74: 0 | JKO74: 0 | JKP74: 0 | JKQ74: 0 | JKR74: 0 | JKS74: 0 | JKT74: 0 | JKU74: 0 | JKV74: 0 | JKW74: 0 | JKX74: 0 | JKY74: 0 | JKZ74: 0 | JLA74: 0 | JLB74: 0 | JLC74: 0 | JLD74: 0 | JLE74: 0 | JLF74: 0 | JLG74: 0 | JLH74: 0 | JLI74: 0 | JLJ74: 0 | JLK74: 0 | JLL74: 0 | JLM74: 0 | JLN74: 0 | JLO74: 0 | JLP74: 0 | JLQ74: 0 | JLR74: 0 | JLS74: 0 | JLT74: 0 | JLU74: 0 | JLV74: 0 | JLW74: 0 | JLX74: 0 | JLY74: 0 | JLZ74: 0 | JMA74: 0 | JMB74: 0 | JMC74: 0 | JMD74: 0 | JME74: 0 | JMF74: 0 | JMG74: 0 | JMH74: 0 | JMI74: 0 | JMJ74: 0 | JMK74: 0 | JML74: 0 | JMM74: 0 | JMN74: 0 | JMO74: 0 | JMP74: 0 | JMQ74: 0 | JMR74: =JMR68 + JMR69 + JMR70 + (JMR71 + JMR72 + JMR73) * 0.5 -> 0 | JMS74: 0 | JMT74: 0 | JMU74: 0 | JMV74: 0 | JMW74: 0 | JMX74: 0 | JMY74: 0 | JMZ74: 0 | JNA74: 0 | JNB74: 0 | JNC74: 0 | JND74: 0 | JNE74: 0 | JNF74: 0 | JNG74: 0 | JNH74: 0 | JNI74: 0 | JNJ74: 0 | JNK74: 0 | JNL74: 0 | JNM74: 0 | JNN74: 0 | JNO74: 0 | JNP74: 0 | JNQ74: 0 | JNR74: 0 | JNS74: 0 | JNT74: 0 | JNU74: 0 | JNV74: 0 | JNW74: 0 | JNX74: 0 | JNY74: 0 | JNZ74: 0 | JOA74: 0 | JOB74: 0 | JOC74: 0 | JOD74: 0 | JOE74: 0 | JOF74: 0 | JOG74: 0 | JOH74: 0 | JOI74: 0 | JOJ74: 0 | JOK74: 0 | JOL74: 0 | JOM74: 0 | JON74: 0 | JOO74: 0 | JOP74: 0 | JOQ74: 0 | JOR74: 0 | JOS74: 0 | JOT74: 0 | JOU74: 0 | JOV74: 0 | JOW74: 0 | JOX74: 0 | JOY74: 0 | JOZ74: 0 | JPA74: 0 | JPB74: 0 | JPC74: 0 | JPD74: =JPD68 + JPD69 + JPD70 + (JPD71 + JPD72 + JPD73) * 0.5 -> 0 | JPE74: 0 | JPF74: 0 | JPG74: 0 | JPH74: 0 | JPI74: 0 | JPJ74: 0 | JPK74: 0 | JPL74: 0 | JPM74: 0 | JPN74: 0 | JPO74: 0 | JPP74: 0 | JPQ74: 0 | JPR74: 0 | JPS74: 0 | JPT74: 0 | JPU74: 0 | JPV74: 0 | JPW74: 0 | JPX74: 0 | JPY74: 0 | JPZ74: 0 | JQA74: 0 | JQB74: 0 | JQC74: 0 | JQD74: 0 | JQE74: 0 | JQF74: 0 | JQG74: 0 | JQH74: 0 | JQI74: 0 | JQJ74: 0 | JQK74: 0 | JQL74: 0 | JQM74: 0 | JQN74: 0 | JQO74: 0 | JQP74: 0 | JQQ74: 0 | JQR74: 0 | JQS74: 0 | JQT74: 0 | JQU74: 0 | JQV74: 0 | JQW74: 0 | JQX74: 0 | JQY74: 0 | JQZ74: 0 | JRA74: 0 | JRB74: 0 | JRC74: 0 | JRD74: 0 | JRE74: 0 | JRF74: 0 | JRG74: 0 | JRH74: 0 | JRI74: 0 | JRJ74: 0 | JRK74: 0 | JRL74: 0 | JRM74: 0 | JRN74: 0 | JRO74: 0 | JRP74: =JRP68 + JRP69 + JRP70 + (JRP71 + JRP72 + JRP73) * 0.5 -> 0 | JRQ74: 0 | JRR74: 0 | JRS74: 0 | JRT74: 0 | JRU74: 0 | JRV74: 0 | JRW74: 0 | JRX74: 0 | JRY74: 0 | JRZ74: 0 | JSA74: 0 | JSB74: 0 | JSC74: 0 | JSD74: 0 | JSE74: 0 | JSF74: 0 | JSG74: 0 | JSH74: 0 | JSI74: 0 | JSJ74: 0 | JSK74: 0 | JSL74: 0 | JSM74: 0 | JSN74: 0 | JSO74: 0 | JSP74: 0 | JSQ74: 0 | JSR74: 0 | JSS74: 0 | JST74: 0 | JSU74: 0 | JSV74: 0 | JSW74: 0 | JSX74: 0 | JSY74: 0 | JSZ74: 0 | JTA74: 0 | JTB74: 0 | JTC74: 0 | JTD74: 0 | JTE74: 0 | JTF74: 0 | JTG74: 0 | JTH74: 0 | JTI74: 0 | JTJ74: 0 | JTK74: 0 | JTL74: 0 | JTM74: 0 | JTN74: 0 | JTO74: 0 | JTP74: 0 | JTQ74: 0 | JTR74: 0 | JTS74: 0 | JTT74: 0 | JTU74: 0 | JTV74: 0 | JTW74: 0 | JTX74: 0 | JTY74: 0 | JTZ74: 0 | JUA74: 0 | JUB74: =JUB68 + JUB69 + JUB70 + (JUB71 + JUB72 + JUB73) * 0.5 -> 0 | JUC74: 0 | JUD74: 0 | JUE74: 0 | JUF74: 0 | JUG74: 0 | JUH74: 0 | JUI74: 0 | JUJ74: 0 | JUK74: 0 | JUL74: 0 | JUM74: 0 | JUN74: 0 | JUO74: 0 | JUP74: 0 | JUQ74: 0 | JUR74: 0 | JUS74: 0 | JUT74: 0 | JUU74: 0 | JUV74: 0 | JUW74: 0 | JUX74: 0 | JUY74: 0 | JUZ74: 0 | JVA74: 0 | JVB74: 0 | JVC74: 0 | JVD74: 0 | JVE74: 0 | JVF74: 0 | JVG74: 0 | JVH74: 0 | JVI74: 0 | JVJ74: 0 | JVK74: 0 | JVL74: 0 | JVM74: 0 | JVN74: 0 | JVO74: 0 | JVP74: 0 | JVQ74: 0 | JVR74: 0 | JVS74: 0 | JVT74: 0 | JVU74: 0 | JVV74: 0 | JVW74: 0 | JVX74: 0 | JVY74: 0 | JVZ74: 0 | JWA74: 0 | JWB74: 0 | JWC74: 0 | JWD74: 0 | JWE74: 0 | JWF74: 0 | JWG74: 0 | JWH74: 0 | JWI74: 0 | JWJ74: 0 | JWK74: 0 | JWL74: 0 | JWM74: 0 | JWN74: =JWN68 + JWN69 + JWN70 + (JWN71 + JWN72 + JWN73) * 0.5 -> 0 | JWO74: 0 | JWP74: 0 | JWQ74: 0 | JWR74: 0 | JWS74: 0 | JWT74: 0 | JWU74: 0 | JWV74: 0 | JWW74: 0 | JWX74: 0 | JWY74: 0 | JWZ74: 0 | JXA74: 0 | JXB74: 0 | JXC74: 0 | JXD74: 0 | JXE74: 0 | JXF74: 0 | JXG74: 0 | JXH74: 0 | JXI74: 0 | JXJ74: 0 | JXK74: 0 | JXL74: 0 | JXM74: 0 | JXN74: 0 | JXO74: 0 | JXP74: 0 | JXQ74: 0 | JXR74: 0 | JXS74: 0 | JXT74: 0 | JXU74: 0 | JXV74: 0 | JXW74: 0 | JXX74: 0 | JXY74: 0 | JXZ74: 0 | JYA74: 0 | JYB74: 0 | JYC74: 0 | JYD74: 0 | JYE74: 0 | JYF74: 0 | JYG74: 0 | JYH74: 0 | JYI74: 0 | JYJ74: 0 | JYK74: 0 | JYL74: 0 | JYM74: 0 | JYN74: 0 | JYO74: 0 | JYP74: 0 | JYQ74: 0 | JYR74: 0 | JYS74: 0 | JYT74: 0 | JYU74: 0 | JYV74: 0 | JYW74: 0 | JYX74: 0 | JYY74: 0 | JYZ74: =JYZ68 + JYZ69 + JYZ70 + (JYZ71 + JYZ72 + JYZ73) * 0.5 -> 0 | JZA74: 0 | JZB74: 0 | JZC74: 0 | JZD74: 0 | JZE74: 0 | JZF74: 0 | JZG74: 0 | JZH74: 0 | JZI74: 0 | JZJ74: 0 | JZK74: 0 | JZL74: 0 | JZM74: 0 | JZN74: 0 | JZO74: 0 | JZP74: 0 | JZQ74: 0 | JZR74: 0 | JZS74: 0 | JZT74: 0 | JZU74: 0 | JZV74: 0 | JZW74: 0 | JZX74: 0 | JZY74: 0 | JZZ74: 0 | KAA74: 0 | KAB74: 0 | KAC74: 0 | KAD74: 0 | KAE74: 0 | KAF74: 0 | KAG74: 0 | KAH74: 0 | KAI74: 0 | KAJ74: 0 | KAK74: 0 | KAL74: 0 | KAM74: 0 | KAN74: 0 | KAO74: 0 | KAP74: 0 | KAQ74: 0 | KAR74: 0 | KAS74: 0 | KAT74: 0 | KAU74: 0 | KAV74: 0 | KAW74: 0 | KAX74: 0 | KAY74: 0 | KAZ74: 0 | KBA74: 0 | KBB74: 0 | KBC74: 0 | KBD74: 0 | KBE74: 0 | KBF74: 0 | KBG74: 0 | KBH74: 0 | KBI74: 0 | KBJ74: 0 | KBK74: 0 | KBL74: =KBL68 + KBL69 + KBL70 + (KBL71 + KBL72 + KBL73) * 0.5 -> 0 | KBM74: 0 | KBN74: 0 | KBO74: 0 | KBP74: 0 | KBQ74: 0 | KBR74: 0 | KBS74: 0 | KBT74: 0 | KBU74: 0 | KBV74: 0 | KBW74: 0 | KBX74: 0 | KBY74: 0 | KBZ74: 0 | KCA74: 0 | KCB74: 0 | KCC74: 0 | KCD74: 0 | KCE74: 0 | KCF74: 0 | KCG74: 0 | KCH74: 0 | KCI74: 0 | KCJ74: 0 | KCK74: 0 | KCL74: 0 | KCM74: 0 | KCN74: 0 | KCO74: 0 | KCP74: 0 | KCQ74: 0 | KCR74: 0 | KCS74: 0 | KCT74: 0 | KCU74: 0 | KCV74: 0 | KCW74: 0 | KCX74: 0 | KCY74: 0 | KCZ74: 0 | KDA74: 0 | KDB74: 0 | KDC74: 0 | KDD74: 0 | KDE74: 0 | KDF74: 0 | KDG74: 0 | KDH74: 0 | KDI74: 0 | KDJ74: 0 | KDK74: 0 | KDL74: 0 | KDM74: 0 | KDN74: 0 | KDO74: 0 | KDP74: 0 | KDQ74: 0 | KDR74: 0 | KDS74: 0 | KDT74: 0 | KDU74: 0 | KDV74: 0 | KDW74: 0 | KDX74: =KDX68 + KDX69 + KDX70 + (KDX71 + KDX72 + KDX73) * 0.5 -> 0 | KDY74: 0 | KDZ74: 0 | KEA74: 0 | KEB74: 0 | KEC74: 0 | KED74: 0 | KEE74: 0 | KEF74: 0 | KEG74: 0 | KEH74: 0 | KEI74: 0 | KEJ74: 0 | KEK74: 0 | KEL74: 0 | KEM74: 0 | KEN74: 0 | KEO74: 0 | KEP74: 0 | KEQ74: 0 | KER74: 0 | KES74: 0 | KET74: 0 | KEU74: 0 | KEV74: 0 | KEW74: 0 | KEX74: 0 | KEY74: 0 | KEZ74: 0 | KFA74: 0 | KFB74: 0 | KFC74: 0 | KFD74: 0 | KFE74: 0 | KFF74: 0 | KFG74: 0 | KFH74: 0 | KFI74: 0 | KFJ74: 0 | KFK74: 0 | KFL74: 0 | KFM74: 0 | KFN74: 0 | KFO74: 0 | KFP74: 0 | KFQ74: 0 | KFR74: 0 | KFS74: 0 | KFT74: 0 | KFU74: 0 | KFV74: 0 | KFW74: 0 | KFX74: 0 | KFY74: 0 | KFZ74: 0 | KGA74: 0 | KGB74: 0 | KGC74: 0 | KGD74: 0 | KGE74: 0 | KGF74: 0 | KGG74: 0 | KGH74: 0 | KGI74: 0 | KGJ74: =KGJ68 + KGJ69 + KGJ70 + (KGJ71 + KGJ72 + KGJ73) * 0.5 -> 0 | KGK74: 0 | KGL74: 0 | KGM74: 0 | KGN74: 0 | KGO74: 0 | KGP74: 0 | KGQ74: 0 | KGR74: 0 | KGS74: 0 | KGT74: 0 | KGU74: 0 | KGV74: 0 | KGW74: 0 | KGX74: 0 | KGY74: 0 | KGZ74: 0 | KHA74: 0 | KHB74: 0 | KHC74: 0 | KHD74: 0 | KHE74: 0 | KHF74: 0 | KHG74: 0 | KHH74: 0 | KHI74: 0 | KHJ74: 0 | KHK74: 0 | KHL74: 0 | KHM74: 0 | KHN74: 0 | KHO74: 0 | KHP74: 0 | KHQ74: 0 | KHR74: 0 | KHS74: 0 | KHT74: 0 | KHU74: 0 | KHV74: 0 | KHW74: 0 | KHX74: 0 | KHY74: 0 | KHZ74: 0 | KIA74: 0 | KIB74: 0 | KIC74: 0 | KID74: 0 | KIE74: 0 | KIF74: 0 | KIG74: 0 | KIH74: 0 | KII74: 0 | KIJ74: 0 | KIK74: 0 | KIL74: 0 | KIM74: 0 | KIN74: 0 | KIO74: 0 | KIP74: 0 | KIQ74: 0 | KIR74: 0 | KIS74: 0 | KIT74: 0 | KIU74: 0 | KIV74: =KIV68 + KIV69 + KIV70 + (KIV71 + KIV72 + KIV73) * 0.5 -> 0 | KIW74: 0 | KIX74: 0 | KIY74: 0 | KIZ74: 0 | KJA74: 0 | KJB74: 0 | KJC74: 0 | KJD74: 0 | KJE74: 0 | KJF74: 0 | KJG74: 0 | KJH74: 0 | KJI74: 0 | KJJ74: 0 | KJK74: 0 | KJL74: 0 | KJM74: 0 | KJN74: 0 | KJO74: 0 | KJP74: 0 | KJQ74: 0 | KJR74: 0 | KJS74: 0 | KJT74: 0 | KJU74: 0 | KJV74: 0 | KJW74: 0 | KJX74: 0 | KJY74: 0 | KJZ74: 0 | KKA74: 0 | KKB74: 0 | KKC74: 0 | KKD74: 0 | KKE74: 0 | KKF74: 0 | KKG74: 0 | KKH74: 0 | KKI74: 0 | KKJ74: 0 | KKK74: 0 | KKL74: 0 | KKM74: 0 | KKN74: 0 | KKO74: 0 | KKP74: 0 | KKQ74: 0 | KKR74: 0 | KKS74: 0 | KKT74: 0 | KKU74: 0 | KKV74: 0 | KKW74: 0 | KKX74: 0 | KKY74: 0 | KKZ74: 0 | KLA74: 0 | KLB74: 0 | KLC74: 0 | KLD74: 0 | KLE74: 0 | KLF74: 0 | KLG74: 0 | KLH74: =KLH68 + KLH69 + KLH70 + (KLH71 + KLH72 + KLH73) * 0.5 -> 0 | KLI74: 0 | KLJ74: 0 | KLK74: 0 | KLL74: 0 | KLM74: 0 | KLN74: 0 | KLO74: 0 | KLP74: 0 | KLQ74: 0 | KLR74: 0 | KLS74: 0 | KLT74: 0 | KLU74: 0 | KLV74: 0 | KLW74: 0 | KLX74: 0 | KLY74: 0 | KLZ74: 0 | KMA74: 0 | KMB74: 0 | KMC74: 0 | KMD74: 0 | KME74: 0 | KMF74: 0 | KMG74: 0 | KMH74: 0 | KMI74: 0 | KMJ74: 0 | KMK74: 0 | KML74: 0 | KMM74: 0 | KMN74: 0 | KMO74: 0 | KMP74: 0 | KMQ74: 0 | KMR74: 0 | KMS74: 0 | KMT74: 0 | KMU74: 0 | KMV74: 0 | KMW74: 0 | KMX74: 0 | KMY74: 0 | KMZ74: 0 | KNA74: 0 | KNB74: 0 | KNC74: 0 | KND74: 0 | KNE74: 0 | KNF74: 0 | KNG74: 0 | KNH74: 0 | KNI74: 0 | KNJ74: 0 | KNK74: 0 | KNL74: 0 | KNM74: 0 | KNN74: 0 | KNO74: 0 | KNP74: 0 | KNQ74: 0 | KNR74: 0 | KNS74: 0 | KNT74: =KNT68 + KNT69 + KNT70 + (KNT71 + KNT72 + KNT73) * 0.5 -> 0 | KNU74: 0 | KNV74: 0 | KNW74: 0 | KNX74: 0 | KNY74: 0 | KNZ74: 0 | KOA74: 0 | KOB74: 0 | KOC74: 0 | KOD74: 0 | KOE74: 0 | KOF74: 0 | KOG74: 0 | KOH74: 0 | KOI74: 0 | KOJ74: 0 | KOK74: 0 | KOL74: 0 | KOM74: 0 | KON74: 0 | KOO74: 0 | KOP74: 0 | KOQ74: 0 | KOR74: 0 | KOS74: 0 | KOT74: 0 | KOU74: 0 | KOV74: 0 | KOW74: 0 | KOX74: 0 | KOY74: 0 | KOZ74: 0 | KPA74: 0 | KPB74: 0 | KPC74: 0 | KPD74: 0 | KPE74: 0 | KPF74: 0 | KPG74: 0 | KPH74: 0 | KPI74: 0 | KPJ74: 0 | KPK74: 0 | KPL74: 0 | KPM74: 0 | KPN74: 0 | KPO74: 0 | KPP74: 0 | KPQ74: 0 | KPR74: 0 | KPS74: 0 | KPT74: 0 | KPU74: 0 | KPV74: 0 | KPW74: 0 | KPX74: 0 | KPY74: 0 | KPZ74: 0 | KQA74: 0 | KQB74: 0 | KQC74: 0 | KQD74: 0 | KQE74: 0 | KQF74: =KQF68 + KQF69 + KQF70 + (KQF71 + KQF72 + KQF73) * 0.5 -> 0 | KQG74: 0 | KQH74: 0 | KQI74: 0 | KQJ74: 0 | KQK74: 0 | KQL74: 0 | KQM74: 0 | KQN74: 0 | KQO74: 0 | KQP74: 0 | KQQ74: 0 | KQR74: 0 | KQS74: 0 | KQT74: 0 | KQU74: 0 | KQV74: 0 | KQW74: 0 | KQX74: 0 | KQY74: 0 | KQZ74: 0 | KRA74: 0 | KRB74: 0 | KRC74: 0 | KRD74: 0 | KRE74: 0 | KRF74: 0 | KRG74: 0 | KRH74: 0 | KRI74: 0 | KRJ74: 0 | KRK74: 0 | KRL74: 0 | KRM74: 0 | KRN74: 0 | KRO74: 0 | KRP74: 0 | KRQ74: 0 | KRR74: 0 | KRS74: 0 | KRT74: 0 | KRU74: 0 | KRV74: 0 | KRW74: 0 | KRX74: 0 | KRY74: 0 | KRZ74: 0 | KSA74: 0 | KSB74: 0 | KSC74: 0 | KSD74: 0 | KSE74: 0 | KSF74: 0 | KSG74: 0 | KSH74: 0 | KSI74: 0 | KSJ74: 0 | KSK74: 0 | KSL74: 0 | KSM74: 0 | KSN74: 0 | KSO74: 0 | KSP74: 0 | KSQ74: 0 | KSR74: =KSR68 + KSR69 + KSR70 + (KSR71 + KSR72 + KSR73) * 0.5 -> 0 | KSS74: 0 | KST74: 0 | KSU74: 0 | KSV74: 0 | KSW74: 0 | KSX74: 0 | KSY74: 0 | KSZ74: 0 | KTA74: 0 | KTB74: 0 | KTC74: 0 | KTD74: 0 | KTE74: 0 | KTF74: 0 | KTG74: 0 | KTH74: 0 | KTI74: 0 | KTJ74: 0 | KTK74: 0 | KTL74: 0 | KTM74: 0 | KTN74: 0 | KTO74: 0 | KTP74: 0 | KTQ74: 0 | KTR74: 0 | KTS74: 0 | KTT74: 0 | KTU74: 0 | KTV74: 0 | KTW74: 0 | KTX74: 0 | KTY74: 0 | KTZ74: 0 | KUA74: 0 | KUB74: 0 | KUC74: 0 | KUD74: 0 | KUE74: 0 | KUF74: 0 | KUG74: 0 | KUH74: 0 | KUI74: 0 | KUJ74: 0 | KUK74: 0 | KUL74: 0 | KUM74: 0 | KUN74: 0 | KUO74: 0 | KUP74: 0 | KUQ74: 0 | KUR74: 0 | KUS74: 0 | KUT74: 0 | KUU74: 0 | KUV74: 0 | KUW74: 0 | KUX74: 0 | KUY74: 0 | KUZ74: 0 | KVA74: 0 | KVB74: 0 | KVC74: 0 | KVD74: =KVD68 + KVD69 + KVD70 + (KVD71 + KVD72 + KVD73) * 0.5 -> 0 | KVE74: 0 | KVF74: 0 | KVG74: 0 | KVH74: 0 | KVI74: 0 | KVJ74: 0 | KVK74: 0 | KVL74: 0 | KVM74: 0 | KVN74: 0 | KVO74: 0 | KVP74: 0 | KVQ74: 0 | KVR74: 0 | KVS74: 0 | KVT74: 0 | KVU74: 0 | KVV74: 0 | KVW74: 0 | KVX74: 0 | KVY74: 0 | KVZ74: 0 | KWA74: 0 | KWB74: 0 | KWC74: 0 | KWD74: 0 | KWE74: 0 | KWF74: 0 | KWG74: 0 | KWH74: 0 | KWI74: 0 | KWJ74: 0 | KWK74: 0 | KWL74: 0 | KWM74: 0 | KWN74: 0 | KWO74: 0 | KWP74: 0 | KWQ74: 0 | KWR74: 0 | KWS74: 0 | KWT74: 0 | KWU74: 0 | KWV74: 0 | KWW74: 0 | KWX74: 0 | KWY74: 0 | KWZ74: 0 | KXA74: 0 | KXB74: 0 | KXC74: 0 | KXD74: 0 | KXE74: 0 | KXF74: 0 | KXG74: 0 | KXH74: 0 | KXI74: 0 | KXJ74: 0 | KXK74: 0 | KXL74: 0 | KXM74: 0 | KXN74: 0 | KXO74: 0 | KXP74: =KXP68 + KXP69 + KXP70 + (KXP71 + KXP72 + KXP73) * 0.5 -> 0 | KXQ74: 0 | KXR74: 0 | KXS74: 0 | KXT74: 0 | KXU74: 0 | KXV74: 0 | KXW74: 0 | KXX74: 0 | KXY74: 0 | KXZ74: 0 | KYA74: 0 | KYB74: 0 | KYC74: 0 | KYD74: 0 | KYE74: 0 | KYF74: 0 | KYG74: 0 | KYH74: 0 | KYI74: 0 | KYJ74: 0 | KYK74: 0 | KYL74: 0 | KYM74: 0 | KYN74: 0 | KYO74: 0 | KYP74: 0 | KYQ74: 0 | KYR74: 0 | KYS74: 0 | KYT74: 0 | KYU74: 0 | KYV74: 0 | KYW74: 0 | KYX74: 0 | KYY74: 0 | KYZ74: 0 | KZA74: 0 | KZB74: 0 | KZC74: 0 | KZD74: 0 | KZE74: 0 | KZF74: 0 | KZG74: 0 | KZH74: 0 | KZI74: 0 | KZJ74: 0 | KZK74: 0 | KZL74: 0 | KZM74: 0 | KZN74: 0 | KZO74: 0 | KZP74: 0 | KZQ74: 0 | KZR74: 0 | KZS74: 0 | KZT74: 0 | KZU74: 0 | KZV74: 0 | KZW74: 0 | KZX74: 0 | KZY74: 0 | KZZ74: 0 | LAA74: 0 | LAB74: =LAB68 + LAB69 + LAB70 + (LAB71 + LAB72 + LAB73) * 0.5 -> 0 | LAC74: 0 | LAD74: 0 | LAE74: 0 | LAF74: 0 | LAG74: 0 | LAH74: 0 | LAI74: 0 | LAJ74: 0 | LAK74: 0 | LAL74: 0 | LAM74: 0 | LAN74: 0 | LAO74: 0 | LAP74: 0 | LAQ74: 0 | LAR74: 0 | LAS74: 0 | LAT74: 0 | LAU74: 0 | LAV74: 0 | LAW74: 0 | LAX74: 0 | LAY74: 0 | LAZ74: 0 | LBA74: 0 | LBB74: 0 | LBC74: 0 | LBD74: 0 | LBE74: 0 | LBF74: 0 | LBG74: 0 | LBH74: 0 | LBI74: 0 | LBJ74: 0 | LBK74: 0 | LBL74: 0 | LBM74: 0 | LBN74: 0 | LBO74: 0 | LBP74: 0 | LBQ74: 0 | LBR74: 0 | LBS74: 0 | LBT74: 0 | LBU74: 0 | LBV74: 0 | LBW74: 0 | LBX74: 0 | LBY74: 0 | LBZ74: 0 | LCA74: 0 | LCB74: 0 | LCC74: 0 | LCD74: 0 | LCE74: 0 | LCF74: 0 | LCG74: 0 | LCH74: 0 | LCI74: 0 | LCJ74: 0 | LCK74: 0 | LCL74: 0 | LCM74: 0 | LCN74: =LCN68 + LCN69 + LCN70 + (LCN71 + LCN72 + LCN73) * 0.5 -> 0 | LCO74: 0 | LCP74: 0 | LCQ74: 0 | LCR74: 0 | LCS74: 0 | LCT74: 0 | LCU74: 0 | LCV74: 0 | LCW74: 0 | LCX74: 0 | LCY74: 0 | LCZ74: 0 | LDA74: 0 | LDB74: 0 | LDC74: 0 | LDD74: 0 | LDE74: 0 | LDF74: 0 | LDG74: 0 | LDH74: 0 | LDI74: 0 | LDJ74: 0 | LDK74: 0 | LDL74: 0 | LDM74: 0 | LDN74: 0 | LDO74: 0 | LDP74: 0 | LDQ74: 0 | LDR74: 0 | LDS74: 0 | LDT74: 0 | LDU74: 0 | LDV74: 0 | LDW74: 0 | LDX74: 0 | LDY74: 0 | LDZ74: 0 | LEA74: 0 | LEB74: 0 | LEC74: 0 | LED74: 0 | LEE74: 0 | LEF74: 0 | LEG74: 0 | LEH74: 0 | LEI74: 0 | LEJ74: 0 | LEK74: 0 | LEL74: 0 | LEM74: 0 | LEN74: 0 | LEO74: 0 | LEP74: 0 | LEQ74: 0 | LER74: 0 | LES74: 0 | LET74: 0 | LEU74: 0 | LEV74: 0 | LEW74: 0 | LEX74: 0 | LEY74: 0 | LEZ74: =LEZ68 + LEZ69 + LEZ70 + (LEZ71 + LEZ72 + LEZ73) * 0.5 -> 0 | LFA74: 0 | LFB74: 0 | LFC74: 0 | LFD74: 0 | LFE74: 0 | LFF74: 0 | LFG74: 0 | LFH74: 0 | LFI74: 0 | LFJ74: 0 | LFK74: 0 | LFL74: 0 | LFM74: 0 | LFN74: 0 | LFO74: 0 | LFP74: 0 | LFQ74: 0 | LFR74: 0 | LFS74: 0 | LFT74: 0 | LFU74: 0 | LFV74: 0 | LFW74: 0 | LFX74: 0 | LFY74: 0 | LFZ74: 0 | LGA74: 0 | LGB74: 0 | LGC74: 0 | LGD74: 0 | LGE74: 0 | LGF74: 0 | LGG74: 0 | LGH74: 0 | LGI74: 0 | LGJ74: 0 | LGK74: 0 | LGL74: 0 | LGM74: 0 | LGN74: 0 | LGO74: 0 | LGP74: 0 | LGQ74: 0 | LGR74: 0 | LGS74: 0 | LGT74: 0 | LGU74: 0 | LGV74: 0 | LGW74: 0 | LGX74: 0 | LGY74: 0 | LGZ74: 0 | LHA74: 0 | LHB74: 0 | LHC74: 0 | LHD74: 0 | LHE74: 0 | LHF74: 0 | LHG74: 0 | LHH74: 0 | LHI74: 0 | LHJ74: 0 | LHK74: 0 | LHL74: =LHL68 + LHL69 + LHL70 + (LHL71 + LHL72 + LHL73) * 0.5 -> 0 | LHM74: 0 | LHN74: 0 | LHO74: 0 | LHP74: 0 | LHQ74: 0 | LHR74: 0 | LHS74: 0 | LHT74: 0 | LHU74: 0 | LHV74: 0 | LHW74: 0 | LHX74: 0 | LHY74: 0 | LHZ74: 0 | LIA74: 0 | LIB74: 0 | LIC74: 0 | LID74: 0 | LIE74: 0 | LIF74: 0 | LIG74: 0 | LIH74: 0 | LII74: 0 | LIJ74: 0 | LIK74: 0 | LIL74: 0 | LIM74: 0 | LIN74: 0 | LIO74: 0 | LIP74: 0 | LIQ74: 0 | LIR74: 0 | LIS74: 0 | LIT74: 0 | LIU74: 0 | LIV74: 0 | LIW74: 0 | LIX74: 0 | LIY74: 0 | LIZ74: 0 | LJA74: 0 | LJB74: 0 | LJC74: 0 | LJD74: 0 | LJE74: 0 | LJF74: 0 | LJG74: 0 | LJH74: 0 | LJI74: 0 | LJJ74: 0 | LJK74: 0 | LJL74: 0 | LJM74: 0 | LJN74: 0 | LJO74: 0 | LJP74: 0 | LJQ74: 0 | LJR74: 0 | LJS74: 0 | LJT74: 0 | LJU74: 0 | LJV74: 0 | LJW74: 0 | LJX74: =LJX68 + LJX69 + LJX70 + (LJX71 + LJX72 + LJX73) * 0.5 -> 0 | LJY74: 0 | LJZ74: 0 | LKA74: 0 | LKB74: 0 | LKC74: 0 | LKD74: 0 | LKE74: 0 | LKF74: 0 | LKG74: 0 | LKH74: 0 | LKI74: 0 | LKJ74: 0 | LKK74: 0 | LKL74: 0 | LKM74: 0 | LKN74: 0 | LKO74: 0 | LKP74: 0 | LKQ74: 0 | LKR74: 0 | LKS74: 0 | LKT74: 0 | LKU74: 0 | LKV74: 0 | LKW74: 0 | LKX74: 0 | LKY74: 0 | LKZ74: 0 | LLA74: 0 | LLB74: 0 | LLC74: 0 | LLD74: 0 | LLE74: 0 | LLF74: 0 | LLG74: 0 | LLH74: 0 | LLI74: 0 | LLJ74: 0 | LLK74: 0 | LLL74: 0 | LLM74: 0 | LLN74: 0 | LLO74: 0 | LLP74: 0 | LLQ74: 0 | LLR74: 0 | LLS74: 0 | LLT74: 0 | LLU74: 0 | LLV74: 0 | LLW74: 0 | LLX74: 0 | LLY74: 0 | LLZ74: 0 | LMA74: 0 | LMB74: 0 | LMC74: 0 | LMD74: 0 | LME74: 0 | LMF74: 0 | LMG74: 0 | LMH74: 0 | LMI74: 0 | LMJ74: =LMJ68 + LMJ69 + LMJ70 + (LMJ71 + LMJ72 + LMJ73) * 0.5 -> 0 | LMK74: 0 | LML74: 0 | LMM74: 0 | LMN74: 0 | LMO74: 0 | LMP74: 0 | LMQ74: 0 | LMR74: 0 | LMS74: 0 | LMT74: 0 | LMU74: 0 | LMV74: 0 | LMW74: 0 | LMX74: 0 | LMY74: 0 | LMZ74: 0 | LNA74: 0 | LNB74: 0 | LNC74: 0 | LND74: 0 | LNE74: 0 | LNF74: 0 | LNG74: 0 | LNH74: 0 | LNI74: 0 | LNJ74: 0 | LNK74: 0 | LNL74: 0 | LNM74: 0 | LNN74: 0 | LNO74: 0 | LNP74: 0 | LNQ74: 0 | LNR74: 0 | LNS74: 0 | LNT74: 0 | LNU74: 0 | LNV74: 0 | LNW74: 0 | LNX74: 0 | LNY74: 0 | LNZ74: 0 | LOA74: 0 | LOB74: 0 | LOC74: 0 | LOD74: 0 | LOE74: 0 | LOF74: 0 | LOG74: 0 | LOH74: 0 | LOI74: 0 | LOJ74: 0 | LOK74: 0 | LOL74: 0 | LOM74: 0 | LON74: 0 | LOO74: 0 | LOP74: 0 | LOQ74: 0 | LOR74: 0 | LOS74: 0 | LOT74: 0 | LOU74: 0 | LOV74: =LOV68 + LOV69 + LOV70 + (LOV71 + LOV72 + LOV73) * 0.5 -> 0 | LOW74: 0 | LOX74: 0 | LOY74: 0 | LOZ74: 0 | LPA74: 0 | LPB74: 0 | LPC74: 0 | LPD74: 0 | LPE74: 0 | LPF74: 0 | LPG74: 0 | LPH74: 0 | LPI74: 0 | LPJ74: 0 | LPK74: 0 | LPL74: 0 | LPM74: 0 | LPN74: 0 | LPO74: 0 | LPP74: 0 | LPQ74: 0 | LPR74: 0 | LPS74: 0 | LPT74: 0 | LPU74: 0 | LPV74: 0 | LPW74: 0 | LPX74: 0 | LPY74: 0 | LPZ74: 0 | LQA74: 0 | LQB74: 0 | LQC74: 0 | LQD74: 0 | LQE74: 0 | LQF74: 0 | LQG74: 0 | LQH74: 0 | LQI74: 0 | LQJ74: 0 | LQK74: 0 | LQL74: 0 | LQM74: 0 | LQN74: 0 | LQO74: 0 | LQP74: 0 | LQQ74: 0 | LQR74: 0 | LQS74: 0 | LQT74: 0 | LQU74: 0 | LQV74: 0 | LQW74: 0 | LQX74: 0 | LQY74: 0 | LQZ74: 0 | LRA74: 0 | LRB74: 0 | LRC74: 0 | LRD74: 0 | LRE74: 0 | LRF74: 0 | LRG74: 0 | LRH74: =LRH68 + LRH69 + LRH70 + (LRH71 + LRH72 + LRH73) * 0.5 -> 0 | LRI74: 0 | LRJ74: 0 | LRK74: 0 | LRL74: 0 | LRM74: 0 | LRN74: 0 | LRO74: 0 | LRP74: 0 | LRQ74: 0 | LRR74: 0 | LRS74: 0 | LRT74: 0 | LRU74: 0 | LRV74: 0 | LRW74: 0 | LRX74: 0 | LRY74: 0 | LRZ74: 0 | LSA74: 0 | LSB74: 0 | LSC74: 0 | LSD74: 0 | LSE74: 0 | LSF74: 0 | LSG74: 0 | LSH74: 0 | LSI74: 0 | LSJ74: 0 | LSK74: 0 | LSL74: 0 | LSM74: 0 | LSN74: 0 | LSO74: 0 | LSP74: 0 | LSQ74: 0 | LSR74: 0 | LSS74: 0 | LST74: 0 | LSU74: 0 | LSV74: 0 | LSW74: 0 | LSX74: 0 | LSY74: 0 | LSZ74: 0 | LTA74: 0 | LTB74: 0 | LTC74: 0 | LTD74: 0 | LTE74: 0 | LTF74: 0 | LTG74: 0 | LTH74: 0 | LTI74: 0 | LTJ74: 0 | LTK74: 0 | LTL74: 0 | LTM74: 0 | LTN74: 0 | LTO74: 0 | LTP74: 0 | LTQ74: 0 | LTR74: 0 | LTS74: 0 | LTT74: =LTT68 + LTT69 + LTT70 + (LTT71 + LTT72 + LTT73) * 0.5 -> 0 | LTU74: 0 | LTV74: 0 | LTW74: 0 | LTX74: 0 | LTY74: 0 | LTZ74: 0 | LUA74: 0 | LUB74: 0 | LUC74: 0 | LUD74: 0 | LUE74: 0 | LUF74: 0 | LUG74: 0 | LUH74: 0 | LUI74: 0 | LUJ74: 0 | LUK74: 0 | LUL74: 0 | LUM74: 0 | LUN74: 0 | LUO74: 0 | LUP74: 0 | LUQ74: 0 | LUR74: 0 | LUS74: 0 | LUT74: 0 | LUU74: 0 | LUV74: 0 | LUW74: 0 | LUX74: 0 | LUY74: 0 | LUZ74: 0 | LVA74: 0 | LVB74: 0 | LVC74: 0 | LVD74: 0 | LVE74: 0 | LVF74: 0 | LVG74: 0 | LVH74: 0 | LVI74: 0 | LVJ74: 0 | LVK74: 0 | LVL74: 0 | LVM74: 0 | LVN74: 0 | LVO74: 0 | LVP74: 0 | LVQ74: 0 | LVR74: 0 | LVS74: 0 | LVT74: 0 | LVU74: 0 | LVV74: 0 | LVW74: 0 | LVX74: 0 | LVY74: 0 | LVZ74: 0 | LWA74: 0 | LWB74: 0 | LWC74: 0 | LWD74: 0 | LWE74: 0 | LWF74: =LWF68 + LWF69 + LWF70 + (LWF71 + LWF72 + LWF73) * 0.5 -> 0 | LWG74: 0 | LWH74: 0 | LWI74: 0 | LWJ74: 0 | LWK74: 0 | LWL74: 0 | LWM74: 0 | LWN74: 0 | LWO74: 0 | LWP74: 0 | LWQ74: 0 | LWR74: 0 | LWS74: 0 | LWT74: 0 | LWU74: 0 | LWV74: 0 | LWW74: 0 | LWX74: 0 | LWY74: 0 | LWZ74: 0 | LXA74: 0 | LXB74: 0 | LXC74: 0 | LXD74: 0 | LXE74: 0 | LXF74: 0 | LXG74: 0 | LXH74: 0 | LXI74: 0 | LXJ74: 0 | LXK74: 0 | LXL74: 0 | LXM74: 0 | LXN74: 0 | LXO74: 0 | LXP74: 0 | LXQ74: 0 | LXR74: 0 | LXS74: 0 | LXT74: 0 | LXU74: 0 | LXV74: 0 | LXW74: 0 | LXX74: 0 | LXY74: 0 | LXZ74: 0 | LYA74: 0 | LYB74: 0 | LYC74: 0 | LYD74: 0 | LYE74: 0 | LYF74: 0 | LYG74: 0 | LYH74: 0 | LYI74: 0 | LYJ74: 0 | LYK74: 0 | LYL74: 0 | LYM74: 0 | LYN74: 0 | LYO74: 0 | LYP74: 0 | LYQ74: 0 | LYR74: =LYR68 + LYR69 + LYR70 + (LYR71 + LYR72 + LYR73) * 0.5 -> 0 | LYS74: 0 | LYT74: 0 | LYU74: 0 | LYV74: 0 | LYW74: 0 | LYX74: 0 | LYY74: 0 | LYZ74: 0 | LZA74: 0 | LZB74: 0 | LZC74: 0 | LZD74: 0 | LZE74: 0 | LZF74: 0 | LZG74: 0 | LZH74: 0 | LZI74: 0 | LZJ74: 0 | LZK74: 0 | LZL74: 0 | LZM74: 0 | LZN74: 0 | LZO74: 0 | LZP74: 0 | LZQ74: 0 | LZR74: 0 | LZS74: 0 | LZT74: 0 | LZU74: 0 | LZV74: 0 | LZW74: 0 | LZX74: 0 | LZY74: 0 | LZZ74: 0 | MAA74: 0 | MAB74: 0 | MAC74: 0 | MAD74: 0 | MAE74: 0 | MAF74: 0 | MAG74: 0 | MAH74: 0 | MAI74: 0 | MAJ74: 0 | MAK74: 0 | MAL74: 0 | MAM74: 0 | MAN74: 0 | MAO74: 0 | MAP74: 0 | MAQ74: 0 | MAR74: 0 | MAS74: 0 | MAT74: 0 | MAU74: 0 | MAV74: 0 | MAW74: 0 | MAX74: 0 | MAY74: 0 | MAZ74: 0 | MBA74: 0 | MBB74: 0 | MBC74: 0 | MBD74: =MBD68 + MBD69 + MBD70 + (MBD71 + MBD72 + MBD73) * 0.5 -> 0 | MBE74: 0 | MBF74: 0 | MBG74: 0 | MBH74: 0 | MBI74: 0 | MBJ74: 0 | MBK74: 0 | MBL74: 0 | MBM74: 0 | MBN74: 0 | MBO74: 0 | MBP74: 0 | MBQ74: 0 | MBR74: 0 | MBS74: 0 | MBT74: 0 | MBU74: 0 | MBV74: 0 | MBW74: 0 | MBX74: 0 | MBY74: 0 | MBZ74: 0 | MCA74: 0 | MCB74: 0 | MCC74: 0 | MCD74: 0 | MCE74: 0 | MCF74: 0 | MCG74: 0 | MCH74: 0 | MCI74: 0 | MCJ74: 0 | MCK74: 0 | MCL74: 0 | MCM74: 0 | MCN74: 0 | MCO74: 0 | MCP74: 0 | MCQ74: 0 | MCR74: 0 | MCS74: 0 | MCT74: 0 | MCU74: 0 | MCV74: 0 | MCW74: 0 | MCX74: 0 | MCY74: 0 | MCZ74: 0 | MDA74: 0 | MDB74: 0 | MDC74: 0 | MDD74: 0 | MDE74: 0 | MDF74: 0 | MDG74: 0 | MDH74: 0 | MDI74: 0 | MDJ74: 0 | MDK74: 0 | MDL74: 0 | MDM74: 0 | MDN74: 0 | MDO74: 0 | MDP74: =MDP68 + MDP69 + MDP70 + (MDP71 + MDP72 + MDP73) * 0.5 -> 0 | MDQ74: 0 | MDR74: 0 | MDS74: 0 | MDT74: 0 | MDU74: 0 | MDV74: 0 | MDW74: 0 | MDX74: 0 | MDY74: 0 | MDZ74: 0 | MEA74: 0 | MEB74: 0 | MEC74: 0 | MED74: 0 | MEE74: 0 | MEF74: 0 | MEG74: 0 | MEH74: 0 | MEI74: 0 | MEJ74: 0 | MEK74: 0 | MEL74: 0 | MEM74: 0 | MEN74: 0 | MEO74: 0 | MEP74: 0 | MEQ74: 0 | MER74: 0 | MES74: 0 | MET74: 0 | MEU74: 0 | MEV74: 0 | MEW74: 0 | MEX74: 0 | MEY74: 0 | MEZ74: 0 | MFA74: 0 | MFB74: 0 | MFC74: 0 | MFD74: 0 | MFE74: 0 | MFF74: 0 | MFG74: 0 | MFH74: 0 | MFI74: 0 | MFJ74: 0 | MFK74: 0 | MFL74: 0 | MFM74: 0 | MFN74: 0 | MFO74: 0 | MFP74: 0 | MFQ74: 0 | MFR74: 0 | MFS74: 0 | MFT74: 0 | MFU74: 0 | MFV74: 0 | MFW74: 0 | MFX74: 0 | MFY74: 0 | MFZ74: 0 | MGA74: 0 | MGB74: =MGB68 + MGB69 + MGB70 + (MGB71 + MGB72 + MGB73) * 0.5 -> 0 | MGC74: 0 | MGD74: 0 | MGE74: 0 | MGF74: 0 | MGG74: 0 | MGH74: 0 | MGI74: 0 | MGJ74: 0 | MGK74: 0 | MGL74: 0 | MGM74: 0 | MGN74: 0 | MGO74: 0 | MGP74: 0 | MGQ74: 0 | MGR74: 0 | MGS74: 0 | MGT74: 0 | MGU74: 0 | MGV74: 0 | MGW74: 0 | MGX74: 0 | MGY74: 0 | MGZ74: 0 | MHA74: 0 | MHB74: 0 | MHC74: 0 | MHD74: 0 | MHE74: 0 | MHF74: 0 | MHG74: 0 | MHH74: 0 | MHI74: 0 | MHJ74: 0 | MHK74: 0 | MHL74: 0 | MHM74: 0 | MHN74: 0 | MHO74: 0 | MHP74: 0 | MHQ74: 0 | MHR74: 0 | MHS74: 0 | MHT74: 0 | MHU74: 0 | MHV74: 0 | MHW74: 0 | MHX74: 0 | MHY74: 0 | MHZ74: 0 | MIA74: 0 | MIB74: 0 | MIC74: 0 | MID74: 0 | MIE74: 0 | MIF74: 0 | MIG74: 0 | MIH74: 0 | MII74: 0 | MIJ74: 0 | MIK74: 0 | MIL74: 0 | MIM74: 0 | MIN74: =MIN68 + MIN69 + MIN70 + (MIN71 + MIN72 + MIN73) * 0.5 -> 0 | MIO74: 0 | MIP74: 0 | MIQ74: 0 | MIR74: 0 | MIS74: 0 | MIT74: 0 | MIU74: 0 | MIV74: 0 | MIW74: 0 | MIX74: 0 | MIY74: 0 | MIZ74: 0 | MJA74: 0 | MJB74: 0 | MJC74: 0 | MJD74: 0 | MJE74: 0 | MJF74: 0 | MJG74: 0 | MJH74: 0 | MJI74: 0 | MJJ74: 0 | MJK74: 0 | MJL74: 0 | MJM74: 0 | MJN74: 0 | MJO74: 0 | MJP74: 0 | MJQ74: 0 | MJR74: 0 | MJS74: 0 | MJT74: 0 | MJU74: 0 | MJV74: 0 | MJW74: 0 | MJX74: 0 | MJY74: 0 | MJZ74: 0 | MKA74: 0 | MKB74: 0 | MKC74: 0 | MKD74: 0 | MKE74: 0 | MKF74: 0 | MKG74: 0 | MKH74: 0 | MKI74: 0 | MKJ74: 0 | MKK74: 0 | MKL74: 0 | MKM74: 0 | MKN74: 0 | MKO74: 0 | MKP74: 0 | MKQ74: 0 | MKR74: 0 | MKS74: 0 | MKT74: 0 | MKU74: 0 | MKV74: 0 | MKW74: 0 | MKX74: 0 | MKY74: 0 | MKZ74: =MKZ68 + MKZ69 + MKZ70 + (MKZ71 + MKZ72 + MKZ73) * 0.5 -> 0 | MLA74: 0 | MLB74: 0 | MLC74: 0 | MLD74: 0 | MLE74: 0 | MLF74: 0 | MLG74: 0 | MLH74: 0 | MLI74: 0 | MLJ74: 0 | MLK74: 0 | MLL74: 0 | MLM74: 0 | MLN74: 0 | MLO74: 0 | MLP74: 0 | MLQ74: 0 | MLR74: 0 | MLS74: 0 | MLT74: 0 | MLU74: 0 | MLV74: 0 | MLW74: 0 | MLX74: 0 | MLY74: 0 | MLZ74: 0 | MMA74: 0 | MMB74: 0 | MMC74: 0 | MMD74: 0 | MME74: 0 | MMF74: 0 | MMG74: 0 | MMH74: 0 | MMI74: 0 | MMJ74: 0 | MMK74: 0 | MML74: 0 | MMM74: 0 | MMN74: 0 | MMO74: 0 | MMP74: 0 | MMQ74: 0 | MMR74: 0 | MMS74: 0 | MMT74: 0 | MMU74: 0 | MMV74: 0 | MMW74: 0 | MMX74: 0 | MMY74: 0 | MMZ74: 0 | MNA74: 0 | MNB74: 0 | MNC74: 0 | MND74: 0 | MNE74: 0 | MNF74: 0 | MNG74: 0 | MNH74: 0 | MNI74: 0 | MNJ74: 0 | MNK74: 0 | MNL74: =MNL68 + MNL69 + MNL70 + (MNL71 + MNL72 + MNL73) * 0.5 -> 0 | MNM74: 0 | MNN74: 0 | MNO74: 0 | MNP74: 0 | MNQ74: 0 | MNR74: 0 | MNS74: 0 | MNT74: 0 | MNU74: 0 | MNV74: 0 | MNW74: 0 | MNX74: 0 | MNY74: 0 | MNZ74: 0 | MOA74: 0 | MOB74: 0 | MOC74: 0 | MOD74: 0 | MOE74: 0 | MOF74: 0 | MOG74: 0 | MOH74: 0 | MOI74: 0 | MOJ74: 0 | MOK74: 0 | MOL74: 0 | MOM74: 0 | MON74: 0 | MOO74: 0 | MOP74: 0 | MOQ74: 0 | MOR74: 0 | MOS74: 0 | MOT74: 0 | MOU74: 0 | MOV74: 0 | MOW74: 0 | MOX74: 0 | MOY74: 0 | MOZ74: 0 | MPA74: 0 | MPB74: 0 | MPC74: 0 | MPD74: 0 | MPE74: 0 | MPF74: 0 | MPG74: 0 | MPH74: 0 | MPI74: 0 | MPJ74: 0 | MPK74: 0 | MPL74: 0 | MPM74: 0 | MPN74: 0 | MPO74: 0 | MPP74: 0 | MPQ74: 0 | MPR74: 0 | MPS74: 0 | MPT74: 0 | MPU74: 0 | MPV74: 0 | MPW74: 0 | MPX74: =MPX68 + MPX69 + MPX70 + (MPX71 + MPX72 + MPX73) * 0.5 -> 0 | MPY74: 0 | MPZ74: 0 | MQA74: 0 | MQB74: 0 | MQC74: 0 | MQD74: 0 | MQE74: 0 | MQF74: 0 | MQG74: 0 | MQH74: 0 | MQI74: 0 | MQJ74: 0 | MQK74: 0 | MQL74: 0 | MQM74: 0 | MQN74: 0 | MQO74: 0 | MQP74: 0 | MQQ74: 0 | MQR74: 0 | MQS74: 0 | MQT74: 0 | MQU74: 0 | MQV74: 0 | MQW74: 0 | MQX74: 0 | MQY74: 0 | MQZ74: 0 | MRA74: 0 | MRB74: 0 | MRC74: 0 | MRD74: 0 | MRE74: 0 | MRF74: 0 | MRG74: 0 | MRH74: 0 | MRI74: 0 | MRJ74: 0 | MRK74: 0 | MRL74: 0 | MRM74: 0 | MRN74: 0 | MRO74: 0 | MRP74: 0 | MRQ74: 0 | MRR74: 0 | MRS74: 0 | MRT74: 0 | MRU74: 0 | MRV74: 0 | MRW74: 0 | MRX74: 0 | MRY74: 0 | MRZ74: 0 | MSA74: 0 | MSB74: 0 | MSC74: 0 | MSD74: 0 | MSE74: 0 | MSF74: 0 | MSG74: 0 | MSH74: 0 | MSI74: 0 | MSJ74: =MSJ68 + MSJ69 + MSJ70 + (MSJ71 + MSJ72 + MSJ73) * 0.5 -> 0 | MSK74: 0 | MSL74: 0 | MSM74: 0 | MSN74: 0 | MSO74: 0 | MSP74: 0 | MSQ74: 0 | MSR74: 0 | MSS74: 0 | MST74: 0 | MSU74: 0 | MSV74: 0 | MSW74: 0 | MSX74: 0 | MSY74: 0 | MSZ74: 0 | MTA74: 0 | MTB74: 0 | MTC74: 0 | MTD74: 0 | MTE74: 0 | MTF74: 0 | MTG74: 0 | MTH74: 0 | MTI74: 0 | MTJ74: 0 | MTK74: 0 | MTL74: 0 | MTM74: 0 | MTN74: 0 | MTO74: 0 | MTP74: 0 | MTQ74: 0 | MTR74: 0 | MTS74: 0 | MTT74: 0 | MTU74: 0 | MTV74: 0 | MTW74: 0 | MTX74: 0 | MTY74: 0 | MTZ74: 0 | MUA74: 0 | MUB74: 0 | MUC74: 0 | MUD74: 0 | MUE74: 0 | MUF74: 0 | MUG74: 0 | MUH74: 0 | MUI74: 0 | MUJ74: 0 | MUK74: 0 | MUL74: 0 | MUM74: 0 | MUN74: 0 | MUO74: 0 | MUP74: 0 | MUQ74: 0 | MUR74: 0 | MUS74: 0 | MUT74: 0 | MUU74: 0 | MUV74: =MUV68 + MUV69 + MUV70 + (MUV71 + MUV72 + MUV73) * 0.5 -> 0 | MUW74: 0 | MUX74: 0 | MUY74: 0 | MUZ74: 0 | MVA74: 0 | MVB74: 0 | MVC74: 0 | MVD74: 0 | MVE74: 0 | MVF74: 0 | MVG74: 0 | MVH74: 0 | MVI74: 0 | MVJ74: 0 | MVK74: 0 | MVL74: 0 | MVM74: 0 | MVN74: 0 | MVO74: 0 | MVP74: 0 | MVQ74: 0 | MVR74: 0 | MVS74: 0 | MVT74: 0 | MVU74: 0 | MVV74: 0 | MVW74: 0 | MVX74: 0 | MVY74: 0 | MVZ74: 0 | MWA74: 0 | MWB74: 0 | MWC74: 0 | MWD74: 0 | MWE74: 0 | MWF74: 0 | MWG74: 0 | MWH74: 0 | MWI74: 0 | MWJ74: 0 | MWK74: 0 | MWL74: 0 | MWM74: 0 | MWN74: 0 | MWO74: 0 | MWP74: 0 | MWQ74: 0 | MWR74: 0 | MWS74: 0 | MWT74: 0 | MWU74: 0 | MWV74: 0 | MWW74: 0 | MWX74: 0 | MWY74: 0 | MWZ74: 0 | MXA74: 0 | MXB74: 0 | MXC74: 0 | MXD74: 0 | MXE74: 0 | MXF74: 0 | MXG74: 0 | MXH74: =MXH68 + MXH69 + MXH70 + (MXH71 + MXH72 + MXH73) * 0.5 -> 0 | MXI74: 0 | MXJ74: 0 | MXK74: 0 | MXL74: 0 | MXM74: 0 | MXN74: 0 | MXO74: 0 | MXP74: 0 | MXQ74: 0 | MXR74: 0 | MXS74: 0 | MXT74: 0 | MXU74: 0 | MXV74: 0 | MXW74: 0 | MXX74: 0 | MXY74: 0 | MXZ74: 0 | MYA74: 0 | MYB74: 0 | MYC74: 0 | MYD74: 0 | MYE74: 0 | MYF74: 0 | MYG74: 0 | MYH74: 0 | MYI74: 0 | MYJ74: 0 | MYK74: 0 | MYL74: 0 | MYM74: 0 | MYN74: 0 | MYO74: 0 | MYP74: 0 | MYQ74: 0 | MYR74: 0 | MYS74: 0 | MYT74: 0 | MYU74: 0 | MYV74: 0 | MYW74: 0 | MYX74: 0 | MYY74: 0 | MYZ74: 0 | MZA74: 0 | MZB74: 0 | MZC74: 0 | MZD74: 0 | MZE74: 0 | MZF74: 0 | MZG74: 0 | MZH74: 0 | MZI74: 0 | MZJ74: 0 | MZK74: 0 | MZL74: 0 | MZM74: 0 | MZN74: 0 | MZO74: 0 | MZP74: 0 | MZQ74: 0 | MZR74: 0 | MZS74: 0 | MZT74: =MZT68 + MZT69 + MZT70 + (MZT71 + MZT72 + MZT73) * 0.5 -> 0 | MZU74: 0 | MZV74: 0 | MZW74: 0 | MZX74: 0 | MZY74: 0 | MZZ74: 0 | NAA74: 0 | NAB74: 0 | NAC74: 0 | NAD74: 0 | NAE74: 0 | NAF74: 0 | NAG74: 0 | NAH74: 0 | NAI74: 0 | NAJ74: 0 | NAK74: 0 | NAL74: 0 | NAM74: 0 | NAN74: 0 | NAO74: 0 | NAP74: 0 | NAQ74: 0 | NAR74: 0 | NAS74: 0 | NAT74: 0 | NAU74: 0 | NAV74: 0 | NAW74: 0 | NAX74: 0 | NAY74: 0 | NAZ74: 0 | NBA74: 0 | NBB74: 0 | NBC74: 0 | NBD74: 0 | NBE74: 0 | NBF74: 0 | NBG74: 0 | NBH74: 0 | NBI74: 0 | NBJ74: 0 | NBK74: 0 | NBL74: 0 | NBM74: 0 | NBN74: 0 | NBO74: 0 | NBP74: 0 | NBQ74: 0 | NBR74: 0 | NBS74: 0 | NBT74: 0 | NBU74: 0 | NBV74: 0 | NBW74: 0 | NBX74: 0 | NBY74: 0 | NBZ74: 0 | NCA74: 0 | NCB74: 0 | NCC74: 0 | NCD74: 0 | NCE74: 0 | NCF74: =NCF68 + NCF69 + NCF70 + (NCF71 + NCF72 + NCF73) * 0.5 -> 0 | NCG74: 0 | NCH74: 0 | NCI74: 0 | NCJ74: 0 | NCK74: 0 | NCL74: 0 | NCM74: 0 | NCN74: 0 | NCO74: 0 | NCP74: 0 | NCQ74: 0 | NCR74: 0 | NCS74: 0 | NCT74: 0 | NCU74: 0 | NCV74: 0 | NCW74: 0 | NCX74: 0 | NCY74: 0 | NCZ74: 0 | NDA74: 0 | NDB74: 0 | NDC74: 0 | NDD74: 0 | NDE74: 0 | NDF74: 0 | NDG74: 0 | NDH74: 0 | NDI74: 0 | NDJ74: 0 | NDK74: 0 | NDL74: 0 | NDM74: 0 | NDN74: 0 | NDO74: 0 | NDP74: 0 | NDQ74: 0 | NDR74: 0 | NDS74: 0 | NDT74: 0 | NDU74: 0 | NDV74: 0 | NDW74: 0 | NDX74: 0 | NDY74: 0 | NDZ74: 0 | NEA74: 0 | NEB74: 0 | NEC74: 0 | NED74: 0 | NEE74: 0 | NEF74: 0 | NEG74: 0 | NEH74: 0 | NEI74: 0 | NEJ74: 0 | NEK74: 0 | NEL74: 0 | NEM74: 0 | NEN74: 0 | NEO74: 0 | NEP74: 0 | NEQ74: 0 | NER74: =NER68 + NER69 + NER70 + (NER71 + NER72 + NER73) * 0.5 -> 0 | NES74: 0 | NET74: 0 | NEU74: 0 | NEV74: 0 | NEW74: 0 | NEX74: 0 | NEY74: 0 | NEZ74: 0 | NFA74: 0 | NFB74: 0 | NFC74: 0 | NFD74: 0 | NFE74: 0 | NFF74: 0 | NFG74: 0 | NFH74: 0 | NFI74: 0 | NFJ74: 0 | NFK74: 0 | NFL74: 0 | NFM74: 0 | NFN74: 0 | NFO74: 0 | NFP74: 0 | NFQ74: 0 | NFR74: 0 | NFS74: 0 | NFT74: 0 | NFU74: 0 | NFV74: 0 | NFW74: 0 | NFX74: 0 | NFY74: 0 | NFZ74: 0 | NGA74: 0 | NGB74: 0 | NGC74: 0 | NGD74: 0 | NGE74: 0 | NGF74: 0 | NGG74: 0 | NGH74: 0 | NGI74: 0 | NGJ74: 0 | NGK74: 0 | NGL74: 0 | NGM74: 0 | NGN74: 0 | NGO74: 0 | NGP74: 0 | NGQ74: 0 | NGR74: 0 | NGS74: 0 | NGT74: 0 | NGU74: 0 | NGV74: 0 | NGW74: 0 | NGX74: 0 | NGY74: 0 | NGZ74: 0 | NHA74: 0 | NHB74: 0 | NHC74: 0 | NHD74: =NHD68 + NHD69 + NHD70 + (NHD71 + NHD72 + NHD73) * 0.5 -> 0 | NHE74: 0 | NHF74: 0 | NHG74: 0 | NHH74: 0 | NHI74: 0 | NHJ74: 0 | NHK74: 0 | NHL74: 0 | NHM74: 0 | NHN74: 0 | NHO74: 0 | NHP74: 0 | NHQ74: 0 | NHR74: 0 | NHS74: 0 | NHT74: 0 | NHU74: 0 | NHV74: 0 | NHW74: 0 | NHX74: 0 | NHY74: 0 | NHZ74: 0 | NIA74: 0 | NIB74: 0 | NIC74: 0 | NID74: 0 | NIE74: 0 | NIF74: 0 | NIG74: 0 | NIH74: 0 | NII74: 0 | NIJ74: 0 | NIK74: 0 | NIL74: 0 | NIM74: 0 | NIN74: 0 | NIO74: 0 | NIP74: 0 | NIQ74: 0 | NIR74: 0 | NIS74: 0 | NIT74: 0 | NIU74: 0 | NIV74: 0 | NIW74: 0 | NIX74: 0 | NIY74: 0 | NIZ74: 0 | NJA74: 0 | NJB74: 0 | NJC74: 0 | NJD74: 0 | NJE74: 0 | NJF74: 0 | NJG74: 0 | NJH74: 0 | NJI74: 0 | NJJ74: 0 | NJK74: 0 | NJL74: 0 | NJM74: 0 | NJN74: 0 | NJO74: 0 | NJP74: =NJP68 + NJP69 + NJP70 + (NJP71 + NJP72 + NJP73) * 0.5 -> 0 | NJQ74: 0 | NJR74: 0 | NJS74: 0 | NJT74: 0 | NJU74: 0 | NJV74: 0 | NJW74: 0 | NJX74: 0 | NJY74: 0 | NJZ74: 0 | NKA74: 0 | NKB74: 0 | NKC74: 0 | NKD74: 0 | NKE74: 0 | NKF74: 0 | NKG74: 0 | NKH74: 0 | NKI74: 0 | NKJ74: 0 | NKK74: 0 | NKL74: 0 | NKM74: 0 | NKN74: 0 | NKO74: 0 | NKP74: 0 | NKQ74: 0 | NKR74: 0 | NKS74: 0 | NKT74: 0 | NKU74: 0 | NKV74: 0 | NKW74: 0 | NKX74: 0 | NKY74: 0 | NKZ74: 0 | NLA74: 0 | NLB74: 0 | NLC74: 0 | NLD74: 0 | NLE74: 0 | NLF74: 0 | NLG74: 0 | NLH74: 0 | NLI74: 0 | NLJ74: 0 | NLK74: 0 | NLL74: 0 | NLM74: 0 | NLN74: 0 | NLO74: 0 | NLP74: 0 | NLQ74: 0 | NLR74: 0 | NLS74: 0 | NLT74: 0 | NLU74: 0 | NLV74: 0 | NLW74: 0 | NLX74: 0 | NLY74: 0 | NLZ74: 0 | NMA74: 0 | NMB74: =NMB68 + NMB69 + NMB70 + (NMB71 + NMB72 + NMB73) * 0.5 -> 0 | NMC74: 0 | NMD74: 0 | NME74: 0 | NMF74: 0 | NMG74: 0 | NMH74: 0 | NMI74: 0 | NMJ74: 0 | NMK74: 0 | NML74: 0 | NMM74: 0 | NMN74: 0 | NMO74: 0 | NMP74: 0 | NMQ74: 0 | NMR74: 0 | NMS74: 0 | NMT74: 0 | NMU74: 0 | NMV74: 0 | NMW74: 0 | NMX74: 0 | NMY74: 0 | NMZ74: 0 | NNA74: 0 | NNB74: 0 | NNC74: 0 | NND74: 0 | NNE74: 0 | NNF74: 0 | NNG74: 0 | NNH74: 0 | NNI74: 0 | NNJ74: 0 | NNK74: 0 | NNL74: 0 | NNM74: 0 | NNN74: 0 | NNO74: 0 | NNP74: 0 | NNQ74: 0 | NNR74: 0 | NNS74: 0 | NNT74: 0 | NNU74: 0 | NNV74: 0 | NNW74: 0 | NNX74: 0 | NNY74: 0 | NNZ74: 0 | NOA74: 0 | NOB74: 0 | NOC74: 0 | NOD74: 0 | NOE74: 0 | NOF74: 0 | NOG74: 0 | NOH74: 0 | NOI74: 0 | NOJ74: 0 | NOK74: 0 | NOL74: 0 | NOM74: 0 | NON74: =NON68 + NON69 + NON70 + (NON71 + NON72 + NON73) * 0.5 -> 0 | NOO74: 0 | NOP74: 0 | NOQ74: 0 | NOR74: 0 | NOS74: 0 | NOT74: 0 | NOU74: 0 | NOV74: 0 | NOW74: 0 | NOX74: 0 | NOY74: 0 | NOZ74: 0 | NPA74: 0 | NPB74: 0 | NPC74: 0 | NPD74: 0 | NPE74: 0 | NPF74: 0 | NPG74: 0 | NPH74: 0 | NPI74: 0 | NPJ74: 0 | NPK74: 0 | NPL74: 0 | NPM74: 0 | NPN74: 0 | NPO74: 0 | NPP74: 0 | NPQ74: 0 | NPR74: 0 | NPS74: 0 | NPT74: 0 | NPU74: 0 | NPV74: 0 | NPW74: 0 | NPX74: 0 | NPY74: 0 | NPZ74: 0 | NQA74: 0 | NQB74: 0 | NQC74: 0 | NQD74: 0 | NQE74: 0 | NQF74: 0 | NQG74: 0 | NQH74: 0 | NQI74: 0 | NQJ74: 0 | NQK74: 0 | NQL74: 0 | NQM74: 0 | NQN74: 0 | NQO74: 0 | NQP74: 0 | NQQ74: 0 | NQR74: 0 | NQS74: 0 | NQT74: 0 | NQU74: 0 | NQV74: 0 | NQW74: 0 | NQX74: 0 | NQY74: 0 | NQZ74: =NQZ68 + NQZ69 + NQZ70 + (NQZ71 + NQZ72 + NQZ73) * 0.5 -> 0 | NRA74: 0 | NRB74: 0 | NRC74: 0 | NRD74: 0 | NRE74: 0 | NRF74: 0 | NRG74: 0 | NRH74: 0 | NRI74: 0 | NRJ74: 0 | NRK74: 0 | NRL74: 0 | NRM74: 0 | NRN74: 0 | NRO74: 0 | NRP74: 0 | NRQ74: 0 | NRR74: 0 | NRS74: 0 | NRT74: 0 | NRU74: 0 | NRV74: 0 | NRW74: 0 | NRX74: 0 | NRY74: 0 | NRZ74: 0 | NSA74: 0 | NSB74: 0 | NSC74: 0 | NSD74: 0 | NSE74: 0 | NSF74: 0 | NSG74: 0 | NSH74: 0 | NSI74: 0 | NSJ74: 0 | NSK74: 0 | NSL74: 0 | NSM74: 0 | NSN74: 0 | NSO74: 0 | NSP74: 0 | NSQ74: 0 | NSR74: 0 | NSS74: 0 | NST74: 0 | NSU74: 0 | NSV74: 0 | NSW74: 0 | NSX74: 0 | NSY74: 0 | NSZ74: 0 | NTA74: 0 | NTB74: 0 | NTC74: 0 | NTD74: 0 | NTE74: 0 | NTF74: 0 | NTG74: 0 | NTH74: 0 | NTI74: 0 | NTJ74: 0 | NTK74: 0 | NTL74: =NTL68 + NTL69 + NTL70 + (NTL71 + NTL72 + NTL73) * 0.5 -> 0 | NTM74: 0 | NTN74: 0 | NTO74: 0 | NTP74: 0 | NTQ74: 0 | NTR74: 0 | NTS74: 0 | NTT74: 0 | NTU74: 0 | NTV74: 0 | NTW74: 0 | NTX74: 0 | NTY74: 0 | NTZ74: 0 | NUA74: 0 | NUB74: 0 | NUC74: 0 | NUD74: 0 | NUE74: 0 | NUF74: 0 | NUG74: 0 | NUH74: 0 | NUI74: 0 | NUJ74: 0 | NUK74: 0 | NUL74: 0 | NUM74: 0 | NUN74: 0 | NUO74: 0 | NUP74: 0 | NUQ74: 0 | NUR74: 0 | NUS74: 0 | NUT74: 0 | NUU74: 0 | NUV74: 0 | NUW74: 0 | NUX74: 0 | NUY74: 0 | NUZ74: 0 | NVA74: 0 | NVB74: 0 | NVC74: 0 | NVD74: 0 | NVE74: 0 | NVF74: 0 | NVG74: 0 | NVH74: 0 | NVI74: 0 | NVJ74: 0 | NVK74: 0 | NVL74: 0 | NVM74: 0 | NVN74: 0 | NVO74: 0 | NVP74: 0 | NVQ74: 0 | NVR74: 0 | NVS74: 0 | NVT74: 0 | NVU74: 0 | NVV74: 0 | NVW74: 0 | NVX74: =NVX68 + NVX69 + NVX70 + (NVX71 + NVX72 + NVX73) * 0.5 -> 0 | NVY74: 0 | NVZ74: 0 | NWA74: 0 | NWB74: 0 | NWC74: 0 | NWD74: 0 | NWE74: 0 | NWF74: 0 | NWG74: 0 | NWH74: 0 | NWI74: 0 | NWJ74: 0 | NWK74: 0 | NWL74: 0 | NWM74: 0 | NWN74: 0 | NWO74: 0 | NWP74: 0 | NWQ74: 0 | NWR74: 0 | NWS74: 0 | NWT74: 0 | NWU74: 0 | NWV74: 0 | NWW74: 0 | NWX74: 0 | NWY74: 0 | NWZ74: 0 | NXA74: 0 | NXB74: 0 | NXC74: 0 | NXD74: 0 | NXE74: 0 | NXF74: 0 | NXG74: 0 | NXH74: 0 | NXI74: 0 | NXJ74: 0 | NXK74: 0 | NXL74: 0 | NXM74: 0 | NXN74: 0 | NXO74: 0 | NXP74: 0 | NXQ74: 0 | NXR74: 0 | NXS74: 0 | NXT74: 0 | NXU74: 0 | NXV74: 0 | NXW74: 0 | NXX74: 0 | NXY74: 0 | NXZ74: 0 | NYA74: 0 | NYB74: 0 | NYC74: 0 | NYD74: 0 | NYE74: 0 | NYF74: 0 | NYG74: 0 | NYH74: 0 | NYI74: 0 | NYJ74: =NYJ68 + NYJ69 + NYJ70 + (NYJ71 + NYJ72 + NYJ73) * 0.5 -> 0 | NYK74: 0 | NYL74: 0 | NYM74: 0 | NYN74: 0 | NYO74: 0 | NYP74: 0 | NYQ74: 0 | NYR74: 0 | NYS74: 0 | NYT74: 0 | NYU74: 0 | NYV74: 0 | NYW74: 0 | NYX74: 0 | NYY74: 0 | NYZ74: 0 | NZA74: 0 | NZB74: 0 | NZC74: 0 | NZD74: 0 | NZE74: 0 | NZF74: 0 | NZG74: 0 | NZH74: 0 | NZI74: 0 | NZJ74: 0 | NZK74: 0 | NZL74: 0 | NZM74: 0 | NZN74: 0 | NZO74: 0 | NZP74: 0 | NZQ74: 0 | NZR74: 0 | NZS74: 0 | NZT74: 0 | NZU74: 0 | NZV74: 0 | NZW74: 0 | NZX74: 0 | NZY74: 0 | NZZ74: 0 | OAA74: 0 | OAB74: 0 | OAC74: 0 | OAD74: 0 | OAE74: 0 | OAF74: 0 | OAG74: 0 | OAH74: 0 | OAI74: 0 | OAJ74: 0 | OAK74: 0 | OAL74: 0 | OAM74: 0 | OAN74: 0 | OAO74: 0 | OAP74: 0 | OAQ74: 0 | OAR74: 0 | OAS74: 0 | OAT74: 0 | OAU74: 0 | OAV74: =OAV68 + OAV69 + OAV70 + (OAV71 + OAV72 + OAV73) * 0.5 -> 0 | OAW74: 0 | OAX74: 0 | OAY74: 0 | OAZ74: 0 | OBA74: 0 | OBB74: 0 | OBC74: 0 | OBD74: 0 | OBE74: 0 | OBF74: 0 | OBG74: 0 | OBH74: 0 | OBI74: 0 | OBJ74: 0 | OBK74: 0 | OBL74: 0 | OBM74: 0 | OBN74: 0 | OBO74: 0 | OBP74: 0 | OBQ74: 0 | OBR74: 0 | OBS74: 0 | OBT74: 0 | OBU74: 0 | OBV74: 0 | OBW74: 0 | OBX74: 0 | OBY74: 0 | OBZ74: 0 | OCA74: 0 | OCB74: 0 | OCC74: 0 | OCD74: 0 | OCE74: 0 | OCF74: 0 | OCG74: 0 | OCH74: 0 | OCI74: 0 | OCJ74: 0 | OCK74: 0 | OCL74: 0 | OCM74: 0 | OCN74: 0 | OCO74: 0 | OCP74: 0 | OCQ74: 0 | OCR74: 0 | OCS74: 0 | OCT74: 0 | OCU74: 0 | OCV74: 0 | OCW74: 0 | OCX74: 0 | OCY74: 0 | OCZ74: 0 | ODA74: 0 | ODB74: 0 | ODC74: 0 | ODD74: 0 | ODE74: 0 | ODF74: 0 | ODG74: 0 | ODH74: =ODH68 + ODH69 + ODH70 + (ODH71 + ODH72 + ODH73) * 0.5 -> 0 | ODI74: 0 | ODJ74: 0 | ODK74: 0 | ODL74: 0 | ODM74: 0 | ODN74: 0 | ODO74: 0 | ODP74: 0 | ODQ74: 0 | ODR74: 0 | ODS74: 0 | ODT74: 0 | ODU74: 0 | ODV74: 0 | ODW74: 0 | ODX74: 0 | ODY74: 0 | ODZ74: 0 | OEA74: 0 | OEB74: 0 | OEC74: 0 | OED74: 0 | OEE74: 0 | OEF74: 0 | OEG74: 0 | OEH74: 0 | OEI74: 0 | OEJ74: 0 | OEK74: 0 | OEL74: 0 | OEM74: 0 | OEN74: 0 | OEO74: 0 | OEP74: 0 | OEQ74: 0 | OER74: 0 | OES74: 0 | OET74: 0 | OEU74: 0 | OEV74: 0 | OEW74: 0 | OEX74: 0 | OEY74: 0 | OEZ74: 0 | OFA74: 0 | OFB74: 0 | OFC74: 0 | OFD74: 0 | OFE74: 0 | OFF74: 0 | OFG74: 0 | OFH74: 0 | OFI74: 0 | OFJ74: 0 | OFK74: 0 | OFL74: 0 | OFM74: 0 | OFN74: 0 | OFO74: 0 | OFP74: 0 | OFQ74: 0 | OFR74: 0 | OFS74: 0 | OFT74: =OFT68 + OFT69 + OFT70 + (OFT71 + OFT72 + OFT73) * 0.5 -> 0 | OFU74: 0 | OFV74: 0 | OFW74: 0 | OFX74: 0 | OFY74: 0 | OFZ74: 0 | OGA74: 0 | OGB74: 0 | OGC74: 0 | OGD74: 0 | OGE74: 0 | OGF74: 0 | OGG74: 0 | OGH74: 0 | OGI74: 0 | OGJ74: 0 | OGK74: 0 | OGL74: 0 | OGM74: 0 | OGN74: 0 | OGO74: 0 | OGP74: 0 | OGQ74: 0 | OGR74: 0 | OGS74: 0 | OGT74: 0 | OGU74: 0 | OGV74: 0 | OGW74: 0 | OGX74: 0 | OGY74: 0 | OGZ74: 0 | OHA74: 0 | OHB74: 0 | OHC74: 0 | OHD74: 0 | OHE74: 0 | OHF74: 0 | OHG74: 0 | OHH74: 0 | OHI74: 0 | OHJ74: 0 | OHK74: 0 | OHL74: 0 | OHM74: 0 | OHN74: 0 | OHO74: 0 | OHP74: 0 | OHQ74: 0 | OHR74: 0 | OHS74: 0 | OHT74: 0 | OHU74: 0 | OHV74: 0 | OHW74: 0 | OHX74: 0 | OHY74: 0 | OHZ74: 0 | OIA74: 0 | OIB74: 0 | OIC74: 0 | OID74: 0 | OIE74: 0 | OIF74: =OIF68 + OIF69 + OIF70 + (OIF71 + OIF72 + OIF73) * 0.5 -> 0 | OIG74: 0 | OIH74: 0 | OII74: 0 | OIJ74: 0 | OIK74: 0 | OIL74: 0 | OIM74: 0 | OIN74: 0 | OIO74: 0 | OIP74: 0 | OIQ74: 0 | OIR74: 0 | OIS74: 0 | OIT74: 0 | OIU74: 0 | OIV74: 0 | OIW74: 0 | OIX74: 0 | OIY74: 0 | OIZ74: 0 | OJA74: 0 | OJB74: 0 | OJC74: 0 | OJD74: 0 | OJE74: 0 | OJF74: 0 | OJG74: 0 | OJH74: 0 | OJI74: 0 | OJJ74: 0 | OJK74: 0 | OJL74: 0 | OJM74: 0 | OJN74: 0 | OJO74: 0 | OJP74: 0 | OJQ74: 0 | OJR74: 0 | OJS74: 0 | OJT74: 0 | OJU74: 0 | OJV74: 0 | OJW74: 0 | OJX74: 0 | OJY74: 0 | OJZ74: 0 | OKA74: 0 | OKB74: 0 | OKC74: 0 | OKD74: 0 | OKE74: 0 | OKF74: 0 | OKG74: 0 | OKH74: 0 | OKI74: 0 | OKJ74: 0 | OKK74: 0 | OKL74: 0 | OKM74: 0 | OKN74: 0 | OKO74: 0 | OKP74: 0 | OKQ74: 0 | OKR74: =OKR68 + OKR69 + OKR70 + (OKR71 + OKR72 + OKR73) * 0.5 -> 0 | OKS74: 0 | OKT74: 0 | OKU74: 0 | OKV74: 0 | OKW74: 0 | OKX74: 0 | OKY74: 0 | OKZ74: 0 | OLA74: 0 | OLB74: 0 | OLC74: 0 | OLD74: 0 | OLE74: 0 | OLF74: 0 | OLG74: 0 | OLH74: 0 | OLI74: 0 | OLJ74: 0 | OLK74: 0 | OLL74: 0 | OLM74: 0 | OLN74: 0 | OLO74: 0 | OLP74: 0 | OLQ74: 0 | OLR74: 0 | OLS74: 0 | OLT74: 0 | OLU74: 0 | OLV74: 0 | OLW74: 0 | OLX74: 0 | OLY74: 0 | OLZ74: 0 | OMA74: 0 | OMB74: 0 | OMC74: 0 | OMD74: 0 | OME74: 0 | OMF74: 0 | OMG74: 0 | OMH74: 0 | OMI74: 0 | OMJ74: 0 | OMK74: 0 | OML74: 0 | OMM74: 0 | OMN74: 0 | OMO74: 0 | OMP74: 0 | OMQ74: 0 | OMR74: 0 | OMS74: 0 | OMT74: 0 | OMU74: 0 | OMV74: 0 | OMW74: 0 | OMX74: 0 | OMY74: 0 | OMZ74: 0 | ONA74: 0 | ONB74: 0 | ONC74: 0 | OND74: =OND68 + OND69 + OND70 + (OND71 + OND72 + OND73) * 0.5 -> 0 | ONE74: 0 | ONF74: 0 | ONG74: 0 | ONH74: 0 | ONI74: 0 | ONJ74: 0 | ONK74: 0 | ONL74: 0 | ONM74: 0 | ONN74: 0 | ONO74: 0 | ONP74: 0 | ONQ74: 0 | ONR74: 0 | ONS74: 0 | ONT74: 0 | ONU74: 0 | ONV74: 0 | ONW74: 0 | ONX74: 0 | ONY74: 0 | ONZ74: 0 | OOA74: 0 | OOB74: 0 | OOC74: 0 | OOD74: 0 | OOE74: 0 | OOF74: 0 | OOG74: 0 | OOH74: 0 | OOI74: 0 | OOJ74: 0 | OOK74: 0 | OOL74: 0 | OOM74: 0 | OON74: 0 | OOO74: 0 | OOP74: 0 | OOQ74: 0 | OOR74: 0 | OOS74: 0 | OOT74: 0 | OOU74: 0 | OOV74: 0 | OOW74: 0 | OOX74: 0 | OOY74: 0 | OOZ74: 0 | OPA74: 0 | OPB74: 0 | OPC74: 0 | OPD74: 0 | OPE74: 0 | OPF74: 0 | OPG74: 0 | OPH74: 0 | OPI74: 0 | OPJ74: 0 | OPK74: 0 | OPL74: 0 | OPM74: 0 | OPN74: 0 | OPO74: 0 | OPP74: =OPP68 + OPP69 + OPP70 + (OPP71 + OPP72 + OPP73) * 0.5 -> 0 | OPQ74: 0 | OPR74: 0 | OPS74: 0 | OPT74: 0 | OPU74: 0 | OPV74: 0 | OPW74: 0 | OPX74: 0 | OPY74: 0 | OPZ74: 0 | OQA74: 0 | OQB74: 0 | OQC74: 0 | OQD74: 0 | OQE74: 0 | OQF74: 0 | OQG74: 0 | OQH74: 0 | OQI74: 0 | OQJ74: 0 | OQK74: 0 | OQL74: 0 | OQM74: 0 | OQN74: 0 | OQO74: 0 | OQP74: 0 | OQQ74: 0 | OQR74: 0 | OQS74: 0 | OQT74: 0 | OQU74: 0 | OQV74: 0 | OQW74: 0 | OQX74: 0 | OQY74: 0 | OQZ74: 0 | ORA74: 0 | ORB74: 0 | ORC74: 0 | ORD74: 0 | ORE74: 0 | ORF74: 0 | ORG74: 0 | ORH74: 0 | ORI74: 0 | ORJ74: 0 | ORK74: 0 | ORL74: 0 | ORM74: 0 | ORN74: 0 | ORO74: 0 | ORP74: 0 | ORQ74: 0 | ORR74: 0 | ORS74: 0 | ORT74: 0 | ORU74: 0 | ORV74: 0 | ORW74: 0 | ORX74: 0 | ORY74: 0 | ORZ74: 0 | OSA74: 0 | OSB74: =OSB68 + OSB69 + OSB70 + (OSB71 + OSB72 + OSB73) * 0.5 -> 0 | OSC74: 0 | OSD74: 0 | OSE74: 0 | OSF74: 0 | OSG74: 0 | OSH74: 0 | OSI74: 0 | OSJ74: 0 | OSK74: 0 | OSL74: 0 | OSM74: 0 | OSN74: 0 | OSO74: 0 | OSP74: 0 | OSQ74: 0 | OSR74: 0 | OSS74: 0 | OST74: 0 | OSU74: 0 | OSV74: 0 | OSW74: 0 | OSX74: 0 | OSY74: 0 | OSZ74: 0 | OTA74: 0 | OTB74: 0 | OTC74: 0 | OTD74: 0 | OTE74: 0 | OTF74: 0 | OTG74: 0 | OTH74: 0 | OTI74: 0 | OTJ74: 0 | OTK74: 0 | OTL74: 0 | OTM74: 0 | OTN74: 0 | OTO74: 0 | OTP74: 0 | OTQ74: 0 | OTR74: 0 | OTS74: 0 | OTT74: 0 | OTU74: 0 | OTV74: 0 | OTW74: 0 | OTX74: 0 | OTY74: 0 | OTZ74: 0 | OUA74: 0 | OUB74: 0 | OUC74: 0 | OUD74: 0 | OUE74: 0 | OUF74: 0 | OUG74: 0 | OUH74: 0 | OUI74: 0 | OUJ74: 0 | OUK74: 0 | OUL74: 0 | OUM74: 0 | OUN74: =OUN68 + OUN69 + OUN70 + (OUN71 + OUN72 + OUN73) * 0.5 -> 0 | OUO74: 0 | OUP74: 0 | OUQ74: 0 | OUR74: 0 | OUS74: 0 | OUT74: 0 | OUU74: 0 | OUV74: 0 | OUW74: 0 | OUX74: 0 | OUY74: 0 | OUZ74: 0 | OVA74: 0 | OVB74: 0 | OVC74: 0 | OVD74: 0 | OVE74: 0 | OVF74: 0 | OVG74: 0 | OVH74: 0 | OVI74: 0 | OVJ74: 0 | OVK74: 0 | OVL74: 0 | OVM74: 0 | OVN74: 0 | OVO74: 0 | OVP74: 0 | OVQ74: 0 | OVR74: 0 | OVS74: 0 | OVT74: 0 | OVU74: 0 | OVV74: 0 | OVW74: 0 | OVX74: 0 | OVY74: 0 | OVZ74: 0 | OWA74: 0 | OWB74: 0 | OWC74: 0 | OWD74: 0 | OWE74: 0 | OWF74: 0 | OWG74: 0 | OWH74: 0 | OWI74: 0 | OWJ74: 0 | OWK74: 0 | OWL74: 0 | OWM74: 0 | OWN74: 0 | OWO74: 0 | OWP74: 0 | OWQ74: 0 | OWR74: 0 | OWS74: 0 | OWT74: 0 | OWU74: 0 | OWV74: 0 | OWW74: 0 | OWX74: 0 | OWY74: 0 | OWZ74: =OWZ68 + OWZ69 + OWZ70 + (OWZ71 + OWZ72 + OWZ73) * 0.5 -> 0 | OXA74: 0 | OXB74: 0 | OXC74: 0 | OXD74: 0 | OXE74: 0 | OXF74: 0 | OXG74: 0 | OXH74: 0 | OXI74: 0 | OXJ74: 0 | OXK74: 0 | OXL74: 0 | OXM74: 0 | OXN74: 0 | OXO74: 0 | OXP74: 0 | OXQ74: 0 | OXR74: 0 | OXS74: 0 | OXT74: 0 | OXU74: 0 | OXV74: 0 | OXW74: 0 | OXX74: 0 | OXY74: 0 | OXZ74: 0 | OYA74: 0 | OYB74: 0 | OYC74: 0 | OYD74: 0 | OYE74: 0 | OYF74: 0 | OYG74: 0 | OYH74: 0 | OYI74: 0 | OYJ74: 0 | OYK74: 0 | OYL74: 0 | OYM74: 0 | OYN74: 0 | OYO74: 0 | OYP74: 0 | OYQ74: 0 | OYR74: 0 | OYS74: 0 | OYT74: 0 | OYU74: 0 | OYV74: 0 | OYW74: 0 | OYX74: 0 | OYY74: 0 | OYZ74: 0 | OZA74: 0 | OZB74: 0 | OZC74: 0 | OZD74: 0 | OZE74: 0 | OZF74: 0 | OZG74: 0 | OZH74: 0 | OZI74: 0 | OZJ74: 0 | OZK74: 0 | OZL74: =OZL68 + OZL69 + OZL70 + (OZL71 + OZL72 + OZL73) * 0.5 -> 0 | OZM74: 0 | OZN74: 0 | OZO74: 0 | OZP74: 0 | OZQ74: 0 | OZR74: 0 | OZS74: 0 | OZT74: 0 | OZU74: 0 | OZV74: 0 | OZW74: 0 | OZX74: 0 | OZY74: 0 | OZZ74: 0 | PAA74: 0 | PAB74: 0 | PAC74: 0 | PAD74: 0 | PAE74: 0 | PAF74: 0 | PAG74: 0 | PAH74: 0 | PAI74: 0 | PAJ74: 0 | PAK74: 0 | PAL74: 0 | PAM74: 0 | PAN74: 0 | PAO74: 0 | PAP74: 0 | PAQ74: 0 | PAR74: 0 | PAS74: 0 | PAT74: 0 | PAU74: 0 | PAV74: 0 | PAW74: 0 | PAX74: 0 | PAY74: 0 | PAZ74: 0 | PBA74: 0 | PBB74: 0 | PBC74: 0 | PBD74: 0 | PBE74: 0 | PBF74: 0 | PBG74: 0 | PBH74: 0 | PBI74: 0 | PBJ74: 0 | PBK74: 0 | PBL74: 0 | PBM74: 0 | PBN74: 0 | PBO74: 0 | PBP74: 0 | PBQ74: 0 | PBR74: 0 | PBS74: 0 | PBT74: 0 | PBU74: 0 | PBV74: 0 | PBW74: 0 | PBX74: =PBX68 + PBX69 + PBX70 + (PBX71 + PBX72 + PBX73) * 0.5 -> 0 | PBY74: 0 | PBZ74: 0 | PCA74: 0 | PCB74: 0 | PCC74: 0 | PCD74: 0 | PCE74: 0 | PCF74: 0 | PCG74: 0 | PCH74: 0 | PCI74: 0 | PCJ74: 0 | PCK74: 0 | PCL74: 0 | PCM74: 0 | PCN74: 0 | PCO74: 0 | PCP74: 0 | PCQ74: 0 | PCR74: 0 | PCS74: 0 | PCT74: 0 | PCU74: 0 | PCV74: 0 | PCW74: 0 | PCX74: 0 | PCY74: 0 | PCZ74: 0 | PDA74: 0 | PDB74: 0 | PDC74: 0 | PDD74: 0 | PDE74: 0 | PDF74: 0 | PDG74: 0 | PDH74: 0 | PDI74: 0 | PDJ74: 0 | PDK74: 0 | PDL74: 0 | PDM74: 0 | PDN74: 0 | PDO74: 0 | PDP74: 0 | PDQ74: 0 | PDR74: 0 | PDS74: 0 | PDT74: 0 | PDU74: 0 | PDV74: 0 | PDW74: 0 | PDX74: 0 | PDY74: 0 | PDZ74: 0 | PEA74: 0 | PEB74: 0 | PEC74: 0 | PED74: 0 | PEE74: 0 | PEF74: 0 | PEG74: 0 | PEH74: 0 | PEI74: 0 | PEJ74: =PEJ68 + PEJ69 + PEJ70 + (PEJ71 + PEJ72 + PEJ73) * 0.5 -> 0 | PEK74: 0 | PEL74: 0 | PEM74: 0 | PEN74: 0 | PEO74: 0 | PEP74: 0 | PEQ74: 0 | PER74: 0 | PES74: 0 | PET74: 0 | PEU74: 0 | PEV74: 0 | PEW74: 0 | PEX74: 0 | PEY74: 0 | PEZ74: 0 | PFA74: 0 | PFB74: 0 | PFC74: 0 | PFD74: 0 | PFE74: 0 | PFF74: 0 | PFG74: 0 | PFH74: 0 | PFI74: 0 | PFJ74: 0 | PFK74: 0 | PFL74: 0 | PFM74: 0 | PFN74: 0 | PFO74: 0 | PFP74: 0 | PFQ74: 0 | PFR74: 0 | PFS74: 0 | PFT74: 0 | PFU74: 0 | PFV74: 0 | PFW74: 0 | PFX74: 0 | PFY74: 0 | PFZ74: 0 | PGA74: 0 | PGB74: 0 | PGC74: 0 | PGD74: 0 | PGE74: 0 | PGF74: 0 | PGG74: 0 | PGH74: 0 | PGI74: 0 | PGJ74: 0 | PGK74: 0 | PGL74: 0 | PGM74: 0 | PGN74: 0 | PGO74: 0 | PGP74: 0 | PGQ74: 0 | PGR74: 0 | PGS74: 0 | PGT74: 0 | PGU74: 0 | PGV74: =PGV68 + PGV69 + PGV70 + (PGV71 + PGV72 + PGV73) * 0.5 -> 0 | PGW74: 0 | PGX74: 0 | PGY74: 0 | PGZ74: 0 | PHA74: 0 | PHB74: 0 | PHC74: 0 | PHD74: 0 | PHE74: 0 | PHF74: 0 | PHG74: 0 | PHH74: 0 | PHI74: 0 | PHJ74: 0 | PHK74: 0 | PHL74: 0 | PHM74: 0 | PHN74: 0 | PHO74: 0 | PHP74: 0 | PHQ74: 0 | PHR74: 0 | PHS74: 0 | PHT74: 0 | PHU74: 0 | PHV74: 0 | PHW74: 0 | PHX74: 0 | PHY74: 0 | PHZ74: 0 | PIA74: 0 | PIB74: 0 | PIC74: 0 | PID74: 0 | PIE74: 0 | PIF74: 0 | PIG74: 0 | PIH74: 0 | PII74: 0 | PIJ74: 0 | PIK74: 0 | PIL74: 0 | PIM74: 0 | PIN74: 0 | PIO74: 0 | PIP74: 0 | PIQ74: 0 | PIR74: 0 | PIS74: 0 | PIT74: 0 | PIU74: 0 | PIV74: 0 | PIW74: 0 | PIX74: 0 | PIY74: 0 | PIZ74: 0 | PJA74: 0 | PJB74: 0 | PJC74: 0 | PJD74: 0 | PJE74: 0 | PJF74: 0 | PJG74: 0 | PJH74: =PJH68 + PJH69 + PJH70 + (PJH71 + PJH72 + PJH73) * 0.5 -> 0 | PJI74: 0 | PJJ74: 0 | PJK74: 0 | PJL74: 0 | PJM74: 0 | PJN74: 0 | PJO74: 0 | PJP74: 0 | PJQ74: 0 | PJR74: 0 | PJS74: 0 | PJT74: 0 | PJU74: 0 | PJV74: 0 | PJW74: 0 | PJX74: 0 | PJY74: 0 | PJZ74: 0 | PKA74: 0 | PKB74: 0 | PKC74: 0 | PKD74: 0 | PKE74: 0 | PKF74: 0 | PKG74: 0 | PKH74: 0 | PKI74: 0 | PKJ74: 0 | PKK74: 0 | PKL74: 0 | PKM74: 0 | PKN74: 0 | PKO74: 0 | PKP74: 0 | PKQ74: 0 | PKR74: 0 | PKS74: 0 | PKT74: 0 | PKU74: 0 | PKV74: 0 | PKW74: 0 | PKX74: 0 | PKY74: 0 | PKZ74: 0 | PLA74: 0 | PLB74: 0 | PLC74: 0 | PLD74: 0 | PLE74: 0 | PLF74: 0 | PLG74: 0 | PLH74: 0 | PLI74: 0 | PLJ74: 0 | PLK74: 0 | PLL74: 0 | PLM74: 0 | PLN74: 0 | PLO74: 0 | PLP74: 0 | PLQ74: 0 | PLR74: 0 | PLS74: 0 | PLT74: =PLT68 + PLT69 + PLT70 + (PLT71 + PLT72 + PLT73) * 0.5 -> 0 | PLU74: 0 | PLV74: 0 | PLW74: 0 | PLX74: 0 | PLY74: 0 | PLZ74: 0 | PMA74: 0 | PMB74: 0 | PMC74: 0 | PMD74: 0 | PME74: 0 | PMF74: 0 | PMG74: 0 | PMH74: 0 | PMI74: 0 | PMJ74: 0 | PMK74: 0 | PML74: 0 | PMM74: 0 | PMN74: 0 | PMO74: 0 | PMP74: 0 | PMQ74: 0 | PMR74: 0 | PMS74: 0 | PMT74: 0 | PMU74: 0 | PMV74: 0 | PMW74: 0 | PMX74: 0 | PMY74: 0 | PMZ74: 0 | PNA74: 0 | PNB74: 0 | PNC74: 0 | PND74: 0 | PNE74: 0 | PNF74: 0 | PNG74: 0 | PNH74: 0 | PNI74: 0 | PNJ74: 0 | PNK74: 0 | PNL74: 0 | PNM74: 0 | PNN74: 0 | PNO74: 0 | PNP74: 0 | PNQ74: 0 | PNR74: 0 | PNS74: 0 | PNT74: 0 | PNU74: 0 | PNV74: 0 | PNW74: 0 | PNX74: 0 | PNY74: 0 | PNZ74: 0 | POA74: 0 | POB74: 0 | POC74: 0 | POD74: 0 | POE74: 0 | POF74: =POF68 + POF69 + POF70 + (POF71 + POF72 + POF73) * 0.5 -> 0 | POG74: 0 | POH74: 0 | POI74: 0 | POJ74: 0 | POK74: 0 | POL74: 0 | POM74: 0 | PON74: 0 | POO74: 0 | POP74: 0 | POQ74: 0 | POR74: 0 | POS74: 0 | POT74: 0 | POU74: 0 | POV74: 0 | POW74: 0 | POX74: 0 | POY74: 0 | POZ74: 0 | PPA74: 0 | PPB74: 0 | PPC74: 0 | PPD74: 0 | PPE74: 0 | PPF74: 0 | PPG74: 0 | PPH74: 0 | PPI74: 0 | PPJ74: 0 | PPK74: 0 | PPL74: 0 | PPM74: 0 | PPN74: 0 | PPO74: 0 | PPP74: 0 | PPQ74: 0 | PPR74: 0 | PPS74: 0 | PPT74: 0 | PPU74: 0 | PPV74: 0 | PPW74: 0 | PPX74: 0 | PPY74: 0 | PPZ74: 0 | PQA74: 0 | PQB74: 0 | PQC74: 0 | PQD74: 0 | PQE74: 0 | PQF74: 0 | PQG74: 0 | PQH74: 0 | PQI74: 0 | PQJ74: 0 | PQK74: 0 | PQL74: 0 | PQM74: 0 | PQN74: 0 | PQO74: 0 | PQP74: 0 | PQQ74: 0 | PQR74: =PQR68 + PQR69 + PQR70 + (PQR71 + PQR72 + PQR73) * 0.5 -> 0 | PQS74: 0 | PQT74: 0 | PQU74: 0 | PQV74: 0 | PQW74: 0 | PQX74: 0 | PQY74: 0 | PQZ74: 0 | PRA74: 0 | PRB74: 0 | PRC74: 0 | PRD74: 0 | PRE74: 0 | PRF74: 0 | PRG74: 0 | PRH74: 0 | PRI74: 0 | PRJ74: 0 | PRK74: 0 | PRL74: 0 | PRM74: 0 | PRN74: 0 | PRO74: 0 | PRP74: 0 | PRQ74: 0 | PRR74: 0 | PRS74: 0 | PRT74: 0 | PRU74: 0 | PRV74: 0 | PRW74: 0 | PRX74: 0 | PRY74: 0 | PRZ74: 0 | PSA74: 0 | PSB74: 0 | PSC74: 0 | PSD74: 0 | PSE74: 0 | PSF74: 0 | PSG74: 0 | PSH74: 0 | PSI74: 0 | PSJ74: 0 | PSK74: 0 | PSL74: 0 | PSM74: 0 | PSN74: 0 | PSO74: 0 | PSP74: 0 | PSQ74: 0 | PSR74: 0 | PSS74: 0 | PST74: 0 | PSU74: 0 | PSV74: 0 | PSW74: 0 | PSX74: 0 | PSY74: 0 | PSZ74: 0 | PTA74: 0 | PTB74: 0 | PTC74: 0 | PTD74: =PTD68 + PTD69 + PTD70 + (PTD71 + PTD72 + PTD73) * 0.5 -> 0 | PTE74: 0 | PTF74: 0 | PTG74: 0 | PTH74: 0 | PTI74: 0 | PTJ74: 0 | PTK74: 0 | PTL74: 0 | PTM74: 0 | PTN74: 0 | PTO74: 0 | PTP74: 0 | PTQ74: 0 | PTR74: 0 | PTS74: 0 | PTT74: 0 | PTU74: 0 | PTV74: 0 | PTW74: 0 | PTX74: 0 | PTY74: 0 | PTZ74: 0 | PUA74: 0 | PUB74: 0 | PUC74: 0 | PUD74: 0 | PUE74: 0 | PUF74: 0 | PUG74: 0 | PUH74: 0 | PUI74: 0 | PUJ74: 0 | PUK74: 0 | PUL74: 0 | PUM74: 0 | PUN74: 0 | PUO74: 0 | PUP74: 0 | PUQ74: 0 | PUR74: 0 | PUS74: 0 | PUT74: 0 | PUU74: 0 | PUV74: 0 | PUW74: 0 | PUX74: 0 | PUY74: 0 | PUZ74: 0 | PVA74: 0 | PVB74: 0 | PVC74: 0 | PVD74: 0 | PVE74: 0 | PVF74: 0 | PVG74: 0 | PVH74: 0 | PVI74: 0 | PVJ74: 0 | PVK74: 0 | PVL74: 0 | PVM74: 0 | PVN74: 0 | PVO74: 0 | PVP74: =PVP68 + PVP69 + PVP70 + (PVP71 + PVP72 + PVP73) * 0.5 -> 0 | PVQ74: 0 | PVR74: 0 | PVS74: 0 | PVT74: 0 | PVU74: 0 | PVV74: 0 | PVW74: 0 | PVX74: 0 | PVY74: 0 | PVZ74: 0 | PWA74: 0 | PWB74: 0 | PWC74: 0 | PWD74: 0 | PWE74: 0 | PWF74: 0 | PWG74: 0 | PWH74: 0 | PWI74: 0 | PWJ74: 0 | PWK74: 0 | PWL74: 0 | PWM74: 0 | PWN74: 0 | PWO74: 0 | PWP74: 0 | PWQ74: 0 | PWR74: 0 | PWS74: 0 | PWT74: 0 | PWU74: 0 | PWV74: 0 | PWW74: 0 | PWX74: 0 | PWY74: 0 | PWZ74: 0 | PXA74: 0 | PXB74: 0 | PXC74: 0 | PXD74: 0 | PXE74: 0 | PXF74: 0 | PXG74: 0 | PXH74: 0 | PXI74: 0 | PXJ74: 0 | PXK74: 0 | PXL74: 0 | PXM74: 0 | PXN74: 0 | PXO74: 0 | PXP74: 0 | PXQ74: 0 | PXR74: 0 | PXS74: 0 | PXT74: 0 | PXU74: 0 | PXV74: 0 | PXW74: 0 | PXX74: 0 | PXY74: 0 | PXZ74: 0 | PYA74: 0 | PYB74: =PYB68 + PYB69 + PYB70 + (PYB71 + PYB72 + PYB73) * 0.5 -> 0 | PYC74: 0 | PYD74: 0 | PYE74: 0 | PYF74: 0 | PYG74: 0 | PYH74: 0 | PYI74: 0 | PYJ74: 0 | PYK74: 0 | PYL74: 0 | PYM74: 0 | PYN74: 0 | PYO74: 0 | PYP74: 0 | PYQ74: 0 | PYR74: 0 | PYS74: 0 | PYT74: 0 | PYU74: 0 | PYV74: 0 | PYW74: 0 | PYX74: 0 | PYY74: 0 | PYZ74: 0 | PZA74: 0 | PZB74: 0 | PZC74: 0 | PZD74: 0 | PZE74: 0 | PZF74: 0 | PZG74: 0 | PZH74: 0 | PZI74: 0 | PZJ74: 0 | PZK74: 0 | PZL74: 0 | PZM74: 0 | PZN74: 0 | PZO74: 0 | PZP74: 0 | PZQ74: 0 | PZR74: 0 | PZS74: 0 | PZT74: 0 | PZU74: 0 | PZV74: 0 | PZW74: 0 | PZX74: 0 | PZY74: 0 | PZZ74: 0 | QAA74: 0 | QAB74: 0 | QAC74: 0 | QAD74: 0 | QAE74: 0 | QAF74: 0 | QAG74: 0 | QAH74: 0 | QAI74: 0 | QAJ74: 0 | QAK74: 0 | QAL74: 0 | QAM74: 0 | QAN74: =QAN68 + QAN69 + QAN70 + (QAN71 + QAN72 + QAN73) * 0.5 -> 0 | QAO74: 0 | QAP74: 0 | QAQ74: 0 | QAR74: 0 | QAS74: 0 | QAT74: 0 | QAU74: 0 | QAV74: 0 | QAW74: 0 | QAX74: 0 | QAY74: 0 | QAZ74: 0 | QBA74: 0 | QBB74: 0 | QBC74: 0 | QBD74: 0 | QBE74: 0 | QBF74: 0 | QBG74: 0 | QBH74: 0 | QBI74: 0 | QBJ74: 0 | QBK74: 0 | QBL74: 0 | QBM74: 0 | QBN74: 0 | QBO74: 0 | QBP74: 0 | QBQ74: 0 | QBR74: 0 | QBS74: 0 | QBT74: 0 | QBU74: 0 | QBV74: 0 | QBW74: 0 | QBX74: 0 | QBY74: 0 | QBZ74: 0 | QCA74: 0 | QCB74: 0 | QCC74: 0 | QCD74: 0 | QCE74: 0 | QCF74: 0 | QCG74: 0 | QCH74: 0 | QCI74: 0 | QCJ74: 0 | QCK74: 0 | QCL74: 0 | QCM74: 0 | QCN74: 0 | QCO74: 0 | QCP74: 0 | QCQ74: 0 | QCR74: 0 | QCS74: 0 | QCT74: 0 | QCU74: 0 | QCV74: 0 | QCW74: 0 | QCX74: 0 | QCY74: 0 | QCZ74: =QCZ68 + QCZ69 + QCZ70 + (QCZ71 + QCZ72 + QCZ73) * 0.5 -> 0 | QDA74: 0 | QDB74: 0 | QDC74: 0 | QDD74: 0 | QDE74: 0 | QDF74: 0 | QDG74: 0 | QDH74: 0 | QDI74: 0 | QDJ74: 0 | QDK74: 0 | QDL74: 0 | QDM74: 0 | QDN74: 0 | QDO74: 0 | QDP74: 0 | QDQ74: 0 | QDR74: 0 | QDS74: 0 | QDT74: 0 | QDU74: 0 | QDV74: 0 | QDW74: 0 | QDX74: 0 | QDY74: 0 | QDZ74: 0 | QEA74: 0 | QEB74: 0 | QEC74: 0 | QED74: 0 | QEE74: 0 | QEF74: 0 | QEG74: 0 | QEH74: 0 | QEI74: 0 | QEJ74: 0 | QEK74: 0 | QEL74: 0 | QEM74: 0 | QEN74: 0 | QEO74: 0 | QEP74: 0 | QEQ74: 0 | QER74: 0 | QES74: 0 | QET74: 0 | QEU74: 0 | QEV74: 0 | QEW74: 0 | QEX74: 0 | QEY74: 0 | QEZ74: 0 | QFA74: 0 | QFB74: 0 | QFC74: 0 | QFD74: 0 | QFE74: 0 | QFF74: 0 | QFG74: 0 | QFH74: 0 | QFI74: 0 | QFJ74: 0 | QFK74: 0 | QFL74: =QFL68 + QFL69 + QFL70 + (QFL71 + QFL72 + QFL73) * 0.5 -> 0 | QFM74: 0 | QFN74: 0 | QFO74: 0 | QFP74: 0 | QFQ74: 0 | QFR74: 0 | QFS74: 0 | QFT74: 0 | QFU74: 0 | QFV74: 0 | QFW74: 0 | QFX74: 0 | QFY74: 0 | QFZ74: 0 | QGA74: 0 | QGB74: 0 | QGC74: 0 | QGD74: 0 | QGE74: 0 | QGF74: 0 | QGG74: 0 | QGH74: 0 | QGI74: 0 | QGJ74: 0 | QGK74: 0 | QGL74: 0 | QGM74: 0 | QGN74: 0 | QGO74: 0 | QGP74: 0 | QGQ74: 0 | QGR74: 0 | QGS74: 0 | QGT74: 0 | QGU74: 0 | QGV74: 0 | QGW74: 0 | QGX74: 0 | QGY74: 0 | QGZ74: 0 | QHA74: 0 | QHB74: 0 | QHC74: 0 | QHD74: 0 | QHE74: 0 | QHF74: 0 | QHG74: 0 | QHH74: 0 | QHI74: 0 | QHJ74: 0 | QHK74: 0 | QHL74: 0 | QHM74: 0 | QHN74: 0 | QHO74: 0 | QHP74: 0 | QHQ74: 0 | QHR74: 0 | QHS74: 0 | QHT74: 0 | QHU74: 0 | QHV74: 0 | QHW74: 0 | QHX74: =QHX68 + QHX69 + QHX70 + (QHX71 + QHX72 + QHX73) * 0.5 -> 0 | QHY74: 0 | QHZ74: 0 | QIA74: 0 | QIB74: 0 | QIC74: 0 | QID74: 0 | QIE74: 0 | QIF74: 0 | QIG74: 0 | QIH74: 0 | QII74: 0 | QIJ74: 0 | QIK74: 0 | QIL74: 0 | QIM74: 0 | QIN74: 0 | QIO74: 0 | QIP74: 0 | QIQ74: 0 | QIR74: 0 | QIS74: 0 | QIT74: 0 | QIU74: 0 | QIV74: 0 | QIW74: 0 | QIX74: 0 | QIY74: 0 | QIZ74: 0 | QJA74: 0 | QJB74: 0 | QJC74: 0 | QJD74: 0 | QJE74: 0 | QJF74: 0 | QJG74: 0 | QJH74: 0 | QJI74: 0 | QJJ74: 0 | QJK74: 0 | QJL74: 0 | QJM74: 0 | QJN74: 0 | QJO74: 0 | QJP74: 0 | QJQ74: 0 | QJR74: 0 | QJS74: 0 | QJT74: 0 | QJU74: 0 | QJV74: 0 | QJW74: 0 | QJX74: 0 | QJY74: 0 | QJZ74: 0 | QKA74: 0 | QKB74: 0 | QKC74: 0 | QKD74: 0 | QKE74: 0 | QKF74: 0 | QKG74: 0 | QKH74: 0 | QKI74: 0 | QKJ74: =QKJ68 + QKJ69 + QKJ70 + (QKJ71 + QKJ72 + QKJ73) * 0.5 -> 0 | QKK74: 0 | QKL74: 0 | QKM74: 0 | QKN74: 0 | QKO74: 0 | QKP74: 0 | QKQ74: 0 | QKR74: 0 | QKS74: 0 | QKT74: 0 | QKU74: 0 | QKV74: 0 | QKW74: 0 | QKX74: 0 | QKY74: 0 | QKZ74: 0 | QLA74: 0 | QLB74: 0 | QLC74: 0 | QLD74: 0 | QLE74: 0 | QLF74: 0 | QLG74: 0 | QLH74: 0 | QLI74: 0 | QLJ74: 0 | QLK74: 0 | QLL74: 0 | QLM74: 0 | QLN74: 0 | QLO74: 0 | QLP74: 0 | QLQ74: 0 | QLR74: 0 | QLS74: 0 | QLT74: 0 | QLU74: 0 | QLV74: 0 | QLW74: 0 | QLX74: 0 | QLY74: 0 | QLZ74: 0 | QMA74: 0 | QMB74: 0 | QMC74: 0 | QMD74: 0 | QME74: 0 | QMF74: 0 | QMG74: 0 | QMH74: 0 | QMI74: 0 | QMJ74: 0 | QMK74: 0 | QML74: 0 | QMM74: 0 | QMN74: 0 | QMO74: 0 | QMP74: 0 | QMQ74: 0 | QMR74: 0 | QMS74: 0 | QMT74: 0 | QMU74: 0 | QMV74: =QMV68 + QMV69 + QMV70 + (QMV71 + QMV72 + QMV73) * 0.5 -> 0 | QMW74: 0 | QMX74: 0 | QMY74: 0 | QMZ74: 0 | QNA74: 0 | QNB74: 0 | QNC74: 0 | QND74: 0 | QNE74: 0 | QNF74: 0 | QNG74: 0 | QNH74: 0 | QNI74: 0 | QNJ74: 0 | QNK74: 0 | QNL74: 0 | QNM74: 0 | QNN74: 0 | QNO74: 0 | QNP74: 0 | QNQ74: 0 | QNR74: 0 | QNS74: 0 | QNT74: 0 | QNU74: 0 | QNV74: 0 | QNW74: 0 | QNX74: 0 | QNY74: 0 | QNZ74: 0 | QOA74: 0 | QOB74: 0 | QOC74: 0 | QOD74: 0 | QOE74: 0 | QOF74: 0 | QOG74: 0 | QOH74: 0 | QOI74: 0 | QOJ74: 0 | QOK74: 0 | QOL74: 0 | QOM74: 0 | QON74: 0 | QOO74: 0 | QOP74: 0 | QOQ74: 0 | QOR74: 0 | QOS74: 0 | QOT74: 0 | QOU74: 0 | QOV74: 0 | QOW74: 0 | QOX74: 0 | QOY74: 0 | QOZ74: 0 | QPA74: 0 | QPB74: 0 | QPC74: 0 | QPD74: 0 | QPE74: 0 | QPF74: 0 | QPG74: 0 | QPH74: =QPH68 + QPH69 + QPH70 + (QPH71 + QPH72 + QPH73) * 0.5 -> 0 | QPI74: 0 | QPJ74: 0 | QPK74: 0 | QPL74: 0 | QPM74: 0 | QPN74: 0 | QPO74: 0 | QPP74: 0 | QPQ74: 0 | QPR74: 0 | QPS74: 0 | QPT74: 0 | QPU74: 0 | QPV74: 0 | QPW74: 0 | QPX74: 0 | QPY74: 0 | QPZ74: 0 | QQA74: 0 | QQB74: 0 | QQC74: 0 | QQD74: 0 | QQE74: 0 | QQF74: 0 | QQG74: 0 | QQH74: 0 | QQI74: 0 | QQJ74: 0 | QQK74: 0 | QQL74: 0 | QQM74: 0 | QQN74: 0 | QQO74: 0 | QQP74: 0 | QQQ74: 0 | QQR74: 0 | QQS74: 0 | QQT74: 0 | QQU74: 0 | QQV74: 0 | QQW74: 0 | QQX74: 0 | QQY74: 0 | QQZ74: 0 | QRA74: 0 | QRB74: 0 | QRC74: 0 | QRD74: 0 | QRE74: 0 | QRF74: 0 | QRG74: 0 | QRH74: 0 | QRI74: 0 | QRJ74: 0 | QRK74: 0 | QRL74: 0 | QRM74: 0 | QRN74: 0 | QRO74: 0 | QRP74: 0 | QRQ74: 0 | QRR74: 0 | QRS74: 0 | QRT74: =QRT68 + QRT69 + QRT70 + (QRT71 + QRT72 + QRT73) * 0.5 -> 0 | QRU74: 0 | QRV74: 0 | QRW74: 0 | QRX74: 0 | QRY74: 0 | QRZ74: 0 | QSA74: 0 | QSB74: 0 | QSC74: 0 | QSD74: 0 | QSE74: 0 | QSF74: 0 | QSG74: 0 | QSH74: 0 | QSI74: 0 | QSJ74: 0 | QSK74: 0 | QSL74: 0 | QSM74: 0 | QSN74: 0 | QSO74: 0 | QSP74: 0 | QSQ74: 0 | QSR74: 0 | QSS74: 0 | QST74: 0 | QSU74: 0 | QSV74: 0 | QSW74: 0 | QSX74: 0 | QSY74: 0 | QSZ74: 0 | QTA74: 0 | QTB74: 0 | QTC74: 0 | QTD74: 0 | QTE74: 0 | QTF74: 0 | QTG74: 0 | QTH74: 0 | QTI74: 0 | QTJ74: 0 | QTK74: 0 | QTL74: 0 | QTM74: 0 | QTN74: 0 | QTO74: 0 | QTP74: 0 | QTQ74: 0 | QTR74: 0 | QTS74: 0 | QTT74: 0 | QTU74: 0 | QTV74: 0 | QTW74: 0 | QTX74: 0 | QTY74: 0 | QTZ74: 0 | QUA74: 0 | QUB74: 0 | QUC74: 0 | QUD74: 0 | QUE74: 0 | QUF74: =QUF68 + QUF69 + QUF70 + (QUF71 + QUF72 + QUF73) * 0.5 -> 0 | QUG74: 0 | QUH74: 0 | QUI74: 0 | QUJ74: 0 | QUK74: 0 | QUL74: 0 | QUM74: 0 | QUN74: 0 | QUO74: 0 | QUP74: 0 | QUQ74: 0 | QUR74: 0 | QUS74: 0 | QUT74: 0 | QUU74: 0 | QUV74: 0 | QUW74: 0 | QUX74: 0 | QUY74: 0 | QUZ74: 0 | QVA74: 0 | QVB74: 0 | QVC74: 0 | QVD74: 0 | QVE74: 0 | QVF74: 0 | QVG74: 0 | QVH74: 0 | QVI74: 0 | QVJ74: 0 | QVK74: 0 | QVL74: 0 | QVM74: 0 | QVN74: 0 | QVO74: 0 | QVP74: 0 | QVQ74: 0 | QVR74: 0 | QVS74: 0 | QVT74: 0 | QVU74: 0 | QVV74: 0 | QVW74: 0 | QVX74: 0 | QVY74: 0 | QVZ74: 0 | QWA74: 0 | QWB74: 0 | QWC74: 0 | QWD74: 0 | QWE74: 0 | QWF74: 0 | QWG74: 0 | QWH74: 0 | QWI74: 0 | QWJ74: 0 | QWK74: 0 | QWL74: 0 | QWM74: 0 | QWN74: 0 | QWO74: 0 | QWP74: 0 | QWQ74: 0 | QWR74: =QWR68 + QWR69 + QWR70 + (QWR71 + QWR72 + QWR73) * 0.5 -> 0 | QWS74: 0 | QWT74: 0 | QWU74: 0 | QWV74: 0 | QWW74: 0 | QWX74: 0 | QWY74: 0 | QWZ74: 0 | QXA74: 0 | QXB74: 0 | QXC74: 0 | QXD74: 0 | QXE74: 0 | QXF74: 0 | QXG74: 0 | QXH74: 0 | QXI74: 0 | QXJ74: 0 | QXK74: 0 | QXL74: 0 | QXM74: 0 | QXN74: 0 | QXO74: 0 | QXP74: 0 | QXQ74: 0 | QXR74: 0 | QXS74: 0 | QXT74: 0 | QXU74: 0 | QXV74: 0 | QXW74: 0 | QXX74: 0 | QXY74: 0 | QXZ74: 0 | QYA74: 0 | QYB74: 0 | QYC74: 0 | QYD74: 0 | QYE74: 0 | QYF74: 0 | QYG74: 0 | QYH74: 0 | QYI74: 0 | QYJ74: 0 | QYK74: 0 | QYL74: 0 | QYM74: 0 | QYN74: 0 | QYO74: 0 | QYP74: 0 | QYQ74: 0 | QYR74: 0 | QYS74: 0 | QYT74: 0 | QYU74: 0 | QYV74: 0 | QYW74: 0 | QYX74: 0 | QYY74: 0 | QYZ74: 0 | QZA74: 0 | QZB74: 0 | QZC74: 0 | QZD74: =QZD68 + QZD69 + QZD70 + (QZD71 + QZD72 + QZD73) * 0.5 -> 0 | QZE74: 0 | QZF74: 0 | QZG74: 0 | QZH74: 0 | QZI74: 0 | QZJ74: 0 | QZK74: 0 | QZL74: 0 | QZM74: 0 | QZN74: 0 | QZO74: 0 | QZP74: 0 | QZQ74: 0 | QZR74: 0 | QZS74: 0 | QZT74: 0 | QZU74: 0 | QZV74: 0 | QZW74: 0 | QZX74: 0 | QZY74: 0 | QZZ74: 0 | RAA74: 0 | RAB74: 0 | RAC74: 0 | RAD74: 0 | RAE74: 0 | RAF74: 0 | RAG74: 0 | RAH74: 0 | RAI74: 0 | RAJ74: 0 | RAK74: 0 | RAL74: 0 | RAM74: 0 | RAN74: 0 | RAO74: 0 | RAP74: 0 | RAQ74: 0 | RAR74: 0 | RAS74: 0 | RAT74: 0 | RAU74: 0 | RAV74: 0 | RAW74: 0 | RAX74: 0 | RAY74: 0 | RAZ74: 0 | RBA74: 0 | RBB74: 0 | RBC74: 0 | RBD74: 0 | RBE74: 0 | RBF74: 0 | RBG74: 0 | RBH74: 0 | RBI74: 0 | RBJ74: 0 | RBK74: 0 | RBL74: 0 | RBM74: 0 | RBN74: 0 | RBO74: 0 | RBP74: =RBP68 + RBP69 + RBP70 + (RBP71 + RBP72 + RBP73) * 0.5 -> 0 | RBQ74: 0 | RBR74: 0 | RBS74: 0 | RBT74: 0 | RBU74: 0 | RBV74: 0 | RBW74: 0 | RBX74: 0 | RBY74: 0 | RBZ74: 0 | RCA74: 0 | RCB74: 0 | RCC74: 0 | RCD74: 0 | RCE74: 0 | RCF74: 0 | RCG74: 0 | RCH74: 0 | RCI74: 0 | RCJ74: 0 | RCK74: 0 | RCL74: 0 | RCM74: 0 | RCN74: 0 | RCO74: 0 | RCP74: 0 | RCQ74: 0 | RCR74: 0 | RCS74: 0 | RCT74: 0 | RCU74: 0 | RCV74: 0 | RCW74: 0 | RCX74: 0 | RCY74: 0 | RCZ74: 0 | RDA74: 0 | RDB74: 0 | RDC74: 0 | RDD74: 0 | RDE74: 0 | RDF74: 0 | RDG74: 0 | RDH74: 0 | RDI74: 0 | RDJ74: 0 | RDK74: 0 | RDL74: 0 | RDM74: 0 | RDN74: 0 | RDO74: 0 | RDP74: 0 | RDQ74: 0 | RDR74: 0 | RDS74: 0 | RDT74: 0 | RDU74: 0 | RDV74: 0 | RDW74: 0 | RDX74: 0 | RDY74: 0 | RDZ74: 0 | REA74: 0 | REB74: =REB68 + REB69 + REB70 + (REB71 + REB72 + REB73) * 0.5 -> 0 | REC74: 0 | RED74: 0 | REE74: 0 | REF74: 0 | REG74: 0 | REH74: 0 | REI74: 0 | REJ74: 0 | REK74: 0 | REL74: 0 | REM74: 0 | REN74: 0 | REO74: 0 | REP74: 0 | REQ74: 0 | RER74: 0 | RES74: 0 | RET74: 0 | REU74: 0 | REV74: 0 | REW74: 0 | REX74: 0 | REY74: 0 | REZ74: 0 | RFA74: 0 | RFB74: 0 | RFC74: 0 | RFD74: 0 | RFE74: 0 | RFF74: 0 | RFG74: 0 | RFH74: 0 | RFI74: 0 | RFJ74: 0 | RFK74: 0 | RFL74: 0 | RFM74: 0 | RFN74: 0 | RFO74: 0 | RFP74: 0 | RFQ74: 0 | RFR74: 0 | RFS74: 0 | RFT74: 0 | RFU74: 0 | RFV74: 0 | RFW74: 0 | RFX74: 0 | RFY74: 0 | RFZ74: 0 | RGA74: 0 | RGB74: 0 | RGC74: 0 | RGD74: 0 | RGE74: 0 | RGF74: 0 | RGG74: 0 | RGH74: 0 | RGI74: 0 | RGJ74: 0 | RGK74: 0 | RGL74: 0 | RGM74: 0 | RGN74: =RGN68 + RGN69 + RGN70 + (RGN71 + RGN72 + RGN73) * 0.5 -> 0 | RGO74: 0 | RGP74: 0 | RGQ74: 0 | RGR74: 0 | RGS74: 0 | RGT74: 0 | RGU74: 0 | RGV74: 0 | RGW74: 0 | RGX74: 0 | RGY74: 0 | RGZ74: 0 | RHA74: 0 | RHB74: 0 | RHC74: 0 | RHD74: 0 | RHE74: 0 | RHF74: 0 | RHG74: 0 | RHH74: 0 | RHI74: 0 | RHJ74: 0 | RHK74: 0 | RHL74: 0 | RHM74: 0 | RHN74: 0 | RHO74: 0 | RHP74: 0 | RHQ74: 0 | RHR74: 0 | RHS74: 0 | RHT74: 0 | RHU74: 0 | RHV74: 0 | RHW74: 0 | RHX74: 0 | RHY74: 0 | RHZ74: 0 | RIA74: 0 | RIB74: 0 | RIC74: 0 | RID74: 0 | RIE74: 0 | RIF74: 0 | RIG74: 0 | RIH74: 0 | RII74: 0 | RIJ74: 0 | RIK74: 0 | RIL74: 0 | RIM74: 0 | RIN74: 0 | RIO74: 0 | RIP74: 0 | RIQ74: 0 | RIR74: 0 | RIS74: 0 | RIT74: 0 | RIU74: 0 | RIV74: 0 | RIW74: 0 | RIX74: 0 | RIY74: 0 | RIZ74: =RIZ68 + RIZ69 + RIZ70 + (RIZ71 + RIZ72 + RIZ73) * 0.5 -> 0 | RJA74: 0 | RJB74: 0 | RJC74: 0 | RJD74: 0 | RJE74: 0 | RJF74: 0 | RJG74: 0 | RJH74: 0 | RJI74: 0 | RJJ74: 0 | RJK74: 0 | RJL74: 0 | RJM74: 0 | RJN74: 0 | RJO74: 0 | RJP74: 0 | RJQ74: 0 | RJR74: 0 | RJS74: 0 | RJT74: 0 | RJU74: 0 | RJV74: 0 | RJW74: 0 | RJX74: 0 | RJY74: 0 | RJZ74: 0 | RKA74: 0 | RKB74: 0 | RKC74: 0 | RKD74: 0 | RKE74: 0 | RKF74: 0 | RKG74: 0 | RKH74: 0 | RKI74: 0 | RKJ74: 0 | RKK74: 0 | RKL74: 0 | RKM74: 0 | RKN74: 0 | RKO74: 0 | RKP74: 0 | RKQ74: 0 | RKR74: 0 | RKS74: 0 | RKT74: 0 | RKU74: 0 | RKV74: 0 | RKW74: 0 | RKX74: 0 | RKY74: 0 | RKZ74: 0 | RLA74: 0 | RLB74: 0 | RLC74: 0 | RLD74: 0 | RLE74: 0 | RLF74: 0 | RLG74: 0 | RLH74: 0 | RLI74: 0 | RLJ74: 0 | RLK74: 0 | RLL74: =RLL68 + RLL69 + RLL70 + (RLL71 + RLL72 + RLL73) * 0.5 -> 0 | RLM74: 0 | RLN74: 0 | RLO74: 0 | RLP74: 0 | RLQ74: 0 | RLR74: 0 | RLS74: 0 | RLT74: 0 | RLU74: 0 | RLV74: 0 | RLW74: 0 | RLX74: 0 | RLY74: 0 | RLZ74: 0 | RMA74: 0 | RMB74: 0 | RMC74: 0 | RMD74: 0 | RME74: 0 | RMF74: 0 | RMG74: 0 | RMH74: 0 | RMI74: 0 | RMJ74: 0 | RMK74: 0 | RML74: 0 | RMM74: 0 | RMN74: 0 | RMO74: 0 | RMP74: 0 | RMQ74: 0 | RMR74: 0 | RMS74: 0 | RMT74: 0 | RMU74: 0 | RMV74: 0 | RMW74: 0 | RMX74: 0 | RMY74: 0 | RMZ74: 0 | RNA74: 0 | RNB74: 0 | RNC74: 0 | RND74: 0 | RNE74: 0 | RNF74: 0 | RNG74: 0 | RNH74: 0 | RNI74: 0 | RNJ74: 0 | RNK74: 0 | RNL74: 0 | RNM74: 0 | RNN74: 0 | RNO74: 0 | RNP74: 0 | RNQ74: 0 | RNR74: 0 | RNS74: 0 | RNT74: 0 | RNU74: 0 | RNV74: 0 | RNW74: 0 | RNX74: =RNX68 + RNX69 + RNX70 + (RNX71 + RNX72 + RNX73) * 0.5 -> 0 | RNY74: 0 | RNZ74: 0 | ROA74: 0 | ROB74: 0 | ROC74: 0 | ROD74: 0 | ROE74: 0 | ROF74: 0 | ROG74: 0 | ROH74: 0 | ROI74: 0 | ROJ74: 0 | ROK74: 0 | ROL74: 0 | ROM74: 0 | RON74: 0 | ROO74: 0 | ROP74: 0 | ROQ74: 0 | ROR74: 0 | ROS74: 0 | ROT74: 0 | ROU74: 0 | ROV74: 0 | ROW74: 0 | ROX74: 0 | ROY74: 0 | ROZ74: 0 | RPA74: 0 | RPB74: 0 | RPC74: 0 | RPD74: 0 | RPE74: 0 | RPF74: 0 | RPG74: 0 | RPH74: 0 | RPI74: 0 | RPJ74: 0 | RPK74: 0 | RPL74: 0 | RPM74: 0 | RPN74: 0 | RPO74: 0 | RPP74: 0 | RPQ74: 0 | RPR74: 0 | RPS74: 0 | RPT74: 0 | RPU74: 0 | RPV74: 0 | RPW74: 0 | RPX74: 0 | RPY74: 0 | RPZ74: 0 | RQA74: 0 | RQB74: 0 | RQC74: 0 | RQD74: 0 | RQE74: 0 | RQF74: 0 | RQG74: 0 | RQH74: 0 | RQI74: 0 | RQJ74: =RQJ68 + RQJ69 + RQJ70 + (RQJ71 + RQJ72 + RQJ73) * 0.5 -> 0 | RQK74: 0 | RQL74: 0 | RQM74: 0 | RQN74: 0 | RQO74: 0 | RQP74: 0 | RQQ74: 0 | RQR74: 0 | RQS74: 0 | RQT74: 0 | RQU74: 0 | RQV74: 0 | RQW74: 0 | RQX74: 0 | RQY74: 0 | RQZ74: 0 | RRA74: 0 | RRB74: 0 | RRC74: 0 | RRD74: 0 | RRE74: 0 | RRF74: 0 | RRG74: 0 | RRH74: 0 | RRI74: 0 | RRJ74: 0 | RRK74: 0 | RRL74: 0 | RRM74: 0 | RRN74: 0 | RRO74: 0 | RRP74: 0 | RRQ74: 0 | RRR74: 0 | RRS74: 0 | RRT74: 0 | RRU74: 0 | RRV74: 0 | RRW74: 0 | RRX74: 0 | RRY74: 0 | RRZ74: 0 | RSA74: 0 | RSB74: 0 | RSC74: 0 | RSD74: 0 | RSE74: 0 | RSF74: 0 | RSG74: 0 | RSH74: 0 | RSI74: 0 | RSJ74: 0 | RSK74: 0 | RSL74: 0 | RSM74: 0 | RSN74: 0 | RSO74: 0 | RSP74: 0 | RSQ74: 0 | RSR74: 0 | RSS74: 0 | RST74: 0 | RSU74: 0 | RSV74: =RSV68 + RSV69 + RSV70 + (RSV71 + RSV72 + RSV73) * 0.5 -> 0 | RSW74: 0 | RSX74: 0 | RSY74: 0 | RSZ74: 0 | RTA74: 0 | RTB74: 0 | RTC74: 0 | RTD74: 0 | RTE74: 0 | RTF74: 0 | RTG74: 0 | RTH74: 0 | RTI74: 0 | RTJ74: 0 | RTK74: 0 | RTL74: 0 | RTM74: 0 | RTN74: 0 | RTO74: 0 | RTP74: 0 | RTQ74: 0 | RTR74: 0 | RTS74: 0 | RTT74: 0 | RTU74: 0 | RTV74: 0 | RTW74: 0 | RTX74: 0 | RTY74: 0 | RTZ74: 0 | RUA74: 0 | RUB74: 0 | RUC74: 0 | RUD74: 0 | RUE74: 0 | RUF74: 0 | RUG74: 0 | RUH74: 0 | RUI74: 0 | RUJ74: 0 | RUK74: 0 | RUL74: 0 | RUM74: 0 | RUN74: 0 | RUO74: 0 | RUP74: 0 | RUQ74: 0 | RUR74: 0 | RUS74: 0 | RUT74: 0 | RUU74: 0 | RUV74: 0 | RUW74: 0 | RUX74: 0 | RUY74: 0 | RUZ74: 0 | RVA74: 0 | RVB74: 0 | RVC74: 0 | RVD74: 0 | RVE74: 0 | RVF74: 0 | RVG74: 0 | RVH74: =RVH68 + RVH69 + RVH70 + (RVH71 + RVH72 + RVH73) * 0.5 -> 0 | RVI74: 0 | RVJ74: 0 | RVK74: 0 | RVL74: 0 | RVM74: 0 | RVN74: 0 | RVO74: 0 | RVP74: 0 | RVQ74: 0 | RVR74: 0 | RVS74: 0 | RVT74: 0 | RVU74: 0 | RVV74: 0 | RVW74: 0 | RVX74: 0 | RVY74: 0 | RVZ74: 0 | RWA74: 0 | RWB74: 0 | RWC74: 0 | RWD74: 0 | RWE74: 0 | RWF74: 0 | RWG74: 0 | RWH74: 0 | RWI74: 0 | RWJ74: 0 | RWK74: 0 | RWL74: 0 | RWM74: 0 | RWN74: 0 | RWO74: 0 | RWP74: 0 | RWQ74: 0 | RWR74: 0 | RWS74: 0 | RWT74: 0 | RWU74: 0 | RWV74: 0 | RWW74: 0 | RWX74: 0 | RWY74: 0 | RWZ74: 0 | RXA74: 0 | RXB74: 0 | RXC74: 0 | RXD74: 0 | RXE74: 0 | RXF74: 0 | RXG74: 0 | RXH74: 0 | RXI74: 0 | RXJ74: 0 | RXK74: 0 | RXL74: 0 | RXM74: 0 | RXN74: 0 | RXO74: 0 | RXP74: 0 | RXQ74: 0 | RXR74: 0 | RXS74: 0 | RXT74: =RXT68 + RXT69 + RXT70 + (RXT71 + RXT72 + RXT73) * 0.5 -> 0 | RXU74: 0 | RXV74: 0 | RXW74: 0 | RXX74: 0 | RXY74: 0 | RXZ74: 0 | RYA74: 0 | RYB74: 0 | RYC74: 0 | RYD74: 0 | RYE74: 0 | RYF74: 0 | RYG74: 0 | RYH74: 0 | RYI74: 0 | RYJ74: 0 | RYK74: 0 | RYL74: 0 | RYM74: 0 | RYN74: 0 | RYO74: 0 | RYP74: 0 | RYQ74: 0 | RYR74: 0 | RYS74: 0 | RYT74: 0 | RYU74: 0 | RYV74: 0 | RYW74: 0 | RYX74: 0 | RYY74: 0 | RYZ74: 0 | RZA74: 0 | RZB74: 0 | RZC74: 0 | RZD74: 0 | RZE74: 0 | RZF74: 0 | RZG74: 0 | RZH74: 0 | RZI74: 0 | RZJ74: 0 | RZK74: 0 | RZL74: 0 | RZM74: 0 | RZN74: 0 | RZO74: 0 | RZP74: 0 | RZQ74: 0 | RZR74: 0 | RZS74: 0 | RZT74: 0 | RZU74: 0 | RZV74: 0 | RZW74: 0 | RZX74: 0 | RZY74: 0 | RZZ74: 0 | SAA74: 0 | SAB74: 0 | SAC74: 0 | SAD74: 0 | SAE74: 0 | SAF74: =SAF68 + SAF69 + SAF70 + (SAF71 + SAF72 + SAF73) * 0.5 -> 0 | SAG74: 0 | SAH74: 0 | SAI74: 0 | SAJ74: 0 | SAK74: 0 | SAL74: 0 | SAM74: 0 | SAN74: 0 | SAO74: 0 | SAP74: 0 | SAQ74: 0 | SAR74: 0 | SAS74: 0 | SAT74: 0 | SAU74: 0 | SAV74: 0 | SAW74: 0 | SAX74: 0 | SAY74: 0 | SAZ74: 0 | SBA74: 0 | SBB74: 0 | SBC74: 0 | SBD74: 0 | SBE74: 0 | SBF74: 0 | SBG74: 0 | SBH74: 0 | SBI74: 0 | SBJ74: 0 | SBK74: 0 | SBL74: 0 | SBM74: 0 | SBN74: 0 | SBO74: 0 | SBP74: 0 | SBQ74: 0 | SBR74: 0 | SBS74: 0 | SBT74: 0 | SBU74: 0 | SBV74: 0 | SBW74: 0 | SBX74: 0 | SBY74: 0 | SBZ74: 0 | SCA74: 0 | SCB74: 0 | SCC74: 0 | SCD74: 0 | SCE74: 0 | SCF74: 0 | SCG74: 0 | SCH74: 0 | SCI74: 0 | SCJ74: 0 | SCK74: 0 | SCL74: 0 | SCM74: 0 | SCN74: 0 | SCO74: 0 | SCP74: 0 | SCQ74: 0 | SCR74: =SCR68 + SCR69 + SCR70 + (SCR71 + SCR72 + SCR73) * 0.5 -> 0 | SCS74: 0 | SCT74: 0 | SCU74: 0 | SCV74: 0 | SCW74: 0 | SCX74: 0 | SCY74: 0 | SCZ74: 0 | SDA74: 0 | SDB74: 0 | SDC74: 0 | SDD74: 0 | SDE74: 0 | SDF74: 0 | SDG74: 0 | SDH74: 0 | SDI74: 0 | SDJ74: 0 | SDK74: 0 | SDL74: 0 | SDM74: 0 | SDN74: 0 | SDO74: 0 | SDP74: 0 | SDQ74: 0 | SDR74: 0 | SDS74: 0 | SDT74: 0 | SDU74: 0 | SDV74: 0 | SDW74: 0 | SDX74: 0 | SDY74: 0 | SDZ74: 0 | SEA74: 0 | SEB74: 0 | SEC74: 0 | SED74: 0 | SEE74: 0 | SEF74: 0 | SEG74: 0 | SEH74: 0 | SEI74: 0 | SEJ74: 0 | SEK74: 0 | SEL74: 0 | SEM74: 0 | SEN74: 0 | SEO74: 0 | SEP74: 0 | SEQ74: 0 | SER74: 0 | SES74: 0 | SET74: 0 | SEU74: 0 | SEV74: 0 | SEW74: 0 | SEX74: 0 | SEY74: 0 | SEZ74: 0 | SFA74: 0 | SFB74: 0 | SFC74: 0 | SFD74: =SFD68 + SFD69 + SFD70 + (SFD71 + SFD72 + SFD73) * 0.5 -> 0 | SFE74: 0 | SFF74: 0 | SFG74: 0 | SFH74: 0 | SFI74: 0 | SFJ74: 0 | SFK74: 0 | SFL74: 0 | SFM74: 0 | SFN74: 0 | SFO74: 0 | SFP74: 0 | SFQ74: 0 | SFR74: 0 | SFS74: 0 | SFT74: 0 | SFU74: 0 | SFV74: 0 | SFW74: 0 | SFX74: 0 | SFY74: 0 | SFZ74: 0 | SGA74: 0 | SGB74: 0 | SGC74: 0 | SGD74: 0 | SGE74: 0 | SGF74: 0 | SGG74: 0 | SGH74: 0 | SGI74: 0 | SGJ74: 0 | SGK74: 0 | SGL74: 0 | SGM74: 0 | SGN74: 0 | SGO74: 0 | SGP74: 0 | SGQ74: 0 | SGR74: 0 | SGS74: 0 | SGT74: 0 | SGU74: 0 | SGV74: 0 | SGW74: 0 | SGX74: 0 | SGY74: 0 | SGZ74: 0 | SHA74: 0 | SHB74: 0 | SHC74: 0 | SHD74: 0 | SHE74: 0 | SHF74: 0 | SHG74: 0 | SHH74: 0 | SHI74: 0 | SHJ74: 0 | SHK74: 0 | SHL74: 0 | SHM74: 0 | SHN74: 0 | SHO74: 0 | SHP74: =SHP68 + SHP69 + SHP70 + (SHP71 + SHP72 + SHP73) * 0.5 -> 0 | SHQ74: 0 | SHR74: 0 | SHS74: 0 | SHT74: 0 | SHU74: 0 | SHV74: 0 | SHW74: 0 | SHX74: 0 | SHY74: 0 | SHZ74: 0 | SIA74: 0 | SIB74: 0 | SIC74: 0 | SID74: 0 | SIE74: 0 | SIF74: 0 | SIG74: 0 | SIH74: 0 | SII74: 0 | SIJ74: 0 | SIK74: 0 | SIL74: 0 | SIM74: 0 | SIN74: 0 | SIO74: 0 | SIP74: 0 | SIQ74: 0 | SIR74: 0 | SIS74: 0 | SIT74: 0 | SIU74: 0 | SIV74: 0 | SIW74: 0 | SIX74: 0 | SIY74: 0 | SIZ74: 0 | SJA74: 0 | SJB74: 0 | SJC74: 0 | SJD74: 0 | SJE74: 0 | SJF74: 0 | SJG74: 0 | SJH74: 0 | SJI74: 0 | SJJ74: 0 | SJK74: 0 | SJL74: 0 | SJM74: 0 | SJN74: 0 | SJO74: 0 | SJP74: 0 | SJQ74: 0 | SJR74: 0 | SJS74: 0 | SJT74: 0 | SJU74: 0 | SJV74: 0 | SJW74: 0 | SJX74: 0 | SJY74: 0 | SJZ74: 0 | SKA74: 0 | SKB74: =SKB68 + SKB69 + SKB70 + (SKB71 + SKB72 + SKB73) * 0.5 -> 0 | SKC74: 0 | SKD74: 0 | SKE74: 0 | SKF74: 0 | SKG74: 0 | SKH74: 0 | SKI74: 0 | SKJ74: 0 | SKK74: 0 | SKL74: 0 | SKM74: 0 | SKN74: 0 | SKO74: 0 | SKP74: 0 | SKQ74: 0 | SKR74: 0 | SKS74: 0 | SKT74: 0 | SKU74: 0 | SKV74: 0 | SKW74: 0 | SKX74: 0 | SKY74: 0 | SKZ74: 0 | SLA74: 0 | SLB74: 0 | SLC74: 0 | SLD74: 0 | SLE74: 0 | SLF74: 0 | SLG74: 0 | SLH74: 0 | SLI74: 0 | SLJ74: 0 | SLK74: 0 | SLL74: 0 | SLM74: 0 | SLN74: 0 | SLO74: 0 | SLP74: 0 | SLQ74: 0 | SLR74: 0 | SLS74: 0 | SLT74: 0 | SLU74: 0 | SLV74: 0 | SLW74: 0 | SLX74: 0 | SLY74: 0 | SLZ74: 0 | SMA74: 0 | SMB74: 0 | SMC74: 0 | SMD74: 0 | SME74: 0 | SMF74: 0 | SMG74: 0 | SMH74: 0 | SMI74: 0 | SMJ74: 0 | SMK74: 0 | SML74: 0 | SMM74: 0 | SMN74: =SMN68 + SMN69 + SMN70 + (SMN71 + SMN72 + SMN73) * 0.5 -> 0 | SMO74: 0 | SMP74: 0 | SMQ74: 0 | SMR74: 0 | SMS74: 0 | SMT74: 0 | SMU74: 0 | SMV74: 0 | SMW74: 0 | SMX74: 0 | SMY74: 0 | SMZ74: 0 | SNA74: 0 | SNB74: 0 | SNC74: 0 | SND74: 0 | SNE74: 0 | SNF74: 0 | SNG74: 0 | SNH74: 0 | SNI74: 0 | SNJ74: 0 | SNK74: 0 | SNL74: 0 | SNM74: 0 | SNN74: 0 | SNO74: 0 | SNP74: 0 | SNQ74: 0 | SNR74: 0 | SNS74: 0 | SNT74: 0 | SNU74: 0 | SNV74: 0 | SNW74: 0 | SNX74: 0 | SNY74: 0 | SNZ74: 0 | SOA74: 0 | SOB74: 0 | SOC74: 0 | SOD74: 0 | SOE74: 0 | SOF74: 0 | SOG74: 0 | SOH74: 0 | SOI74: 0 | SOJ74: 0 | SOK74: 0 | SOL74: 0 | SOM74: 0 | SON74: 0 | SOO74: 0 | SOP74: 0 | SOQ74: 0 | SOR74: 0 | SOS74: 0 | SOT74: 0 | SOU74: 0 | SOV74: 0 | SOW74: 0 | SOX74: 0 | SOY74: 0 | SOZ74: =SOZ68 + SOZ69 + SOZ70 + (SOZ71 + SOZ72 + SOZ73) * 0.5 -> 0 | SPA74: 0 | SPB74: 0 | SPC74: 0 | SPD74: 0 | SPE74: 0 | SPF74: 0 | SPG74: 0 | SPH74: 0 | SPI74: 0 | SPJ74: 0 | SPK74: 0 | SPL74: 0 | SPM74: 0 | SPN74: 0 | SPO74: 0 | SPP74: 0 | SPQ74: 0 | SPR74: 0 | SPS74: 0 | SPT74: 0 | SPU74: 0 | SPV74: 0 | SPW74: 0 | SPX74: 0 | SPY74: 0 | SPZ74: 0 | SQA74: 0 | SQB74: 0 | SQC74: 0 | SQD74: 0 | SQE74: 0 | SQF74: 0 | SQG74: 0 | SQH74: 0 | SQI74: 0 | SQJ74: 0 | SQK74: 0 | SQL74: 0 | SQM74: 0 | SQN74: 0 | SQO74: 0 | SQP74: 0 | SQQ74: 0 | SQR74: 0 | SQS74: 0 | SQT74: 0 | SQU74: 0 | SQV74: 0 | SQW74: 0 | SQX74: 0 | SQY74: 0 | SQZ74: 0 | SRA74: 0 | SRB74: 0 | SRC74: 0 | SRD74: 0 | SRE74: 0 | SRF74: 0 | SRG74: 0 | SRH74: 0 | SRI74: 0 | SRJ74: 0 | SRK74: 0 | SRL74: =SRL68 + SRL69 + SRL70 + (SRL71 + SRL72 + SRL73) * 0.5 -> 0 | SRM74: 0 | SRN74: 0 | SRO74: 0 | SRP74: 0 | SRQ74: 0 | SRR74: 0 | SRS74: 0 | SRT74: 0 | SRU74: 0 | SRV74: 0 | SRW74: 0 | SRX74: 0 | SRY74: 0 | SRZ74: 0 | SSA74: 0 | SSB74: 0 | SSC74: 0 | SSD74: 0 | SSE74: 0 | SSF74: 0 | SSG74: 0 | SSH74: 0 | SSI74: 0 | SSJ74: 0 | SSK74: 0 | SSL74: 0 | SSM74: 0 | SSN74: 0 | SSO74: 0 | SSP74: 0 | SSQ74: 0 | SSR74: 0 | SSS74: 0 | SST74: 0 | SSU74: 0 | SSV74: 0 | SSW74: 0 | SSX74: 0 | SSY74: 0 | SSZ74: 0 | STA74: 0 | STB74: 0 | STC74: 0 | STD74: 0 | STE74: 0 | STF74: 0 | STG74: 0 | STH74: 0 | STI74: 0 | STJ74: 0 | STK74: 0 | STL74: 0 | STM74: 0 | STN74: 0 | STO74: 0 | STP74: 0 | STQ74: 0 | STR74: 0 | STS74: 0 | STT74: 0 | STU74: 0 | STV74: 0 | STW74: 0 | STX74: =STX68 + STX69 + STX70 + (STX71 + STX72 + STX73) * 0.5 -> 0 | STY74: 0 | STZ74: 0 | SUA74: 0 | SUB74: 0 | SUC74: 0 | SUD74: 0 | SUE74: 0 | SUF74: 0 | SUG74: 0 | SUH74: 0 | SUI74: 0 | SUJ74: 0 | SUK74: 0 | SUL74: 0 | SUM74: 0 | SUN74: 0 | SUO74: 0 | SUP74: 0 | SUQ74: 0 | SUR74: 0 | SUS74: 0 | SUT74: 0 | SUU74: 0 | SUV74: 0 | SUW74: 0 | SUX74: 0 | SUY74: 0 | SUZ74: 0 | SVA74: 0 | SVB74: 0 | SVC74: 0 | SVD74: 0 | SVE74: 0 | SVF74: 0 | SVG74: 0 | SVH74: 0 | SVI74: 0 | SVJ74: 0 | SVK74: 0 | SVL74: 0 | SVM74: 0 | SVN74: 0 | SVO74: 0 | SVP74: 0 | SVQ74: 0 | SVR74: 0 | SVS74: 0 | SVT74: 0 | SVU74: 0 | SVV74: 0 | SVW74: 0 | SVX74: 0 | SVY74: 0 | SVZ74: 0 | SWA74: 0 | SWB74: 0 | SWC74: 0 | SWD74: 0 | SWE74: 0 | SWF74: 0 | SWG74: 0 | SWH74: 0 | SWI74: 0 | SWJ74: =SWJ68 + SWJ69 + SWJ70 + (SWJ71 + SWJ72 + SWJ73) * 0.5 -> 0 | SWK74: 0 | SWL74: 0 | SWM74: 0 | SWN74: 0 | SWO74: 0 | SWP74: 0 | SWQ74: 0 | SWR74: 0 | SWS74: 0 | SWT74: 0 | SWU74: 0 | SWV74: 0 | SWW74: 0 | SWX74: 0 | SWY74: 0 | SWZ74: 0 | SXA74: 0 | SXB74: 0 | SXC74: 0 | SXD74: 0 | SXE74: 0 | SXF74: 0 | SXG74: 0 | SXH74: 0 | SXI74: 0 | SXJ74: 0 | SXK74: 0 | SXL74: 0 | SXM74: 0 | SXN74: 0 | SXO74: 0 | SXP74: 0 | SXQ74: 0 | SXR74: 0 | SXS74: 0 | SXT74: 0 | SXU74: 0 | SXV74: 0 | SXW74: 0 | SXX74: 0 | SXY74: 0 | SXZ74: 0 | SYA74: 0 | SYB74: 0 | SYC74: 0 | SYD74: 0 | SYE74: 0 | SYF74: 0 | SYG74: 0 | SYH74: 0 | SYI74: 0 | SYJ74: 0 | SYK74: 0 | SYL74: 0 | SYM74: 0 | SYN74: 0 | SYO74: 0 | SYP74: 0 | SYQ74: 0 | SYR74: 0 | SYS74: 0 | SYT74: 0 | SYU74: 0 | SYV74: =SYV68 + SYV69 + SYV70 + (SYV71 + SYV72 + SYV73) * 0.5 -> 0 | SYW74: 0 | SYX74: 0 | SYY74: 0 | SYZ74: 0 | SZA74: 0 | SZB74: 0 | SZC74: 0 | SZD74: 0 | SZE74: 0 | SZF74: 0 | SZG74: 0 | SZH74: 0 | SZI74: 0 | SZJ74: 0 | SZK74: 0 | SZL74: 0 | SZM74: 0 | SZN74: 0 | SZO74: 0 | SZP74: 0 | SZQ74: 0 | SZR74: 0 | SZS74: 0 | SZT74: 0 | SZU74: 0 | SZV74: 0 | SZW74: 0 | SZX74: 0 | SZY74: 0 | SZZ74: 0 | TAA74: 0 | TAB74: 0 | TAC74: 0 | TAD74: 0 | TAE74: 0 | TAF74: 0 | TAG74: 0 | TAH74: 0 | TAI74: 0 | TAJ74: 0 | TAK74: 0 | TAL74: 0 | TAM74: 0 | TAN74: 0 | TAO74: 0 | TAP74: 0 | TAQ74: 0 | TAR74: 0 | TAS74: 0 | TAT74: 0 | TAU74: 0 | TAV74: 0 | TAW74: 0 | TAX74: 0 | TAY74: 0 | TAZ74: 0 | TBA74: 0 | TBB74: 0 | TBC74: 0 | TBD74: 0 | TBE74: 0 | TBF74: 0 | TBG74: 0 | TBH74: =TBH68 + TBH69 + TBH70 + (TBH71 + TBH72 + TBH73) * 0.5 -> 0 | TBI74: 0 | TBJ74: 0 | TBK74: 0 | TBL74: 0 | TBM74: 0 | TBN74: 0 | TBO74: 0 | TBP74: 0 | TBQ74: 0 | TBR74: 0 | TBS74: 0 | TBT74: 0 | TBU74: 0 | TBV74: 0 | TBW74: 0 | TBX74: 0 | TBY74: 0 | TBZ74: 0 | TCA74: 0 | TCB74: 0 | TCC74: 0 | TCD74: 0 | TCE74: 0 | TCF74: 0 | TCG74: 0 | TCH74: 0 | TCI74: 0 | TCJ74: 0 | TCK74: 0 | TCL74: 0 | TCM74: 0 | TCN74: 0 | TCO74: 0 | TCP74: 0 | TCQ74: 0 | TCR74: 0 | TCS74: 0 | TCT74: 0 | TCU74: 0 | TCV74: 0 | TCW74: 0 | TCX74: 0 | TCY74: 0 | TCZ74: 0 | TDA74: 0 | TDB74: 0 | TDC74: 0 | TDD74: 0 | TDE74: 0 | TDF74: 0 | TDG74: 0 | TDH74: 0 | TDI74: 0 | TDJ74: 0 | TDK74: 0 | TDL74: 0 | TDM74: 0 | TDN74: 0 | TDO74: 0 | TDP74: 0 | TDQ74: 0 | TDR74: 0 | TDS74: 0 | TDT74: =TDT68 + TDT69 + TDT70 + (TDT71 + TDT72 + TDT73) * 0.5 -> 0 | TDU74: 0 | TDV74: 0 | TDW74: 0 | TDX74: 0 | TDY74: 0 | TDZ74: 0 | TEA74: 0 | TEB74: 0 | TEC74: 0 | TED74: 0 | TEE74: 0 | TEF74: 0 | TEG74: 0 | TEH74: 0 | TEI74: 0 | TEJ74: 0 | TEK74: 0 | TEL74: 0 | TEM74: 0 | TEN74: 0 | TEO74: 0 | TEP74: 0 | TEQ74: 0 | TER74: 0 | TES74: 0 | TET74: 0 | TEU74: 0 | TEV74: 0 | TEW74: 0 | TEX74: 0 | TEY74: 0 | TEZ74: 0 | TFA74: 0 | TFB74: 0 | TFC74: 0 | TFD74: 0 | TFE74: 0 | TFF74: 0 | TFG74: 0 | TFH74: 0 | TFI74: 0 | TFJ74: 0 | TFK74: 0 | TFL74: 0 | TFM74: 0 | TFN74: 0 | TFO74: 0 | TFP74: 0 | TFQ74: 0 | TFR74: 0 | TFS74: 0 | TFT74: 0 | TFU74: 0 | TFV74: 0 | TFW74: 0 | TFX74: 0 | TFY74: 0 | TFZ74: 0 | TGA74: 0 | TGB74: 0 | TGC74: 0 | TGD74: 0 | TGE74: 0 | TGF74: =TGF68 + TGF69 + TGF70 + (TGF71 + TGF72 + TGF73) * 0.5 -> 0 | TGG74: 0 | TGH74: 0 | TGI74: 0 | TGJ74: 0 | TGK74: 0 | TGL74: 0 | TGM74: 0 | TGN74: 0 | TGO74: 0 | TGP74: 0 | TGQ74: 0 | TGR74: 0 | TGS74: 0 | TGT74: 0 | TGU74: 0 | TGV74: 0 | TGW74: 0 | TGX74: 0 | TGY74: 0 | TGZ74: 0 | THA74: 0 | THB74: 0 | THC74: 0 | THD74: 0 | THE74: 0 | THF74: 0 | THG74: 0 | THH74: 0 | THI74: 0 | THJ74: 0 | THK74: 0 | THL74: 0 | THM74: 0 | THN74: 0 | THO74: 0 | THP74: 0 | THQ74: 0 | THR74: 0 | THS74: 0 | THT74: 0 | THU74: 0 | THV74: 0 | THW74: 0 | THX74: 0 | THY74: 0 | THZ74: 0 | TIA74: 0 | TIB74: 0 | TIC74: 0 | TID74: 0 | TIE74: 0 | TIF74: 0 | TIG74: 0 | TIH74: 0 | TII74: 0 | TIJ74: 0 | TIK74: 0 | TIL74: 0 | TIM74: 0 | TIN74: 0 | TIO74: 0 | TIP74: 0 | TIQ74: 0 | TIR74: =TIR68 + TIR69 + TIR70 + (TIR71 + TIR72 + TIR73) * 0.5 -> 0 | TIS74: 0 | TIT74: 0 | TIU74: 0 | TIV74: 0 | TIW74: 0 | TIX74: 0 | TIY74: 0 | TIZ74: 0 | TJA74: 0 | TJB74: 0 | TJC74: 0 | TJD74: 0 | TJE74: 0 | TJF74: 0 | TJG74: 0 | TJH74: 0 | TJI74: 0 | TJJ74: 0 | TJK74: 0 | TJL74: 0 | TJM74: 0 | TJN74: 0 | TJO74: 0 | TJP74: 0 | TJQ74: 0 | TJR74: 0 | TJS74: 0 | TJT74: 0 | TJU74: 0 | TJV74: 0 | TJW74: 0 | TJX74: 0 | TJY74: 0 | TJZ74: 0 | TKA74: 0 | TKB74: 0 | TKC74: 0 | TKD74: 0 | TKE74: 0 | TKF74: 0 | TKG74: 0 | TKH74: 0 | TKI74: 0 | TKJ74: 0 | TKK74: 0 | TKL74: 0 | TKM74: 0 | TKN74: 0 | TKO74: 0 | TKP74: 0 | TKQ74: 0 | TKR74: 0 | TKS74: 0 | TKT74: 0 | TKU74: 0 | TKV74: 0 | TKW74: 0 | TKX74: 0 | TKY74: 0 | TKZ74: 0 | TLA74: 0 | TLB74: 0 | TLC74: 0 | TLD74: =TLD68 + TLD69 + TLD70 + (TLD71 + TLD72 + TLD73) * 0.5 -> 0 | TLE74: 0 | TLF74: 0 | TLG74: 0 | TLH74: 0 | TLI74: 0 | TLJ74: 0 | TLK74: 0 | TLL74: 0 | TLM74: 0 | TLN74: 0 | TLO74: 0 | TLP74: 0 | TLQ74: 0 | TLR74: 0 | TLS74: 0 | TLT74: 0 | TLU74: 0 | TLV74: 0 | TLW74: 0 | TLX74: 0 | TLY74: 0 | TLZ74: 0 | TMA74: 0 | TMB74: 0 | TMC74: 0 | TMD74: 0 | TME74: 0 | TMF74: 0 | TMG74: 0 | TMH74: 0 | TMI74: 0 | TMJ74: 0 | TMK74: 0 | TML74: 0 | TMM74: 0 | TMN74: 0 | TMO74: 0 | TMP74: 0 | TMQ74: 0 | TMR74: 0 | TMS74: 0 | TMT74: 0 | TMU74: 0 | TMV74: 0 | TMW74: 0 | TMX74: 0 | TMY74: 0 | TMZ74: 0 | TNA74: 0 | TNB74: 0 | TNC74: 0 | TND74: 0 | TNE74: 0 | TNF74: 0 | TNG74: 0 | TNH74: 0 | TNI74: 0 | TNJ74: 0 | TNK74: 0 | TNL74: 0 | TNM74: 0 | TNN74: 0 | TNO74: 0 | TNP74: =TNP68 + TNP69 + TNP70 + (TNP71 + TNP72 + TNP73) * 0.5 -> 0 | TNQ74: 0 | TNR74: 0 | TNS74: 0 | TNT74: 0 | TNU74: 0 | TNV74: 0 | TNW74: 0 | TNX74: 0 | TNY74: 0 | TNZ74: 0 | TOA74: 0 | TOB74: 0 | TOC74: 0 | TOD74: 0 | TOE74: 0 | TOF74: 0 | TOG74: 0 | TOH74: 0 | TOI74: 0 | TOJ74: 0 | TOK74: 0 | TOL74: 0 | TOM74: 0 | TON74: 0 | TOO74: 0 | TOP74: 0 | TOQ74: 0 | TOR74: 0 | TOS74: 0 | TOT74: 0 | TOU74: 0 | TOV74: 0 | TOW74: 0 | TOX74: 0 | TOY74: 0 | TOZ74: 0 | TPA74: 0 | TPB74: 0 | TPC74: 0 | TPD74: 0 | TPE74: 0 | TPF74: 0 | TPG74: 0 | TPH74: 0 | TPI74: 0 | TPJ74: 0 | TPK74: 0 | TPL74: 0 | TPM74: 0 | TPN74: 0 | TPO74: 0 | TPP74: 0 | TPQ74: 0 | TPR74: 0 | TPS74: 0 | TPT74: 0 | TPU74: 0 | TPV74: 0 | TPW74: 0 | TPX74: 0 | TPY74: 0 | TPZ74: 0 | TQA74: 0 | TQB74: =TQB68 + TQB69 + TQB70 + (TQB71 + TQB72 + TQB73) * 0.5 -> 0 | TQC74: 0 | TQD74: 0 | TQE74: 0 | TQF74: 0 | TQG74: 0 | TQH74: 0 | TQI74: 0 | TQJ74: 0 | TQK74: 0 | TQL74: 0 | TQM74: 0 | TQN74: 0 | TQO74: 0 | TQP74: 0 | TQQ74: 0 | TQR74: 0 | TQS74: 0 | TQT74: 0 | TQU74: 0 | TQV74: 0 | TQW74: 0 | TQX74: 0 | TQY74: 0 | TQZ74: 0 | TRA74: 0 | TRB74: 0 | TRC74: 0 | TRD74: 0 | TRE74: 0 | TRF74: 0 | TRG74: 0 | TRH74: 0 | TRI74: 0 | TRJ74: 0 | TRK74: 0 | TRL74: 0 | TRM74: 0 | TRN74: 0 | TRO74: 0 | TRP74: 0 | TRQ74: 0 | TRR74: 0 | TRS74: 0 | TRT74: 0 | TRU74: 0 | TRV74: 0 | TRW74: 0 | TRX74: 0 | TRY74: 0 | TRZ74: 0 | TSA74: 0 | TSB74: 0 | TSC74: 0 | TSD74: 0 | TSE74: 0 | TSF74: 0 | TSG74: 0 | TSH74: 0 | TSI74: 0 | TSJ74: 0 | TSK74: 0 | TSL74: 0 | TSM74: 0 | TSN74: =TSN68 + TSN69 + TSN70 + (TSN71 + TSN72 + TSN73) * 0.5 -> 0 | TSO74: 0 | TSP74: 0 | TSQ74: 0 | TSR74: 0 | TSS74: 0 | TST74: 0 | TSU74: 0 | TSV74: 0 | TSW74: 0 | TSX74: 0 | TSY74: 0 | TSZ74: 0 | TTA74: 0 | TTB74: 0 | TTC74: 0 | TTD74: 0 | TTE74: 0 | TTF74: 0 | TTG74: 0 | TTH74: 0 | TTI74: 0 | TTJ74: 0 | TTK74: 0 | TTL74: 0 | TTM74: 0 | TTN74: 0 | TTO74: 0 | TTP74: 0 | TTQ74: 0 | TTR74: 0 | TTS74: 0 | TTT74: 0 | TTU74: 0 | TTV74: 0 | TTW74: 0 | TTX74: 0 | TTY74: 0 | TTZ74: 0 | TUA74: 0 | TUB74: 0 | TUC74: 0 | TUD74: 0 | TUE74: 0 | TUF74: 0 | TUG74: 0 | TUH74: 0 | TUI74: 0 | TUJ74: 0 | TUK74: 0 | TUL74: 0 | TUM74: 0 | TUN74: 0 | TUO74: 0 | TUP74: 0 | TUQ74: 0 | TUR74: 0 | TUS74: 0 | TUT74: 0 | TUU74: 0 | TUV74: 0 | TUW74: 0 | TUX74: 0 | TUY74: 0 | TUZ74: =TUZ68 + TUZ69 + TUZ70 + (TUZ71 + TUZ72 + TUZ73) * 0.5 -> 0 | TVA74: 0 | TVB74: 0 | TVC74: 0 | TVD74: 0 | TVE74: 0 | TVF74: 0 | TVG74: 0 | TVH74: 0 | TVI74: 0 | TVJ74: 0 | TVK74: 0 | TVL74: 0 | TVM74: 0 | TVN74: 0 | TVO74: 0 | TVP74: 0 | TVQ74: 0 | TVR74: 0 | TVS74: 0 | TVT74: 0 | TVU74: 0 | TVV74: 0 | TVW74: 0 | TVX74: 0 | TVY74: 0 | TVZ74: 0 | TWA74: 0 | TWB74: 0 | TWC74: 0 | TWD74: 0 | TWE74: 0 | TWF74: 0 | TWG74: 0 | TWH74: 0 | TWI74: 0 | TWJ74: 0 | TWK74: 0 | TWL74: 0 | TWM74: 0 | TWN74: 0 | TWO74: 0 | TWP74: 0 | TWQ74: 0 | TWR74: 0 | TWS74: 0 | TWT74: 0 | TWU74: 0 | TWV74: 0 | TWW74: 0 | TWX74: 0 | TWY74: 0 | TWZ74: 0 | TXA74: 0 | TXB74: 0 | TXC74: 0 | TXD74: 0 | TXE74: 0 | TXF74: 0 | TXG74: 0 | TXH74: 0 | TXI74: 0 | TXJ74: 0 | TXK74: 0 | TXL74: =TXL68 + TXL69 + TXL70 + (TXL71 + TXL72 + TXL73) * 0.5 -> 0 | TXM74: 0 | TXN74: 0 | TXO74: 0 | TXP74: 0 | TXQ74: 0 | TXR74: 0 | TXS74: 0 | TXT74: 0 | TXU74: 0 | TXV74: 0 | TXW74: 0 | TXX74: 0 | TXY74: 0 | TXZ74: 0 | TYA74: 0 | TYB74: 0 | TYC74: 0 | TYD74: 0 | TYE74: 0 | TYF74: 0 | TYG74: 0 | TYH74: 0 | TYI74: 0 | TYJ74: 0 | TYK74: 0 | TYL74: 0 | TYM74: 0 | TYN74: 0 | TYO74: 0 | TYP74: 0 | TYQ74: 0 | TYR74: 0 | TYS74: 0 | TYT74: 0 | TYU74: 0 | TYV74: 0 | TYW74: 0 | TYX74: 0 | TYY74: 0 | TYZ74: 0 | TZA74: 0 | TZB74: 0 | TZC74: 0 | TZD74: 0 | TZE74: 0 | TZF74: 0 | TZG74: 0 | TZH74: 0 | TZI74: 0 | TZJ74: 0 | TZK74: 0 | TZL74: 0 | TZM74: 0 | TZN74: 0 | TZO74: 0 | TZP74: 0 | TZQ74: 0 | TZR74: 0 | TZS74: 0 | TZT74: 0 | TZU74: 0 | TZV74: 0 | TZW74: 0 | TZX74: =TZX68 + TZX69 + TZX70 + (TZX71 + TZX72 + TZX73) * 0.5 -> 0 | TZY74: 0 | TZZ74: 0 | UAA74: 0 | UAB74: 0 | UAC74: 0 | UAD74: 0 | UAE74: 0 | UAF74: 0 | UAG74: 0 | UAH74: 0 | UAI74: 0 | UAJ74: 0 | UAK74: 0 | UAL74: 0 | UAM74: 0 | UAN74: 0 | UAO74: 0 | UAP74: 0 | UAQ74: 0 | UAR74: 0 | UAS74: 0 | UAT74: 0 | UAU74: 0 | UAV74: 0 | UAW74: 0 | UAX74: 0 | UAY74: 0 | UAZ74: 0 | UBA74: 0 | UBB74: 0 | UBC74: 0 | UBD74: 0 | UBE74: 0 | UBF74: 0 | UBG74: 0 | UBH74: 0 | UBI74: 0 | UBJ74: 0 | UBK74: 0 | UBL74: 0 | UBM74: 0 | UBN74: 0 | UBO74: 0 | UBP74: 0 | UBQ74: 0 | UBR74: 0 | UBS74: 0 | UBT74: 0 | UBU74: 0 | UBV74: 0 | UBW74: 0 | UBX74: 0 | UBY74: 0 | UBZ74: 0 | UCA74: 0 | UCB74: 0 | UCC74: 0 | UCD74: 0 | UCE74: 0 | UCF74: 0 | UCG74: 0 | UCH74: 0 | UCI74: 0 | UCJ74: =UCJ68 + UCJ69 + UCJ70 + (UCJ71 + UCJ72 + UCJ73) * 0.5 -> 0 | UCK74: 0 | UCL74: 0 | UCM74: 0 | UCN74: 0 | UCO74: 0 | UCP74: 0 | UCQ74: 0 | UCR74: 0 | UCS74: 0 | UCT74: 0 | UCU74: 0 | UCV74: 0 | UCW74: 0 | UCX74: 0 | UCY74: 0 | UCZ74: 0 | UDA74: 0 | UDB74: 0 | UDC74: 0 | UDD74: 0 | UDE74: 0 | UDF74: 0 | UDG74: 0 | UDH74: 0 | UDI74: 0 | UDJ74: 0 | UDK74: 0 | UDL74: 0 | UDM74: 0 | UDN74: 0 | UDO74: 0 | UDP74: 0 | UDQ74: 0 | UDR74: 0 | UDS74: 0 | UDT74: 0 | UDU74: 0 | UDV74: 0 | UDW74: 0 | UDX74: 0 | UDY74: 0 | UDZ74: 0 | UEA74: 0 | UEB74: 0 | UEC74: 0 | UED74: 0 | UEE74: 0 | UEF74: 0 | UEG74: 0 | UEH74: 0 | UEI74: 0 | UEJ74: 0 | UEK74: 0 | UEL74: 0 | UEM74: 0 | UEN74: 0 | UEO74: 0 | UEP74: 0 | UEQ74: 0 | UER74: 0 | UES74: 0 | UET74: 0 | UEU74: 0 | UEV74: =UEV68 + UEV69 + UEV70 + (UEV71 + UEV72 + UEV73) * 0.5 -> 0 | UEW74: 0 | UEX74: 0 | UEY74: 0 | UEZ74: 0 | UFA74: 0 | UFB74: 0 | UFC74: 0 | UFD74: 0 | UFE74: 0 | UFF74: 0 | UFG74: 0 | UFH74: 0 | UFI74: 0 | UFJ74: 0 | UFK74: 0 | UFL74: 0 | UFM74: 0 | UFN74: 0 | UFO74: 0 | UFP74: 0 | UFQ74: 0 | UFR74: 0 | UFS74: 0 | UFT74: 0 | UFU74: 0 | UFV74: 0 | UFW74: 0 | UFX74: 0 | UFY74: 0 | UFZ74: 0 | UGA74: 0 | UGB74: 0 | UGC74: 0 | UGD74: 0 | UGE74: 0 | UGF74: 0 | UGG74: 0 | UGH74: 0 | UGI74: 0 | UGJ74: 0 | UGK74: 0 | UGL74: 0 | UGM74: 0 | UGN74: 0 | UGO74: 0 | UGP74: 0 | UGQ74: 0 | UGR74: 0 | UGS74: 0 | UGT74: 0 | UGU74: 0 | UGV74: 0 | UGW74: 0 | UGX74: 0 | UGY74: 0 | UGZ74: 0 | UHA74: 0 | UHB74: 0 | UHC74: 0 | UHD74: 0 | UHE74: 0 | UHF74: 0 | UHG74: 0 | UHH74: =UHH68 + UHH69 + UHH70 + (UHH71 + UHH72 + UHH73) * 0.5 -> 0 | UHI74: 0 | UHJ74: 0 | UHK74: 0 | UHL74: 0 | UHM74: 0 | UHN74: 0 | UHO74: 0 | UHP74: 0 | UHQ74: 0 | UHR74: 0 | UHS74: 0 | UHT74: 0 | UHU74: 0 | UHV74: 0 | UHW74: 0 | UHX74: 0 | UHY74: 0 | UHZ74: 0 | UIA74: 0 | UIB74: 0 | UIC74: 0 | UID74: 0 | UIE74: 0 | UIF74: 0 | UIG74: 0 | UIH74: 0 | UII74: 0 | UIJ74: 0 | UIK74: 0 | UIL74: 0 | UIM74: 0 | UIN74: 0 | UIO74: 0 | UIP74: 0 | UIQ74: 0 | UIR74: 0 | UIS74: 0 | UIT74: 0 | UIU74: 0 | UIV74: 0 | UIW74: 0 | UIX74: 0 | UIY74: 0 | UIZ74: 0 | UJA74: 0 | UJB74: 0 | UJC74: 0 | UJD74: 0 | UJE74: 0 | UJF74: 0 | UJG74: 0 | UJH74: 0 | UJI74: 0 | UJJ74: 0 | UJK74: 0 | UJL74: 0 | UJM74: 0 | UJN74: 0 | UJO74: 0 | UJP74: 0 | UJQ74: 0 | UJR74: 0 | UJS74: 0 | UJT74: =UJT68 + UJT69 + UJT70 + (UJT71 + UJT72 + UJT73) * 0.5 -> 0 | UJU74: 0 | UJV74: 0 | UJW74: 0 | UJX74: 0 | UJY74: 0 | UJZ74: 0 | UKA74: 0 | UKB74: 0 | UKC74: 0 | UKD74: 0 | UKE74: 0 | UKF74: 0 | UKG74: 0 | UKH74: 0 | UKI74: 0 | UKJ74: 0 | UKK74: 0 | UKL74: 0 | UKM74: 0 | UKN74: 0 | UKO74: 0 | UKP74: 0 | UKQ74: 0 | UKR74: 0 | UKS74: 0 | UKT74: 0 | UKU74: 0 | UKV74: 0 | UKW74: 0 | UKX74: 0 | UKY74: 0 | UKZ74: 0 | ULA74: 0 | ULB74: 0 | ULC74: 0 | ULD74: 0 | ULE74: 0 | ULF74: 0 | ULG74: 0 | ULH74: 0 | ULI74: 0 | ULJ74: 0 | ULK74: 0 | ULL74: 0 | ULM74: 0 | ULN74: 0 | ULO74: 0 | ULP74: 0 | ULQ74: 0 | ULR74: 0 | ULS74: 0 | ULT74: 0 | ULU74: 0 | ULV74: 0 | ULW74: 0 | ULX74: 0 | ULY74: 0 | ULZ74: 0 | UMA74: 0 | UMB74: 0 | UMC74: 0 | UMD74: 0 | UME74: 0 | UMF74: =UMF68 + UMF69 + UMF70 + (UMF71 + UMF72 + UMF73) * 0.5 -> 0 | UMG74: 0 | UMH74: 0 | UMI74: 0 | UMJ74: 0 | UMK74: 0 | UML74: 0 | UMM74: 0 | UMN74: 0 | UMO74: 0 | UMP74: 0 | UMQ74: 0 | UMR74: 0 | UMS74: 0 | UMT74: 0 | UMU74: 0 | UMV74: 0 | UMW74: 0 | UMX74: 0 | UMY74: 0 | UMZ74: 0 | UNA74: 0 | UNB74: 0 | UNC74: 0 | UND74: 0 | UNE74: 0 | UNF74: 0 | UNG74: 0 | UNH74: 0 | UNI74: 0 | UNJ74: 0 | UNK74: 0 | UNL74: 0 | UNM74: 0 | UNN74: 0 | UNO74: 0 | UNP74: 0 | UNQ74: 0 | UNR74: 0 | UNS74: 0 | UNT74: 0 | UNU74: 0 | UNV74: 0 | UNW74: 0 | UNX74: 0 | UNY74: 0 | UNZ74: 0 | UOA74: 0 | UOB74: 0 | UOC74: 0 | UOD74: 0 | UOE74: 0 | UOF74: 0 | UOG74: 0 | UOH74: 0 | UOI74: 0 | UOJ74: 0 | UOK74: 0 | UOL74: 0 | UOM74: 0 | UON74: 0 | UOO74: 0 | UOP74: 0 | UOQ74: 0 | UOR74: =UOR68 + UOR69 + UOR70 + (UOR71 + UOR72 + UOR73) * 0.5 -> 0 | UOS74: 0 | UOT74: 0 | UOU74: 0 | UOV74: 0 | UOW74: 0 | UOX74: 0 | UOY74: 0 | UOZ74: 0 | UPA74: 0 | UPB74: 0 | UPC74: 0 | UPD74: 0 | UPE74: 0 | UPF74: 0 | UPG74: 0 | UPH74: 0 | UPI74: 0 | UPJ74: 0 | UPK74: 0 | UPL74: 0 | UPM74: 0 | UPN74: 0 | UPO74: 0 | UPP74: 0 | UPQ74: 0 | UPR74: 0 | UPS74: 0 | UPT74: 0 | UPU74: 0 | UPV74: 0 | UPW74: 0 | UPX74: 0 | UPY74: 0 | UPZ74: 0 | UQA74: 0 | UQB74: 0 | UQC74: 0 | UQD74: 0 | UQE74: 0 | UQF74: 0 | UQG74: 0 | UQH74: 0 | UQI74: 0 | UQJ74: 0 | UQK74: 0 | UQL74: 0 | UQM74: 0 | UQN74: 0 | UQO74: 0 | UQP74: 0 | UQQ74: 0 | UQR74: 0 | UQS74: 0 | UQT74: 0 | UQU74: 0 | UQV74: 0 | UQW74: 0 | UQX74: 0 | UQY74: 0 | UQZ74: 0 | URA74: 0 | URB74: 0 | URC74: 0 | URD74: =URD68 + URD69 + URD70 + (URD71 + URD72 + URD73) * 0.5 -> 0 | URE74: 0 | URF74: 0 | URG74: 0 | URH74: 0 | URI74: 0 | URJ74: 0 | URK74: 0 | URL74: 0 | URM74: 0 | URN74: 0 | URO74: 0 | URP74: 0 | URQ74: 0 | URR74: 0 | URS74: 0 | URT74: 0 | URU74: 0 | URV74: 0 | URW74: 0 | URX74: 0 | URY74: 0 | URZ74: 0 | USA74: 0 | USB74: 0 | USC74: 0 | USD74: 0 | USE74: 0 | USF74: 0 | USG74: 0 | USH74: 0 | USI74: 0 | USJ74: 0 | USK74: 0 | USL74: 0 | USM74: 0 | USN74: 0 | USO74: 0 | USP74: 0 | USQ74: 0 | USR74: 0 | USS74: 0 | UST74: 0 | USU74: 0 | USV74: 0 | USW74: 0 | USX74: 0 | USY74: 0 | USZ74: 0 | UTA74: 0 | UTB74: 0 | UTC74: 0 | UTD74: 0 | UTE74: 0 | UTF74: 0 | UTG74: 0 | UTH74: 0 | UTI74: 0 | UTJ74: 0 | UTK74: 0 | UTL74: 0 | UTM74: 0 | UTN74: 0 | UTO74: 0 | UTP74: =UTP68 + UTP69 + UTP70 + (UTP71 + UTP72 + UTP73) * 0.5 -> 0 | UTQ74: 0 | UTR74: 0 | UTS74: 0 | UTT74: 0 | UTU74: 0 | UTV74: 0 | UTW74: 0 | UTX74: 0 | UTY74: 0 | UTZ74: 0 | UUA74: 0 | UUB74: 0 | UUC74: 0 | UUD74: 0 | UUE74: 0 | UUF74: 0 | UUG74: 0 | UUH74: 0 | UUI74: 0 | UUJ74: 0 | UUK74: 0 | UUL74: 0 | UUM74: 0 | UUN74: 0 | UUO74: 0 | UUP74: 0 | UUQ74: 0 | UUR74: 0 | UUS74: 0 | UUT74: 0 | UUU74: 0 | UUV74: 0 | UUW74: 0 | UUX74: 0 | UUY74: 0 | UUZ74: 0 | UVA74: 0 | UVB74: 0 | UVC74: 0 | UVD74: 0 | UVE74: 0 | UVF74: 0 | UVG74: 0 | UVH74: 0 | UVI74: 0 | UVJ74: 0 | UVK74: 0 | UVL74: 0 | UVM74: 0 | UVN74: 0 | UVO74: 0 | UVP74: 0 | UVQ74: 0 | UVR74: 0 | UVS74: 0 | UVT74: 0 | UVU74: 0 | UVV74: 0 | UVW74: 0 | UVX74: 0 | UVY74: 0 | UVZ74: 0 | UWA74: 0 | UWB74: =UWB68 + UWB69 + UWB70 + (UWB71 + UWB72 + UWB73) * 0.5 -> 0 | UWC74: 0 | UWD74: 0 | UWE74: 0 | UWF74: 0 | UWG74: 0 | UWH74: 0 | UWI74: 0 | UWJ74: 0 | UWK74: 0 | UWL74: 0 | UWM74: 0 | UWN74: 0 | UWO74: 0 | UWP74: 0 | UWQ74: 0 | UWR74: 0 | UWS74: 0 | UWT74: 0 | UWU74: 0 | UWV74: 0 | UWW74: 0 | UWX74: 0 | UWY74: 0 | UWZ74: 0 | UXA74: 0 | UXB74: 0 | UXC74: 0 | UXD74: 0 | UXE74: 0 | UXF74: 0 | UXG74: 0 | UXH74: 0 | UXI74: 0 | UXJ74: 0 | UXK74: 0 | UXL74: 0 | UXM74: 0 | UXN74: 0 | UXO74: 0 | UXP74: 0 | UXQ74: 0 | UXR74: 0 | UXS74: 0 | UXT74: 0 | UXU74: 0 | UXV74: 0 | UXW74: 0 | UXX74: 0 | UXY74: 0 | UXZ74: 0 | UYA74: 0 | UYB74: 0 | UYC74: 0 | UYD74: 0 | UYE74: 0 | UYF74: 0 | UYG74: 0 | UYH74: 0 | UYI74: 0 | UYJ74: 0 | UYK74: 0 | UYL74: 0 | UYM74: 0 | UYN74: =UYN68 + UYN69 + UYN70 + (UYN71 + UYN72 + UYN73) * 0.5 -> 0 | UYO74: 0 | UYP74: 0 | UYQ74: 0 | UYR74: 0 | UYS74: 0 | UYT74: 0 | UYU74: 0 | UYV74: 0 | UYW74: 0 | UYX74: 0 | UYY74: 0 | UYZ74: 0 | UZA74: 0 | UZB74: 0 | UZC74: 0 | UZD74: 0 | UZE74: 0 | UZF74: 0 | UZG74: 0 | UZH74: 0 | UZI74: 0 | UZJ74: 0 | UZK74: 0 | UZL74: 0 | UZM74: 0 | UZN74: 0 | UZO74: 0 | UZP74: 0 | UZQ74: 0 | UZR74: 0 | UZS74: 0 | UZT74: 0 | UZU74: 0 | UZV74: 0 | UZW74: 0 | UZX74: 0 | UZY74: 0 | UZZ74: 0 | VAA74: 0 | VAB74: 0 | VAC74: 0 | VAD74: 0 | VAE74: 0 | VAF74: 0 | VAG74: 0 | VAH74: 0 | VAI74: 0 | VAJ74: 0 | VAK74: 0 | VAL74: 0 | VAM74: 0 | VAN74: 0 | VAO74: 0 | VAP74: 0 | VAQ74: 0 | VAR74: 0 | VAS74: 0 | VAT74: 0 | VAU74: 0 | VAV74: 0 | VAW74: 0 | VAX74: 0 | VAY74: 0 | VAZ74: =VAZ68 + VAZ69 + VAZ70 + (VAZ71 + VAZ72 + VAZ73) * 0.5 -> 0 | VBA74: 0 | VBB74: 0 | VBC74: 0 | VBD74: 0 | VBE74: 0 | VBF74: 0 | VBG74: 0 | VBH74: 0 | VBI74: 0 | VBJ74: 0 | VBK74: 0 | VBL74: 0 | VBM74: 0 | VBN74: 0 | VBO74: 0 | VBP74: 0 | VBQ74: 0 | VBR74: 0 | VBS74: 0 | VBT74: 0 | VBU74: 0 | VBV74: 0 | VBW74: 0 | VBX74: 0 | VBY74: 0 | VBZ74: 0 | VCA74: 0 | VCB74: 0 | VCC74: 0 | VCD74: 0 | VCE74: 0 | VCF74: 0 | VCG74: 0 | VCH74: 0 | VCI74: 0 | VCJ74: 0 | VCK74: 0 | VCL74: 0 | VCM74: 0 | VCN74: 0 | VCO74: 0 | VCP74: 0 | VCQ74: 0 | VCR74: 0 | VCS74: 0 | VCT74: 0 | VCU74: 0 | VCV74: 0 | VCW74: 0 | VCX74: 0 | VCY74: 0 | VCZ74: 0 | VDA74: 0 | VDB74: 0 | VDC74: 0 | VDD74: 0 | VDE74: 0 | VDF74: 0 | VDG74: 0 | VDH74: 0 | VDI74: 0 | VDJ74: 0 | VDK74: 0 | VDL74: =VDL68 + VDL69 + VDL70 + (VDL71 + VDL72 + VDL73) * 0.5 -> 0 | VDM74: 0 | VDN74: 0 | VDO74: 0 | VDP74: 0 | VDQ74: 0 | VDR74: 0 | VDS74: 0 | VDT74: 0 | VDU74: 0 | VDV74: 0 | VDW74: 0 | VDX74: 0 | VDY74: 0 | VDZ74: 0 | VEA74: 0 | VEB74: 0 | VEC74: 0 | VED74: 0 | VEE74: 0 | VEF74: 0 | VEG74: 0 | VEH74: 0 | VEI74: 0 | VEJ74: 0 | VEK74: 0 | VEL74: 0 | VEM74: 0 | VEN74: 0 | VEO74: 0 | VEP74: 0 | VEQ74: 0 | VER74: 0 | VES74: 0 | VET74: 0 | VEU74: 0 | VEV74: 0 | VEW74: 0 | VEX74: 0 | VEY74: 0 | VEZ74: 0 | VFA74: 0 | VFB74: 0 | VFC74: 0 | VFD74: 0 | VFE74: 0 | VFF74: 0 | VFG74: 0 | VFH74: 0 | VFI74: 0 | VFJ74: 0 | VFK74: 0 | VFL74: 0 | VFM74: 0 | VFN74: 0 | VFO74: 0 | VFP74: 0 | VFQ74: 0 | VFR74: 0 | VFS74: 0 | VFT74: 0 | VFU74: 0 | VFV74: 0 | VFW74: 0 | VFX74: =VFX68 + VFX69 + VFX70 + (VFX71 + VFX72 + VFX73) * 0.5 -> 0 | VFY74: 0 | VFZ74: 0 | VGA74: 0 | VGB74: 0 | VGC74: 0 | VGD74: 0 | VGE74: 0 | VGF74: 0 | VGG74: 0 | VGH74: 0 | VGI74: 0 | VGJ74: 0 | VGK74: 0 | VGL74: 0 | VGM74: 0 | VGN74: 0 | VGO74: 0 | VGP74: 0 | VGQ74: 0 | VGR74: 0 | VGS74: 0 | VGT74: 0 | VGU74: 0 | VGV74: 0 | VGW74: 0 | VGX74: 0 | VGY74: 0 | VGZ74: 0 | VHA74: 0 | VHB74: 0 | VHC74: 0 | VHD74: 0 | VHE74: 0 | VHF74: 0 | VHG74: 0 | VHH74: 0 | VHI74: 0 | VHJ74: 0 | VHK74: 0 | VHL74: 0 | VHM74: 0 | VHN74: 0 | VHO74: 0 | VHP74: 0 | VHQ74: 0 | VHR74: 0 | VHS74: 0 | VHT74: 0 | VHU74: 0 | VHV74: 0 | VHW74: 0 | VHX74: 0 | VHY74: 0 | VHZ74: 0 | VIA74: 0 | VIB74: 0 | VIC74: 0 | VID74: 0 | VIE74: 0 | VIF74: 0 | VIG74: 0 | VIH74: 0 | VII74: 0 | VIJ74: =VIJ68 + VIJ69 + VIJ70 + (VIJ71 + VIJ72 + VIJ73) * 0.5 -> 0 | VIK74: 0 | VIL74: 0 | VIM74: 0 | VIN74: 0 | VIO74: 0 | VIP74: 0 | VIQ74: 0 | VIR74: 0 | VIS74: 0 | VIT74: 0 | VIU74: 0 | VIV74: 0 | VIW74: 0 | VIX74: 0 | VIY74: 0 | VIZ74: 0 | VJA74: 0 | VJB74: 0 | VJC74: 0 | VJD74: 0 | VJE74: 0 | VJF74: 0 | VJG74: 0 | VJH74: 0 | VJI74: 0 | VJJ74: 0 | VJK74: 0 | VJL74: 0 | VJM74: 0 | VJN74: 0 | VJO74: 0 | VJP74: 0 | VJQ74: 0 | VJR74: 0 | VJS74: 0 | VJT74: 0 | VJU74: 0 | VJV74: 0 | VJW74: 0 | VJX74: 0 | VJY74: 0 | VJZ74: 0 | VKA74: 0 | VKB74: 0 | VKC74: 0 | VKD74: 0 | VKE74: 0 | VKF74: 0 | VKG74: 0 | VKH74: 0 | VKI74: 0 | VKJ74: 0 | VKK74: 0 | VKL74: 0 | VKM74: 0 | VKN74: 0 | VKO74: 0 | VKP74: 0 | VKQ74: 0 | VKR74: 0 | VKS74: 0 | VKT74: 0 | VKU74: 0 | VKV74: =VKV68 + VKV69 + VKV70 + (VKV71 + VKV72 + VKV73) * 0.5 -> 0 | VKW74: 0 | VKX74: 0 | VKY74: 0 | VKZ74: 0 | VLA74: 0 | VLB74: 0 | VLC74: 0 | VLD74: 0 | VLE74: 0 | VLF74: 0 | VLG74: 0 | VLH74: 0 | VLI74: 0 | VLJ74: 0 | VLK74: 0 | VLL74: 0 | VLM74: 0 | VLN74: 0 | VLO74: 0 | VLP74: 0 | VLQ74: 0 | VLR74: 0 | VLS74: 0 | VLT74: 0 | VLU74: 0 | VLV74: 0 | VLW74: 0 | VLX74: 0 | VLY74: 0 | VLZ74: 0 | VMA74: 0 | VMB74: 0 | VMC74: 0 | VMD74: 0 | VME74: 0 | VMF74: 0 | VMG74: 0 | VMH74: 0 | VMI74: 0 | VMJ74: 0 | VMK74: 0 | VML74: 0 | VMM74: 0 | VMN74: 0 | VMO74: 0 | VMP74: 0 | VMQ74: 0 | VMR74: 0 | VMS74: 0 | VMT74: 0 | VMU74: 0 | VMV74: 0 | VMW74: 0 | VMX74: 0 | VMY74: 0 | VMZ74: 0 | VNA74: 0 | VNB74: 0 | VNC74: 0 | VND74: 0 | VNE74: 0 | VNF74: 0 | VNG74: 0 | VNH74: =VNH68 + VNH69 + VNH70 + (VNH71 + VNH72 + VNH73) * 0.5 -> 0 | VNI74: 0 | VNJ74: 0 | VNK74: 0 | VNL74: 0 | VNM74: 0 | VNN74: 0 | VNO74: 0 | VNP74: 0 | VNQ74: 0 | VNR74: 0 | VNS74: 0 | VNT74: 0 | VNU74: 0 | VNV74: 0 | VNW74: 0 | VNX74: 0 | VNY74: 0 | VNZ74: 0 | VOA74: 0 | VOB74: 0 | VOC74: 0 | VOD74: 0 | VOE74: 0 | VOF74: 0 | VOG74: 0 | VOH74: 0 | VOI74: 0 | VOJ74: 0 | VOK74: 0 | VOL74: 0 | VOM74: 0 | VON74: 0 | VOO74: 0 | VOP74: 0 | VOQ74: 0 | VOR74: 0 | VOS74: 0 | VOT74: 0 | VOU74: 0 | VOV74: 0 | VOW74: 0 | VOX74: 0 | VOY74: 0 | VOZ74: 0 | VPA74: 0 | VPB74: 0 | VPC74: 0 | VPD74: 0 | VPE74: 0 | VPF74: 0 | VPG74: 0 | VPH74: 0 | VPI74: 0 | VPJ74: 0 | VPK74: 0 | VPL74: 0 | VPM74: 0 | VPN74: 0 | VPO74: 0 | VPP74: 0 | VPQ74: 0 | VPR74: 0 | VPS74: 0 | VPT74: =VPT68 + VPT69 + VPT70 + (VPT71 + VPT72 + VPT73) * 0.5 -> 0 | VPU74: 0 | VPV74: 0 | VPW74: 0 | VPX74: 0 | VPY74: 0 | VPZ74: 0 | VQA74: 0 | VQB74: 0 | VQC74: 0 | VQD74: 0 | VQE74: 0 | VQF74: 0 | VQG74: 0 | VQH74: 0 | VQI74: 0 | VQJ74: 0 | VQK74: 0 | VQL74: 0 | VQM74: 0 | VQN74: 0 | VQO74: 0 | VQP74: 0 | VQQ74: 0 | VQR74: 0 | VQS74: 0 | VQT74: 0 | VQU74: 0 | VQV74: 0 | VQW74: 0 | VQX74: 0 | VQY74: 0 | VQZ74: 0 | VRA74: 0 | VRB74: 0 | VRC74: 0 | VRD74: 0 | VRE74: 0 | VRF74: 0 | VRG74: 0 | VRH74: 0 | VRI74: 0 | VRJ74: 0 | VRK74: 0 | VRL74: 0 | VRM74: 0 | VRN74: 0 | VRO74: 0 | VRP74: 0 | VRQ74: 0 | VRR74: 0 | VRS74: 0 | VRT74: 0 | VRU74: 0 | VRV74: 0 | VRW74: 0 | VRX74: 0 | VRY74: 0 | VRZ74: 0 | VSA74: 0 | VSB74: 0 | VSC74: 0 | VSD74: 0 | VSE74: 0 | VSF74: =VSF68 + VSF69 + VSF70 + (VSF71 + VSF72 + VSF73) * 0.5 -> 0 | VSG74: 0 | VSH74: 0 | VSI74: 0 | VSJ74: 0 | VSK74: 0 | VSL74: 0 | VSM74: 0 | VSN74: 0 | VSO74: 0 | VSP74: 0 | VSQ74: 0 | VSR74: 0 | VSS74: 0 | VST74: 0 | VSU74: 0 | VSV74: 0 | VSW74: 0 | VSX74: 0 | VSY74: 0 | VSZ74: 0 | VTA74: 0 | VTB74: 0 | VTC74: 0 | VTD74: 0 | VTE74: 0 | VTF74: 0 | VTG74: 0 | VTH74: 0 | VTI74: 0 | VTJ74: 0 | VTK74: 0 | VTL74: 0 | VTM74: 0 | VTN74: 0 | VTO74: 0 | VTP74: 0 | VTQ74: 0 | VTR74: 0 | VTS74: 0 | VTT74: 0 | VTU74: 0 | VTV74: 0 | VTW74: 0 | VTX74: 0 | VTY74: 0 | VTZ74: 0 | VUA74: 0 | VUB74: 0 | VUC74: 0 | VUD74: 0 | VUE74: 0 | VUF74: 0 | VUG74: 0 | VUH74: 0 | VUI74: 0 | VUJ74: 0 | VUK74: 0 | VUL74: 0 | VUM74: 0 | VUN74: 0 | VUO74: 0 | VUP74: 0 | VUQ74: 0 | VUR74: =VUR68 + VUR69 + VUR70 + (VUR71 + VUR72 + VUR73) * 0.5 -> 0 | VUS74: 0 | VUT74: 0 | VUU74: 0 | VUV74: 0 | VUW74: 0 | VUX74: 0 | VUY74: 0 | VUZ74: 0 | VVA74: 0 | VVB74: 0 | VVC74: 0 | VVD74: 0 | VVE74: 0 | VVF74: 0 | VVG74: 0 | VVH74: 0 | VVI74: 0 | VVJ74: 0 | VVK74: 0 | VVL74: 0 | VVM74: 0 | VVN74: 0 | VVO74: 0 | VVP74: 0 | VVQ74: 0 | VVR74: 0 | VVS74: 0 | VVT74: 0 | VVU74: 0 | VVV74: 0 | VVW74: 0 | VVX74: 0 | VVY74: 0 | VVZ74: 0 | VWA74: 0 | VWB74: 0 | VWC74: 0 | VWD74: 0 | VWE74: 0 | VWF74: 0 | VWG74: 0 | VWH74: 0 | VWI74: 0 | VWJ74: 0 | VWK74: 0 | VWL74: 0 | VWM74: 0 | VWN74: 0 | VWO74: 0 | VWP74: 0 | VWQ74: 0 | VWR74: 0 | VWS74: 0 | VWT74: 0 | VWU74: 0 | VWV74: 0 | VWW74: 0 | VWX74: 0 | VWY74: 0 | VWZ74: 0 | VXA74: 0 | VXB74: 0 | VXC74: 0 | VXD74: =VXD68 + VXD69 + VXD70 + (VXD71 + VXD72 + VXD73) * 0.5 -> 0 | VXE74: 0 | VXF74: 0 | VXG74: 0 | VXH74: 0 | VXI74: 0 | VXJ74: 0 | VXK74: 0 | VXL74: 0 | VXM74: 0 | VXN74: 0 | VXO74: 0 | VXP74: 0 | VXQ74: 0 | VXR74: 0 | VXS74: 0 | VXT74: 0 | VXU74: 0 | VXV74: 0 | VXW74: 0 | VXX74: 0 | VXY74: 0 | VXZ74: 0 | VYA74: 0 | VYB74: 0 | VYC74: 0 | VYD74: 0 | VYE74: 0 | VYF74: 0 | VYG74: 0 | VYH74: 0 | VYI74: 0 | VYJ74: 0 | VYK74: 0 | VYL74: 0 | VYM74: 0 | VYN74: 0 | VYO74: 0 | VYP74: 0 | VYQ74: 0 | VYR74: 0 | VYS74: 0 | VYT74: 0 | VYU74: 0 | VYV74: 0 | VYW74: 0 | VYX74: 0 | VYY74: 0 | VYZ74: 0 | VZA74: 0 | VZB74: 0 | VZC74: 0 | VZD74: 0 | VZE74: 0 | VZF74: 0 | VZG74: 0 | VZH74: 0 | VZI74: 0 | VZJ74: 0 | VZK74: 0 | VZL74: 0 | VZM74: 0 | VZN74: 0 | VZO74: 0 | VZP74: =VZP68 + VZP69 + VZP70 + (VZP71 + VZP72 + VZP73) * 0.5 -> 0 | VZQ74: 0 | VZR74: 0 | VZS74: 0 | VZT74: 0 | VZU74: 0 | VZV74: 0 | VZW74: 0 | VZX74: 0 | VZY74: 0 | VZZ74: 0 | WAA74: 0 | WAB74: 0 | WAC74: 0 | WAD74: 0 | WAE74: 0 | WAF74: 0 | WAG74: 0 | WAH74: 0 | WAI74: 0 | WAJ74: 0 | WAK74: 0 | WAL74: 0 | WAM74: 0 | WAN74: 0 | WAO74: 0 | WAP74: 0 | WAQ74: 0 | WAR74: 0 | WAS74: 0 | WAT74: 0 | WAU74: 0 | WAV74: 0 | WAW74: 0 | WAX74: 0 | WAY74: 0 | WAZ74: 0 | WBA74: 0 | WBB74: 0 | WBC74: 0 | WBD74: 0 | WBE74: 0 | WBF74: 0 | WBG74: 0 | WBH74: 0 | WBI74: 0 | WBJ74: 0 | WBK74: 0 | WBL74: 0 | WBM74: 0 | WBN74: 0 | WBO74: 0 | WBP74: 0 | WBQ74: 0 | WBR74: 0 | WBS74: 0 | WBT74: 0 | WBU74: 0 | WBV74: 0 | WBW74: 0 | WBX74: 0 | WBY74: 0 | WBZ74: 0 | WCA74: 0 | WCB74: =WCB68 + WCB69 + WCB70 + (WCB71 + WCB72 + WCB73) * 0.5 -> 0 | WCC74: 0 | WCD74: 0 | WCE74: 0 | WCF74: 0 | WCG74: 0 | WCH74: 0 | WCI74: 0 | WCJ74: 0 | WCK74: 0 | WCL74: 0 | WCM74: 0 | WCN74: 0 | WCO74: 0 | WCP74: 0 | WCQ74: 0 | WCR74: 0 | WCS74: 0 | WCT74: 0 | WCU74: 0 | WCV74: 0 | WCW74: 0 | WCX74: 0 | WCY74: 0 | WCZ74: 0 | WDA74: 0 | WDB74: 0 | WDC74: 0 | WDD74: 0 | WDE74: 0 | WDF74: 0 | WDG74: 0 | WDH74: 0 | WDI74: 0 | WDJ74: 0 | WDK74: 0 | WDL74: 0 | WDM74: 0 | WDN74: 0 | WDO74: 0 | WDP74: 0 | WDQ74: 0 | WDR74: 0 | WDS74: 0 | WDT74: 0 | WDU74: 0 | WDV74: 0 | WDW74: 0 | WDX74: 0 | WDY74: 0 | WDZ74: 0 | WEA74: 0 | WEB74: 0 | WEC74: 0 | WED74: 0 | WEE74: 0 | WEF74: 0 | WEG74: 0 | WEH74: 0 | WEI74: 0 | WEJ74: 0 | WEK74: 0 | WEL74: 0 | WEM74: 0 | WEN74: =WEN68 + WEN69 + WEN70 + (WEN71 + WEN72 + WEN73) * 0.5 -> 0 | WEO74: 0 | WEP74: 0 | WEQ74: 0 | WER74: 0 | WES74: 0 | WET74: 0 | WEU74: 0 | WEV74: 0 | WEW74: 0 | WEX74: 0 | WEY74: 0 | WEZ74: 0 | WFA74: 0 | WFB74: 0 | WFC74: 0 | WFD74: 0 | WFE74: 0 | WFF74: 0 | WFG74: 0 | WFH74: 0 | WFI74: 0 | WFJ74: 0 | WFK74: 0 | WFL74: 0 | WFM74: 0 | WFN74: 0 | WFO74: 0 | WFP74: 0 | WFQ74: 0 | WFR74: 0 | WFS74: 0 | WFT74: 0 | WFU74: 0 | WFV74: 0 | WFW74: 0 | WFX74: 0 | WFY74: 0 | WFZ74: 0 | WGA74: 0 | WGB74: 0 | WGC74: 0 | WGD74: 0 | WGE74: 0 | WGF74: 0 | WGG74: 0 | WGH74: 0 | WGI74: 0 | WGJ74: 0 | WGK74: 0 | WGL74: 0 | WGM74: 0 | WGN74: 0 | WGO74: 0 | WGP74: 0 | WGQ74: 0 | WGR74: 0 | WGS74: 0 | WGT74: 0 | WGU74: 0 | WGV74: 0 | WGW74: 0 | WGX74: 0 | WGY74: 0 | WGZ74: =WGZ68 + WGZ69 + WGZ70 + (WGZ71 + WGZ72 + WGZ73) * 0.5 -> 0 | WHA74: 0 | WHB74: 0 | WHC74: 0 | WHD74: 0 | WHE74: 0 | WHF74: 0 | WHG74: 0 | WHH74: 0 | WHI74: 0 | WHJ74: 0 | WHK74: 0 | WHL74: 0 | WHM74: 0 | WHN74: 0 | WHO74: 0 | WHP74: 0 | WHQ74: 0 | WHR74: 0 | WHS74: 0 | WHT74: 0 | WHU74: 0 | WHV74: 0 | WHW74: 0 | WHX74: 0 | WHY74: 0 | WHZ74: 0 | WIA74: 0 | WIB74: 0 | WIC74: 0 | WID74: 0 | WIE74: 0 | WIF74: 0 | WIG74: 0 | WIH74: 0 | WII74: 0 | WIJ74: 0 | WIK74: 0 | WIL74: 0 | WIM74: 0 | WIN74: 0 | WIO74: 0 | WIP74: 0 | WIQ74: 0 | WIR74: 0 | WIS74: 0 | WIT74: 0 | WIU74: 0 | WIV74: 0 | WIW74: 0 | WIX74: 0 | WIY74: 0 | WIZ74: 0 | WJA74: 0 | WJB74: 0 | WJC74: 0 | WJD74: 0 | WJE74: 0 | WJF74: 0 | WJG74: 0 | WJH74: 0 | WJI74: 0 | WJJ74: 0 | WJK74: 0 | WJL74: =WJL68 + WJL69 + WJL70 + (WJL71 + WJL72 + WJL73) * 0.5 -> 0 | WJM74: 0 | WJN74: 0 | WJO74: 0 | WJP74: 0 | WJQ74: 0 | WJR74: 0 | WJS74: 0 | WJT74: 0 | WJU74: 0 | WJV74: 0 | WJW74: 0 | WJX74: 0 | WJY74: 0 | WJZ74: 0 | WKA74: 0 | WKB74: 0 | WKC74: 0 | WKD74: 0 | WKE74: 0 | WKF74: 0 | WKG74: 0 | WKH74: 0 | WKI74: 0 | WKJ74: 0 | WKK74: 0 | WKL74: 0 | WKM74: 0 | WKN74: 0 | WKO74: 0 | WKP74: 0 | WKQ74: 0 | WKR74: 0 | WKS74: 0 | WKT74: 0 | WKU74: 0 | WKV74: 0 | WKW74: 0 | WKX74: 0 | WKY74: 0 | WKZ74: 0 | WLA74: 0 | WLB74: 0 | WLC74: 0 | WLD74: 0 | WLE74: 0 | WLF74: 0 | WLG74: 0 | WLH74: 0 | WLI74: 0 | WLJ74: 0 | WLK74: 0 | WLL74: 0 | WLM74: 0 | WLN74: 0 | WLO74: 0 | WLP74: 0 | WLQ74: 0 | WLR74: 0 | WLS74: 0 | WLT74: 0 | WLU74: 0 | WLV74: 0 | WLW74: 0 | WLX74: =WLX68 + WLX69 + WLX70 + (WLX71 + WLX72 + WLX73) * 0.5 -> 0 | WLY74: 0 | WLZ74: 0 | WMA74: 0 | WMB74: 0 | WMC74: 0 | WMD74: 0 | WME74: 0 | WMF74: 0 | WMG74: 0 | WMH74: 0 | WMI74: 0 | WMJ74: 0 | WMK74: 0 | WML74: 0 | WMM74: 0 | WMN74: 0 | WMO74: 0 | WMP74: 0 | WMQ74: 0 | WMR74: 0 | WMS74: 0 | WMT74: 0 | WMU74: 0 | WMV74: 0 | WMW74: 0 | WMX74: 0 | WMY74: 0 | WMZ74: 0 | WNA74: 0 | WNB74: 0 | WNC74: 0 | WND74: 0 | WNE74: 0 | WNF74: 0 | WNG74: 0 | WNH74: 0 | WNI74: 0 | WNJ74: 0 | WNK74: 0 | WNL74: 0 | WNM74: 0 | WNN74: 0 | WNO74: 0 | WNP74: 0 | WNQ74: 0 | WNR74: 0 | WNS74: 0 | WNT74: 0 | WNU74: 0 | WNV74: 0 | WNW74: 0 | WNX74: 0 | WNY74: 0 | WNZ74: 0 | WOA74: 0 | WOB74: 0 | WOC74: 0 | WOD74: 0 | WOE74: 0 | WOF74: 0 | WOG74: 0 | WOH74: 0 | WOI74: 0 | WOJ74: =WOJ68 + WOJ69 + WOJ70 + (WOJ71 + WOJ72 + WOJ73) * 0.5 -> 0 | WOK74: 0 | WOL74: 0 | WOM74: 0 | WON74: 0 | WOO74: 0 | WOP74: 0 | WOQ74: 0 | WOR74: 0 | WOS74: 0 | WOT74: 0 | WOU74: 0 | WOV74: 0 | WOW74: 0 | WOX74: 0 | WOY74: 0 | WOZ74: 0 | WPA74: 0 | WPB74: 0 | WPC74: 0 | WPD74: 0 | WPE74: 0 | WPF74: 0 | WPG74: 0 | WPH74: 0 | WPI74: 0 | WPJ74: 0 | WPK74: 0 | WPL74: 0 | WPM74: 0 | WPN74: 0 | WPO74: 0 | WPP74: 0 | WPQ74: 0 | WPR74: 0 | WPS74: 0 | WPT74: 0 | WPU74: 0 | WPV74: 0 | WPW74: 0 | WPX74: 0 | WPY74: 0 | WPZ74: 0 | WQA74: 0 | WQB74: 0 | WQC74: 0 | WQD74: 0 | WQE74: 0 | WQF74: 0 | WQG74: 0 | WQH74: 0 | WQI74: 0 | WQJ74: 0 | WQK74: 0 | WQL74: 0 | WQM74: 0 | WQN74: 0 | WQO74: 0 | WQP74: 0 | WQQ74: 0 | WQR74: 0 | WQS74: 0 | WQT74: 0 | WQU74: 0 | WQV74: =WQV68 + WQV69 + WQV70 + (WQV71 + WQV72 + WQV73) * 0.5 -> 0 | WQW74: 0 | WQX74: 0 | WQY74: 0 | WQZ74: 0 | WRA74: 0 | WRB74: 0 | WRC74: 0 | WRD74: 0 | WRE74: 0 | WRF74: 0 | WRG74: 0 | WRH74: 0 | WRI74: 0 | WRJ74: 0 | WRK74: 0 | WRL74: 0 | WRM74: 0 | WRN74: 0 | WRO74: 0 | WRP74: 0 | WRQ74: 0 | WRR74: 0 | WRS74: 0 | WRT74: 0 | WRU74: 0 | WRV74: 0 | WRW74: 0 | WRX74: 0 | WRY74: 0 | WRZ74: 0 | WSA74: 0 | WSB74: 0 | WSC74: 0 | WSD74: 0 | WSE74: 0 | WSF74: 0 | WSG74: 0 | WSH74: 0 | WSI74: 0 | WSJ74: 0 | WSK74: 0 | WSL74: 0 | WSM74: 0 | WSN74: 0 | WSO74: 0 | WSP74: 0 | WSQ74: 0 | WSR74: 0 | WSS74: 0 | WST74: 0 | WSU74: 0 | WSV74: 0 | WSW74: 0 | WSX74: 0 | WSY74: 0 | WSZ74: 0 | WTA74: 0 | WTB74: 0 | WTC74: 0 | WTD74: 0 | WTE74: 0 | WTF74: 0 | WTG74: 0 | WTH74: =WTH68 + WTH69 + WTH70 + (WTH71 + WTH72 + WTH73) * 0.5 -> 0 | WTI74: 0 | WTJ74: 0 | WTK74: 0 | WTL74: 0 | WTM74: 0 | WTN74: 0 | WTO74: 0 | WTP74: 0 | WTQ74: 0 | WTR74: 0 | WTS74: 0 | WTT74: 0 | WTU74: 0 | WTV74: 0 | WTW74: 0 | WTX74: 0 | WTY74: 0 | WTZ74: 0 | WUA74: 0 | WUB74: 0 | WUC74: 0 | WUD74: 0 | WUE74: 0 | WUF74: 0 | WUG74: 0 | WUH74: 0 | WUI74: 0 | WUJ74: 0 | WUK74: 0 | WUL74: 0 | WUM74: 0 | WUN74: 0 | WUO74: 0 | WUP74: 0 | WUQ74: 0 | WUR74: 0 | WUS74: 0 | WUT74: 0 | WUU74: 0 | WUV74: 0 | WUW74: 0 | WUX74: 0 | WUY74: 0 | WUZ74: 0 | WVA74: 0 | WVB74: 0 | WVC74: 0 | WVD74: 0 | WVE74: 0 | WVF74: 0 | WVG74: 0 | WVH74: 0 | WVI74: 0 | WVJ74: 0 | WVK74: 0 | WVL74: 0 | WVM74: 0 | WVN74: 0 | WVO74: 0 | WVP74: 0 | WVQ74: 0 | WVR74: 0 | WVS74: 0 | WVT74: =WVT68 + WVT69 + WVT70 + (WVT71 + WVT72 + WVT73) * 0.5 -> 0 | WVU74: 0 | WVV74: 0 | WVW74: 0 | WVX74: 0 | WVY74: 0 | WVZ74: 0 | WWA74: 0 | WWB74: 0 | WWC74: 0 | WWD74: 0 | WWE74: 0 | WWF74: 0 | WWG74: 0 | WWH74: 0 | WWI74: 0 | WWJ74: 0 | WWK74: 0 | WWL74: 0 | WWM74: 0 | WWN74: 0 | WWO74: 0 | WWP74: 0 | WWQ74: 0 | WWR74: 0 | WWS74: 0 | WWT74: 0 | WWU74: 0 | WWV74: 0 | WWW74: 0 | WWX74: 0 | WWY74: 0 | WWZ74: 0 | WXA74: 0 | WXB74: 0 | WXC74: 0 | WXD74: 0 | WXE74: 0 | WXF74: 0 | WXG74: 0 | WXH74: 0 | WXI74: 0 | WXJ74: 0 | WXK74: 0 | WXL74: 0 | WXM74: 0 | WXN74: 0 | WXO74: 0 | WXP74: 0 | WXQ74: 0 | WXR74: 0 | WXS74: 0 | WXT74: 0 | WXU74: 0 | WXV74: 0 | WXW74: 0 | WXX74: 0 | WXY74: 0 | WXZ74: 0 | WYA74: 0 | WYB74: 0 | WYC74: 0 | WYD74: 0 | WYE74: 0 | WYF74: =WYF68 + WYF69 + WYF70 + (WYF71 + WYF72 + WYF73) * 0.5 -> 0 | WYG74: 0 | WYH74: 0 | WYI74: 0 | WYJ74: 0 | WYK74: 0 | WYL74: 0 | WYM74: 0 | WYN74: 0 | WYO74: 0 | WYP74: 0 | WYQ74: 0 | WYR74: 0 | WYS74: 0 | WYT74: 0 | WYU74: 0 | WYV74: 0 | WYW74: 0 | WYX74: 0 | WYY74: 0 | WYZ74: 0 | WZA74: 0 | WZB74: 0 | WZC74: 0 | WZD74: 0 | WZE74: 0 | WZF74: 0 | WZG74: 0 | WZH74: 0 | WZI74: 0 | WZJ74: 0 | WZK74: 0 | WZL74: 0 | WZM74: 0 | WZN74: 0 | WZO74: 0 | WZP74: 0 | WZQ74: 0 | WZR74: 0 | WZS74: 0 | WZT74: 0 | WZU74: 0 | WZV74: 0 | WZW74: 0 | WZX74: 0 | WZY74: 0 | WZZ74: 0 | XAA74: 0 | XAB74: 0 | XAC74: 0 | XAD74: 0 | XAE74: 0 | XAF74: 0 | XAG74: 0 | XAH74: 0 | XAI74: 0 | XAJ74: 0 | XAK74: 0 | XAL74: 0 | XAM74: 0 | XAN74: 0 | XAO74: 0 | XAP74: 0 | XAQ74: 0 | XAR74: =XAR68 + XAR69 + XAR70 + (XAR71 + XAR72 + XAR73) * 0.5 -> 0 | XAS74: 0 | XAT74: 0 | XAU74: 0 | XAV74: 0 | XAW74: 0 | XAX74: 0 | XAY74: 0 | XAZ74: 0 | XBA74: 0 | XBB74: 0 | XBC74: 0 | XBD74: 0 | XBE74: 0 | XBF74: 0 | XBG74: 0 | XBH74: 0 | XBI74: 0 | XBJ74: 0 | XBK74: 0 | XBL74: 0 | XBM74: 0 | XBN74: 0 | XBO74: 0 | XBP74: 0 | XBQ74: 0 | XBR74: 0 | XBS74: 0 | XBT74: 0 | XBU74: 0 | XBV74: 0 | XBW74: 0 | XBX74: 0 | XBY74: 0 | XBZ74: 0 | XCA74: 0 | XCB74: 0 | XCC74: 0 | XCD74: 0 | XCE74: 0 | XCF74: 0 | XCG74: 0 | XCH74: 0 | XCI74: 0 | XCJ74: 0 | XCK74: 0 | XCL74: 0 | XCM74: 0 | XCN74: 0 | XCO74: 0 | XCP74: 0 | XCQ74: 0 | XCR74: 0 | XCS74: 0 | XCT74: 0 | XCU74: 0 | XCV74: 0 | XCW74: 0 | XCX74: 0 | XCY74: 0 | XCZ74: 0 | XDA74: 0 | XDB74: 0 | XDC74: 0 | XDD74: =XDD68 + XDD69 + XDD70 + (XDD71 + XDD72 + XDD73) * 0.5 -> 0 | XDE74: 0 | XDF74: 0 | XDG74: 0 | XDH74: 0 | XDI74: 0 | XDJ74: 0 | XDK74: 0 | XDL74: 0 | XDM74: 0 | XDN74: 0 | XDO74: 0 | XDP74: 0 | XDQ74: 0 | XDR74: 0 | XDS74: 0 | XDT74: 0 | XDU74: 0 | XDV74: 0 | XDW74: 0 | XDX74: 0 | XDY74: 0 | XDZ74: 0 | XEA74: 0 | XEB74: 0 | XEC74: 0 | XED74: 0 | XEE74: 0 | XEF74: 0 | XEG74: 0 | XEH74: 0 | XEI74: 0 | XEJ74: 0 | XEK74: 0 | XEL74: 0 | XEM74: 0 | XEN74: 0 | XEO74: 0 | XEP74: 0 | XEQ74: 0 | XER74: 0 | XES74: 0 | XET74: 0 | XEU74: 0 | XEV74: 0 | XEW74: 0 | XEX74: 0 | XEY74: 0 | XEZ74: 0 | XFA74: 0 | XFB74: 0 | XFC74: 0 | XFD74: 0
E76: =E74 -> Monthly working capital requirement - CALC | F76: =F74 -> 0 | G76: £ | H76: 0 | I76: 0 | J76: 0 | K76: -31.5 | L76: -66.5 | M76: -101.5 | N76: -120.25 | O76: -101.5 | P76: -116.5 | Q76: -120.25 | R76: -101.5 | S76: -116.5 | T76: -120.25 | U76: -101.5 | V76: -116.5 | W76: -120.25 | X76: -101.5 | Y76: -116.5 | Z76: -120.25 | AA76: -101.5 | AB76: -116.5 | AC76: -120.25 | AD76: -101.5 | AE76: -116.5 | AF76: -120.25 | AG76: -101.5 | AH76: -116.5 | AI76: -120.25 | AJ76: -101.5 | AK76: -116.5 | AL76: -120.25 | AM76: -101.5 | AN76: -116.5 | AO76: -120.25 | AP76: -101.5 | AQ76: -116.5 | AR76: -120.25 | AS76: -101.5 | AT76: -116.5 | AU76: -120.25 | AV76: -66.5 | AW76: -46.5 | AX76: -31.5
E77: =Inputs!E66 -> Monthly interest rate (monthly compound interest rate) | F77: =Inputs!F66 -> 0.004074123784 | G77: =Inputs!G66 -> %
E78: Monthly cost of financing working capital | G78: £ | K78: =K76 * $F77 -> -0.1283348992 | L78: =L76 * $F77 -> -0.2709292316 | M78: -0.413523564 | N78: -0.489913385 | O78: -0.413523564 | P78: -0.4746354208 | Q78: -0.489913385 | R78: -0.413523564 | S78: -0.4746354208 | T78: -0.489913385 | U78: -0.413523564 | V78: -0.4746354208 | W78: -0.489913385 | X78: -0.413523564 | Y78: -0.4746354208 | Z78: -0.489913385 | AA78: -0.413523564 | AB78: -0.4746354208 | AC78: -0.489913385 | AD78: -0.413523564 | AE78: -0.4746354208 | AF78: -0.489913385 | AG78: -0.413523564 | AH78: -0.4746354208 | AI78: -0.489913385 | AJ78: -0.413523564 | AK78: -0.4746354208 | AL78: -0.489913385 | AM78: -0.413523564 | AN78: -0.4746354208 | AO78: -0.489913385 | AP78: -0.413523564 | AQ78: -0.4746354208 | AR78: -0.489913385 | AS78: -0.413523564 | AT78: -0.4746354208 | AU78: -0.489913385 | AV78: -0.2709292316 | AW78: -0.1894467559 | AX78: -0.1283348992
E80: =E78 -> Monthly cost of financing working capital | F80: =F78 -> 0 | G80: £ | H80: 0 | I80: 0 | J80: 0 | K80: =K78 -> -0.1283348992 | L80: -0.2709292316 | M80: -0.413523564 | N80: -0.489913385 | O80: -0.413523564 | P80: -0.4746354208 | Q80: -0.489913385 | R80: -0.413523564 | S80: -0.4746354208 | T80: -0.489913385 | U80: -0.413523564 | V80: -0.4746354208 | W80: -0.489913385 | X80: -0.413523564 | Y80: -0.4746354208 | Z80: -0.489913385 | AA80: -0.413523564 | AB80: -0.4746354208 | AC80: -0.489913385 | AD80: -0.413523564 | AE80: -0.4746354208 | AF80: -0.489913385 | AG80: -0.413523564 | AH80: -0.4746354208 | AI80: -0.489913385 | AJ80: -0.413523564 | AK80: -0.4746354208 | AL80: -0.489913385 | AM80: -0.413523564 | AN80: -0.4746354208 | AO80: -0.489913385 | AP80: -0.413523564 | AQ80: -0.4746354208 | AR80: -0.489913385 | AS80: -0.413523564 | AT80: -0.4746354208 | AU80: -0.489913385 | AV80: -0.2709292316 | AW80: -0.1894467559 | AX80: -0.1283348992
E81: =Time!E35 -> Working capital modelling period flag | F81: =Time!F35 -> 0 | G81: =Time!G35 -> flag | H81: =Time!H35 -> 12 | I81: =Time!I35 -> 0 | J81: =Time!J35 -> 0 | K81: =Time!K35 -> 0 | L81: =Time!L35 -> 0 | M81: =Time!M35 -> 0 | N81: =Time!N35 -> 0 | O81: =Time!O35 -> 0 | P81: =Time!P35 -> 0 | Q81: =Time!Q35 -> 0 | R81: =Time!R35 -> 0 | S81: =Time!S35 -> 0 | T81: =Time!T35 -> 0 | U81: =Time!U35 -> 0 | V81: =Time!V35 -> 0 | W81: =Time!W35 -> 0 | X81: =Time!X35 -> 1 | Y81: =Time!Y35 -> 1 | Z81: =Time!Z35 -> 1 | AA81: =Time!AA35 -> 1 | AB81: =Time!AB35 -> 1 | AC81: =Time!AC35 -> 1 | AD81: =Time!AD35 -> 1 | AE81: =Time!AE35 -> 1 | AF81: =Time!AF35 -> 1 | AG81: =Time!AG35 -> 1 | AH81: =Time!AH35 -> 1 | AI81: =Time!AI35 -> 1 | AJ81: =Time!AJ35 -> 0 | AK81: =Time!AK35 -> 0 | AL81: =Time!AL35 -> 0 | AM81: =Time!AM35 -> 0 | AN81: =Time!AN35 -> 0 | AO81: =Time!AO35 -> 0 | AP81: =Time!AP35 -> 0 | AQ81: =Time!AQ35 -> 0 | AR81: =Time!AR35 -> 0 | AS81: =Time!AS35 -> 0 | AT81: =Time!AT35 -> 0 | AU81: =Time!AU35 -> 0 | AV81: =Time!AV35 -> 0 | AW81: =Time!AW35 -> 0 | AX81: =Time!AX35 -> 0
E82: Total working capital cost for period FY | G82: £ | H82: =SUM( K82:AX82 ) -> -5.512289479 | K82: =K80 * K81 -> 0 | L82: =L80 * L81 -> 0 | M82: 0 | N82: 0 | O82: 0 | P82: 0 | Q82: 0 | R82: 0 | S82: 0 | T82: 0 | U82: 0 | V82: 0 | W82: 0 | X82: -0.413523564 | Y82: -0.4746354208 | Z82: -0.489913385 | AA82: -0.413523564 | AB82: -0.4746354208 | AC82: -0.489913385 | AD82: -0.413523564 | AE82: -0.4746354208 | AF82: -0.489913385 | AG82: -0.413523564 | AH82: -0.4746354208 | AI82: -0.489913385 | AJ82: 0 | AK82: 0 | AL82: 0 | AM82: 0 | AN82: 0 | AO82: 0 | AP82: 0 | AQ82: 0 | AR82: 0 | AS82: 0 | AT82: 0 | AU82: 0 | AV82: 0 | AW82: 0 | AX82: 0
E83: Total working capital cost for period FY - TOTAL | F83: =H82 * -1 -> 5.512289479 | G83: £
E85: =E83 -> Total working capital cost for period FY - TOTAL | F85: =F83 -> 5.512289479 | G85: =G83 -> £ | H85: 0
E86: =Inputs!E30 -> Annual bill | F86: =Inputs!F30 -> 500 | G86: =Inputs!G30 -> £ | H86: =Inputs!H30 -> 0
E87: Working capital cost as a proportion of the annual customer bill | F87: =F85 / F86 -> 0.01102457896 | G87: %
B89: Difference in the value of customer bill to be collected within 90 days and the total Retailer inflow accounting for unrecovered revenue
E91: =E31 -> Value of customer bills issued - TOTAL | F91: =F31 -> 1500 | G91: =G31 -> £
E92: =Inputs!E60 -> % revenue collected after 90 days | F92: =Inputs!F60 -> 0.84 | G92: =Inputs!G60 -> %
E93: Total value of customer bill modelled - CALC | F93: =F91 * F92 -> 1260 | G93: £
E94: =E48 -> Total Retailer inflow - TOTAL | F94: =F48 -> 1260 | G94: =G48 -> £
E96: Difference in the value of customer bill to be collected within 90 days and the total Retailer inflow accounting for unrecovered revenue | F96: =F93 - F94 -> 0 | G96: £
E97: Difference in the value of customer bill to be collected within 90 days and the total Retailer inflow accounting for unrecovered revenue - Check | F97: =IF( $F96 <> 0, 1, 0 ) -> 0 | G97: check
A100: END

Sheet Outputs-->

Sheet Working capital costs
A1: =RIGHT(CELL("filename", $A$1), LEN(CELL("filename", $A$1)) - SEARCH("]", CELL("filename", $A$1))) -> Working capital costs
E2: =Time!E$24 -> Model Period BEG | K2: =Time!K$24 -> 2023-03-01 | L2: =Time!L$24 -> 2023-04-01 | M2: =Time!M$24 -> 2023-05-01 | N2: =Time!N$24 -> 2023-06-01 | O2: =Time!O$24 -> 2023-07-01 | P2: =Time!P$24 -> 2023-08-01 | Q2: =Time!Q$24 -> 2023-09-01 | R2: =Time!R$24 -> 2023-10-01 | S2: =Time!S$24 -> 2023-11-01 | T2: =Time!T$24 -> 2023-12-01 | U2: =Time!U$24 -> 2024-01-01 | V2: =Time!V$24 -> 2024-02-01 | W2: =Time!W$24 -> 2024-03-01 | X2: =Time!X$24 -> 2024-04-01 | Y2: =Time!Y$24 -> 2024-05-01 | Z2: =Time!Z$24 -> 2024-06-01 | AA2: =Time!AA$24 -> 2024-07-01 | AB2: =Time!AB$24 -> 2024-08-01 | AC2: =Time!AC$24 -> 2024-09-01 | AD2: =Time!AD$24 -> 2024-10-01 | AE2: =Time!AE$24 -> 2024-11-01 | AF2: =Time!AF$24 -> 2024-12-01 | AG2: =Time!AG$24 -> 2025-01-01 | AH2: =Time!AH$24 -> 2025-02-01 | AI2: =Time!AI$24 -> 2025-03-01 | AJ2: =Time!AJ$24 -> 2025-04-01 | AK2: =Time!AK$24 -> 2025-05-01 | AL2: =Time!AL$24 -> 2025-06-01 | AM2: =Time!AM$24 -> 2025-07-01 | AN2: =Time!AN$24 -> 2025-08-01 | AO2: =Time!AO$24 -> 2025-09-01 | AP2: =Time!AP$24 -> 2025-10-01 | AQ2: =Time!AQ$24 -> 2025-11-01 | AR2: =Time!AR$24 -> 2025-12-01 | AS2: =Time!AS$24 -> 2026-01-01 | AT2: =Time!AT$24 -> 2026-02-01 | AU2: =Time!AU$24 -> 2026-03-01 | AV2: =Time!AV$24 -> 2026-04-01 | AW2: =Time!AW$24 -> 2026-05-01 | AX2: =Time!AX$24 -> 2026-06-01
E3: =Time!E$27 -> Model Period END | F3: =Check!F$8 -> 0 | G3: Error chks | K3: =Time!K$27 -> 2023-03-31 | L3: =Time!L$27 -> 2023-04-30 | M3: =Time!M$27 -> 2023-05-31 | N3: =Time!N$27 -> 2023-06-30 | O3: =Time!O$27 -> 2023-07-31 | P3: =Time!P$27 -> 2023-08-31 | Q3: =Time!Q$27 -> 2023-09-30 | R3: =Time!R$27 -> 2023-10-31 | S3: =Time!S$27 -> 2023-11-30 | T3: =Time!T$27 -> 2023-12-31 | U3: =Time!U$27 -> 2024-01-31 | V3: =Time!V$27 -> 2024-02-29 | W3: =Time!W$27 -> 2024-03-31 | X3: =Time!X$27 -> 2024-04-30 | Y3: =Time!Y$27 -> 2024-05-31 | Z3: =Time!Z$27 -> 2024-06-30 | AA3: =Time!AA$27 -> 2024-07-31 | AB3: =Time!AB$27 -> 2024-08-31 | AC3: =Time!AC$27 -> 2024-09-30 | AD3: =Time!AD$27 -> 2024-10-31 | AE3: =Time!AE$27 -> 2024-11-30 | AF3: =Time!AF$27 -> 2024-12-31 | AG3: =Time!AG$27 -> 2025-01-31 | AH3: =Time!AH$27 -> 2025-02-28 | AI3: =Time!AI$27 -> 2025-03-31 | AJ3: =Time!AJ$27 -> 2025-04-30 | AK3: =Time!AK$27 -> 2025-05-31 | AL3: =Time!AL$27 -> 2025-06-30 | AM3: =Time!AM$27 -> 2025-07-31 | AN3: =Time!AN$27 -> 2025-08-31 | AO3: =Time!AO$27 -> 2025-09-30 | AP3: =Time!AP$27 -> 2025-10-31 | AQ3: =Time!AQ$27 -> 2025-11-30 | AR3: =Time!AR$27 -> 2025-12-31 | AS3: =Time!AS$27 -> 2026-01-31 | AT3: =Time!AT$27 -> 2026-02-28 | AU3: =Time!AU$27 -> 2026-03-31 | AV3: =Time!AV$27 -> 2026-04-30 | AW3: =Time!AW$27 -> 2026-05-31 | AX3: =Time!AX$27 -> 2026-06-30
E4: =Time!E$100 -> Period reference | K4: =Time!K$100 -> Pre model period | L4: =Time!L$100 -> Pre model period | M4: =Time!M$100 -> Pre model period | N4: =Time!N$100 -> Pre model period | O4: =Time!O$100 -> Pre model period | P4: =Time!P$100 -> Pre model period | Q4: =Time!Q$100 -> Pre model period | R4: =Time!R$100 -> Pre model period | S4: =Time!S$100 -> Pre model period | T4: =Time!T$100 -> Pre model period | U4: =Time!U$100 -> Pre model period | V4: =Time!V$100 -> Pre model period | W4: =Time!W$100 -> Pre model period | X4: =Time!X$100 -> W.C. model period | Y4: =Time!Y$100 -> W.C. model period | Z4: =Time!Z$100 -> W.C. model period | AA4: =Time!AA$100 -> W.C. model period | AB4: =Time!AB$100 -> W.C. model period | AC4: =Time!AC$100 -> W.C. model period | AD4: =Time!AD$100 -> W.C. model period | AE4: =Time!AE$100 -> W.C. model period | AF4: =Time!AF$100 -> W.C. model period | AG4: =Time!AG$100 -> W.C. model period | AH4: =Time!AH$100 -> W.C. model period | AI4: =Time!AI$100 -> W.C. model period | AJ4: =Time!AJ$100 -> Post model period | AK4: =Time!AK$100 -> Post model period | AL4: =Time!AL$100 -> Post model period | AM4: =Time!AM$100 -> Post model period | AN4: =Time!AN$100 -> Post model period | AO4: =Time!AO$100 -> Post model period | AP4: =Time!AP$100 -> Post model period | AQ4: =Time!AQ$100 -> Post model period | AR4: =Time!AR$100 -> Post model period | AS4: =Time!AS$100 -> Post model period | AT4: =Time!AT$100 -> Post model period | AU4: =Time!AU$100 -> Post model period | AV4: =Time!AV$100 -> Post model period | AW4: =Time!AW$100 -> Post model period | AX4: =Time!AX$100 -> Post model period
E5: =Time!E$91 -> Financial Year Reference | K5: =Time!K$91 -> FY-2 | L5: =Time!L$91 -> FY-1 | M5: =Time!M$91 -> FY-1 | N5: =Time!N$91 -> FY-1 | O5: =Time!O$91 -> FY-1 | P5: =Time!P$91 -> FY-1 | Q5: =Time!Q$91 -> FY-1 | R5: =Time!R$91 -> FY-1 | S5: =Time!S$91 -> FY-1 | T5: =Time!T$91 -> FY-1 | U5: =Time!U$91 -> FY-1 | V5: =Time!V$91 -> FY-1 | W5: =Time!W$91 -> FY-1 | X5: =Time!X$91 -> FY | Y5: =Time!Y$91 -> FY | Z5: =Time!Z$91 -> FY | AA5: =Time!AA$91 -> FY | AB5: =Time!AB$91 -> FY | AC5: =Time!AC$91 -> FY | AD5: =Time!AD$91 -> FY | AE5: =Time!AE$91 -> FY | AF5: =Time!AF$91 -> FY | AG5: =Time!AG$91 -> FY | AH5: =Time!AH$91 -> FY | AI5: =Time!AI$91 -> FY | AJ5: =Time!AJ$91 -> FY+1 | AK5: =Time!AK$91 -> FY+1 | AL5: =Time!AL$91 -> FY+1 | AM5: =Time!AM$91 -> FY+1 | AN5: =Time!AN$91 -> FY+1 | AO5: =Time!AO$91 -> FY+1 | AP5: =Time!AP$91 -> FY+1 | AQ5: =Time!AQ$91 -> FY+1 | AR5: =Time!AR$91 -> FY+1 | AS5: =Time!AS$91 -> FY+1 | AT5: =Time!AT$91 -> FY+1 | AU5: =Time!AU$91 -> FY+1 | AV5: =Time!AV$91 -> FY+2 | AW5: =Time!AW$91 -> FY+2 | AX5: =Time!AX$91 -> FY+2
E6: =Time!E$11 -> Model column counter | F6: Constant | G6: Unit | H6: Total | K6: =Time!K$11 -> 1 | L6: =Time!L$11 -> 2 | M6: =Time!M$11 -> 3 | N6: =Time!N$11 -> 4 | O6: =Time!O$11 -> 5 | P6: =Time!P$11 -> 6 | Q6: =Time!Q$11 -> 7 | R6: =Time!R$11 -> 8 | S6: =Time!S$11 -> 9 | T6: =Time!T$11 -> 10 | U6: =Time!U$11 -> 11 | V6: =Time!V$11 -> 12 | W6: =Time!W$11 -> 13 | X6: =Time!X$11 -> 14 | Y6: =Time!Y$11 -> 15 | Z6: =Time!Z$11 -> 16 | AA6: =Time!AA$11 -> 17 | AB6: =Time!AB$11 -> 18 | AC6: =Time!AC$11 -> 19 | AD6: =Time!AD$11 -> 20 | AE6: =Time!AE$11 -> 21 | AF6: =Time!AF$11 -> 22 | AG6: =Time!AG$11 -> 23 | AH6: =Time!AH$11 -> 24 | AI6: =Time!AI$11 -> 25 | AJ6: =Time!AJ$11 -> 26 | AK6: =Time!AK$11 -> 27 | AL6: =Time!AL$11 -> 28 | AM6: =Time!AM$11 -> 29 | AN6: =Time!AN$11 -> 30 | AO6: =Time!AO$11 -> 31 | AP6: =Time!AP$11 -> 32 | AQ6: =Time!AQ$11 -> 33 | AR6: =Time!AR$11 -> 34 | AS6: =Time!AS$11 -> 35 | AT6: =Time!AT$11 -> 36 | AU6: =Time!AU$11 -> 37 | AV6: =Time!AV$11 -> 38 | AW6: =Time!AW$11 -> 39 | AX6: =Time!AX$11 -> 40
A8: WORKING CAPITAL COSTS FOR A NOTIONAL GROUP ONE CUSTOMER
E10: =Inputs!E65 -> Annual financing cost | F10: =Inputs!F65 -> 0.05 | G10: =Inputs!G65 -> %
E12: =Calculations!E85 -> Total working capital cost for period FY - TOTAL | F12: =Calculations!F85 -> 5.512289479 | G12: =Calculations!G85 -> £
E13: =Calculations!E86 -> Annual bill | F13: =Calculations!F86 -> 500 | G13: =Calculations!G86 -> £
E14: =Calculations!E87 -> Working capital cost as a proportion of the annual customer bill | F14: =Calculations!F87 -> 0.01102457896 | G14: =Calculations!G87 -> %
A17: END

Sheet Integrity checks-->

Sheet Check
A1: =RIGHT(CELL("filename", $A$1), LEN(CELL("filename", $A$1)) - SEARCH("]", CELL("filename", $A$1))) -> Check
E2: =Time!E$24 -> Model Period BEG | K2: =Time!K$24 -> 2023-03-01 | L2: =Time!L$24 -> 2023-04-01 | M2: =Time!M$24 -> 2023-05-01 | N2: =Time!N$24 -> 2023-06-01 | O2: =Time!O$24 -> 2023-07-01 | P2: =Time!P$24 -> 2023-08-01 | Q2: =Time!Q$24 -> 2023-09-01 | R2: =Time!R$24 -> 2023-10-01 | S2: =Time!S$24 -> 2023-11-01 | T2: =Time!T$24 -> 2023-12-01 | U2: =Time!U$24 -> 2024-01-01 | V2: =Time!V$24 -> 2024-02-01 | W2: =Time!W$24 -> 2024-03-01 | X2: =Time!X$24 -> 2024-04-01 | Y2: =Time!Y$24 -> 2024-05-01 | Z2: =Time!Z$24 -> 2024-06-01 | AA2: =Time!AA$24 -> 2024-07-01 | AB2: =Time!AB$24 -> 2024-08-01 | AC2: =Time!AC$24 -> 2024-09-01 | AD2: =Time!AD$24 -> 2024-10-01 | AE2: =Time!AE$24 -> 2024-11-01 | AF2: =Time!AF$24 -> 2024-12-01 | AG2: =Time!AG$24 -> 2025-01-01 | AH2: =Time!AH$24 -> 2025-02-01 | AI2: =Time!AI$24 -> 2025-03-01 | AJ2: =Time!AJ$24 -> 2025-04-01 | AK2: =Time!AK$24 -> 2025-05-01 | AL2: =Time!AL$24 -> 2025-06-01 | AM2: =Time!AM$24 -> 2025-07-01 | AN2: =Time!AN$24 -> 2025-08-01 | AO2: =Time!AO$24 -> 2025-09-01 | AP2: =Time!AP$24 -> 2025-10-01 | AQ2: =Time!AQ$24 -> 2025-11-01 | AR2: =Time!AR$24 -> 2025-12-01 | AS2: =Time!AS$24 -> 2026-01-01 | AT2: =Time!AT$24 -> 2026-02-01 | AU2: =Time!AU$24 -> 2026-03-01 | AV2: =Time!AV$24 -> 2026-04-01 | AW2: =Time!AW$24 -> 2026-05-01 | AX2: =Time!AX$24 -> 2026-06-01
E3: =Time!E$27 -> Model Period END | F3: =Check!F$8 -> 0 | G3: Error chks | K3: =Time!K$27 -> 2023-03-31 | L3: =Time!L$27 -> 2023-04-30 | M3: =Time!M$27 -> 2023-05-31 | N3: =Time!N$27 -> 2023-06-30 | O3: =Time!O$27 -> 2023-07-31 | P3: =Time!P$27 -> 2023-08-31 | Q3: =Time!Q$27 -> 2023-09-30 | R3: =Time!R$27 -> 2023-10-31 | S3: =Time!S$27 -> 2023-11-30 | T3: =Time!T$27 -> 2023-12-31 | U3: =Time!U$27 -> 2024-01-31 | V3: =Time!V$27 -> 2024-02-29 | W3: =Time!W$27 -> 2024-03-31 | X3: =Time!X$27 -> 2024-04-30 | Y3: =Time!Y$27 -> 2024-05-31 | Z3: =Time!Z$27 -> 2024-06-30 | AA3: =Time!AA$27 -> 2024-07-31 | AB3: =Time!AB$27 -> 2024-08-31 | AC3: =Time!AC$27 -> 2024-09-30 | AD3: =Time!AD$27 -> 2024-10-31 | AE3: =Time!AE$27 -> 2024-11-30 | AF3: =Time!AF$27 -> 2024-12-31 | AG3: =Time!AG$27 -> 2025-01-31 | AH3: =Time!AH$27 -> 2025-02-28 | AI3: =Time!AI$27 -> 2025-03-31 | AJ3: =Time!AJ$27 -> 2025-04-30 | AK3: =Time!AK$27 -> 2025-05-31 | AL3: =Time!AL$27 -> 2025-06-30 | AM3: =Time!AM$27 -> 2025-07-31 | AN3: =Time!AN$27 -> 2025-08-31 | AO3: =Time!AO$27 -> 2025-09-30 | AP3: =Time!AP$27 -> 2025-10-31 | AQ3: =Time!AQ$27 -> 2025-11-30 | AR3: =Time!AR$27 -> 2025-12-31 | AS3: =Time!AS$27 -> 2026-01-31 | AT3: =Time!AT$27 -> 2026-02-28 | AU3: =Time!AU$27 -> 2026-03-31 | AV3: =Time!AV$27 -> 2026-04-30 | AW3: =Time!AW$27 -> 2026-05-31 | AX3: =Time!AX$27 -> 2026-06-30
E4: =Time!E$100 -> Period reference | K4: =Time!K$100 -> Pre model period | L4: =Time!L$100 -> Pre model period | M4: =Time!M$100 -> Pre model period | N4: =Time!N$100 -> Pre model period | O4: =Time!O$100 -> Pre model period | P4: =Time!P$100 -> Pre model period | Q4: =Time!Q$100 -> Pre model period | R4: =Time!R$100 -> Pre model period | S4: =Time!S$100 -> Pre model period | T4: =Time!T$100 -> Pre model period | U4: =Time!U$100 -> Pre model period | V4: =Time!V$100 -> Pre model period | W4: =Time!W$100 -> Pre model period | X4: =Time!X$100 -> W.C. model period | Y4: =Time!Y$100 -> W.C. model period | Z4: =Time!Z$100 -> W.C. model period | AA4: =Time!AA$100 -> W.C. model period | AB4: =Time!AB$100 -> W.C. model period | AC4: =Time!AC$100 -> W.C. model period | AD4: =Time!AD$100 -> W.C. model period | AE4: =Time!AE$100 -> W.C. model period | AF4: =Time!AF$100 -> W.C. model period | AG4: =Time!AG$100 -> W.C. model period | AH4: =Time!AH$100 -> W.C. model period | AI4: =Time!AI$100 -> W.C. model period | AJ4: =Time!AJ$100 -> Post model period | AK4: =Time!AK$100 -> Post model period | AL4: =Time!AL$100 -> Post model period | AM4: =Time!AM$100 -> Post model period | AN4: =Time!AN$100 -> Post model period | AO4: =Time!AO$100 -> Post model period | AP4: =Time!AP$100 -> Post model period | AQ4: =Time!AQ$100 -> Post model period | AR4: =Time!AR$100 -> Post model period | AS4: =Time!AS$100 -> Post model period | AT4: =Time!AT$100 -> Post model period | AU4: =Time!AU$100 -> Post model period | AV4: =Time!AV$100 -> Post model period | AW4: =Time!AW$100 -> Post model period | AX4: =Time!AX$100 -> Post model period
E5: =Time!E$91 -> Financial Year Reference | K5: =Time!K$91 -> FY-2 | L5: =Time!L$91 -> FY-1 | M5: =Time!M$91 -> FY-1 | N5: =Time!N$91 -> FY-1 | O5: =Time!O$91 -> FY-1 | P5: =Time!P$91 -> FY-1 | Q5: =Time!Q$91 -> FY-1 | R5: =Time!R$91 -> FY-1 | S5: =Time!S$91 -> FY-1 | T5: =Time!T$91 -> FY-1 | U5: =Time!U$91 -> FY-1 | V5: =Time!V$91 -> FY-1 | W5: =Time!W$91 -> FY-1 | X5: =Time!X$91 -> FY | Y5: =Time!Y$91 -> FY | Z5: =Time!Z$91 -> FY | AA5: =Time!AA$91 -> FY | AB5: =Time!AB$91 -> FY | AC5: =Time!AC$91 -> FY | AD5: =Time!AD$91 -> FY | AE5: =Time!AE$91 -> FY | AF5: =Time!AF$91 -> FY | AG5: =Time!AG$91 -> FY | AH5: =Time!AH$91 -> FY | AI5: =Time!AI$91 -> FY | AJ5: =Time!AJ$91 -> FY+1 | AK5: =Time!AK$91 -> FY+1 | AL5: =Time!AL$91 -> FY+1 | AM5: =Time!AM$91 -> FY+1 | AN5: =Time!AN$91 -> FY+1 | AO5: =Time!AO$91 -> FY+1 | AP5: =Time!AP$91 -> FY+1 | AQ5: =Time!AQ$91 -> FY+1 | AR5: =Time!AR$91 -> FY+1 | AS5: =Time!AS$91 -> FY+1 | AT5: =Time!AT$91 -> FY+1 | AU5: =Time!AU$91 -> FY+1 | AV5: =Time!AV$91 -> FY+2 | AW5: =Time!AW$91 -> FY+2 | AX5: =Time!AX$91 -> FY+2
E6: =Time!E$11 -> Model column counter | F6: Constant | G6: Unit | H6: Total | K6: =Time!K$11 -> 1 | L6: =Time!L$11 -> 2 | M6: =Time!M$11 -> 3 | N6: =Time!N$11 -> 4 | O6: =Time!O$11 -> 5 | P6: =Time!P$11 -> 6 | Q6: =Time!Q$11 -> 7 | R6: =Time!R$11 -> 8 | S6: =Time!S$11 -> 9 | T6: =Time!T$11 -> 10 | U6: =Time!U$11 -> 11 | V6: =Time!V$11 -> 12 | W6: =Time!W$11 -> 13 | X6: =Time!X$11 -> 14 | Y6: =Time!Y$11 -> 15 | Z6: =Time!Z$11 -> 16 | AA6: =Time!AA$11 -> 17 | AB6: =Time!AB$11 -> 18 | AC6: =Time!AC$11 -> 19 | AD6: =Time!AD$11 -> 20 | AE6: =Time!AE$11 -> 21 | AF6: =Time!AF$11 -> 22 | AG6: =Time!AG$11 -> 23 | AH6: =Time!AH$11 -> 24 | AI6: =Time!AI$11 -> 25 | AJ6: =Time!AJ$11 -> 26 | AK6: =Time!AK$11 -> 27 | AL6: =Time!AL$11 -> 28 | AM6: =Time!AM$11 -> 29 | AN6: =Time!AN$11 -> 30 | AO6: =Time!AO$11 -> 31 | AP6: =Time!AP$11 -> 32 | AQ6: =Time!AQ$11 -> 33 | AR6: =Time!AR$11 -> 34 | AS6: =Time!AS$11 -> 35 | AT6: =Time!AT$11 -> 36 | AU6: =Time!AU$11 -> 37 | AV6: =Time!AV$11 -> 38 | AW6: =Time!AW$11 -> 39 | AX6: =Time!AX$11 -> 40
E8: Total error checks | F8: =SUM(F11:F14) -> 0 | G8: check
A10: [Do not delete]
E12: =Time!E109 -> Modelling Period - Check | F12: =Time!F109 -> 0 | G12: =Time!G109 -> check
E13: =Calculations!E97 -> Difference in the value of customer bill to be collected within 90 days and the total Retailer inflow accounting for unrecovered revenue - Check | F13: =Calculations!F97 -> 0 | G13: =Calculations!G97 -> check
A15: END
